Workbook

Sheet INICIO
C3: MINISTERIO DE SALUD | G3: CENTRO NACIONAL DE ALIMENTACIÓN Y NUTRICIÓN
C4: INSTITUTO NACIONAL DE SALUD | G4: DIRECCIÓN EJECUTIVA DE VIGILANCIA ALIMENTARIA Y NUTRICIONAL
C6: PERÚ: INDICADORES NUTRICIONALES EN NIÑOS
C7: SISTEMA DE INFORMACIÓN DEL ESTADO NUTRICIONAL
C8: PERIODO: ENERO - MARZO 2018
C10: 1 | D10: ESTADO NUTRICIONAL EN NIÑOS MENORES DE 3 AÑOS SEGÚN DEPARTAMENTO DEL EESS
C11: 2 | D11: ESTADO NUTRICIONAL EN NIÑOS MENORES DE 3 AÑOS SEGÚN DIRESA / GERESA / DISA
C12: 3 | D12: ESTADO NUTRICIONAL EN NIÑOS MENORES DE 3 AÑOS SEGÚN DEPARTAMENTO / PROVINCIA / DISTRITO DE ORIGEN
C13: 4 | D13: ESTADO NUTRICIONAL EN NIÑOS MENORES DE 5 AÑOS SEGÚN DEPARTAMENTO DEL EESS
C14: 5 | D14: ESTADO NUTRICIONAL EN NIÑOS MENORES DE 5 AÑOS SEGÚN DIRESA / GERESA / DISA
C15: 6 | D15: ESTADO NUTRICIONAL EN NIÑOS MENORES DE 5 AÑOS SEGÚN DEPARTAMENTO / PROVINCIA / DISTRITO DE ORIGEN
C16: 7 | D16: ANEMIA EN NIÑOS ENTRE 6 A 35 MESES SEGÚN DEPARTAMENTO DEL EESS
C17: 8 | D17: ANEMIA EN NIÑOS ENTRE 6 A 35 MESES SEGÚN DIRESA / GERESA / DISA
C18: 9 | D18: ANEMIA EN NIÑOS ENTRE 6 A 35 MESES SEGÚN DEPARTAMENTO / PROVINCIA / DISTRITO DE ORIGEN
C19: 10 | D19: ANEMIA EN NIÑOS ENTRE 6 A 59 MESES SEGÚN DEPARTAMENTO DEL EESS
C20: 11 | D20: ANEMIA EN NIÑOS ENTRE 6 A 59 MESES SEGÚN DIRESA / GERESA / DISA
C21: 12 | D21: ANEMIA EN NIÑOS ENTRE 6 A 59 MESES SEGÚN DEPARTAMENTO / PROVINCIA / DISTRITO DE ORIGEN

Sheet EN 0-35m x DEP
B2: CUADRO N°01 PERÚ: ESTADO NUTRICIONAL EN NIÑOS MENORES DE 3 AÑOS QUE ACCEDIERON A LOS ESTABLECIMIENTOS DE SALUD POR INDICADORES ANTROPOMÉTRICOS, SEGÚN DEPARTAMENTO DEL ESTABLECIMIENTO DE SALUD
B3: =INICIO!C8 -> PERIODO: ENERO - MARZO 2018
B5: DEPARTAMENTO | C5: INDICADOR TALLA / EDAD1 | I5: INDICADOR PESO / EDAD2 | L5: INDICADOR PESO / TALLA3
C6: DESNUTRICIÓN CRÓNICA | F6: RIESGO DE DESNUTRICIÓN CRÓNICA4 | I6: DESNUTRICIÓN GLOBAL | L6: DESNUTRICIÓN AGUDA | O6: SOBREPESO | Q6: OBESIDAD
C7: N° DE EVALUADOS | D7: N° DE CASOS | E7: % | F7: N° DE EVALUADOS | G7: N° DE CASOS | H7: % | I7: N° DE EVALUADOS | J7: N° DE CASOS | K7: % | L7: N° DE EVALUADOS | M7: N° DE CASOS | N7: % | O7: N° DE CASOS | P7: % | Q7: N° DE CASOS | R7: %
B8: AMAZONAS | C8: 22936 | D8: 5320 | E8: 23.19497733 | F8: 17616 | G8: 7496 | H8: 42.55222525 | I8: 22936 | J8: 1131 | K8: 4.931112661 | L8: 22936 | M8: 356 | N8: 1.552145099 | O8: 1466 | P8: 6.39169864 | Q8: 352 | R8: 1.534705267
B9: ÁNCASH | C9: 38074 | D9: 7299 | E9: 19.17056259 | F9: 30775 | G9: 12090 | H9: 39.28513404 | I9: 38074 | J9: 1416 | K9: 3.719073383 | L9: 38074 | M9: 399 | N9: 1.047959237 | O9: 2417 | P9: 6.348164101 | Q9: 554 | R9: 1.455061197
B10: APURÍMAC | C10: 18678 | D10: 3891 | E10: 20.83199486 | F10: 14787 | G10: 6904 | H10: 46.68965984 | I10: 18678 | J10: 962 | K10: 5.150444373 | L10: 18678 | M10: 195 | N10: 1.044008995 | O10: 678 | P10: 3.629938966 | Q10: 155 | R10: 0.8298533034
B11: AREQUIPA | C11: 41764 | D11: 3014 | E11: 7.216741691 | F11: 38750 | G11: 9617 | H11: 24.81806452 | I11: 41764 | J11: 851 | K11: 2.037640073 | L11: 41764 | M11: 498 | N11: 1.19241452 | O11: 2454 | P11: 5.875873958 | Q11: 463 | R11: 1.108610286
B12: AYACUCHO | C12: 27163 | D12: 5338 | E12: 19.65173214 | F12: 21825 | G12: 9915 | H12: 45.42955326 | I12: 27163 | J12: 1241 | K12: 4.568714796 | L12: 27163 | M12: 341 | N12: 1.255384162 | O12: 1298 | P12: 4.778559069 | Q12: 279 | R12: 1.027132496
B13: CAJAMARCA | C13: 61384 | D13: 13702 | E13: 22.32177766 | F13: 47682 | G13: 20981 | H13: 44.00192945 | I13: 61384 | J13: 2829 | K13: 4.608692819 | L13: 61384 | M13: 715 | N13: 1.164798645 | O13: 3542 | P13: 5.770233286 | Q13: 667 | R13: 1.086602372
B14: CALLAO | C14: 13190 | D14: 994 | E14: 7.53601213 | F14: 12196 | G14: 2761 | H14: 22.63857002 | I14: 13190 | J14: 276 | K14: 2.092494314 | L14: 13190 | M14: 163 | N14: 1.235784685 | O14: 1184 | P14: 8.976497346 | Q14: 317 | R14: 2.403335861
B15: CUSCO | C15: 8947 | D15: 1664 | E15: 18.59841288 | F15: 7283 | G15: 3054 | H15: 41.93326926 | I15: 8947 | J15: 445 | K15: 4.973734213 | L15: 8947 | M15: 130 | N15: 1.453001006 | O15: 315 | P15: 3.520733207 | Q15: 84 | R15: 0.9388621884
B16: HUANCAVELICA | C16: 16823 | D16: 4689 | E16: 27.87255543 | F16: 12134 | G16: 6449 | H16: 53.14817867 | I16: 16823 | J16: 866 | K16: 5.147714439 | L16: 16823 | M16: 181 | N16: 1.075907983 | O16: 788 | P16: 4.684063485 | Q16: 159 | R16: 0.9451346371
B17: HUÁNUCO | C17: 28901 | D17: 5184 | E17: 17.9370956 | F17: 23717 | G17: 9324 | H17: 39.31357254 | I17: 28901 | J17: 1211 | K17: 4.19016643 | L17: 28901 | M17: 361 | N17: 1.249091727 | O17: 1568 | P17: 5.425417806 | Q17: 375 | R17: 1.297532957
B18: ICA | C18: 19880 | D18: 1580 | E18: 7.947686117 | F18: 18300 | G18: 4582 | H18: 25.03825137 | I18: 19880 | J18: 382 | K18: 1.921529175 | L18: 19880 | M18: 214 | N18: 1.076458753 | O18: 1657 | P18: 8.33501006 | Q18: 378 | R18: 1.901408451
B19: JUNÍN | C19: 40679 | D19: 8304 | E19: 20.41348116 | F19: 32375 | G19: 12948 | H19: 39.99382239 | I19: 40679 | J19: 2614 | K19: 6.425920008 | L19: 40679 | M19: 621 | N19: 1.526586199 | O19: 1879 | P19: 4.619090931 | Q19: 389 | R19: 0.9562673615
B20: LA LIBERTAD | C20: 47089 | D20: 8439 | E20: 17.92138291 | F20: 38650 | G20: 12479 | H20: 32.28719276 | I20: 47089 | J20: 1610 | K20: 3.419057529 | L20: 47089 | M20: 633 | N20: 1.344262991 | O20: 3698 | P20: 7.853214126 | Q20: 891 | R20: 1.892161651
B21: LAMBAYEQUE | C21: 23868 | D21: 3630 | E21: 15.20864756 | F21: 20238 | G21: 6324 | H21: 31.24814705 | I21: 23868 | J21: 854 | K21: 3.578012402 | L21: 23868 | M21: 445 | N21: 1.864420982 | O21: 1829 | P21: 7.662979722 | Q21: 458 | R21: 1.918887213
B22: LIMA | C22: 117502 | D22: 7768 | E22: 6.610951303 | F22: 109734 | G22: 24083 | H22: 21.94670749 | I22: 117502 | J22: 1915 | K22: 1.629759493 | L22: 117502 | M22: 1244 | N22: 1.058705384 | O22: 10233 | P22: 8.708787936 | Q22: 2353 | R22: 2.002519106
B23: LORETO | C23: 39912 | D23: 8669 | E23: 21.72028463 | F23: 31243 | G23: 13310 | H23: 42.60154275 | I23: 39912 | J23: 2996 | K23: 7.506514332 | L23: 39912 | M23: 949 | N23: 2.377731008 | O23: 1608 | P23: 4.0288635 | Q23: 397 | R23: 0.9946883143
B24: MADRE DE DIOS | C24: 6210 | D24: 505 | E24: 8.132045089 | F24: 5705 | G24: 1287 | H24: 22.55915863 | I24: 6210 | J24: 200 | K24: 3.220611916 | L24: 6210 | M24: 141 | N24: 2.270531401 | O24: 275 | P24: 4.428341385 | Q24: 70 | R24: 1.127214171
B25: MOQUEGUA | C25: 4162 | D25: 163 | E25: 3.916386353 | F25: 3999 | G25: 729 | H25: 18.22955739 | I25: 4162 | J25: 51 | K25: 1.225372417 | L25: 4162 | M25: 38 | N25: 0.9130225853 | O25: 328 | P25: 7.880826526 | Q25: 68 | R25: 1.633829889
B26: PASCO | C26: 9579 | D26: 1867 | E26: 19.49055225 | F26: 7712 | G26: 3108 | H26: 40.30082988 | I26: 9579 | J26: 537 | K26: 5.606013154 | L26: 9579 | M26: 165 | N26: 1.722518008 | O26: 520 | P26: 5.428541601 | Q26: 105 | R26: 1.096147823
B27: PIURA | C27: 48514 | D27: 9279 | E27: 19.12643773 | F27: 39235 | G27: 14640 | H27: 37.31362304 | I27: 48514 | J27: 2250 | K27: 4.637836501 | L27: 48514 | M27: 799 | N27: 1.646947273 | O27: 3139 | P27: 6.470297234 | Q27: 766 | R27: 1.578925671
B28: PUNO | C28: 34102 | D28: 5229 | E28: 15.33341153 | F28: 28873 | G28: 11325 | H28: 39.223496 | I28: 34102 | J28: 1075 | K28: 3.152307783 | L28: 34102 | M28: 365 | N28: 1.070318456 | O28: 2033 | P28: 5.961527183 | Q28: 371 | R28: 1.087912732
B29: SAN MARTÍN | C29: 24840 | D29: 3118 | E29: 12.55233494 | F29: 21722 | G29: 6978 | H29: 32.1241138 | I29: 24840 | J29: 997 | K29: 4.013687601 | L29: 24840 | M29: 447 | N29: 1.799516908 | O29: 1241 | P29: 4.995974235 | Q29: 278 | R29: 1.119162641
B30: TACNA | C30: 7544 | D30: 221 | E30: 2.929480382 | F30: 7323 | G30: 1042 | H30: 14.22914106 | I30: 7544 | J30: 47 | K30: 0.6230116649 | L30: 7544 | M30: 57 | N30: 0.7555673383 | O30: 826 | P30: 10.94909862 | Q30: 199 | R30: 2.6378579
B31: TUMBES | C31: 6157 | D31: 567 | E31: 9.209030372 | F31: 5590 | G31: 1442 | H31: 25.7960644 | I31: 6157 | J31: 182 | K31: 2.955985058 | L31: 6157 | M31: 112 | N31: 1.819067728 | O31: 390 | P31: 6.334253695 | Q31: 97 | R31: 1.575442586
B32: UCAYALI | C32: 12359 | D32: 1893 | E32: 15.3167732 | F32: 10466 | G32: 3361 | H32: 32.11351041 | I32: 12359 | J32: 660 | K32: 5.340237883 | L32: 12359 | M32: 277 | N32: 2.241281657 | O32: 539 | P32: 4.361194271 | Q32: 128 | R32: 1.035682499
B33: PERÚ | C33: =SUM(C8:C32) -> 720257 | D33: =SUM(D8:D32) -> 112327 | E33: =D33/C33*100 -> 15.59540553 | F33: =SUM(F8:F32) -> 607930 | G33: =SUM(G8:G32) -> 206229 | H33: =G33/F33*100 -> 33.92314905 | I33: =SUM(I8:I32) -> 720257 | J33: =SUM(J8:J32) -> 27598 | K33: =J33/I33*100 -> 3.831687856 | L33: =SUM(L8:L32) -> 720257 | M33: =SUM(M8:M32) -> 9846 | N33: =M33/L33*100 -> 1.367012053 | O33: =SUM(O8:O32) -> 45905 | P33: =O33/L33*100 -> 6.373419488 | Q33: =SUM(Q8:Q32) -> 10353 | R33: =Q33/L33*100 -> 1.437403593
B34: =CONCATENATE("Fuente: Sistema de Información del Estado Nutricional en niños que acceden al establecimiento de salud, ",RIGHT(INICIO!C$8,4),".") -> Fuente: Sistema de Información del Estado Nutricional en niños que acceden al establecimiento de salud, 2018.
B35: Instituto Nacional de Salud / Centro Nacional de Alimentación y Nutrición / Dirección Ejecutiva de Vigilancia Alimentaria y Nutricional.
B36: 1,2,3 Indicadores Nitricionales según OMS.
B37: 4 Riesgo de Desnutrición Crónica (T/E)se considera a todo niño que se encuentra con valor Z < -1

Sheet EN 0-35m x DIRESA
B2: CUADRO N°02 PERÚ: ESTADO NUTRICIONAL EN NIÑOS MENORES DE 3 AÑOS QUE ACCEDIERON A LOS ESTABLECIMIENTOS DE SALUD POR INDICADORES ANTROPOMÉTRICOS, SEGÚN DIRESA / GERESA / DISA
B3: =INICIO!C8 -> PERIODO: ENERO - MARZO 2018
B5: DIRESA / GERESA / DISA | C5: INDICADOR TALLA / EDAD1 | I5: INDICADOR PESO / EDAD2 | L5: INDICADOR PESO / TALLA3
C6: DESNUTRICIÓN CRÓNICA | F6: RIESGO DE DESNUTRICIÓN CRÓNICA4 | I6: DESNUTRICIÓN GLOBAL | L6: DESNUTRICIÓN AGUDA | O6: SOBREPESO | Q6: OBESIDAD
C7: N° DE EVALUADOS | D7: N° DE CASOS | E7: % | F7: N° DE EVALUADOS | G7: N° DE CASOS | H7: % | I7: N° DE EVALUADOS | J7: N° DE CASOS | K7: % | L7: N° DE EVALUADOS | M7: N° DE CASOS | N7: % | O7: N° DE CASOS | P7: % | Q7: N° DE CASOS | R7: %
B8: AMAZONAS | C8: 22936 | D8: 5320 | E8: 23.19497733 | F8: 17616 | G8: 7496 | H8: 42.55222525 | I8: 22936 | J8: 1131 | K8: 4.931112661 | L8: 22936 | M8: 356 | N8: 1.552145099 | O8: 1466 | P8: 6.39169864 | Q8: 352 | R8: 1.534705267
B9: ÁNCASH | C9: 38074 | D9: 7299 | E9: 19.17056259 | F9: 30775 | G9: 12090 | H9: 39.28513404 | I9: 38074 | J9: 1416 | K9: 3.719073383 | L9: 38074 | M9: 399 | N9: 1.047959237 | O9: 2417 | P9: 6.348164101 | Q9: 554 | R9: 1.455061197
B10: ANDAHUAYLAS | C10: 6410 | D10: 1538 | E10: 23.99375975 | F10: 4872 | G10: 2454 | H10: 50.36945813 | I10: 6410 | J10: 303 | K10: 4.72698908 | L10: 6410 | M10: 55 | N10: 0.8580343214 | O10: 269 | P10: 4.196567863 | Q10: 73 | R10: 1.138845554
B11: APURÍMAC | C11: 12268 | D11: 2353 | E11: 19.17998044 | F11: 9915 | G11: 4450 | H11: 44.88149269 | I11: 12268 | J11: 659 | K11: 5.371698728 | L11: 12268 | M11: 140 | N11: 1.141180306 | O11: 409 | P11: 3.333876753 | Q11: 82 | R11: 0.6684056081
B12: AREQUIPA | C12: 41764 | D12: 3014 | E12: 7.216741691 | F12: 38750 | G12: 9617 | H12: 24.81806452 | I12: 41764 | J12: 851 | K12: 2.037640073 | L12: 41764 | M12: 498 | N12: 1.19241452 | O12: 2454 | P12: 5.875873958 | Q12: 463 | R12: 1.108610286
B13: AYACUCHO | C13: 27163 | D13: 5338 | E13: 19.65173214 | F13: 21825 | G13: 9915 | H13: 45.42955326 | I13: 27163 | J13: 1241 | K13: 4.568714796 | L13: 27163 | M13: 341 | N13: 1.255384162 | O13: 1298 | P13: 4.778559069 | Q13: 279 | R13: 1.027132496
B14: CAJAMARCA | C14: 27936 | D14: 6876 | E14: 24.61340206 | F14: 21060 | G14: 9341 | H14: 44.35422602 | I14: 27936 | J14: 1416 | K14: 5.068728522 | L14: 27936 | M14: 322 | N14: 1.152634593 | O14: 1670 | P14: 5.977949599 | Q14: 269 | R14: 0.9629152348
B15: CALLAO | C15: 13190 | D15: 994 | E15: 7.53601213 | F15: 12196 | G15: 2761 | H15: 22.63857002 | I15: 13190 | J15: 276 | K15: 2.092494314 | L15: 13190 | M15: 163 | N15: 1.235784685 | O15: 1184 | P15: 8.976497346 | Q15: 317 | R15: 2.403335861
B16: CHOTA | C16: 11998 | D16: 3041 | E16: 25.34589098 | F16: 8957 | G16: 4577 | H16: 51.09969856 | I16: 11998 | J16: 582 | K16: 4.850808468 | L16: 11998 | M16: 107 | N16: 0.8918153026 | O16: 701 | P16: 5.84264044 | Q16: 127 | R16: 1.058509752
B17: CUSCO | C17: 8947 | D17: 1664 | E17: 18.59841288 | F17: 7283 | G17: 3054 | H17: 41.93326926 | I17: 8947 | J17: 445 | K17: 4.973734213 | L17: 8947 | M17: 130 | N17: 1.453001006 | O17: 315 | P17: 3.520733207 | Q17: 84 | R17: 0.9388621884
B18: CUTERVO | C18: 5797 | D18: 1208 | E18: 20.83836467 | F18: 4589 | G18: 2187 | H18: 47.65744171 | I18: 5797 | J18: 241 | K18: 4.157322753 | L18: 5797 | M18: 54 | N18: 0.9315163015 | O18: 334 | P18: 5.761600828 | Q18: 74 | R18: 1.276522339
B19: HUANCAVELICA | C19: 16823 | D19: 4689 | E19: 27.87255543 | F19: 12134 | G19: 6449 | H19: 53.14817867 | I19: 16823 | J19: 866 | K19: 5.147714439 | L19: 16823 | M19: 181 | N19: 1.075907983 | O19: 788 | P19: 4.684063485 | Q19: 159 | R19: 0.9451346371
B20: HUÁNUCO | C20: 28901 | D20: 5184 | E20: 17.9370956 | F20: 23717 | G20: 9324 | H20: 39.31357254 | I20: 28901 | J20: 1211 | K20: 4.19016643 | L20: 28901 | M20: 361 | N20: 1.249091727 | O20: 1568 | P20: 5.425417806 | Q20: 375 | R20: 1.297532957
B21: ICA | C21: 19880 | D21: 1580 | E21: 7.947686117 | F21: 18300 | G21: 4582 | H21: 25.03825137 | I21: 19880 | J21: 382 | K21: 1.921529175 | L21: 19880 | M21: 214 | N21: 1.076458753 | O21: 1657 | P21: 8.33501006 | Q21: 378 | R21: 1.901408451
B22: JAÉN | C22: 15653 | D22: 2577 | E22: 16.46329777 | F22: 13076 | G22: 4876 | H22: 37.28969104 | I22: 15653 | J22: 590 | K22: 3.769245512 | L22: 15653 | M22: 232 | N22: 1.482143998 | O22: 837 | P22: 5.347217786 | Q22: 197 | R22: 1.258544688
B23: JUNÍN | C23: 40679 | D23: 8304 | E23: 20.41348116 | F23: 32375 | G23: 12948 | H23: 39.99382239 | I23: 40679 | J23: 2614 | K23: 6.425920008 | L23: 40679 | M23: 621 | N23: 1.526586199 | O23: 1879 | P23: 4.619090931 | Q23: 389 | R23: 0.9562673615
B24: LA LIBERTAD | C24: 47089 | D24: 8439 | E24: 17.92138291 | F24: 38650 | G24: 12479 | H24: 32.28719276 | I24: 47089 | J24: 1610 | K24: 3.419057529 | L24: 47089 | M24: 633 | N24: 1.344262991 | O24: 3698 | P24: 7.853214126 | Q24: 891 | R24: 1.892161651
B25: LAMBAYEQUE | C25: 23868 | D25: 3630 | E25: 15.20864756 | F25: 20238 | G25: 6324 | H25: 31.24814705 | I25: 23868 | J25: 854 | K25: 3.578012402 | L25: 23868 | M25: 445 | N25: 1.864420982 | O25: 1829 | P25: 7.662979722 | Q25: 458 | R25: 1.918887213
B26: LIMA | C26: 36218 | D26: 3078 | E26: 8.498536639 | F26: 33140 | G26: 8505 | H26: 25.66385033 | I26: 36218 | J26: 619 | K26: 1.709094925 | L26: 36218 | M26: 345 | N26: 0.9525650229 | O26: 3136 | P26: 8.658678005 | Q26: 790 | R26: 2.18123585
B27: LIMA CENTRO | C27: 29810 | D27: 1674 | E27: 5.615565247 | F27: 28136 | G27: 5651 | H27: 20.08458914 | I27: 29810 | J27: 507 | K27: 1.700771553 | L27: 29810 | M27: 332 | N27: 1.113720228 | O27: 2461 | P27: 8.25561892 | Q27: 556 | R27: 1.865145924
B28: LIMA ESTE | C28: 25526 | D28: 1546 | E28: 6.056569772 | F28: 23980 | G28: 5090 | H28: 21.22602168 | I28: 25526 | J28: 402 | K28: 1.574864844 | L28: 25526 | M28: 271 | N28: 1.061662619 | O28: 2324 | P28: 9.104442529 | Q28: 499 | R28: 1.954869545
B29: LIMA SUR | C29: 25948 | D29: 1470 | E29: 5.665176507 | F29: 24478 | G29: 4837 | H29: 19.76060136 | I29: 25948 | J29: 387 | K29: 1.491444427 | L29: 25948 | M29: 296 | N29: 1.140743025 | O29: 2312 | P29: 8.910127948 | Q29: 508 | R29: 1.957761677
B30: LORETO | C30: 39912 | D30: 8669 | E30: 21.72028463 | F30: 31243 | G30: 13310 | H30: 42.60154275 | I30: 39912 | J30: 2996 | K30: 7.506514332 | L30: 39912 | M30: 949 | N30: 2.377731008 | O30: 1608 | P30: 4.0288635 | Q30: 397 | R30: 0.9946883143
B31: MADRE DE DIOS | C31: 6210 | D31: 505 | E31: 8.132045089 | F31: 5705 | G31: 1287 | H31: 22.55915863 | I31: 6210 | J31: 200 | K31: 3.220611916 | L31: 6210 | M31: 141 | N31: 2.270531401 | O31: 275 | P31: 4.428341385 | Q31: 70 | R31: 1.127214171
B32: MOQUEGUA | C32: 4162 | D32: 163 | E32: 3.916386353 | F32: 3999 | G32: 729 | H32: 18.22955739 | I32: 4162 | J32: 51 | K32: 1.225372417 | L32: 4162 | M32: 38 | N32: 0.9130225853 | O32: 328 | P32: 7.880826526 | Q32: 68 | R32: 1.633829889
B33: PASCO | C33: 9579 | D33: 1867 | E33: 19.49055225 | F33: 7712 | G33: 3108 | H33: 40.30082988 | I33: 9579 | J33: 537 | K33: 5.606013154 | L33: 9579 | M33: 165 | N33: 1.722518008 | O33: 520 | P33: 5.428541601 | Q33: 105 | R33: 1.096147823
B34: PIURA | C34: 24510 | D34: 5528 | E34: 22.55405957 | F34: 18982 | G34: 7574 | H34: 39.9009588 | I34: 24510 | J34: 1191 | K34: 4.859241126 | L34: 24510 | M34: 357 | N34: 1.456548348 | O34: 1657 | P34: 6.760505916 | Q34: 394 | R34: 1.60750714
B35: PUNO | C35: 34102 | D35: 5229 | E35: 15.33341153 | F35: 28873 | G35: 11325 | H35: 39.223496 | I35: 34102 | J35: 1075 | K35: 3.152307783 | L35: 34102 | M35: 365 | N35: 1.070318456 | O35: 2033 | P35: 5.961527183 | Q35: 371 | R35: 1.087912732
B36: SAN MARTÍN | C36: 24840 | D36: 3118 | E36: 12.55233494 | F36: 21722 | G36: 6978 | H36: 32.1241138 | I36: 24840 | J36: 997 | K36: 4.013687601 | L36: 24840 | M36: 447 | N36: 1.799516908 | O36: 1241 | P36: 4.995974235 | Q36: 278 | R36: 1.119162641
B37: SULLANA | C37: 24004 | D37: 3751 | E37: 15.62656224 | F37: 20253 | G37: 7066 | H37: 34.88865847 | I37: 24004 | J37: 1059 | K37: 4.411764706 | L37: 24004 | M37: 442 | N37: 1.841359773 | O37: 1482 | P37: 6.173971005 | Q37: 372 | R37: 1.54974171
B38: TACNA | C38: 7544 | D38: 221 | E38: 2.929480382 | F38: 7323 | G38: 1042 | H38: 14.22914106 | I38: 7544 | J38: 47 | K38: 0.6230116649 | L38: 7544 | M38: 57 | N38: 0.7555673383 | O38: 826 | P38: 10.94909862 | Q38: 199 | R38: 2.6378579
B39: TUMBES | C39: 6157 | D39: 567 | E39: 9.209030372 | F39: 5590 | G39: 1442 | H39: 25.7960644 | I39: 6157 | J39: 182 | K39: 2.955985058 | L39: 6157 | M39: 112 | N39: 1.819067728 | O39: 390 | P39: 6.334253695 | Q39: 97 | R39: 1.575442586
B40: UCAYALI | C40: 12359 | D40: 1893 | E40: 15.3167732 | F40: 10466 | G40: 3361 | H40: 32.11351041 | I40: 12359 | J40: 660 | K40: 5.340237883 | L40: 12359 | M40: 277 | N40: 2.241281657 | O40: 539 | P40: 4.361194271 | Q40: 128 | R40: 1.035682499
B41: PERÚ | C41: =SUM(C8:C40) -> 720257 | D41: =SUM(D8:D40) -> 112327 | E41: =D41/C41*100 -> 15.59540553 | F41: =SUM(F8:F40) -> 607930 | G41: =SUM(G8:G40) -> 206229 | H41: =G41/F41*100 -> 33.92314905 | I41: =SUM(I8:I40) -> 720257 | J41: =SUM(J8:J40) -> 27598 | K41: =J41/I41*100 -> 3.831687856 | L41: =SUM(L8:L40) -> 720257 | M41: =SUM(M8:M40) -> 9846 | N41: =M41/L41*100 -> 1.367012053 | O41: =SUM(O8:O40) -> 45905 | P41: =O41/L41*100 -> 6.373419488 | Q41: =SUM(Q8:Q40) -> 10353 | R41: =Q41/L41*100 -> 1.437403593
B42: =CONCATENATE("Fuente: Sistema de Información del Estado Nutricional en niños que acceden al establecimiento de salud, ",RIGHT(INICIO!C$8,4),".") -> Fuente: Sistema de Información del Estado Nutricional en niños que acceden al establecimiento de salud, 2018.
B43: Instituto Nacional de Salud / Centro Nacional de Alimentación y Nutrición / Dirección Ejecutiva de Vigilancia Alimentaria y Nutricional.
B44: 1,2,3 Indicadores Nitricionales según OMS.
B45: 4 Riesgo de Desnutrición Crónica (T/E)se considera a todo niño que se encuentra con valor Z < -1

Sheet EN 0-35m x DISTRITO
B2: CUADRO N°03 PERÚ: ESTADO NUTRICIONAL EN NIÑOS MENORES DE 3 AÑOS QUE ACCEDIERON A LOS ESTABLECIMIENTOS DE SALUD POR INDICADORES ANTROPOMÉTRICOS, SEGÚN DEPARTAMENTO, PROVINCIA Y DISTRITO DE ORIGEN
B3: =INICIO!C8 -> PERIODO: ENERO - MARZO 2018
B5: DEPARTAMENTO | C5: PROVINCIA | D5: DISTRITO | E5: UBIGEO | F5: INDICADOR TALLA / EDAD1 | L5: INDICADOR PESO / EDAD2 | O5: INDICADOR PESO / TALLA3
F6: DESNUTRICIÓN CRÓNICA | I6: RIESGO DE DESNUTRICIÓN CRÓNICA4 | L6: DESNUTRICIÓN GLOBAL | O6: N° DE EVALUADOS | P6: DESNUTRICIÓN AGUDA | R6: SOBREPESO | T6: OBESIDAD
F7: N° DE EVALUADOS | G7: N° DE CASOS | H7: % | I7: N° DE EVALUADOS | J7: N° DE CASOS | K7: % | L7: N° DE EVALUADOS | M7: N° DE CASOS | N7: % | P7: N° DE CASOS | Q7: % | R7: N° DE CASOS | S7: % | T7: N° DE CASOS | U7: %
B8: AMAZONAS | C8: BAGUA | D8: ARAMANGO | E8: 010202 | F8: 632 | G8: 140 | H8: 22.15189873 | I8: 492 | J8: 192 | K8: 39.02439024 | L8: 632 | M8: 16 | N8: 2.53164557 | O8: 632 | P8: 9 | Q8: 1.424050633 | R8: 47 | S8: 7.436708861 | T8: 3 | U8: 0.4746835443
B9: AMAZONAS | C9: BAGUA | D9: BAGUA | E9: 010201 | F9: 1052 | G9: 99 | H9: 9.410646388 | I9: 953 | J9: 267 | K9: 28.01678909 | L9: 1052 | M9: 32 | N9: 3.041825095 | O9: 1052 | P9: 25 | Q9: 2.376425856 | R9: 45 | S9: 4.27756654 | T9: 7 | U9: 0.6653992395
B10: AMAZONAS | C10: BAGUA | D10: COPALLIN | E10: 010203 | F10: 186 | G10: 29 | H10: 15.59139785 | I10: 157 | J10: 52 | K10: 33.12101911 | L10: 186 | M10: 7 | N10: 3.76344086 | O10: 186 | P10: 4 | Q10: 2.150537634 | R10: 11 | S10: 5.913978495 | T10: 1 | U10: 0.5376344086
B11: AMAZONAS | C11: BAGUA | D11: EL PARCO | E11: 010204 | F11: 49 | G11: 6 | H11: 12.24489796 | I11: 43 | J11: 15 | K11: 34.88372093 | L11: 49 | M11: 2 | N11: 4.081632653 | O11: 49 | P11: 2 | Q11: 4.081632653 | R11: 6 | S11: 12.24489796 | T11: 3 | U11: 6.12244898
B12: AMAZONAS | C12: BAGUA | D12: IMAZA | E12: 010205 | F12: 2677 | G12: 990 | H12: 36.98169593 | I12: 1687 | J12: 940 | K12: 55.7202134 | L12: 2677 | M12: 230 | N12: 8.591707135 | O12: 2677 | P12: 56 | Q12: 2.091893911 | R12: 197 | S12: 7.358983937 | T12: 73 | U12: 2.726933134
B13: AMAZONAS | C13: BAGUA | D13: LA PECA | E13: 010206 | F13: 238 | G13: 31 | H13: 13.02521008 | I13: 207 | J13: 90 | K13: 43.47826087 | L13: 238 | M13: 3 | N13: 1.260504202 | O13: 238 | P13: 1 | Q13: 0.4201680672 | R13: 13 | S13: 5.462184874 | T13: 3 | U13: 1.260504202
B14: AMAZONAS | C14: BONGARA | D14: CHISQUILLA | E14: 010302 | F14: 20 | G14: 8 | H14: 40 | I14: 12 | J14: 2 | K14: 16.66666667 | L14: 20 | M14: 2 | N14: 10 | O14: 20 | P14: 0 | Q14: 0 | R14: 2 | S14: 10 | T14: 0 | U14: 0
B15: AMAZONAS | C15: BONGARA | D15: CHURUJA | E15: 010303 | F15: 10 | G15: 0 | H15: 0 | I15: 10 | J15: 1 | K15: 10 | L15: 10 | M15: 0 | N15: 0 | O15: 10 | P15: 0 | Q15: 0 | R15: 2 | S15: 20 | T15: 0 | U15: 0
B16: AMAZONAS | C16: BONGARA | D16: COROSHA | E16: 010304 | F16: 33 | G16: 6 | H16: 18.18181818 | I16: 27 | J16: 12 | K16: 44.44444444 | L16: 33 | M16: 3 | N16: 9.090909091 | O16: 33 | P16: 1 | Q16: 3.03030303 | R16: 1 | S16: 3.03030303 | T16: 0 | U16: 0
B17: AMAZONAS | C17: BONGARA | D17: CUISPES | E17: 010305 | F17: 24 | G17: 3 | H17: 12.5 | I17: 21 | J17: 7 | K17: 33.33333333 | L17: 24 | M17: 1 | N17: 4.166666667 | O17: 24 | P17: 0 | Q17: 0 | R17: 0 | S17: 0 | T17: 0 | U17: 0
B18: AMAZONAS | C18: BONGARA | D18: FLORIDA | E18: 010306 | F18: 294 | G18: 68 | H18: 23.1292517 | I18: 226 | J18: 104 | K18: 46.01769912 | L18: 294 | M18: 9 | N18: 3.06122449 | O18: 294 | P18: 3 | Q18: 1.020408163 | R18: 14 | S18: 4.761904762 | T18: 3 | U18: 1.020408163
B19: AMAZONAS | C19: BONGARA | D19: JAZAN | E19: 010307 | F19: 271 | G19: 24 | H19: 8.856088561 | I19: 247 | J19: 70 | K19: 28.34008097 | L19: 271 | M19: 10 | N19: 3.6900369 | O19: 271 | P19: 7 | Q19: 2.58302583 | R19: 14 | S19: 5.166051661 | T19: 2 | U19: 0.7380073801
B20: AMAZONAS | C20: BONGARA | D20: JUMBILLA | E20: 010301 | F20: 40 | G20: 10 | H20: 25 | I20: 30 | J20: 15 | K20: 50 | L20: 40 | M20: 1 | N20: 2.5 | O20: 40 | P20: 0 | Q20: 0 | R20: 2 | S20: 5 | T20: 0 | U20: 0
B21: AMAZONAS | C21: BONGARA | D21: RECTA | E21: 010308 | F21: 10 | G21: 0 | H21: 0 | I21: 10 | J21: 3 | K21: 30 | L21: 10 | M21: 1 | N21: 10 | O21: 10 | P21: 0 | Q21: 0 | R21: 0 | S21: 0 | T21: 0 | U21: 0
B22: AMAZONAS | C22: BONGARA | D22: SAN CARLOS | E22: 010309 | F22: 9 | G22: 3 | H22: 33.33333333 | I22: 6 | J22: 1 | K22: 16.66666667 | L22: 9 | M22: 0 | N22: 0 | O22: 9 | P22: 0 | Q22: 0 | R22: 0 | S22: 0 | T22: 0 | U22: 0
B23: AMAZONAS | C23: BONGARA | D23: SHIPASBAMBA | E23: 010310 | F23: 52 | G23: 12 | H23: 23.07692308 | I23: 40 | J23: 14 | K23: 35 | L23: 52 | M23: 3 | N23: 5.769230769 | O23: 52 | P23: 2 | Q23: 3.846153846 | R23: 3 | S23: 5.769230769 | T23: 0 | U23: 0
B24: AMAZONAS | C24: BONGARA | D24: VALERA | E24: 010311 | F24: 34 | G24: 5 | H24: 14.70588235 | I24: 29 | J24: 4 | K24: 13.79310345 | L24: 34 | M24: 0 | N24: 0 | O24: 34 | P24: 0 | Q24: 0 | R24: 1 | S24: 2.941176471 | T24: 0 | U24: 0
B25: AMAZONAS | C25: BONGARA | D25: YAMBRASBAMBA | E25: 010312 | F25: 308 | G25: 53 | H25: 17.20779221 | I25: 255 | J25: 97 | K25: 38.03921569 | L25: 308 | M25: 11 | N25: 3.571428571 | O25: 308 | P25: 2 | Q25: 0.6493506494 | R25: 10 | S25: 3.246753247 | T25: 4 | U25: 1.298701299
B26: AMAZONAS | C26: CHACHAPOYAS | D26: ASUNCION | E26: 010102 | F26: 10 | G26: 3 | H26: 30 | I26: 7 | J26: 4 | K26: 57.14285714 | L26: 10 | M26: 0 | N26: 0 | O26: 10 | P26: 0 | Q26: 0 | R26: 1 | S26: 10 | T26: 0 | U26: 0
B27: AMAZONAS | C27: CHACHAPOYAS | D27: BALSAS | E27: 010103 | F27: 79 | G27: 14 | H27: 17.72151899 | I27: 65 | J27: 22 | K27: 33.84615385 | L27: 79 | M27: 4 | N27: 5.063291139 | O27: 79 | P27: 2 | Q27: 2.53164557 | R27: 2 | S27: 2.53164557 | T27: 0 | U27: 0
B28: AMAZONAS | C28: CHACHAPOYAS | D28: CHACHAPOYAS | E28: 010101 | F28: 999 | G28: 112 | H28: 11.21121121 | I28: 887 | J28: 298 | K28: 33.59639233 | L28: 999 | M28: 29 | N28: 2.902902903 | O28: 999 | P28: 10 | Q28: 1.001001001 | R28: 67 | S28: 6.706706707 | T28: 10 | U28: 1.001001001
B29: AMAZONAS | C29: CHACHAPOYAS | D29: CHETO | E29: 010104 | F29: 31 | G29: 7 | H29: 22.58064516 | I29: 24 | J29: 7 | K29: 29.16666667 | L29: 31 | M29: 0 | N29: 0 | O29: 31 | P29: 0 | Q29: 0 | R29: 1 | S29: 3.225806452 | T29: 2 | U29: 6.451612903
B30: AMAZONAS | C30: CHACHAPOYAS | D30: CHILIQUIN | E30: 010105 | F30: 21 | G30: 5 | H30: 23.80952381 | I30: 16 | J30: 4 | K30: 25 | L30: 21 | M30: 0 | N30: 0 | O30: 21 | P30: 0 | Q30: 0 | R30: 1 | S30: 4.761904762 | T30: 0 | U30: 0
B31: AMAZONAS | C31: CHACHAPOYAS | D31: CHUQUIBAMBA | E31: 010106 | F31: 86 | G31: 7 | H31: 8.139534884 | I31: 79 | J31: 33 | K31: 41.7721519 | L31: 86 | M31: 1 | N31: 1.162790698 | O31: 86 | P31: 1 | Q31: 1.162790698 | R31: 6 | S31: 6.976744186 | T31: 0 | U31: 0
B32: AMAZONAS | C32: CHACHAPOYAS | D32: GRANADA | E32: 010107 | F32: 17 | G32: 2 | H32: 11.76470588 | I32: 15 | J32: 8 | K32: 53.33333333 | L32: 17 | M32: 0 | N32: 0 | O32: 17 | P32: 0 | Q32: 0 | R32: 1 | S32: 5.882352941 | T32: 0 | U32: 0
B33: AMAZONAS | C33: CHACHAPOYAS | D33: HUANCAS | E33: 010108 | F33: 9 | G33: 2 | H33: 22.22222222 | I33: 7 | J33: 5 | K33: 71.42857143 | L33: 9 | M33: 0 | N33: 0 | O33: 9 | P33: 0 | Q33: 0 | R33: 0 | S33: 0 | T33: 0 | U33: 0
B34: AMAZONAS | C34: CHACHAPOYAS | D34: LA JALCA | E34: 010109 | F34: 275 | G34: 39 | H34: 14.18181818 | I34: 236 | J34: 89 | K34: 37.71186441 | L34: 275 | M34: 6 | N34: 2.181818182 | O34: 275 | P34: 1 | Q34: 0.3636363636 | R34: 12 | S34: 4.363636364 | T34: 3 | U34: 1.090909091
B35: AMAZONAS | C35: CHACHAPOYAS | D35: LEIMEBAMBA | E35: 010110 | F35: 126 | G35: 20 | H35: 15.87301587 | I35: 106 | J35: 35 | K35: 33.01886792 | L35: 126 | M35: 4 | N35: 3.174603175 | O35: 126 | P35: 1 | Q35: 0.7936507937 | R35: 8 | S35: 6.349206349 | T35: 1 | U35: 0.7936507937
B36: AMAZONAS | C36: CHACHAPOYAS | D36: LEVANTO | E36: 010111 | F36: 34 | G36: 8 | H36: 23.52941176 | I36: 26 | J36: 12 | K36: 46.15384615 | L36: 34 | M36: 3 | N36: 8.823529412 | O36: 34 | P36: 0 | Q36: 0 | R36: 1 | S36: 2.941176471 | T36: 0 | U36: 0
B37: AMAZONAS | C37: CHACHAPOYAS | D37: MAGDALENA | E37: 010112 | F37: 34 | G37: 7 | H37: 20.58823529 | I37: 27 | J37: 12 | K37: 44.44444444 | L37: 34 | M37: 0 | N37: 0 | O37: 34 | P37: 1 | Q37: 2.941176471 | R37: 2 | S37: 5.882352941 | T37: 0 | U37: 0
B38: AMAZONAS | C38: CHACHAPOYAS | D38: MARISCAL CASTILLA | E38: 010113 | F38: 29 | G38: 3 | H38: 10.34482759 | I38: 26 | J38: 9 | K38: 34.61538462 | L38: 29 | M38: 0 | N38: 0 | O38: 29 | P38: 0 | Q38: 0 | R38: 2 | S38: 6.896551724 | T38: 0 | U38: 0
B39: AMAZONAS | C39: CHACHAPOYAS | D39: MOLINOPAMPA | E39: 010114 | F39: 110 | G39: 23 | H39: 20.90909091 | I39: 87 | J39: 40 | K39: 45.97701149 | L39: 110 | M39: 3 | N39: 2.727272727 | O39: 110 | P39: 1 | Q39: 0.9090909091 | R39: 7 | S39: 6.363636364 | T39: 5 | U39: 4.545454545
B40: AMAZONAS | C40: CHACHAPOYAS | D40: MONTEVIDEO | E40: 010115 | F40: 14 | G40: 2 | H40: 14.28571429 | I40: 12 | J40: 3 | K40: 25 | L40: 14 | M40: 0 | N40: 0 | O40: 14 | P40: 0 | Q40: 0 | R40: 0 | S40: 0 | T40: 0 | U40: 0
B41: AMAZONAS | C41: CHACHAPOYAS | D41: OLLEROS | E41: 010116 | F41: 11 | G41: 2 | H41: 18.18181818 | I41: 9 | J41: 3 | K41: 33.33333333 | L41: 11 | M41: 0 | N41: 0 | O41: 11 | P41: 0 | Q41: 0 | R41: 2 | S41: 18.18181818 | T41: 0 | U41: 0
B42: AMAZONAS | C42: CHACHAPOYAS | D42: QUINJALCA | E42: 010117 | F42: 26 | G42: 4 | H42: 15.38461538 | I42: 22 | J42: 7 | K42: 31.81818182 | L42: 26 | M42: 0 | N42: 0 | O42: 26 | P42: 1 | Q42: 3.846153846 | R42: 0 | S42: 0 | T42: 1 | U42: 3.846153846
B43: AMAZONAS | C43: CHACHAPOYAS | D43: SAN FRANCISCO DE DAGUAS | E43: 010118 | F43: 12 | G43: 1 | H43: 8.333333333 | I43: 11 | J43: 3 | K43: 27.27272727 | L43: 12 | M43: 0 | N43: 0 | O43: 12 | P43: 0 | Q43: 0 | R43: 0 | S43: 0 | T43: 0 | U43: 0
B44: AMAZONAS | C44: CHACHAPOYAS | D44: SAN ISIDRO DE MAINO | E44: 010119 | F44: 28 | G44: 8 | H44: 28.57142857 | I44: 20 | J44: 13 | K44: 65 | L44: 28 | M44: 1 | N44: 3.571428571 | O44: 28 | P44: 0 | Q44: 0 | R44: 1 | S44: 3.571428571 | T44: 0 | U44: 0
B45: AMAZONAS | C45: CHACHAPOYAS | D45: SOLOCO | E45: 010120 | F45: 44 | G45: 8 | H45: 18.18181818 | I45: 36 | J45: 17 | K45: 47.22222222 | L45: 44 | M45: 1 | N45: 2.272727273 | O45: 44 | P45: 0 | Q45: 0 | R45: 3 | S45: 6.818181818 | T45: 0 | U45: 0
B46: AMAZONAS | C46: CHACHAPOYAS | D46: SONCHE | E46: 010121 | F46: 10 | G46: 1 | H46: 10 | I46: 9 | J46: 2 | K46: 22.22222222 | L46: 10 | M46: 0 | N46: 0 | O46: 10 | P46: 0 | Q46: 0 | R46: 1 | S46: 10 | T46: 1 | U46: 10
B47: AMAZONAS | C47: CONDORCANQUI | D47: EL CENEPA | E47: 010402 | F47: 1309 | G47: 503 | H47: 38.4262796 | I47: 806 | J47: 472 | K47: 58.56079404 | L47: 1309 | M47: 149 | N47: 11.38273491 | O47: 1309 | P47: 37 | Q47: 2.82658518 | R47: 67 | S47: 5.118411001 | T47: 23 | U47: 1.757066463
B48: AMAZONAS | C48: CONDORCANQUI | D48: NIEVA | E48: 010401 | F48: 3110 | G48: 1045 | H48: 33.60128617 | I48: 2065 | J48: 1045 | K48: 50.60532688 | L48: 3110 | M48: 162 | N48: 5.209003215 | O48: 3110 | P48: 61 | Q48: 1.961414791 | R48: 308 | S48: 9.903536977 | T48: 101 | U48: 3.247588424
B49: AMAZONAS | C49: CONDORCANQUI | D49: RIO SANTIAGO | E49: 010403 | F49: 1835 | G49: 659 | H49: 35.91280654 | I49: 1176 | J49: 599 | K49: 50.93537415 | L49: 1835 | M49: 154 | N49: 8.392370572 | O49: 1835 | P49: 35 | Q49: 1.907356948 | R49: 108 | S49: 5.885558583 | T49: 23 | U49: 1.253405995
B50: AMAZONAS | C50: LUYA | D50: CAMPORREDONDO | E50: 010502 | F50: 341 | G50: 64 | H50: 18.76832845 | I50: 277 | J50: 124 | K50: 44.76534296 | L50: 341 | M50: 9 | N50: 2.639296188 | O50: 341 | P50: 4 | Q50: 1.173020528 | R50: 27 | S50: 7.917888563 | T50: 3 | U50: 0.8797653959
B51: AMAZONAS | C51: LUYA | D51: COCABAMBA | E51: 010503 | F51: 134 | G51: 33 | H51: 24.62686567 | I51: 101 | J51: 60 | K51: 59.40594059 | L51: 134 | M51: 6 | N51: 4.47761194 | O51: 134 | P51: 1 | Q51: 0.7462686567 | R51: 9 | S51: 6.71641791 | T51: 1 | U51: 0.7462686567
B52: AMAZONAS | C52: LUYA | D52: COLCAMAR | E52: 010504 | F52: 73 | G52: 9 | H52: 12.32876712 | I52: 64 | J52: 34 | K52: 53.125 | L52: 73 | M52: 3 | N52: 4.109589041 | O52: 73 | P52: 0 | Q52: 0 | R52: 3 | S52: 4.109589041 | T52: 0 | U52: 0
B53: AMAZONAS | C53: LUYA | D53: CONILA | E53: 010505 | F53: 89 | G53: 20 | H53: 22.47191011 | I53: 69 | J53: 34 | K53: 49.27536232 | L53: 89 | M53: 4 | N53: 4.494382022 | O53: 89 | P53: 0 | Q53: 0 | R53: 4 | S53: 4.494382022 | T53: 0 | U53: 0
B54: AMAZONAS | C54: LUYA | D54: INGUILPATA | E54: 010506 | F54: 10 | G54: 1 | H54: 10 | I54: 9 | J54: 4 | K54: 44.44444444 | L54: 10 | M54: 1 | N54: 10 | O54: 10 | P54: 0 | Q54: 0 | R54: 0 | S54: 0 | T54: 0 | U54: 0
B55: AMAZONAS | C55: LUYA | D55: LAMUD | E55: 010501 | F55: 72 | G55: 2 | H55: 2.777777778 | I55: 70 | J55: 26 | K55: 37.14285714 | L55: 72 | M55: 1 | N55: 1.388888889 | O55: 72 | P55: 1 | Q55: 1.388888889 | R55: 3 | S55: 4.166666667 | T55: 0 | U55: 0
B56: AMAZONAS | C56: LUYA | D56: LONGUITA | E56: 010507 | F56: 48 | G56: 15 | H56: 31.25 | I56: 33 | J56: 14 | K56: 42.42424242 | L56: 48 | M56: 1 | N56: 2.083333333 | O56: 48 | P56: 0 | Q56: 0 | R56: 7 | S56: 14.58333333 | T56: 1 | U56: 2.083333333
B57: AMAZONAS | C57: LUYA | D57: LONYA CHICO | E57: 010508 | F57: 41 | G57: 12 | H57: 29.26829268 | I57: 29 | J57: 10 | K57: 34.48275862 | L57: 41 | M57: 0 | N57: 0 | O57: 41 | P57: 1 | Q57: 2.43902439 | R57: 4 | S57: 9.756097561 | T57: 0 | U57: 0
B58: AMAZONAS | C58: LUYA | D58: LUYA | E58: 010509 | F58: 175 | G58: 20 | H58: 11.42857143 | I58: 155 | J58: 57 | K58: 36.77419355 | L58: 175 | M58: 2 | N58: 1.142857143 | O58: 175 | P58: 1 | Q58: 0.5714285714 | R58: 7 | S58: 4 | T58: 1 | U58: 0.5714285714
B59: AMAZONAS | C59: LUYA | D59: LUYA VIEJO | E59: 010510 | F59: 18 | G59: 7 | H59: 38.88888889 | I59: 11 | J59: 7 | K59: 63.63636364 | L59: 18 | M59: 2 | N59: 11.11111111 | O59: 18 | P59: 1 | Q59: 5.555555556 | R59: 4 | S59: 22.22222222 | T59: 0 | U59: 0
B60: AMAZONAS | C60: LUYA | D60: MARIA | E60: 010511 | F60: 27 | G60: 9 | H60: 33.33333333 | I60: 18 | J60: 5 | K60: 27.77777778 | L60: 27 | M60: 2 | N60: 7.407407407 | O60: 27 | P60: 0 | Q60: 0 | R60: 0 | S60: 0 | T60: 0 | U60: 0
B61: AMAZONAS | C61: LUYA | D61: OCALLI | E61: 010512 | F61: 168 | G61: 22 | H61: 13.0952381 | I61: 146 | J61: 62 | K61: 42.46575342 | L61: 168 | M61: 7 | N61: 4.166666667 | O61: 168 | P61: 2 | Q61: 1.19047619 | R61: 11 | S61: 6.547619048 | T61: 2 | U61: 1.19047619
B62: AMAZONAS | C62: LUYA | D62: OCUMAL | E62: 010513 | F62: 171 | G62: 38 | H62: 22.22222222 | I62: 133 | J62: 55 | K62: 41.35338346 | L62: 171 | M62: 7 | N62: 4.093567251 | O62: 171 | P62: 0 | Q62: 0 | R62: 2 | S62: 1.169590643 | T62: 0 | U62: 0
B63: AMAZONAS | C63: LUYA | D63: PISUQUIA | E63: 010514 | F63: 279 | G63: 53 | H63: 18.99641577 | I63: 226 | J63: 94 | K63: 41.59292035 | L63: 279 | M63: 11 | N63: 3.94265233 | O63: 279 | P63: 1 | Q63: 0.3584229391 | R63: 11 | S63: 3.94265233 | T63: 0 | U63: 0
B64: AMAZONAS | C64: LUYA | D64: PROVIDENCIA | E64: 010515 | F64: 63 | G64: 11 | H64: 17.46031746 | I64: 52 | J64: 19 | K64: 36.53846154 | L64: 63 | M64: 3 | N64: 4.761904762 | O64: 63 | P64: 2 | Q64: 3.174603175 | R64: 8 | S64: 12.6984127 | T64: 0 | U64: 0
B65: AMAZONAS | C65: LUYA | D65: SAN CRISTOBAL | E65: 010516 | F65: 22 | G65: 4 | H65: 18.18181818 | I65: 18 | J65: 8 | K65: 44.44444444 | L65: 22 | M65: 0 | N65: 0 | O65: 22 | P65: 0 | Q65: 0 | R65: 0 | S65: 0 | T65: 0 | U65: 0
B66: AMAZONAS | C66: LUYA | D66: SAN FRANCISCO DE YESO | E66: 010517 | F66: 34 | G66: 6 | H66: 17.64705882 | I66: 28 | J66: 19 | K66: 67.85714286 | L66: 34 | M66: 1 | N66: 2.941176471 | O66: 34 | P66: 0 | Q66: 0 | R66: 0 | S66: 0 | T66: 0 | U66: 0
B67: AMAZONAS | C67: LUYA | D67: SAN JERONIMO | E67: 010518 | F67: 16 | G67: 2 | H67: 12.5 | I67: 14 | J67: 7 | K67: 50 | L67: 16 | M67: 1 | N67: 6.25 | O67: 16 | P67: 1 | Q67: 6.25 | R67: 3 | S67: 18.75 | T67: 0 | U67: 0
B68: AMAZONAS | C68: LUYA | D68: SAN JUAN DE LOPECANCHA | E68: 010519 | F68: 18 | G68: 6 | H68: 33.33333333 | I68: 12 | J68: 8 | K68: 66.66666667 | L68: 18 | M68: 1 | N68: 5.555555556 | O68: 18 | P68: 0 | Q68: 0 | R68: 2 | S68: 11.11111111 | T68: 1 | U68: 5.555555556
B69: AMAZONAS | C69: LUYA | D69: SANTA CATALINA | E69: 010520 | F69: 144 | G69: 24 | H69: 16.66666667 | I69: 120 | J69: 56 | K69: 46.66666667 | L69: 144 | M69: 2 | N69: 1.388888889 | O69: 144 | P69: 0 | Q69: 0 | R69: 12 | S69: 8.333333333 | T69: 1 | U69: 0.6944444444
B70: AMAZONAS | C70: LUYA | D70: SANTO TOMAS | E70: 010521 | F70: 161 | G70: 28 | H70: 17.39130435 | I70: 133 | J70: 75 | K70: 56.39097744 | L70: 161 | M70: 6 | N70: 3.726708075 | O70: 161 | P70: 1 | Q70: 0.6211180124 | R70: 10 | S70: 6.211180124 | T70: 1 | U70: 0.6211180124
B71: AMAZONAS | C71: LUYA | D71: TINGO | E71: 010522 | F71: 58 | G71: 17 | H71: 29.31034483 | I71: 41 | J71: 13 | K71: 31.70731707 | L71: 58 | M71: 2 | N71: 3.448275862 | O71: 58 | P71: 0 | Q71: 0 | R71: 2 | S71: 3.448275862 | T71: 1 | U71: 1.724137931
B72: AMAZONAS | C72: LUYA | D72: TRITA | E72: 010523 | F72: 63 | G72: 12 | H72: 19.04761905 | I72: 51 | J72: 27 | K72: 52.94117647 | L72: 63 | M72: 1 | N72: 1.587301587 | O72: 63 | P72: 0 | Q72: 0 | R72: 5 | S72: 7.936507937 | T72: 0 | U72: 0
B73: AMAZONAS | C73: RODRIGUEZ DE MENDOZA | D73: CHIRIMOTO | E73: 010602 | F73: 148 | G73: 20 | H73: 13.51351351 | I73: 128 | J73: 29 | K73: 22.65625 | L73: 148 | M73: 3 | N73: 2.027027027 | O73: 148 | P73: 0 | Q73: 0 | R73: 8 | S73: 5.405405405 | T73: 0 | U73: 0
B74: AMAZONAS | C74: RODRIGUEZ DE MENDOZA | D74: COCHAMAL | E74: 010603 | F74: 26 | G74: 0 | H74: 0 | I74: 26 | J74: 5 | K74: 19.23076923 | L74: 26 | M74: 0 | N74: 0 | O74: 26 | P74: 0 | Q74: 0 | R74: 3 | S74: 11.53846154 | T74: 0 | U74: 0
B75: AMAZONAS | C75: RODRIGUEZ DE MENDOZA | D75: HUAMBO | E75: 010604 | F75: 73 | G75: 16 | H75: 21.91780822 | I75: 57 | J75: 17 | K75: 29.8245614 | L75: 73 | M75: 1 | N75: 1.369863014 | O75: 73 | P75: 1 | Q75: 1.369863014 | R75: 8 | S75: 10.95890411 | T75: 3 | U75: 4.109589041
B76: AMAZONAS | C76: RODRIGUEZ DE MENDOZA | D76: LIMABAMBA | E76: 010605 | F76: 60 | G76: 5 | H76: 8.333333333 | I76: 55 | J76: 17 | K76: 30.90909091 | L76: 60 | M76: 2 | N76: 3.333333333 | O76: 60 | P76: 1 | Q76: 1.666666667 | R76: 0 | S76: 0 | T76: 0 | U76: 0
B77: AMAZONAS | C77: RODRIGUEZ DE MENDOZA | D77: LONGAR | E77: 010606 | F77: 55 | G77: 5 | H77: 9.090909091 | I77: 50 | J77: 13 | K77: 26 | L77: 55 | M77: 0 | N77: 0 | O77: 55 | P77: 3 | Q77: 5.454545455 | R77: 5 | S77: 9.090909091 | T77: 0 | U77: 0
B78: AMAZONAS | C78: RODRIGUEZ DE MENDOZA | D78: MARISCAL BENAVIDES | E78: 010607 | F78: 58 | G78: 4 | H78: 6.896551724 | I78: 54 | J78: 17 | K78: 31.48148148 | L78: 58 | M78: 1 | N78: 1.724137931 | O78: 58 | P78: 0 | Q78: 0 | R78: 4 | S78: 6.896551724 | T78: 0 | U78: 0
B79: AMAZONAS | C79: RODRIGUEZ DE MENDOZA | D79: MILPUC | E79: 010608 | F79: 7 | G79: 0 | H79: 0 | I79: 7 | J79: 4 | K79: 57.14285714 | L79: 7 | M79: 0 | N79: 0 | O79: 7 | P79: 0 | Q79: 0 | R79: 0 | S79: 0 | T79: 0 | U79: 0
B80: AMAZONAS | C80: RODRIGUEZ DE MENDOZA | D80: OMIA | E80: 010609 | F80: 541 | G80: 88 | H80: 16.26617375 | I80: 453 | J80: 187 | K80: 41.2803532 | L80: 541 | M80: 15 | N80: 2.772643253 | O80: 541 | P80: 2 | Q80: 0.3696857671 | R80: 53 | S80: 9.796672828 | T80: 10 | U80: 1.848428835
B81: AMAZONAS | C81: RODRIGUEZ DE MENDOZA | D81: SAN NICOLAS | E81: 010601 | F81: 215 | G81: 16 | H81: 7.441860465 | I81: 199 | J81: 50 | K81: 25.12562814 | L81: 215 | M81: 3 | N81: 1.395348837 | O81: 215 | P81: 2 | Q81: 0.9302325581 | R81: 20 | S81: 9.302325581 | T81: 2 | U81: 0.9302325581
B82: AMAZONAS | C82: RODRIGUEZ DE MENDOZA | D82: SANTA ROSA | E82: 010610 | F82: 19 | G82: 1 | H82: 5.263157895 | I82: 18 | J82: 8 | K82: 44.44444444 | L82: 19 | M82: 1 | N82: 5.263157895 | O82: 19 | P82: 0 | Q82: 0 | R82: 0 | S82: 0 | T82: 0 | U82: 0
B83: AMAZONAS | C83: RODRIGUEZ DE MENDOZA | D83: TOTORA | E83: 010611 | F83: 11 | G83: 1 | H83: 9.090909091 | I83: 10 | J83: 3 | K83: 30 | L83: 11 | M83: 0 | N83: 0 | O83: 11 | P83: 0 | Q83: 0 | R83: 0 | S83: 0 | T83: 0 | U83: 0
B84: AMAZONAS | C84: RODRIGUEZ DE MENDOZA | D84: VISTA ALEGRE | E84: 010612 | F84: 119 | G84: 17 | H84: 14.28571429 | I84: 102 | J84: 57 | K84: 55.88235294 | L84: 119 | M84: 4 | N84: 3.361344538 | O84: 119 | P84: 2 | Q84: 1.680672269 | R84: 5 | S84: 4.201680672 | T84: 0 | U84: 0
B85: AMAZONAS | C85: UTCUBAMBA | D85: BAGUA GRANDE | E85: 010701 | F85: 2615 | G85: 401 | H85: 15.33460803 | I85: 2214 | J85: 789 | K85: 35.63685637 | L85: 2615 | M85: 115 | N85: 4.397705545 | O85: 2615 | P85: 35 | Q85: 1.338432122 | R85: 120 | S85: 4.588910134 | T85: 27 | U85: 1.03250478
B86: AMAZONAS | C86: UTCUBAMBA | D86: CAJARURO | E86: 010702 | F86: 1117 | G86: 163 | H86: 14.59265891 | I86: 954 | J86: 370 | K86: 38.78406709 | L86: 1117 | M86: 31 | N86: 2.775290958 | O86: 1117 | P86: 14 | Q86: 1.253357207 | R86: 58 | S86: 5.192479857 | T86: 12 | U86: 1.074306177
B87: AMAZONAS | C87: UTCUBAMBA | D87: CUMBA | E87: 010703 | F87: 407 | G87: 54 | H87: 13.26781327 | I87: 353 | J87: 134 | K87: 37.96033994 | L87: 407 | M87: 9 | N87: 2.211302211 | O87: 407 | P87: 4 | Q87: 0.9828009828 | R87: 20 | S87: 4.914004914 | T87: 7 | U87: 1.71990172
B88: AMAZONAS | C88: UTCUBAMBA | D88: EL MILAGRO | E88: 010704 | F88: 144 | G88: 22 | H88: 15.27777778 | I88: 122 | J88: 43 | K88: 35.24590164 | L88: 144 | M88: 5 | N88: 3.472222222 | O88: 144 | P88: 3 | Q88: 2.083333333 | R88: 8 | S88: 5.555555556 | T88: 1 | U88: 0.6944444444
B89: AMAZONAS | C89: UTCUBAMBA | D89: JAMALCA | E89: 010705 | F89: 314 | G89: 34 | H89: 10.82802548 | I89: 280 | J89: 114 | K89: 40.71428571 | L89: 314 | M89: 5 | N89: 1.592356688 | O89: 314 | P89: 4 | Q89: 1.27388535 | R89: 11 | S89: 3.503184713 | T89: 3 | U89: 0.9554140127
B90: AMAZONAS | C90: UTCUBAMBA | D90: LONYA GRANDE | E90: 010706 | F90: 433 | G90: 63 | H90: 14.54965358 | I90: 370 | J90: 134 | K90: 36.21621622 | L90: 433 | M90: 11 | N90: 2.540415704 | O90: 433 | P90: 5 | Q90: 1.154734411 | R90: 27 | S90: 6.23556582 | T90: 5 | U90: 1.154734411
B91: AMAZONAS | C91: UTCUBAMBA | D91: YAMON | E91: 010707 | F91: 151 | G91: 23 | H91: 15.23178808 | I91: 128 | J91: 59 | K91: 46.09375 | L91: 151 | M91: 4 | N91: 2.649006623 | O91: 151 | P91: 1 | Q91: 0.6622516556 | R91: 13 | S91: 8.609271523 | T91: 1 | U91: 0.6622516556
B92: ÁNCASH | C92: AIJA | D92: AIJA | E92: 020201 | F92: 85 | G92: 22 | H92: 25.88235294 | I92: 63 | J92: 32 | K92: 50.79365079 | L92: 85 | M92: 7 | N92: 8.235294118 | O92: 85 | P92: 1 | Q92: 1.176470588 | R92: 5 | S92: 5.882352941 | T92: 0 | U92: 0
B93: ÁNCASH | C93: AIJA | D93: CORIS | E93: 020202 | F93: 97 | G93: 14 | H93: 14.43298969 | I93: 83 | J93: 35 | K93: 42.1686747 | L93: 97 | M93: 3 | N93: 3.092783505 | O93: 97 | P93: 0 | Q93: 0 | R93: 11 | S93: 11.34020619 | T93: 1 | U93: 1.030927835
B94: ÁNCASH | C94: AIJA | D94: HUACLLAN | E94: 020203 | F94: 20 | G94: 4 | H94: 20 | I94: 16 | J94: 8 | K94: 50 | L94: 20 | M94: 3 | N94: 15 | O94: 20 | P94: 1 | Q94: 5 | R94: 2 | S94: 10 | T94: 2 | U94: 10
B95: ÁNCASH | C95: AIJA | D95: LA MERCED | E95: 020204 | F95: 71 | G95: 22 | H95: 30.98591549 | I95: 49 | J95: 28 | K95: 57.14285714 | L95: 71 | M95: 3 | N95: 4.225352113 | O95: 71 | P95: 0 | Q95: 0 | R95: 3 | S95: 4.225352113 | T95: 0 | U95: 0
B96: ÁNCASH | C96: AIJA | D96: SUCCHA | E96: 020205 | F96: 32 | G96: 9 | H96: 28.125 | I96: 23 | J96: 10 | K96: 43.47826087 | L96: 32 | M96: 0 | N96: 0 | O96: 32 | P96: 0 | Q96: 0 | R96: 0 | S96: 0 | T96: 0 | U96: 0
B97: ÁNCASH | C97: ANTONIO RAYMONDI | D97: ACZO | E97: 020302 | F97: 94 | G97: 27 | H97: 28.72340426 | I97: 67 | J97: 27 | K97: 40.29850746 | L97: 94 | M97: 5 | N97: 5.319148936 | O97: 94 | P97: 1 | Q97: 1.063829787 | R97: 15 | S97: 15.95744681 | T97: 2 | U97: 2.127659574
B98: ÁNCASH | C98: ANTONIO RAYMONDI | D98: CHACCHO | E98: 020303 | F98: 54 | G98: 20 | H98: 37.03703704 | I98: 34 | J98: 14 | K98: 41.17647059 | L98: 54 | M98: 0 | N98: 0 | O98: 54 | P98: 0 | Q98: 0 | R98: 4 | S98: 7.407407407 | T98: 1 | U98: 1.851851852
B99: ÁNCASH | C99: ANTONIO RAYMONDI | D99: CHINGAS | E99: 020304 | F99: 98 | G99: 18 | H99: 18.36734694 | I99: 80 | J99: 33 | K99: 41.25 | L99: 98 | M99: 5 | N99: 5.102040816 | O99: 98 | P99: 3 | Q99: 3.06122449 | R99: 8 | S99: 8.163265306 | T99: 0 | U99: 0
B100: ÁNCASH | C100: ANTONIO RAYMONDI | D100: LLAMELLIN | E100: 020301 | F100: 115 | G100: 31 | H100: 26.95652174 | I100: 84 | J100: 43 | K100: 51.19047619 | L100: 115 | M100: 9 | N100: 7.826086957 | O100: 115 | P100: 5 | Q100: 4.347826087 | R100: 8 | S100: 6.956521739 | T100: 0 | U100: 0
B101: ÁNCASH | C101: ANTONIO RAYMONDI | D101: MIRGAS | E101: 020305 | F101: 128 | G101: 52 | H101: 40.625 | I101: 76 | J101: 41 | K101: 53.94736842 | L101: 128 | M101: 4 | N101: 3.125 | O101: 128 | P101: 0 | Q101: 0 | R101: 6 | S101: 4.6875 | T101: 1 | U101: 0.78125
B102: ÁNCASH | C102: ANTONIO RAYMONDI | D102: SAN JUAN DE RONTOY | E102: 020306 | F102: 60 | G102: 22 | H102: 36.66666667 | I102: 38 | J102: 17 | K102: 44.73684211 | L102: 60 | M102: 2 | N102: 3.333333333 | O102: 60 | P102: 0 | Q102: 0 | R102: 11 | S102: 18.33333333 | T102: 0 | U102: 0
B103: ÁNCASH | C103: ASUNCION | D103: ACOCHACA | E103: 020402 | F103: 123 | G103: 29 | H103: 23.57723577 | I103: 94 | J103: 47 | K103: 50 | L103: 123 | M103: 12 | N103: 9.756097561 | O103: 123 | P103: 4 | Q103: 3.25203252 | R103: 2 | S103: 1.62601626 | T103: 0 | U103: 0
B104: ÁNCASH | C104: ASUNCION | D104: CHACAS | E104: 020401 | F104: 288 | G104: 43 | H104: 14.93055556 | I104: 245 | J104: 115 | K104: 46.93877551 | L104: 288 | M104: 11 | N104: 3.819444444 | O104: 288 | P104: 2 | Q104: 0.6944444444 | R104: 7 | S104: 2.430555556 | T104: 2 | U104: 0.6944444444
B105: ÁNCASH | C105: BOLOGNESI | D105: ABELARDO PARDO LEZAMETA | E105: 020502 | F105: 8 | G105: 2 | H105: 25 | I105: 6 | J105: 3 | K105: 50 | L105: 8 | M105: 1 | N105: 12.5 | O105: 8 | P105: 0 | Q105: 0 | R105: 0 | S105: 0 | T105: 0 | U105: 0
B106: ÁNCASH | C106: BOLOGNESI | D106: ANTONIO RAYMONDI | E106: 020503 | F106: 24 | G106: 1 | H106: 4.166666667 | I106: 23 | J106: 13 | K106: 56.52173913 | L106: 24 | M106: 0 | N106: 0 | O106: 24 | P106: 0 | Q106: 0 | R106: 2 | S106: 8.333333333 | T106: 0 | U106: 0
B107: ÁNCASH | C107: BOLOGNESI | D107: AQUIA | E107: 020504 | F107: 95 | G107: 23 | H107: 24.21052632 | I107: 72 | J107: 34 | K107: 47.22222222 | L107: 95 | M107: 3 | N107: 3.157894737 | O107: 95 | P107: 2 | Q107: 2.105263158 | R107: 5 | S107: 5.263157895 | T107: 2 | U107: 2.105263158
B108: ÁNCASH | C108: BOLOGNESI | D108: CAJACAY | E108: 020505 | F108: 85 | G108: 23 | H108: 27.05882353 | I108: 62 | J108: 31 | K108: 50 | L108: 85 | M108: 4 | N108: 4.705882353 | O108: 85 | P108: 1 | Q108: 1.176470588 | R108: 7 | S108: 8.235294118 | T108: 4 | U108: 4.705882353
B109: ÁNCASH | C109: BOLOGNESI | D109: CHIQUIAN | E109: 020501 | F109: 170 | G109: 21 | H109: 12.35294118 | I109: 149 | J109: 62 | K109: 41.61073826 | L109: 170 | M109: 1 | N109: 0.5882352941 | O109: 170 | P109: 1 | Q109: 0.5882352941 | R109: 5 | S109: 2.941176471 | T109: 3 | U109: 1.764705882
B110: ÁNCASH | C110: BOLOGNESI | D110: COLQUIOC | E110: 020507 | F110: 80 | G110: 3 | H110: 3.75 | I110: 77 | J110: 18 | K110: 23.37662338 | L110: 80 | M110: 0 | N110: 0 | O110: 80 | P110: 1 | Q110: 1.25 | R110: 5 | S110: 6.25 | T110: 5 | U110: 6.25
B111: ÁNCASH | C111: BOLOGNESI | D111: HUALLANCA | E111: 020508 | F111: 351 | G111: 99 | H111: 28.20512821 | I111: 252 | J111: 136 | K111: 53.96825397 | L111: 351 | M111: 20 | N111: 5.698005698 | O111: 351 | P111: 3 | Q111: 0.8547008547 | R111: 12 | S111: 3.418803419 | T111: 2 | U111: 0.5698005698
B112: ÁNCASH | C112: BOLOGNESI | D112: HUASTA | E112: 020509 | F112: 53 | G112: 18 | H112: 33.96226415 | I112: 35 | J112: 19 | K112: 54.28571429 | L112: 53 | M112: 3 | N112: 5.660377358 | O112: 53 | P112: 2 | Q112: 3.773584906 | R112: 6 | S112: 11.32075472 | T112: 1 | U112: 1.886792453
B113: ÁNCASH | C113: BOLOGNESI | D113: HUAYLLACAYAN | E113: 020510 | F113: 44 | G113: 12 | H113: 27.27272727 | I113: 32 | J113: 18 | K113: 56.25 | L113: 44 | M113: 0 | N113: 0 | O113: 44 | P113: 1 | Q113: 2.272727273 | R113: 3 | S113: 6.818181818 | T113: 0 | U113: 0
B114: ÁNCASH | C114: BOLOGNESI | D114: LA PRIMAVERA | E114: 020511 | F114: 7 | G114: 2 | H114: 28.57142857 | I114: 5 | J114: 3 | K114: 60 | L114: 7 | M114: 1 | N114: 14.28571429 | O114: 7 | P114: 1 | Q114: 14.28571429 | R114: 0 | S114: 0 | T114: 0 | U114: 0
B115: ÁNCASH | C115: BOLOGNESI | D115: MANGAS | E115: 020512 | F115: 21 | G115: 9 | H115: 42.85714286 | I115: 12 | J115: 6 | K115: 50 | L115: 21 | M115: 0 | N115: 0 | O115: 21 | P115: 1 | Q115: 4.761904762 | R115: 4 | S115: 19.04761905 | T115: 0 | U115: 0
B116: ÁNCASH | C116: BOLOGNESI | D116: PACLLON | E116: 020513 | F116: 39 | G116: 9 | H116: 23.07692308 | I116: 30 | J116: 13 | K116: 43.33333333 | L116: 39 | M116: 1 | N116: 2.564102564 | O116: 39 | P116: 0 | Q116: 0 | R116: 2 | S116: 5.128205128 | T116: 0 | U116: 0
B117: ÁNCASH | C117: BOLOGNESI | D117: SAN MIGUEL DE CORPANQUI | E117: 020514 | F117: 12 | G117: 3 | H117: 25 | I117: 9 | J117: 3 | K117: 33.33333333 | L117: 12 | M117: 0 | N117: 0 | O117: 12 | P117: 0 | Q117: 0 | R117: 1 | S117: 8.333333333 | T117: 1 | U117: 8.333333333
B118: ÁNCASH | C118: BOLOGNESI | D118: TICLLOS | E118: 020515 | F118: 19 | G118: 11 | H118: 57.89473684 | I118: 8 | J118: 6 | K118: 75 | L118: 19 | M118: 2 | N118: 10.52631579 | O118: 19 | P118: 1 | Q118: 5.263157895 | R118: 0 | S118: 0 | T118: 0 | U118: 0
B119: ÁNCASH | C119: CARHUAZ | D119: ACOPAMPA | E119: 020602 | F119: 112 | G119: 28 | H119: 25 | I119: 84 | J119: 48 | K119: 57.14285714 | L119: 112 | M119: 9 | N119: 8.035714286 | O119: 112 | P119: 2 | Q119: 1.785714286 | R119: 2 | S119: 1.785714286 | T119: 0 | U119: 0
B120: ÁNCASH | C120: CARHUAZ | D120: AMASHCA | E120: 020603 | F120: 53 | G120: 9 | H120: 16.98113208 | I120: 44 | J120: 26 | K120: 59.09090909 | L120: 53 | M120: 2 | N120: 3.773584906 | O120: 53 | P120: 0 | Q120: 0 | R120: 4 | S120: 7.547169811 | T120: 1 | U120: 1.886792453
B121: ÁNCASH | C121: CARHUAZ | D121: ANTA | E121: 020604 | F121: 131 | G121: 31 | H121: 23.66412214 | I121: 100 | J121: 46 | K121: 46 | L121: 131 | M121: 10 | N121: 7.633587786 | O121: 131 | P121: 4 | Q121: 3.053435115 | R121: 7 | S121: 5.34351145 | T121: 0 | U121: 0
B122: ÁNCASH | C122: CARHUAZ | D122: ATAQUERO | E122: 020605 | F122: 58 | G122: 15 | H122: 25.86206897 | I122: 43 | J122: 25 | K122: 58.13953488 | L122: 58 | M122: 1 | N122: 1.724137931 | O122: 58 | P122: 1 | Q122: 1.724137931 | R122: 1 | S122: 1.724137931 | T122: 0 | U122: 0
B123: ÁNCASH | C123: CARHUAZ | D123: CARHUAZ | E123: 020601 | F123: 729 | G123: 200 | H123: 27.43484225 | I123: 529 | J123: 244 | K123: 46.12476371 | L123: 729 | M123: 36 | N123: 4.938271605 | O123: 729 | P123: 5 | Q123: 0.6858710562 | R123: 39 | S123: 5.349794239 | T123: 9 | U123: 1.234567901
B124: ÁNCASH | C124: CARHUAZ | D124: MARCARA | E124: 020606 | F124: 427 | G124: 109 | H124: 25.52693208 | I124: 318 | J124: 160 | K124: 50.31446541 | L124: 427 | M124: 25 | N124: 5.854800937 | O124: 427 | P124: 2 | Q124: 0.4683840749 | R124: 18 | S124: 4.215456674 | T124: 5 | U124: 1.170960187
B125: ÁNCASH | C125: CARHUAZ | D125: PARIAHUANCA | E125: 020607 | F125: 82 | G125: 18 | H125: 21.95121951 | I125: 64 | J125: 32 | K125: 50 | L125: 82 | M125: 3 | N125: 3.658536585 | O125: 82 | P125: 0 | Q125: 0 | R125: 6 | S125: 7.317073171 | T125: 0 | U125: 0
B126: ÁNCASH | C126: CARHUAZ | D126: SAN MIGUEL DE ACO | E126: 020608 | F126: 140 | G126: 53 | H126: 37.85714286 | I126: 87 | J126: 65 | K126: 74.71264368 | L126: 140 | M126: 11 | N126: 7.857142857 | O126: 140 | P126: 1 | Q126: 0.7142857143 | R126: 6 | S126: 4.285714286 | T126: 4 | U126: 2.857142857
B127: ÁNCASH | C127: CARHUAZ | D127: SHILLA | E127: 020609 | F127: 105 | G127: 28 | H127: 26.66666667 | I127: 77 | J127: 43 | K127: 55.84415584 | L127: 105 | M127: 2 | N127: 1.904761905 | O127: 105 | P127: 0 | Q127: 0 | R127: 5 | S127: 4.761904762 | T127: 1 | U127: 0.9523809524
B128: ÁNCASH | C128: CARHUAZ | D128: TINCO | E128: 020610 | F128: 142 | G128: 31 | H128: 21.83098592 | I128: 111 | J128: 53 | K128: 47.74774775 | L128: 142 | M128: 5 | N128: 3.521126761 | O128: 142 | P128: 1 | Q128: 0.7042253521 | R128: 5 | S128: 3.521126761 | T128: 1 | U128: 0.7042253521
B129: ÁNCASH | C129: CARHUAZ | D129: YUNGAR | E129: 020611 | F129: 179 | G129: 73 | H129: 40.78212291 | I129: 106 | J129: 47 | K129: 44.33962264 | L129: 179 | M129: 6 | N129: 3.351955307 | O129: 179 | P129: 1 | Q129: 0.5586592179 | R129: 10 | S129: 5.586592179 | T129: 0 | U129: 0
B130: ÁNCASH | C130: CARLOS FERMIN FITZCARRALD | D130: SAN LUIS | E130: 020701 | F130: 503 | G130: 137 | H130: 27.23658052 | I130: 366 | J130: 167 | K130: 45.6284153 | L130: 503 | M130: 32 | N130: 6.361829026 | O130: 503 | P130: 4 | Q130: 0.7952286282 | R130: 25 | S130: 4.970178926 | T130: 1 | U130: 0.1988071571
B131: ÁNCASH | C131: CARLOS FERMIN FITZCARRALD | D131: SAN NICOLAS | E131: 020702 | F131: 165 | G131: 68 | H131: 41.21212121 | I131: 97 | J131: 62 | K131: 63.91752577 | L131: 165 | M131: 10 | N131: 6.060606061 | O131: 165 | P131: 3 | Q131: 1.818181818 | R131: 9 | S131: 5.454545455 | T131: 2 | U131: 1.212121212
B132: ÁNCASH | C132: CARLOS FERMIN FITZCARRALD | D132: YAUYA | E132: 020703 | F132: 247 | G132: 92 | H132: 37.24696356 | I132: 155 | J132: 94 | K132: 60.64516129 | L132: 247 | M132: 19 | N132: 7.692307692 | O132: 247 | P132: 5 | Q132: 2.024291498 | R132: 12 | S132: 4.858299595 | T132: 5 | U132: 2.024291498
B133: ÁNCASH | C133: CASMA | D133: BUENA VISTA ALTA | E133: 020802 | F133: 271 | G133: 38 | H133: 14.02214022 | I133: 233 | J133: 94 | K133: 40.34334764 | L133: 271 | M133: 8 | N133: 2.95202952 | O133: 271 | P133: 0 | Q133: 0 | R133: 12 | S133: 4.42804428 | T133: 2 | U133: 0.7380073801
B134: ÁNCASH | C134: CASMA | D134: CASMA | E134: 020801 | F134: 671 | G134: 21 | H134: 3.129657228 | I134: 650 | J134: 121 | K134: 18.61538462 | L134: 671 | M134: 4 | N134: 0.5961251863 | O134: 671 | P134: 5 | Q134: 0.7451564829 | R134: 43 | S134: 6.408345753 | T134: 10 | U134: 1.490312966
B135: ÁNCASH | C135: CASMA | D135: COMANDANTE NOEL | E135: 020803 | F135: 122 | G135: 10 | H135: 8.196721311 | I135: 112 | J135: 38 | K135: 33.92857143 | L135: 122 | M135: 0 | N135: 0 | O135: 122 | P135: 0 | Q135: 0 | R135: 13 | S135: 10.6557377 | T135: 3 | U135: 2.459016393
B136: ÁNCASH | C136: CASMA | D136: YAUTAN | E136: 020804 | F136: 467 | G136: 81 | H136: 17.34475375 | I136: 386 | J136: 133 | K136: 34.45595855 | L136: 467 | M136: 8 | N136: 1.713062099 | O136: 467 | P136: 2 | Q136: 0.4282655246 | R136: 34 | S136: 7.280513919 | T136: 4 | U136: 0.8565310493
B137: ÁNCASH | C137: CORONGO | D137: ACO | E137: 020902 | F137: 13 | G137: 4 | H137: 30.76923077 | I137: 9 | J137: 4 | K137: 44.44444444 | L137: 13 | M137: 0 | N137: 0 | O137: 13 | P137: 0 | Q137: 0 | R137: 3 | S137: 23.07692308 | T137: 1 | U137: 7.692307692
B138: ÁNCASH | C138: CORONGO | D138: BAMBAS | E138: 020903 | F138: 33 | G138: 6 | H138: 18.18181818 | I138: 27 | J138: 15 | K138: 55.55555556 | L138: 33 | M138: 1 | N138: 3.03030303 | O138: 33 | P138: 1 | Q138: 3.03030303 | R138: 3 | S138: 9.090909091 | T138: 1 | U138: 3.03030303
B139: ÁNCASH | C139: CORONGO | D139: CORONGO | E139: 020901 | F139: 63 | G139: 11 | H139: 17.46031746 | I139: 52 | J139: 22 | K139: 42.30769231 | L139: 63 | M139: 0 | N139: 0 | O139: 63 | P139: 0 | Q139: 0 | R139: 0 | S139: 0 | T139: 0 | U139: 0
B140: ÁNCASH | C140: CORONGO | D140: CUSCA | E140: 020904 | F140: 136 | G140: 42 | H140: 30.88235294 | I140: 94 | J140: 54 | K140: 57.44680851 | L140: 136 | M140: 2 | N140: 1.470588235 | O140: 136 | P140: 0 | Q140: 0 | R140: 6 | S140: 4.411764706 | T140: 2 | U140: 1.470588235
B141: ÁNCASH | C141: CORONGO | D141: LA PAMPA | E141: 020905 | F141: 29 | G141: 6 | H141: 20.68965517 | I141: 23 | J141: 10 | K141: 43.47826087 | L141: 29 | M141: 1 | N141: 3.448275862 | O141: 29 | P141: 1 | Q141: 3.448275862 | R141: 2 | S141: 6.896551724 | T141: 0 | U141: 0
B142: ÁNCASH | C142: CORONGO | D142: YANAC | E142: 020906 | F142: 32 | G142: 5 | H142: 15.625 | I142: 27 | J142: 12 | K142: 44.44444444 | L142: 32 | M142: 1 | N142: 3.125 | O142: 32 | P142: 1 | Q142: 3.125 | R142: 4 | S142: 12.5 | T142: 1 | U142: 3.125
B143: ÁNCASH | C143: HUARAZ | D143: COCHABAMBA | E143: 020102 | F143: 77 | G143: 37 | H143: 48.05194805 | I143: 40 | J143: 22 | K143: 55 | L143: 77 | M143: 1 | N143: 1.298701299 | O143: 77 | P143: 0 | Q143: 0 | R143: 1 | S143: 1.298701299 | T143: 0 | U143: 0
B144: ÁNCASH | C144: HUARAZ | D144: COLCABAMBA | E144: 020103 | F144: 14 | G144: 2 | H144: 14.28571429 | I144: 12 | J144: 3 | K144: 25 | L144: 14 | M144: 0 | N144: 0 | O144: 14 | P144: 0 | Q144: 0 | R144: 0 | S144: 0 | T144: 0 | U144: 0
B145: ÁNCASH | C145: HUARAZ | D145: HUANCHAY | E145: 020104 | F145: 39 | G145: 13 | H145: 33.33333333 | I145: 26 | J145: 8 | K145: 30.76923077 | L145: 39 | M145: 0 | N145: 0 | O145: 39 | P145: 1 | Q145: 2.564102564 | R145: 6 | S145: 15.38461538 | T145: 0 | U145: 0
B146: ÁNCASH | C146: HUARAZ | D146: HUARAZ | E146: 020101 | F146: 2083 | G146: 353 | H146: 16.94671147 | I146: 1730 | J146: 701 | K146: 40.52023121 | L146: 2083 | M146: 91 | N146: 4.368698992 | O146: 2083 | P146: 14 | Q146: 0.6721075372 | R146: 119 | S146: 5.712914066 | T146: 19 | U146: 0.9121459434
B147: ÁNCASH | C147: HUARAZ | D147: INDEPENDENCIA | E147: 020105 | F147: 3072 | G147: 599 | H147: 19.49869792 | I147: 2473 | J147: 1005 | K147: 40.63890012 | L147: 3072 | M147: 137 | N147: 4.459635417 | O147: 3072 | P147: 43 | Q147: 1.399739583 | R147: 139 | S147: 4.524739583 | T147: 26 | U147: 0.8463541667
B148: ÁNCASH | C148: HUARAZ | D148: JANGAS | E148: 020106 | F148: 237 | G148: 51 | H148: 21.51898734 | I148: 186 | J148: 82 | K148: 44.08602151 | L148: 237 | M148: 5 | N148: 2.109704641 | O148: 237 | P148: 1 | Q148: 0.4219409283 | R148: 25 | S148: 10.54852321 | T148: 2 | U148: 0.8438818565
B149: ÁNCASH | C149: HUARAZ | D149: LA LIBERTAD | E149: 020107 | F149: 68 | G149: 30 | H149: 44.11764706 | I149: 38 | J149: 17 | K149: 44.73684211 | L149: 68 | M149: 3 | N149: 4.411764706 | O149: 68 | P149: 2 | Q149: 2.941176471 | R149: 3 | S149: 4.411764706 | T149: 0 | U149: 0
B150: ÁNCASH | C150: HUARAZ | D150: OLLEROS | E150: 020108 | F150: 104 | G150: 25 | H150: 24.03846154 | I150: 79 | J150: 39 | K150: 49.36708861 | L150: 104 | M150: 3 | N150: 2.884615385 | O150: 104 | P150: 0 | Q150: 0 | R150: 5 | S150: 4.807692308 | T150: 0 | U150: 0
B151: ÁNCASH | C151: HUARAZ | D151: PARIACOTO | E151: 020110 | F151: 256 | G151: 56 | H151: 21.875 | I151: 200 | J151: 84 | K151: 42 | L151: 256 | M151: 6 | N151: 2.34375 | O151: 256 | P151: 1 | Q151: 0.390625 | R151: 14 | S151: 5.46875 | T151: 6 | U151: 2.34375
B152: ÁNCASH | C152: HUARAZ | D152: TARICA | E152: 020112 | F152: 290 | G152: 80 | H152: 27.5862069 | I152: 210 | J152: 93 | K152: 44.28571429 | L152: 290 | M152: 6 | N152: 2.068965517 | O152: 290 | P152: 4 | Q152: 1.379310345 | R152: 18 | S152: 6.206896552 | T152: 5 | U152: 1.724137931
B153: ÁNCASH | C153: HUARI | D153: CAJAY | E153: 021003 | F153: 108 | G153: 27 | H153: 25 | I153: 81 | J153: 43 | K153: 53.08641975 | L153: 108 | M153: 8 | N153: 7.407407407 | O153: 108 | P153: 4 | Q153: 3.703703704 | R153: 6 | S153: 5.555555556 | T153: 1 | U153: 0.9259259259
B154: ÁNCASH | C154: HUARI | D154: CHAVIN DE HUANTAR | E154: 021004 | F154: 419 | G154: 123 | H154: 29.35560859 | I154: 296 | J154: 146 | K154: 49.32432432 | L154: 419 | M154: 22 | N154: 5.250596659 | O154: 419 | P154: 4 | Q154: 0.9546539379 | R154: 16 | S154: 3.818615752 | T154: 3 | U154: 0.7159904535
B155: ÁNCASH | C155: HUARI | D155: HUACACHI | E155: 021005 | F155: 56 | G155: 21 | H155: 37.5 | I155: 35 | J155: 23 | K155: 65.71428571 | L155: 56 | M155: 5 | N155: 8.928571429 | O155: 56 | P155: 0 | Q155: 0 | R155: 3 | S155: 5.357142857 | T155: 0 | U155: 0
B156: ÁNCASH | C156: HUARI | D156: HUACCHIS | E156: 021006 | F156: 23 | G156: 9 | H156: 39.13043478 | I156: 14 | J156: 9 | K156: 64.28571429 | L156: 23 | M156: 0 | N156: 0 | O156: 23 | P156: 0 | Q156: 0 | R156: 6 | S156: 26.08695652 | T156: 0 | U156: 0
B157: ÁNCASH | C157: HUARI | D157: HUACHIS | E157: 021007 | F157: 128 | G157: 19 | H157: 14.84375 | I157: 109 | J157: 36 | K157: 33.02752294 | L157: 128 | M157: 7 | N157: 5.46875 | O157: 128 | P157: 3 | Q157: 2.34375 | R157: 6 | S157: 4.6875 | T157: 2 | U157: 1.5625
B158: ÁNCASH | C158: HUARI | D158: HUANTAR | E158: 021008 | F158: 126 | G158: 32 | H158: 25.3968254 | I158: 94 | J158: 41 | K158: 43.61702128 | L158: 126 | M158: 2 | N158: 1.587301587 | O158: 126 | P158: 0 | Q158: 0 | R158: 10 | S158: 7.936507937 | T158: 4 | U158: 3.174603175
B159: ÁNCASH | C159: HUARI | D159: HUARI | E159: 021001 | F159: 717 | G159: 140 | H159: 19.52580195 | I159: 577 | J159: 252 | K159: 43.67417678 | L159: 717 | M159: 37 | N159: 5.160390516 | O159: 717 | P159: 5 | Q159: 0.6973500697 | R159: 26 | S159: 3.626220363 | T159: 10 | U159: 1.394700139
B160: ÁNCASH | C160: HUARI | D160: MASIN | E160: 021009 | F160: 74 | G160: 13 | H160: 17.56756757 | I160: 61 | J160: 24 | K160: 39.3442623 | L160: 74 | M160: 4 | N160: 5.405405405 | O160: 74 | P160: 2 | Q160: 2.702702703 | R160: 4 | S160: 5.405405405 | T160: 0 | U160: 0
B161: ÁNCASH | C161: HUARI | D161: PONTO | E161: 021011 | F161: 103 | G161: 34 | H161: 33.00970874 | I161: 69 | J161: 38 | K161: 55.07246377 | L161: 103 | M161: 9 | N161: 8.737864078 | O161: 103 | P161: 4 | Q161: 3.883495146 | R161: 7 | S161: 6.796116505 | T161: 1 | U161: 0.9708737864
B162: ÁNCASH | C162: HUARI | D162: RAHUAPAMPA | E162: 021012 | F162: 32 | G162: 4 | H162: 12.5 | I162: 28 | J162: 13 | K162: 46.42857143 | L162: 32 | M162: 0 | N162: 0 | O162: 32 | P162: 0 | Q162: 0 | R162: 0 | S162: 0 | T162: 0 | U162: 0
B163: ÁNCASH | C163: HUARI | D163: SAN MARCOS | E163: 021014 | F163: 735 | G163: 132 | H163: 17.95918367 | I163: 603 | J163: 272 | K163: 45.10779436 | L163: 735 | M163: 19 | N163: 2.585034014 | O163: 735 | P163: 10 | Q163: 1.360544218 | R163: 46 | S163: 6.258503401 | T163: 9 | U163: 1.224489796
B164: ÁNCASH | C164: HUARI | D164: SAN PEDRO DE CHANA | E164: 021015 | F164: 211 | G164: 63 | H164: 29.85781991 | I164: 148 | J164: 69 | K164: 46.62162162 | L164: 211 | M164: 12 | N164: 5.687203791 | O164: 211 | P164: 8 | Q164: 3.791469194 | R164: 18 | S164: 8.530805687 | T164: 5 | U164: 2.369668246
B165: ÁNCASH | C165: HUARI | D165: UCO | E165: 021016 | F165: 20 | G165: 3 | H165: 15 | I165: 17 | J165: 8 | K165: 47.05882353 | L165: 20 | M165: 2 | N165: 10 | O165: 20 | P165: 1 | Q165: 5 | R165: 1 | S165: 5 | T165: 0 | U165: 0
B166: ÁNCASH | C166: HUARMEY | D166: COCHAPETI | E166: 021102 | F166: 19 | G166: 6 | H166: 31.57894737 | I166: 13 | J166: 7 | K166: 53.84615385 | L166: 19 | M166: 1 | N166: 5.263157895 | O166: 19 | P166: 0 | Q166: 0 | R166: 2 | S166: 10.52631579 | T166: 2 | U166: 10.52631579
B167: ÁNCASH | C167: HUARMEY | D167: CULEBRAS | E167: 021103 | F167: 152 | G167: 16 | H167: 10.52631579 | I167: 136 | J167: 48 | K167: 35.29411765 | L167: 152 | M167: 2 | N167: 1.315789474 | O167: 152 | P167: 0 | Q167: 0 | R167: 21 | S167: 13.81578947 | T167: 1 | U167: 0.6578947368
B168: ÁNCASH | C168: HUARMEY | D168: HUARMEY | E168: 021101 | F168: 920 | G168: 63 | H168: 6.847826087 | I168: 857 | J168: 257 | K168: 29.98833139 | L168: 920 | M168: 11 | N168: 1.195652174 | O168: 920 | P168: 1 | Q168: 0.1086956522 | R168: 85 | S168: 9.239130435 | T168: 18 | U168: 1.956521739
B169: ÁNCASH | C169: HUARMEY | D169: HUAYAN | E169: 021104 | F169: 20 | G169: 6 | H169: 30 | I169: 14 | J169: 5 | K169: 35.71428571 | L169: 20 | M169: 0 | N169: 0 | O169: 20 | P169: 0 | Q169: 0 | R169: 1 | S169: 5 | T169: 1 | U169: 5
B170: ÁNCASH | C170: HUARMEY | D170: MALVAS | E170: 021105 | F170: 25 | G170: 3 | H170: 12 | I170: 22 | J170: 10 | K170: 45.45454545 | L170: 25 | M170: 1 | N170: 4 | O170: 25 | P170: 0 | Q170: 0 | R170: 3 | S170: 12 | T170: 0 | U170: 0
B171: ÁNCASH | C171: HUAYLAS | D171: CARAZ | E171: 021201 | F171: 1283 | G171: 250 | H171: 19.48558067 | I171: 1033 | J171: 436 | K171: 42.2071636 | L171: 1283 | M171: 47 | N171: 3.663289166 | O171: 1283 | P171: 12 | Q171: 0.9353078722 | R171: 56 | S171: 4.36477007 | T171: 17 | U171: 1.325019486
B172: ÁNCASH | C172: HUAYLAS | D172: HUALLANCA | E172: 021202 | F172: 36 | G172: 7 | H172: 19.44444444 | I172: 29 | J172: 6 | K172: 20.68965517 | L172: 36 | M172: 0 | N172: 0 | O172: 36 | P172: 0 | Q172: 0 | R172: 3 | S172: 8.333333333 | T172: 0 | U172: 0
B173: ÁNCASH | C173: HUAYLAS | D173: HUATA | E173: 021203 | F173: 71 | G173: 22 | H173: 30.98591549 | I173: 49 | J173: 27 | K173: 55.10204082 | L173: 71 | M173: 6 | N173: 8.450704225 | O173: 71 | P173: 2 | Q173: 2.816901408 | R173: 4 | S173: 5.633802817 | T173: 1 | U173: 1.408450704
B174: ÁNCASH | C174: HUAYLAS | D174: HUAYLAS | E174: 021204 | F174: 51 | G174: 12 | H174: 23.52941176 | I174: 39 | J174: 13 | K174: 33.33333333 | L174: 51 | M174: 2 | N174: 3.921568627 | O174: 51 | P174: 1 | Q174: 1.960784314 | R174: 1 | S174: 1.960784314 | T174: 1 | U174: 1.960784314
B175: ÁNCASH | C175: HUAYLAS | D175: MATO | E175: 021205 | F175: 92 | G175: 21 | H175: 22.82608696 | I175: 71 | J175: 37 | K175: 52.11267606 | L175: 92 | M175: 3 | N175: 3.260869565 | O175: 92 | P175: 0 | Q175: 0 | R175: 0 | S175: 0 | T175: 3 | U175: 3.260869565
B176: ÁNCASH | C176: HUAYLAS | D176: PAMPAROMAS | E176: 021206 | F176: 469 | G176: 158 | H176: 33.68869936 | I176: 311 | J176: 164 | K176: 52.73311897 | L176: 469 | M176: 19 | N176: 4.051172708 | O176: 469 | P176: 4 | Q176: 0.8528784648 | R176: 33 | S176: 7.036247335 | T176: 15 | U176: 3.198294243
B177: ÁNCASH | C177: HUAYLAS | D177: PUEBLO LIBRE | E177: 021207 | F177: 341 | G177: 99 | H177: 29.03225806 | I177: 242 | J177: 117 | K177: 48.34710744 | L177: 341 | M177: 17 | N177: 4.985337243 | O177: 341 | P177: 5 | Q177: 1.46627566 | R177: 30 | S177: 8.797653959 | T177: 3 | U177: 0.8797653959
B178: ÁNCASH | C178: HUAYLAS | D178: SANTA CRUZ | E178: 021208 | F178: 220 | G178: 74 | H178: 33.63636364 | I178: 146 | J178: 89 | K178: 60.95890411 | L178: 220 | M178: 10 | N178: 4.545454545 | O178: 220 | P178: 2 | Q178: 0.9090909091 | R178: 10 | S178: 4.545454545 | T178: 1 | U178: 0.4545454545
B179: ÁNCASH | C179: HUAYLAS | D179: SANTO TORIBIO | E179: 021209 | F179: 54 | G179: 15 | H179: 27.77777778 | I179: 39 | J179: 20 | K179: 51.28205128 | L179: 54 | M179: 0 | N179: 0 | O179: 54 | P179: 1 | Q179: 1.851851852 | R179: 8 | S179: 14.81481481 | T179: 1 | U179: 1.851851852
B180: ÁNCASH | C180: HUAYLAS | D180: YURACMARCA | E180: 021210 | F180: 139 | G180: 24 | H180: 17.26618705 | I180: 115 | J180: 55 | K180: 47.82608696 | L180: 139 | M180: 5 | N180: 3.597122302 | O180: 139 | P180: 3 | Q180: 2.158273381 | R180: 15 | S180: 10.79136691 | T180: 2 | U180: 1.438848921
B181: ÁNCASH | C181: MARISCAL LUZURIAGA | D181: CASCA | E181: 021302 | F181: 186 | G181: 34 | H181: 18.27956989 | I181: 152 | J181: 81 | K181: 53.28947368 | L181: 186 | M181: 7 | N181: 3.76344086 | O181: 186 | P181: 1 | Q181: 0.5376344086 | R181: 10 | S181: 5.376344086 | T181: 1 | U181: 0.5376344086
B182: ÁNCASH | C182: MARISCAL LUZURIAGA | D182: ELEAZAR GUZMAN BARRON | E182: 021303 | F182: 41 | G182: 11 | H182: 26.82926829 | I182: 30 | J182: 21 | K182: 70 | L182: 41 | M182: 5 | N182: 12.19512195 | O182: 41 | P182: 1 | Q182: 2.43902439 | R182: 1 | S182: 2.43902439 | T182: 0 | U182: 0
B183: ÁNCASH | C183: MARISCAL LUZURIAGA | D183: FIDEL OLIVAS ESCUDERO | E183: 021304 | F183: 100 | G183: 26 | H183: 26 | I183: 74 | J183: 43 | K183: 58.10810811 | L183: 100 | M183: 1 | N183: 1 | O183: 100 | P183: 0 | Q183: 0 | R183: 4 | S183: 4 | T183: 1 | U183: 1
B184: ÁNCASH | C184: MARISCAL LUZURIAGA | D184: LLAMA | E184: 021305 | F184: 41 | G184: 2 | H184: 4.87804878 | I184: 39 | J184: 11 | K184: 28.20512821 | L184: 41 | M184: 1 | N184: 2.43902439 | O184: 41 | P184: 2 | Q184: 4.87804878 | R184: 1 | S184: 2.43902439 | T184: 1 | U184: 2.43902439
B185: ÁNCASH | C185: MARISCAL LUZURIAGA | D185: LLUMPA | E185: 021306 | F185: 303 | G185: 97 | H185: 32.01320132 | I185: 206 | J185: 101 | K185: 49.02912621 | L185: 303 | M185: 11 | N185: 3.630363036 | O185: 303 | P185: 1 | Q185: 0.3300330033 | R185: 18 | S185: 5.940594059 | T185: 2 | U185: 0.6600660066
B186: ÁNCASH | C186: MARISCAL LUZURIAGA | D186: LUCMA | E186: 021307 | F186: 128 | G186: 32 | H186: 25 | I186: 96 | J186: 53 | K186: 55.20833333 | L186: 128 | M186: 9 | N186: 7.03125 | O186: 128 | P186: 1 | Q186: 0.78125 | R186: 5 | S186: 3.90625 | T186: 0 | U186: 0
B187: ÁNCASH | C187: MARISCAL LUZURIAGA | D187: MUSGA | E187: 021308 | F187: 22 | G187: 4 | H187: 18.18181818 | I187: 18 | J187: 8 | K187: 44.44444444 | L187: 22 | M187: 0 | N187: 0 | O187: 22 | P187: 0 | Q187: 0 | R187: 4 | S187: 18.18181818 | T187: 0 | U187: 0
B188: ÁNCASH | C188: MARISCAL LUZURIAGA | D188: PISCOBAMBA | E188: 021301 | F188: 119 | G188: 28 | H188: 23.52941176 | I188: 91 | J188: 44 | K188: 48.35164835 | L188: 119 | M188: 2 | N188: 1.680672269 | O188: 119 | P188: 2 | Q188: 1.680672269 | R188: 5 | S188: 4.201680672 | T188: 0 | U188: 0
B189: ÁNCASH | C189: OCROS | D189: ACAS | E189: 021402 | F189: 16 | G189: 2 | H189: 12.5 | I189: 14 | J189: 6 | K189: 42.85714286 | L189: 16 | M189: 1 | N189: 6.25 | O189: 16 | P189: 0 | Q189: 0 | R189: 1 | S189: 6.25 | T189: 0 | U189: 0
B190: ÁNCASH | C190: OCROS | D190: CARHUAPAMPA | E190: 021404 | F190: 5 | G190: 0 | H190: 0 | I190: 5 | J190: 2 | K190: 40 | L190: 5 | M190: 0 | N190: 0 | O190: 5 | P190: 0 | Q190: 0 | R190: 1 | S190: 20 | T190: 0 | U190: 0
B191: ÁNCASH | C191: OCROS | D191: COCHAS | E191: 021405 | F191: 44 | G191: 6 | H191: 13.63636364 | I191: 38 | J191: 14 | K191: 36.84210526 | L191: 44 | M191: 2 | N191: 4.545454545 | O191: 44 | P191: 1 | Q191: 2.272727273 | R191: 7 | S191: 15.90909091 | T191: 1 | U191: 2.272727273
B192: ÁNCASH | C192: OCROS | D192: CONGAS | E192: 021406 | F192: 44 | G192: 8 | H192: 18.18181818 | I192: 36 | J192: 17 | K192: 47.22222222 | L192: 44 | M192: 0 | N192: 0 | O192: 44 | P192: 0 | Q192: 0 | R192: 1 | S192: 2.272727273 | T192: 0 | U192: 0
B193: ÁNCASH | C193: OCROS | D193: OCROS | E193: 021401 | F193: 49 | G193: 12 | H193: 24.48979592 | I193: 37 | J193: 15 | K193: 40.54054054 | L193: 49 | M193: 4 | N193: 8.163265306 | O193: 49 | P193: 0 | Q193: 0 | R193: 3 | S193: 6.12244898 | T193: 0 | U193: 0
B194: ÁNCASH | C194: OCROS | D194: SAN CRISTOBAL DE RAJAN | E194: 021408 | F194: 9 | G194: 4 | H194: 44.44444444 | I194: 5 | J194: 2 | K194: 40 | L194: 9 | M194: 0 | N194: 0 | O194: 9 | P194: 0 | Q194: 0 | R194: 2 | S194: 22.22222222 | T194: 0 | U194: 0
B195: ÁNCASH | C195: OCROS | D195: SAN PEDRO | E195: 021409 | F195: 26 | G195: 5 | H195: 19.23076923 | I195: 21 | J195: 3 | K195: 14.28571429 | L195: 26 | M195: 0 | N195: 0 | O195: 26 | P195: 0 | Q195: 0 | R195: 2 | S195: 7.692307692 | T195: 0 | U195: 0
B196: ÁNCASH | C196: OCROS | D196: SANTIAGO DE CHILCAS | E196: 021410 | F196: 9 | G196: 3 | H196: 33.33333333 | I196: 6 | J196: 4 | K196: 66.66666667 | L196: 9 | M196: 0 | N196: 0 | O196: 9 | P196: 0 | Q196: 0 | R196: 3 | S196: 33.33333333 | T196: 0 | U196: 0
B197: ÁNCASH | C197: PALLASCA | D197: BOLOGNESI | E197: 021502 | F197: 46 | G197: 12 | H197: 26.08695652 | I197: 34 | J197: 9 | K197: 26.47058824 | L197: 46 | M197: 4 | N197: 8.695652174 | O197: 46 | P197: 0 | Q197: 0 | R197: 3 | S197: 6.52173913 | T197: 0 | U197: 0
B198: ÁNCASH | C198: PALLASCA | D198: CABANA | E198: 021501 | F198: 121 | G198: 28 | H198: 23.14049587 | I198: 93 | J198: 40 | K198: 43.01075269 | L198: 121 | M198: 7 | N198: 5.785123967 | O198: 121 | P198: 3 | Q198: 2.479338843 | R198: 4 | S198: 3.305785124 | T198: 3 | U198: 2.479338843
B199: ÁNCASH | C199: PALLASCA | D199: CONCHUCOS | E199: 021503 | F199: 428 | G199: 132 | H199: 30.8411215 | I199: 296 | J199: 153 | K199: 51.68918919 | L199: 428 | M199: 11 | N199: 2.570093458 | O199: 428 | P199: 5 | Q199: 1.168224299 | R199: 54 | S199: 12.61682243 | T199: 12 | U199: 2.803738318
B200: ÁNCASH | C200: PALLASCA | D200: HUACASCHUQUE | E200: 021504 | F200: 27 | G200: 8 | H200: 29.62962963 | I200: 19 | J200: 8 | K200: 42.10526316 | L200: 27 | M200: 1 | N200: 3.703703704 | O200: 27 | P200: 1 | Q200: 3.703703704 | R200: 2 | S200: 7.407407407 | T200: 0 | U200: 0
B201: ÁNCASH | C201: PALLASCA | D201: HUANDOVAL | E201: 021505 | F201: 31 | G201: 7 | H201: 22.58064516 | I201: 24 | J201: 10 | K201: 41.66666667 | L201: 31 | M201: 0 | N201: 0 | O201: 31 | P201: 0 | Q201: 0 | R201: 0 | S201: 0 | T201: 1 | U201: 3.225806452
B202: ÁNCASH | C202: PALLASCA | D202: LACABAMBA | E202: 021506 | F202: 23 | G202: 12 | H202: 52.17391304 | I202: 11 | J202: 8 | K202: 72.72727273 | L202: 23 | M202: 6 | N202: 26.08695652 | O202: 23 | P202: 2 | Q202: 8.695652174 | R202: 2 | S202: 8.695652174 | T202: 0 | U202: 0
... 1584 more rows

Sheet EN 0-59m x DEP
B2: CUADRO N°04 PERÚ: ESTADO NUTRICIONAL EN NIÑOS MENORES DE 5 AÑOS QUE ACCEDIERON A LOS ESTABLECIMIENTOS DE SALUD POR INDICADORES ANTROPOMÉTRICOS, SEGÚN DEPARTAMENTO DEL ESTABLECIMIENTO DE SALUD
B3: =INICIO!C8 -> PERIODO: ENERO - MARZO 2018
B5: INDICADOR TALLA / EDAD1 | J5: INDICADOR PESO / EDAD2 | N5: INDICADOR PESO / TALLA3
B6: DESNUTRICIÓN CRÓNICA | F6: RIESGO DE DESNUTRICIÓN CRÓNICA4 | J6: DESNUTRICIÓN GLOBAL | N6: DESNUTRICIÓN AGUDA | R6: SOBREPESO | V6: OBESIDAD
B7: DEPARTAMENTO | C7: N° DE EVALUADOS | D7: N° DE CASOS | E7: % | F7: DEPARTAMENTO | G7: N° DE EVALUADOS | H7: N° DE CASOS | I7: % | J7: DEPARTAMENTO | K7: N° DE EVALUADOS | L7: N° DE CASOS | M7: % | N7: DEPARTAMENTO | O7: N° DE EVALUADOS | P7: N° DE CASOS | Q7: % | R7: DEPARTAMENTO | S7: N° DE EVALUADOS | T7: N° DE CASOS | U7: % | V7: DEPARTAMENTO | W7: N° DE EVALUADOS | X7: N° DE CASOS | Y7: %
B8: AMAZONAS | C8: 34964 | D8: 8926 | E8: 25.52911566 | F8: AMAZONAS | G8: 26038 | H8: 12291 | I8: 47.20408634 | J8: AMAZONAS | K8: 34964 | L8: 1745 | M8: 4.990847729 | N8: AMAZONAS | O8: 34964 | P8: 477 | Q8: 1.364260382 | R8: AMAZONAS | S8: 34964 | T8: 1980 | U8: 5.662967624 | V8: AMAZONAS | W8: 34964 | X8: 517 | Y8: 1.478663768
B9: ÁNCASH | C9: 55517 | D9: 12055 | E9: 21.71406956 | F9: ÁNCASH | G9: 43462 | H9: 18823 | I9: 43.3090976 | J9: ÁNCASH | K9: 55517 | L9: 2179 | M9: 3.924923897 | N9: ÁNCASH | O9: 55517 | P9: 521 | Q9: 0.9384512852 | R9: ÁNCASH | S9: 55517 | T9: 3255 | U9: 5.86306897 | V9: ÁNCASH | W9: 55517 | X9: 825 | Y9: 1.486031306
B10: APURÍMAC | C10: 28564 | D10: 6637 | E10: 23.23554124 | F10: APURÍMAC | G10: 21927 | H10: 11206 | I10: 51.10594245 | J10: APURÍMAC | K10: 28564 | L10: 1432 | M10: 5.013303459 | N10: APURÍMAC | O10: 28564 | P10: 253 | Q10: 0.8857302899 | R10: APURÍMAC | S10: 28564 | T10: 913 | U10: 3.196331046 | V10: APURÍMAC | W10: 28564 | X10: 206 | Y10: 0.7211875088
B11: AREQUIPA | C11: 55236 | D11: 4202 | E11: 7.60735752 | F11: AREQUIPA | G11: 51034 | H11: 13436 | I11: 26.32754634 | J11: AREQUIPA | K11: 55236 | L11: 1063 | M11: 1.924469549 | N11: AREQUIPA | O11: 55236 | P11: 574 | Q11: 1.039177348 | R11: AREQUIPA | S11: 55236 | T11: 3498 | U11: 6.332826418 | V11: AREQUIPA | W11: 55236 | X11: 773 | Y11: 1.399449634
B12: AYACUCHO | C12: 37991 | D12: 8366 | E12: 22.02100497 | F12: AYACUCHO | G12: 29625 | H12: 14766 | I12: 49.84303797 | J12: AYACUCHO | K12: 37991 | L12: 1700 | M12: 4.474744018 | N12: AYACUCHO | O12: 37991 | P12: 422 | Q12: 1.110789397 | R12: AYACUCHO | S12: 37991 | T12: 1710 | U12: 4.501066042 | V12: AYACUCHO | W12: 37991 | X12: 356 | Y12: 0.9370640415
B13: CAJAMARCA | C13: 88356 | D13: 22167 | E13: 25.08827923 | F13: CAJAMARCA | G13: 66189 | H13: 31908 | I13: 48.20740606 | J13: CAJAMARCA | K13: 88356 | L13: 4214 | M13: 4.769342207 | N13: CAJAMARCA | O13: 88356 | P13: 907 | Q13: 1.026529042 | R13: CAJAMARCA | S13: 88356 | T13: 4576 | U13: 5.179048395 | V13: CAJAMARCA | W13: 88356 | X13: 925 | Y13: 1.046901173
B14: CALLAO | C14: 15531 | D14: 1116 | E14: 7.185628743 | F14: CALLAO | G14: 14415 | H14: 3352 | I14: 23.25355532 | J14: CALLAO | K14: 15531 | L14: 312 | M14: 2.008885455 | N14: CALLAO | O14: 15531 | P14: 183 | Q14: 1.178288584 | R14: CALLAO | S14: 15531 | T14: 1419 | U14: 9.136565579 | V14: CALLAO | W14: 15531 | X14: 409 | Y14: 2.633442792
B15: CUSCO | C15: 14770 | D15: 3005 | E15: 20.34529452 | F15: CUSCO | G15: 11765 | H15: 5504 | I15: 46.78283043 | J15: CUSCO | K15: 14770 | L15: 680 | M15: 4.603926879 | N15: CUSCO | O15: 14770 | P15: 174 | Q15: 1.178063643 | R15: CUSCO | S15: 14770 | T15: 519 | U15: 3.513879485 | V15: CUSCO | W15: 14770 | X15: 133 | Y15: 0.9004739336
B16: HUANCAVELICA | C16: 26996 | D16: 8394 | E16: 31.09349533 | F16: HUANCAVELICA | G16: 18602 | H16: 10946 | I16: 58.84313515 | J16: HUANCAVELICA | K16: 26996 | L16: 1343 | M16: 4.974811083 | N16: HUANCAVELICA | O16: 26996 | P16: 258 | Q16: 0.9556971403 | R16: HUANCAVELICA | S16: 26996 | T16: 1169 | U16: 4.330271151 | V16: HUANCAVELICA | W16: 26996 | X16: 232 | Y16: 0.8593865758
B17: HUÁNUCO | C17: 42406 | D17: 8918 | E17: 21.03004292 | F17: HUÁNUCO | G17: 33488 | H17: 14884 | I17: 44.44577162 | J17: HUÁNUCO | K17: 42406 | L17: 1762 | M17: 4.155072395 | N17: HUÁNUCO | O17: 42406 | P17: 452 | Q17: 1.065886903 | R17: HUÁNUCO | S17: 42406 | T17: 2091 | U17: 4.930906004 | V17: HUÁNUCO | W17: 42406 | X17: 516 | Y17: 1.216808942
B18: ICA | C18: 24822 | D18: 1994 | E18: 8.033196358 | F18: ICA | G18: 22828 | H18: 6088 | I18: 26.66900298 | J18: ICA | K18: 24822 | L18: 446 | M18: 1.796793167 | N18: ICA | O18: 24822 | P18: 259 | Q18: 1.043429216 | R18: ICA | S18: 24822 | T18: 2037 | U18: 8.20642978 | V18: ICA | W18: 24822 | X18: 530 | Y18: 2.135202643
B19: JUNÍN | C19: 54527 | D19: 12007 | E19: 22.02028353 | F19: JUNÍN | G19: 42520 | H19: 18454 | I19: 43.40075259 | J19: JUNÍN | K19: 54527 | L19: 3504 | M19: 6.426174189 | N19: JUNÍN | O19: 54527 | P19: 793 | Q19: 1.45432538 | R19: JUNÍN | S19: 54527 | T19: 2354 | U19: 4.317127295 | V19: JUNÍN | W19: 54527 | X19: 503 | Y19: 0.922478772
B20: LA LIBERTAD | C20: 64130 | D20: 13292 | E20: 20.72664899 | F20: LA LIBERTAD | G20: 50838 | H20: 18479 | I20: 36.34879421 | J20: LA LIBERTAD | K20: 64130 | L20: 2377 | M20: 3.706533604 | N20: LA LIBERTAD | O20: 64130 | P20: 807 | Q20: 1.258381413 | R20: LA LIBERTAD | S20: 64130 | T20: 4759 | U20: 7.42086387 | V20: LA LIBERTAD | W20: 64130 | X20: 1264 | Y20: 1.970996414
B21: LAMBAYEQUE | C21: 29748 | D21: 4889 | E21: 16.4347183 | F21: LAMBAYEQUE | G21: 24859 | H21: 8379 | I21: 33.70610242 | J21: LAMBAYEQUE | K21: 29748 | L21: 1052 | M21: 3.536372193 | N21: LAMBAYEQUE | O21: 29748 | P21: 524 | Q21: 1.761462955 | R21: LAMBAYEQUE | S21: 29748 | T21: 2305 | U21: 7.748420062 | V21: LAMBAYEQUE | W21: 29748 | X21: 594 | Y21: 1.996772892
B22: LIMA | C22: 142976 | D22: 9836 | E22: 6.879476276 | F22: LIMA | G22: 133140 | H22: 31085 | I22: 23.34760403 | J22: LIMA | K22: 142976 | L22: 2352 | M22: 1.645031334 | N22: LIMA | O22: 142976 | P22: 1484 | Q22: 1.037936437 | R22: LIMA | S22: 142976 | T22: 12375 | U22: 8.655298791 | V22: LIMA | W22: 142976 | X22: 3169 | Y22: 2.216455909
B23: LORETO | C23: 53233 | D23: 12356 | E23: 23.21116601 | F23: LORETO | G23: 40877 | H23: 18923 | I23: 46.29253615 | J23: LORETO | K23: 53233 | L23: 4037 | M23: 7.583641726 | N23: LORETO | O23: 53233 | P23: 1198 | Q23: 2.250483723 | R23: LORETO | S23: 53233 | T23: 1875 | U23: 3.522251235 | V23: LORETO | W23: 53233 | X23: 490 | Y23: 0.9204816561
B24: MADRE DE DIOS | C24: 7661 | D24: 708 | E24: 9.241613366 | F24: MADRE DE DIOS | G24: 6953 | H24: 1787 | I24: 25.7011362 | J24: MADRE DE DIOS | K24: 7661 | L24: 245 | M24: 3.198015925 | N24: MADRE DE DIOS | O24: 7661 | P24: 165 | Q24: 2.153765827 | R24: MADRE DE DIOS | S24: 7661 | T24: 371 | U24: 4.842709829 | V24: MADRE DE DIOS | W24: 7661 | X24: 105 | Y24: 1.370578253
B25: MOQUEGUA | C25: 5832 | D25: 241 | E25: 4.132373114 | F25: MOQUEGUA | G25: 5591 | H25: 1144 | I25: 20.46145591 | J25: MOQUEGUA | K25: 5832 | L25: 63 | M25: 1.080246914 | N25: MOQUEGUA | O25: 5832 | P25: 50 | Q25: 0.8573388203 | R25: MOQUEGUA | S25: 5832 | T25: 508 | U25: 8.710562414 | V25: MOQUEGUA | W25: 5832 | X25: 132 | Y25: 2.263374486
B26: PASCO | C26: 13720 | D26: 2798 | E26: 20.39358601 | F26: PASCO | G26: 10922 | H26: 4813 | I26: 44.06702069 | J26: PASCO | K26: 13720 | L26: 696 | M26: 5.072886297 | N26: PASCO | O26: 13720 | P26: 205 | Q26: 1.494169096 | R26: PASCO | S26: 13720 | T26: 644 | U26: 4.693877551 | V26: PASCO | W26: 13720 | X26: 140 | Y26: 1.020408163
B27: PIURA | C27: 68615 | D27: 14190 | E27: 20.6806092 | F27: PIURA | G27: 54425 | H27: 21865 | I27: 40.17455214 | J27: PIURA | K27: 68615 | L27: 3241 | M27: 4.72345697 | N27: PIURA | O27: 68615 | P27: 1007 | Q27: 1.467609123 | R27: PIURA | S27: 68615 | T27: 4135 | U27: 6.026379072 | V27: PIURA | W27: 68615 | X27: 1108 | Y27: 1.614807258
B28: PUNO | C28: 49027 | D28: 7783 | E28: 15.87492606 | F28: PUNO | G28: 41244 | H28: 17500 | I28: 42.43041412 | J28: PUNO | K28: 49027 | L28: 1352 | M28: 2.757664144 | N28: PUNO | O28: 49027 | P28: 460 | Q28: 0.9382585106 | R28: PUNO | S28: 49027 | T28: 2823 | U28: 5.758051686 | V28: PUNO | W28: 49027 | X28: 503 | Y28: 1.025965284
B29: SAN MARTÍN | C29: 33767 | D29: 4519 | E29: 13.38288862 | F29: SAN MARTÍN | G29: 29248 | H29: 10288 | I29: 35.1750547 | J29: SAN MARTÍN | K29: 33767 | L29: 1327 | M29: 3.929872361 | N29: SAN MARTÍN | O29: 33767 | P29: 571 | Q29: 1.691000089 | R29: SAN MARTÍN | S29: 33767 | T29: 1525 | U29: 4.51624367 | V29: SAN MARTÍN | W29: 33767 | X29: 358 | Y29: 1.060206711
B30: TACNA | C30: 10022 | D30: 313 | E30: 3.123129116 | F30: TACNA | G30: 9709 | H30: 1551 | I30: 15.97486868 | J30: TACNA | K30: 10022 | L30: 61 | M30: 0.6086609459 | N30: TACNA | O30: 10022 | P30: 72 | Q30: 0.7184194772 | R30: TACNA | S30: 10022 | T30: 1136 | U30: 11.33506286 | V30: TACNA | W30: 10022 | X30: 321 | Y30: 3.202953502
B31: TUMBES | C31: 7331 | D31: 663 | E31: 9.043786659 | F31: TUMBES | G31: 6668 | H31: 1758 | I31: 26.36472705 | J31: TUMBES | K31: 7331 | L31: 207 | M31: 2.823625699 | N31: TUMBES | O31: 7331 | P31: 129 | Q31: 1.759650798 | R31: TUMBES | S31: 7331 | T31: 471 | U31: 6.424771518 | V31: TUMBES | W31: 7331 | X31: 138 | Y31: 1.882417133
B32: UCAYALI | C32: 14700 | D32: 2482 | E32: 16.88435374 | F32: UCAYALI | G32: 12218 | H32: 4218 | I32: 34.52283516 | J32: UCAYALI | K32: 14700 | L32: 809 | M32: 5.503401361 | N32: UCAYALI | O32: 14700 | P32: 336 | Q32: 2.285714286 | R32: UCAYALI | S32: 14700 | T32: 611 | U32: 4.156462585 | V32: UCAYALI | W32: 14700 | X32: 154 | Y32: 1.047619048
B33: PERÚ | C33: =SUM(C8:C32) -> 980442 | D33: =SUM(D8:D32) -> 171857 | E33: =D33/C33*100 -> 17.52852285 | F33: PERÚ | G33: =SUM(G8:G32) -> 808585 | H33: =SUM(H8:H32) -> 303448 | I33: =H33/G33*100 -> 37.5282747 | J33: PERÚ | K33: =SUM(K8:K32) -> 980442 | L33: =SUM(L8:L32) -> 38199 | M33: =L33/K33*100 -> 3.896099922 | N33: PERÚ | O33: =SUM(O8:O32) -> 980442 | P33: =SUM(P8:P32) -> 12281 | Q33: =P33/O33*100 -> 1.252598318 | R33: PERÚ | S33: =SUM(S8:S32) -> 980442 | T33: =SUM(T8:T32) -> 59059 | U33: =T33/O33*100 -> 6.023711754 | V33: PERÚ | W33: =SUM(W8:W32) -> 980442 | X33: =SUM(X8:X32) -> 14401 | Y33: =X33/O33*100 -> 1.468827325
B34: =CONCATENATE("Fuente: Sistema de Información del Estado Nutricional en niños que acceden al establecimiento de salud, ",RIGHT(INICIO!C$8,4),".") -> Fuente: Sistema de Información del Estado Nutricional en niños que acceden al establecimiento de salud, 2018.
B35: Instituto Nacional de Salud / Centro Nacional de Alimentación y Nutrición / Dirección Ejecutiva de Vigilancia Alimentaria y Nutricional.
B36: 1,2,3 Indicadores Nitricionales según OMS.
B37: 4 Riesgo de Desnutrición Crónica (T/E)se considera a todo niño que se encuentra con valor Z < -1

Sheet EN 0-59m x DIRESA
B2: CUADRO N°05 PERÚ: ESTADO NUTRICIONAL EN NIÑOS MENORES DE 5 AÑOS QUE ACCEDIERON A LOS ESTABLECIMIENTOS DE SALUD POR INDICADORES ANTROPOMÉTRICOS, SEGÚN DIRESA / GERESA / DISA
B3: =INICIO!C8 -> PERIODO: ENERO - MARZO 2018
B5: DIRESA / GERESA / DISA | C5: INDICADOR TALLA / EDAD1 | I5: INDICADOR PESO / EDAD2 | L5: INDICADOR PESO / TALLA3
C6: DESNUTRICIÓN CRÓNICA | F6: RIESGO DE DESNUTRICIÓN CRÓNICA4 | I6: DESNUTRICIÓN GLOBAL | L6: DESNUTRICIÓN AGUDA | O6: SOBREPESO | Q6: OBESIDAD
C7: N° DE EVALUADOS | D7: N° DE CASOS | E7: % | F7: N° DE EVALUADOS | G7: N° DE CASOS | H7: % | I7: N° DE EVALUADOS | J7: N° DE CASOS | K7: % | L7: N° DE EVALUADOS | M7: N° DE CASOS | N7: % | O7: N° DE CASOS | P7: % | Q7: N° DE CASOS | R7: %
B8: AMAZONAS | C8: 34964 | D8: 8926 | E8: 25.52911566 | F8: 26038 | G8: 12291 | H8: 47.20408634 | I8: 34964 | J8: 1745 | K8: 4.990847729 | L8: 34964 | M8: 477 | N8: 1.364260382 | O8: 1980 | P8: 5.662967624 | Q8: 517 | R8: 1.478663768
B9: ÁNCASH | C9: 55517 | D9: 12055 | E9: 21.71406956 | F9: 43462 | G9: 18823 | H9: 43.3090976 | I9: 55517 | J9: 2179 | K9: 3.924923897 | L9: 55517 | M9: 521 | N9: 0.9384512852 | O9: 3255 | P9: 5.86306897 | Q9: 825 | R9: 1.486031306
B10: ANDAHUAYLAS | C10: 9896 | D10: 2617 | E10: 26.44502829 | F10: 7279 | G10: 3940 | H10: 54.12831433 | I10: 9896 | J10: 465 | K10: 4.69886823 | L10: 9896 | M10: 78 | N10: 0.7881972514 | O10: 348 | P10: 3.516572352 | Q10: 84 | R10: 0.8488278092
B11: APURÍMAC | C11: 18668 | D11: 4020 | E11: 21.53417613 | F11: 14648 | G11: 7266 | H11: 49.60404151 | I11: 18668 | J11: 967 | K11: 5.179987144 | L11: 18668 | M11: 175 | N11: 0.9374330405 | O11: 565 | P11: 3.026569531 | Q11: 122 | R11: 0.6535247482
B12: AREQUIPA | C12: 55236 | D12: 4202 | E12: 7.60735752 | F12: 51034 | G12: 13436 | H12: 26.32754634 | I12: 55236 | J12: 1063 | K12: 1.924469549 | L12: 55236 | M12: 574 | N12: 1.039177348 | O12: 3498 | P12: 6.332826418 | Q12: 773 | R12: 1.399449634
B13: AYACUCHO | C13: 37991 | D13: 8366 | E13: 22.02100497 | F13: 29625 | G13: 14766 | H13: 49.84303797 | I13: 37991 | J13: 1700 | K13: 4.474744018 | L13: 37991 | M13: 422 | N13: 1.110789397 | O13: 1710 | P13: 4.501066042 | Q13: 356 | R13: 0.9370640415
B14: CAJAMARCA | C14: 38173 | D14: 10514 | E14: 27.54302779 | F14: 27659 | G14: 13318 | H14: 48.15069236 | I14: 38173 | J14: 1975 | K14: 5.173813952 | L14: 38173 | M14: 390 | N14: 1.021664527 | O14: 2135 | P14: 5.592958374 | Q14: 393 | R14: 1.029523485
B15: CALLAO | C15: 15531 | D15: 1116 | E15: 7.185628743 | F15: 14415 | G15: 3352 | H15: 23.25355532 | I15: 15531 | J15: 312 | K15: 2.008885455 | L15: 15531 | M15: 183 | N15: 1.178288584 | O15: 1419 | P15: 9.136565579 | Q15: 409 | R15: 2.633442792
B16: CHOTA | C16: 18712 | D16: 5269 | E16: 28.15840103 | F16: 13443 | G16: 7362 | H16: 54.76456148 | I16: 18712 | J16: 909 | K16: 4.857845233 | L16: 18712 | M16: 144 | N16: 0.7695596409 | O16: 972 | P16: 5.194527576 | Q16: 186 | R16: 0.9940145361
B17: CUSCO | C17: 14770 | D17: 3005 | E17: 20.34529452 | F17: 11765 | G17: 5504 | H17: 46.78283043 | I17: 14770 | J17: 680 | K17: 4.603926879 | L17: 14770 | M17: 174 | N17: 1.178063643 | O17: 519 | P17: 3.513879485 | Q17: 133 | R17: 0.9004739336
B18: CUTERVO | C18: 8947 | D18: 2081 | E18: 23.25919303 | F18: 6866 | G18: 3571 | H18: 52.00990387 | I18: 8947 | J18: 368 | K18: 4.11311054 | L18: 8947 | M18: 71 | N18: 0.7935620879 | O18: 409 | P18: 4.571364703 | Q18: 88 | R18: 0.9835699117
B19: HUANCAVELICA | C19: 26996 | D19: 8394 | E19: 31.09349533 | F19: 18602 | G19: 10946 | H19: 58.84313515 | I19: 26996 | J19: 1343 | K19: 4.974811083 | L19: 26996 | M19: 258 | N19: 0.9556971403 | O19: 1169 | P19: 4.330271151 | Q19: 232 | R19: 0.8593865758
B20: HUÁNUCO | C20: 42406 | D20: 8918 | E20: 21.03004292 | F20: 33488 | G20: 14884 | H20: 44.44577162 | I20: 42406 | J20: 1762 | K20: 4.155072395 | L20: 42406 | M20: 452 | N20: 1.065886903 | O20: 2091 | P20: 4.930906004 | Q20: 516 | R20: 1.216808942
B21: ICA | C21: 24822 | D21: 1994 | E21: 8.033196358 | F21: 22828 | G21: 6088 | H21: 26.66900298 | I21: 24822 | J21: 446 | K21: 1.796793167 | L21: 24822 | M21: 259 | N21: 1.043429216 | O21: 2037 | P21: 8.20642978 | Q21: 530 | R21: 2.135202643
B22: JAÉN | C22: 22524 | D22: 4303 | E22: 19.10406677 | F22: 18221 | G22: 7657 | H22: 42.02294056 | I22: 22524 | J22: 962 | K22: 4.270999822 | L22: 22524 | M22: 302 | N22: 1.340792044 | O22: 1060 | P22: 4.70609128 | Q22: 258 | R22: 1.145444859
B23: JUNÍN | C23: 54527 | D23: 12007 | E23: 22.02028353 | F23: 42520 | G23: 18454 | H23: 43.40075259 | I23: 54527 | J23: 3504 | K23: 6.426174189 | L23: 54527 | M23: 793 | N23: 1.45432538 | O23: 2354 | P23: 4.317127295 | Q23: 503 | R23: 0.922478772
B24: LA LIBERTAD | C24: 64130 | D24: 13292 | E24: 20.72664899 | F24: 50838 | G24: 18479 | H24: 36.34879421 | I24: 64130 | J24: 2377 | K24: 3.706533604 | L24: 64130 | M24: 807 | N24: 1.258381413 | O24: 4759 | P24: 7.42086387 | Q24: 1264 | R24: 1.970996414
B25: LAMBAYEQUE | C25: 29748 | D25: 4889 | E25: 16.4347183 | F25: 24859 | G25: 8379 | H25: 33.70610242 | I25: 29748 | J25: 1052 | K25: 3.536372193 | L25: 29748 | M25: 524 | N25: 1.761462955 | O25: 2305 | P25: 7.748420062 | Q25: 594 | R25: 1.996772892
B26: LIMA | C26: 48045 | D26: 4282 | E26: 8.912477885 | F26: 43763 | G26: 12069 | H26: 27.57809108 | I26: 48045 | J26: 818 | K26: 1.702570507 | L26: 48045 | M26: 448 | N26: 0.9324591529 | O26: 4144 | P26: 8.625247164 | Q26: 1200 | R26: 2.497658445
B27: LIMA CENTRO | C27: 35416 | D27: 1992 | E27: 5.624576463 | F27: 33424 | G27: 6969 | H27: 20.85028722 | I27: 35416 | J27: 595 | K27: 1.680031624 | L27: 35416 | M27: 377 | N27: 1.064490626 | O27: 2965 | P27: 8.371922295 | Q27: 730 | R27: 2.06121527
B28: LIMA ESTE | C28: 29911 | D28: 1852 | E28: 6.191702049 | F28: 28059 | G28: 6290 | H28: 22.41704979 | I28: 29911 | J28: 484 | K28: 1.618133797 | L28: 29911 | M28: 321 | N28: 1.073183779 | O28: 2645 | P28: 8.842900605 | Q28: 617 | R28: 2.062786266
B29: LIMA SUR | C29: 29604 | D29: 1710 | E29: 5.776246453 | F29: 27894 | G29: 5757 | H29: 20.63884706 | I29: 29604 | J29: 455 | K29: 1.536954466 | L29: 29604 | M29: 338 | N29: 1.141737603 | O29: 2621 | P29: 8.853533306 | Q29: 622 | R29: 2.101067423
B30: LORETO | C30: 53233 | D30: 12356 | E30: 23.21116601 | F30: 40877 | G30: 18923 | H30: 46.29253615 | I30: 53233 | J30: 4037 | K30: 7.583641726 | L30: 53233 | M30: 1198 | N30: 2.250483723 | O30: 1875 | P30: 3.522251235 | Q30: 490 | R30: 0.9204816561
B31: MADRE DE DIOS | C31: 7661 | D31: 708 | E31: 9.241613366 | F31: 6953 | G31: 1787 | H31: 25.7011362 | I31: 7661 | J31: 245 | K31: 3.198015925 | L31: 7661 | M31: 165 | N31: 2.153765827 | O31: 371 | P31: 4.842709829 | Q31: 105 | R31: 1.370578253
B32: MOQUEGUA | C32: 5832 | D32: 241 | E32: 4.132373114 | F32: 5591 | G32: 1144 | H32: 20.46145591 | I32: 5832 | J32: 63 | K32: 1.080246914 | L32: 5832 | M32: 50 | N32: 0.8573388203 | O32: 508 | P32: 8.710562414 | Q32: 132 | R32: 2.263374486
B33: PASCO | C33: 13720 | D33: 2798 | E33: 20.39358601 | F33: 10922 | G33: 4813 | H33: 44.06702069 | I33: 13720 | J33: 696 | K33: 5.072886297 | L33: 13720 | M33: 205 | N33: 1.494169096 | O33: 644 | P33: 4.693877551 | Q33: 140 | R33: 1.020408163
B34: PIURA | C34: 34398 | D34: 8379 | E34: 24.35897436 | F34: 26019 | G34: 11389 | H34: 43.77185903 | I34: 34398 | J34: 1749 | K34: 5.084597942 | L34: 34398 | M34: 456 | N34: 1.325658469 | O34: 2089 | P34: 6.073027502 | Q34: 536 | R34: 1.55823013
B35: PUNO | C35: 49027 | D35: 7783 | E35: 15.87492606 | F35: 41244 | G35: 17500 | H35: 42.43041412 | I35: 49027 | J35: 1352 | K35: 2.757664144 | L35: 49027 | M35: 460 | N35: 0.9382585106 | O35: 2823 | P35: 5.758051686 | Q35: 503 | R35: 1.025965284
B36: SAN MARTÍN | C36: 33767 | D36: 4519 | E36: 13.38288862 | F36: 29248 | G36: 10288 | H36: 35.1750547 | I36: 33767 | J36: 1327 | K36: 3.929872361 | L36: 33767 | M36: 571 | N36: 1.691000089 | O36: 1525 | P36: 4.51624367 | Q36: 358 | R36: 1.060206711
B37: SULLANA | C37: 34217 | D37: 5811 | E37: 16.98278633 | F37: 28406 | G37: 10476 | H37: 36.87953249 | I37: 34217 | J37: 1492 | K37: 4.360405646 | L37: 34217 | M37: 551 | N37: 1.610310664 | O37: 2046 | P37: 5.979483882 | Q37: 572 | R37: 1.671683666
B38: TACNA | C38: 10022 | D38: 313 | E38: 3.123129116 | F38: 9709 | G38: 1551 | H38: 15.97486868 | I38: 10022 | J38: 61 | K38: 0.6086609459 | L38: 10022 | M38: 72 | N38: 0.7184194772 | O38: 1136 | P38: 11.33506286 | Q38: 321 | R38: 3.202953502
B39: TUMBES | C39: 7331 | D39: 663 | E39: 9.043786659 | F39: 6668 | G39: 1758 | H39: 26.36472705 | I39: 7331 | J39: 207 | K39: 2.823625699 | L39: 7331 | M39: 129 | N39: 1.759650798 | O39: 471 | P39: 6.424771518 | Q39: 138 | R39: 1.882417133
B40: UCAYALI | C40: 14700 | D40: 2482 | E40: 16.88435374 | F40: 12218 | G40: 4218 | H40: 34.52283516 | I40: 14700 | J40: 809 | K40: 5.503401361 | L40: 14700 | M40: 336 | N40: 2.285714286 | O40: 611 | P40: 4.156462585 | Q40: 154 | R40: 1.047619048
B41: PERÚ | C41: =SUM(C8:C40) -> 980442 | D41: =SUM(D8:D40) -> 171857 | E41: =D41/C41*100 -> 17.52852285 | F41: =SUM(F8:F40) -> 808585 | G41: =SUM(G8:G40) -> 303448 | H41: =G41/F41*100 -> 37.5282747 | I41: =SUM(I8:I40) -> 980442 | J41: =SUM(J8:J40) -> 38199 | K41: =J41/I41*100 -> 3.896099922 | L41: =SUM(L8:L40) -> 980442 | M41: =SUM(M8:M40) -> 12281 | N41: =M41/L41*100 -> 1.252598318 | O41: =SUM(O8:O40) -> 59059 | P41: =O41/L41*100 -> 6.023711754 | Q41: =SUM(Q8:Q40) -> 14401 | R41: =Q41/L41*100 -> 1.468827325
B42: =CONCATENATE("Fuente: Sistema de Información del Estado Nutricional en niños que acceden al establecimiento de salud, ",RIGHT(INICIO!C$8,4),".") -> Fuente: Sistema de Información del Estado Nutricional en niños que acceden al establecimiento de salud, 2018.
B43: Instituto Nacional de Salud / Centro Nacional de Alimentación y Nutrición / Dirección Ejecutiva de Vigilancia Alimentaria y Nutricional.
B44: 1,2,3 Indicadores Nitricionales según OMS.
B45: 4 Riesgo de Desnutrición Crónica (T/E)se considera a todo niño que se encuentra con valor Z < -1

Sheet EN 0-59m x DISTRITO
B2: CUADRO N°06 PERÚ: ESTADO NUTRICIONAL EN NIÑOS MENORES DE 5 AÑOS QUE ACCEDIERON A LOS ESTABLECIMIENTOS DE SALUD POR INDICADORES ANTROPOMÉTRICOS, SEGÚN DEPARTAMENTO, PROVINCIA Y DISTRITO DE ORIGEN
B3: =INICIO!C8 -> PERIODO: ENERO - MARZO 2018
B5: DEPARTAMENTO | C5: PROVINCIA | D5: DISTRITO | E5: UBIGEO | F5: INDICADOR TALLA / EDAD1 | L5: INDICADOR PESO / EDAD2 | O5: INDICADOR PESO / TALLA3
F6: DESNUTRICIÓN CRÓNICA | I6: RIESGO DE DESNUTRICIÓN CRÓNICA4 | L6: DESNUTRICIÓN GLOBAL | O6: N° DE EVALUADOS | P6: DESNUTRICIÓN AGUDA | R6: SOBREPESO | T6: OBESIDAD
F7: N° DE EVALUADOS | G7: N° DE CASOS | H7: % | I7: N° DE EVALUADOS | J7: N° DE CASOS | K7: % | L7: N° DE EVALUADOS | M7: N° DE CASOS | N7: % | P7: N° DE CASOS | Q7: % | R7: N° DE CASOS | S7: % | T7: N° DE CASOS | U7: %
B8: AMAZONAS | C8: BAGUA | D8: ARAMANGO | E8: 010202 | F8: 1011 | G8: 250 | H8: 24.72799209 | I8: 761 | J8: 332 | K8: 43.62680683 | L8: 1011 | M8: 27 | N8: 2.670623145 | O8: 1011 | P8: 11 | Q8: 1.088031652 | R8: 63 | S8: 6.231454006 | T8: 10 | U8: 0.9891196835
B9: AMAZONAS | C9: BAGUA | D9: BAGUA | E9: 010201 | F9: 1391 | G9: 139 | H9: 9.992810927 | I9: 1252 | J9: 389 | K9: 31.07028754 | L9: 1391 | M9: 48 | N9: 3.450754853 | O9: 1391 | P9: 30 | Q9: 2.156721783 | R9: 65 | S9: 4.672897196 | T9: 21 | U9: 1.509705248
B10: AMAZONAS | C10: BAGUA | D10: COPALLIN | E10: 010203 | F10: 324 | G10: 45 | H10: 13.88888889 | I10: 279 | J10: 110 | K10: 39.4265233 | L10: 324 | M10: 12 | N10: 3.703703704 | O10: 324 | P10: 6 | Q10: 1.851851852 | R10: 14 | S10: 4.320987654 | T10: 6 | U10: 1.851851852
B11: AMAZONAS | C11: BAGUA | D11: EL PARCO | E11: 010204 | F11: 75 | G11: 9 | H11: 12 | I11: 66 | J11: 26 | K11: 39.39393939 | L11: 75 | M11: 2 | N11: 2.666666667 | O11: 75 | P11: 2 | Q11: 2.666666667 | R11: 8 | S11: 10.66666667 | T11: 3 | U11: 4
B12: AMAZONAS | C12: BAGUA | D12: IMAZA | E12: 010205 | F12: 4003 | G12: 1670 | H12: 41.71871097 | I12: 2333 | J12: 1420 | K12: 60.86583798 | L12: 4003 | M12: 356 | N12: 8.893330002 | O12: 4003 | P12: 69 | Q12: 1.72370722 | R12: 260 | S12: 6.495128654 | T12: 103 | U12: 2.573070197
B13: AMAZONAS | C13: BAGUA | D13: LA PECA | E13: 010206 | F13: 391 | G13: 51 | H13: 13.04347826 | I13: 340 | J13: 156 | K13: 45.88235294 | L13: 391 | M13: 8 | N13: 2.046035806 | O13: 391 | P13: 4 | Q13: 1.023017903 | R13: 19 | S13: 4.859335038 | T13: 5 | U13: 1.278772379
B14: AMAZONAS | C14: BONGARA | D14: CHISQUILLA | E14: 010302 | F14: 28 | G14: 10 | H14: 35.71428571 | I14: 18 | J14: 4 | K14: 22.22222222 | L14: 28 | M14: 2 | N14: 7.142857143 | O14: 28 | P14: 0 | Q14: 0 | R14: 3 | S14: 10.71428571 | T14: 0 | U14: 0
B15: AMAZONAS | C15: BONGARA | D15: CHURUJA | E15: 010303 | F15: 21 | G15: 0 | H15: 0 | I15: 21 | J15: 3 | K15: 14.28571429 | L15: 21 | M15: 0 | N15: 0 | O15: 21 | P15: 0 | Q15: 0 | R15: 2 | S15: 9.523809524 | T15: 0 | U15: 0
B16: AMAZONAS | C16: BONGARA | D16: COROSHA | E16: 010304 | F16: 76 | G16: 15 | H16: 19.73684211 | I16: 61 | J16: 32 | K16: 52.45901639 | L16: 76 | M16: 3 | N16: 3.947368421 | O16: 76 | P16: 1 | Q16: 1.315789474 | R16: 2 | S16: 2.631578947 | T16: 0 | U16: 0
B17: AMAZONAS | C17: BONGARA | D17: CUISPES | E17: 010305 | F17: 41 | G17: 8 | H17: 19.51219512 | I17: 33 | J17: 12 | K17: 36.36363636 | L17: 41 | M17: 5 | N17: 12.19512195 | O17: 41 | P17: 1 | Q17: 2.43902439 | R17: 0 | S17: 0 | T17: 0 | U17: 0
B18: AMAZONAS | C18: BONGARA | D18: FLORIDA | E18: 010306 | F18: 453 | G18: 105 | H18: 23.17880795 | I18: 348 | J18: 176 | K18: 50.57471264 | L18: 453 | M18: 14 | N18: 3.090507726 | O18: 453 | P18: 3 | Q18: 0.6622516556 | R18: 20 | S18: 4.415011038 | T18: 6 | U18: 1.324503311
B19: AMAZONAS | C19: BONGARA | D19: JAZAN | E19: 010307 | F19: 417 | G19: 43 | H19: 10.3117506 | I19: 374 | J19: 124 | K19: 33.15508021 | L19: 417 | M19: 12 | N19: 2.877697842 | O19: 417 | P19: 7 | Q19: 1.678657074 | R19: 20 | S19: 4.79616307 | T19: 4 | U19: 0.9592326139
B20: AMAZONAS | C20: BONGARA | D20: JUMBILLA | E20: 010301 | F20: 57 | G20: 14 | H20: 24.56140351 | I20: 43 | J20: 22 | K20: 51.1627907 | L20: 57 | M20: 1 | N20: 1.754385965 | O20: 57 | P20: 0 | Q20: 0 | R20: 3 | S20: 5.263157895 | T20: 0 | U20: 0
B21: AMAZONAS | C21: BONGARA | D21: RECTA | E21: 010308 | F21: 19 | G21: 0 | H21: 0 | I21: 19 | J21: 4 | K21: 21.05263158 | L21: 19 | M21: 1 | N21: 5.263157895 | O21: 19 | P21: 0 | Q21: 0 | R21: 0 | S21: 0 | T21: 0 | U21: 0
B22: AMAZONAS | C22: BONGARA | D22: SAN CARLOS | E22: 010309 | F22: 12 | G22: 3 | H22: 25 | I22: 9 | J22: 2 | K22: 22.22222222 | L22: 12 | M22: 0 | N22: 0 | O22: 12 | P22: 0 | Q22: 0 | R22: 1 | S22: 8.333333333 | T22: 0 | U22: 0
B23: AMAZONAS | C23: BONGARA | D23: SHIPASBAMBA | E23: 010310 | F23: 95 | G23: 17 | H23: 17.89473684 | I23: 78 | J23: 35 | K23: 44.87179487 | L23: 95 | M23: 4 | N23: 4.210526316 | O23: 95 | P23: 2 | Q23: 2.105263158 | R23: 4 | S23: 4.210526316 | T23: 0 | U23: 0
B24: AMAZONAS | C24: BONGARA | D24: VALERA | E24: 010311 | F24: 59 | G24: 5 | H24: 8.474576271 | I24: 54 | J24: 12 | K24: 22.22222222 | L24: 59 | M24: 0 | N24: 0 | O24: 59 | P24: 0 | Q24: 0 | R24: 3 | S24: 5.084745763 | T24: 0 | U24: 0
B25: AMAZONAS | C25: BONGARA | D25: YAMBRASBAMBA | E25: 010312 | F25: 515 | G25: 103 | H25: 20 | I25: 412 | J25: 189 | K25: 45.87378641 | L25: 515 | M25: 21 | N25: 4.077669903 | O25: 515 | P25: 3 | Q25: 0.5825242718 | R25: 15 | S25: 2.912621359 | T25: 5 | U25: 0.9708737864
B26: AMAZONAS | C26: CHACHAPOYAS | D26: ASUNCION | E26: 010102 | F26: 16 | G26: 3 | H26: 18.75 | I26: 13 | J26: 6 | K26: 46.15384615 | L26: 16 | M26: 0 | N26: 0 | O26: 16 | P26: 0 | Q26: 0 | R26: 1 | S26: 6.25 | T26: 0 | U26: 0
B27: AMAZONAS | C27: CHACHAPOYAS | D27: BALSAS | E27: 010103 | F27: 108 | G27: 24 | H27: 22.22222222 | I27: 84 | J27: 32 | K27: 38.0952381 | L27: 108 | M27: 6 | N27: 5.555555556 | O27: 108 | P27: 3 | Q27: 2.777777778 | R27: 3 | S27: 2.777777778 | T27: 0 | U27: 0
B28: AMAZONAS | C28: CHACHAPOYAS | D28: CHACHAPOYAS | E28: 010101 | F28: 1322 | G28: 152 | H28: 11.49773071 | I28: 1170 | J28: 417 | K28: 35.64102564 | L28: 1322 | M28: 36 | N28: 2.723146747 | O28: 1322 | P28: 12 | Q28: 0.9077155825 | R28: 81 | S28: 6.127080182 | T28: 12 | U28: 0.9077155825
B29: AMAZONAS | C29: CHACHAPOYAS | D29: CHETO | E29: 010104 | F29: 47 | G29: 8 | H29: 17.0212766 | I29: 39 | J29: 14 | K29: 35.8974359 | L29: 47 | M29: 0 | N29: 0 | O29: 47 | P29: 0 | Q29: 0 | R29: 1 | S29: 2.127659574 | T29: 2 | U29: 4.255319149
B30: AMAZONAS | C30: CHACHAPOYAS | D30: CHILIQUIN | E30: 010105 | F30: 45 | G30: 8 | H30: 17.77777778 | I30: 37 | J30: 13 | K30: 35.13513514 | L30: 45 | M30: 0 | N30: 0 | O30: 45 | P30: 0 | Q30: 0 | R30: 2 | S30: 4.444444444 | T30: 0 | U30: 0
B31: AMAZONAS | C31: CHACHAPOYAS | D31: CHUQUIBAMBA | E31: 010106 | F31: 154 | G31: 20 | H31: 12.98701299 | I31: 134 | J31: 60 | K31: 44.7761194 | L31: 154 | M31: 1 | N31: 0.6493506494 | O31: 154 | P31: 1 | Q31: 0.6493506494 | R31: 11 | S31: 7.142857143 | T31: 1 | U31: 0.6493506494
B32: AMAZONAS | C32: CHACHAPOYAS | D32: GRANADA | E32: 010107 | F32: 21 | G32: 2 | H32: 9.523809524 | I32: 19 | J32: 11 | K32: 57.89473684 | L32: 21 | M32: 0 | N32: 0 | O32: 21 | P32: 0 | Q32: 0 | R32: 1 | S32: 4.761904762 | T32: 0 | U32: 0
B33: AMAZONAS | C33: CHACHAPOYAS | D33: HUANCAS | E33: 010108 | F33: 12 | G33: 2 | H33: 16.66666667 | I33: 10 | J33: 5 | K33: 50 | L33: 12 | M33: 0 | N33: 0 | O33: 12 | P33: 0 | Q33: 0 | R33: 0 | S33: 0 | T33: 0 | U33: 0
B34: AMAZONAS | C34: CHACHAPOYAS | D34: LA JALCA | E34: 010109 | F34: 438 | G34: 75 | H34: 17.12328767 | I34: 363 | J34: 173 | K34: 47.6584022 | L34: 438 | M34: 10 | N34: 2.283105023 | O34: 438 | P34: 2 | Q34: 0.4566210046 | R34: 21 | S34: 4.794520548 | T34: 3 | U34: 0.6849315068
B35: AMAZONAS | C35: CHACHAPOYAS | D35: LEIMEBAMBA | E35: 010110 | F35: 190 | G35: 33 | H35: 17.36842105 | I35: 157 | J35: 59 | K35: 37.57961783 | L35: 190 | M35: 4 | N35: 2.105263158 | O35: 190 | P35: 1 | Q35: 0.5263157895 | R35: 10 | S35: 5.263157895 | T35: 3 | U35: 1.578947368
B36: AMAZONAS | C36: CHACHAPOYAS | D36: LEVANTO | E36: 010111 | F36: 61 | G36: 16 | H36: 26.2295082 | I36: 45 | J36: 23 | K36: 51.11111111 | L36: 61 | M36: 3 | N36: 4.918032787 | O36: 61 | P36: 0 | Q36: 0 | R36: 1 | S36: 1.639344262 | T36: 1 | U36: 1.639344262
B37: AMAZONAS | C37: CHACHAPOYAS | D37: MAGDALENA | E37: 010112 | F37: 63 | G37: 14 | H37: 22.22222222 | I37: 49 | J37: 22 | K37: 44.89795918 | L37: 63 | M37: 3 | N37: 4.761904762 | O37: 63 | P37: 2 | Q37: 3.174603175 | R37: 3 | S37: 4.761904762 | T37: 0 | U37: 0
B38: AMAZONAS | C38: CHACHAPOYAS | D38: MARISCAL CASTILLA | E38: 010113 | F38: 44 | G38: 7 | H38: 15.90909091 | I38: 37 | J38: 17 | K38: 45.94594595 | L38: 44 | M38: 0 | N38: 0 | O38: 44 | P38: 0 | Q38: 0 | R38: 2 | S38: 4.545454545 | T38: 0 | U38: 0
B39: AMAZONAS | C39: CHACHAPOYAS | D39: MOLINOPAMPA | E39: 010114 | F39: 181 | G39: 34 | H39: 18.78453039 | I39: 147 | J39: 73 | K39: 49.65986395 | L39: 181 | M39: 4 | N39: 2.209944751 | O39: 181 | P39: 1 | Q39: 0.5524861878 | R39: 14 | S39: 7.73480663 | T39: 7 | U39: 3.867403315
B40: AMAZONAS | C40: CHACHAPOYAS | D40: MONTEVIDEO | E40: 010115 | F40: 20 | G40: 2 | H40: 10 | I40: 18 | J40: 7 | K40: 38.88888889 | L40: 20 | M40: 0 | N40: 0 | O40: 20 | P40: 0 | Q40: 0 | R40: 1 | S40: 5 | T40: 0 | U40: 0
B41: AMAZONAS | C41: CHACHAPOYAS | D41: OLLEROS | E41: 010116 | F41: 17 | G41: 2 | H41: 11.76470588 | I41: 15 | J41: 5 | K41: 33.33333333 | L41: 17 | M41: 0 | N41: 0 | O41: 17 | P41: 0 | Q41: 0 | R41: 2 | S41: 11.76470588 | T41: 0 | U41: 0
B42: AMAZONAS | C42: CHACHAPOYAS | D42: QUINJALCA | E42: 010117 | F42: 40 | G42: 9 | H42: 22.5 | I42: 31 | J42: 12 | K42: 38.70967742 | L42: 40 | M42: 0 | N42: 0 | O42: 40 | P42: 1 | Q42: 2.5 | R42: 2 | S42: 5 | T42: 1 | U42: 2.5
B43: AMAZONAS | C43: CHACHAPOYAS | D43: SAN FRANCISCO DE DAGUAS | E43: 010118 | F43: 15 | G43: 2 | H43: 13.33333333 | I43: 13 | J43: 5 | K43: 38.46153846 | L43: 15 | M43: 0 | N43: 0 | O43: 15 | P43: 0 | Q43: 0 | R43: 0 | S43: 0 | T43: 0 | U43: 0
B44: AMAZONAS | C44: CHACHAPOYAS | D44: SAN ISIDRO DE MAINO | E44: 010119 | F44: 46 | G44: 13 | H44: 28.26086957 | I44: 33 | J44: 23 | K44: 69.6969697 | L44: 46 | M44: 4 | N44: 8.695652174 | O44: 46 | P44: 0 | Q44: 0 | R44: 1 | S44: 2.173913043 | T44: 0 | U44: 0
B45: AMAZONAS | C45: CHACHAPOYAS | D45: SOLOCO | E45: 010120 | F45: 68 | G45: 14 | H45: 20.58823529 | I45: 54 | J45: 26 | K45: 48.14814815 | L45: 68 | M45: 2 | N45: 2.941176471 | O45: 68 | P45: 0 | Q45: 0 | R45: 5 | S45: 7.352941176 | T45: 1 | U45: 1.470588235
B46: AMAZONAS | C46: CHACHAPOYAS | D46: SONCHE | E46: 010121 | F46: 19 | G46: 1 | H46: 5.263157895 | I46: 18 | J46: 5 | K46: 27.77777778 | L46: 19 | M46: 0 | N46: 0 | O46: 19 | P46: 0 | Q46: 0 | R46: 3 | S46: 15.78947368 | T46: 1 | U46: 5.263157895
B47: AMAZONAS | C47: CONDORCANQUI | D47: EL CENEPA | E47: 010402 | F47: 1970 | G47: 849 | H47: 43.0964467 | I47: 1121 | J47: 725 | K47: 64.67439786 | L47: 1970 | M47: 217 | N47: 11.01522843 | O47: 1970 | P47: 43 | Q47: 2.182741117 | R47: 94 | S47: 4.771573604 | T47: 26 | U47: 1.319796954
B48: AMAZONAS | C48: CONDORCANQUI | D48: NIEVA | E48: 010401 | F48: 4457 | G48: 1570 | H48: 35.225488 | I48: 2887 | J48: 1590 | K48: 55.07447177 | L48: 4457 | M48: 232 | N48: 5.205295042 | O48: 4457 | P48: 94 | Q48: 2.109041956 | R48: 394 | S48: 8.840026924 | T48: 139 | U48: 3.118689702
B49: AMAZONAS | C49: CONDORCANQUI | D49: RIO SANTIAGO | E49: 010403 | F49: 2907 | G49: 1193 | H49: 41.03887169 | I49: 1714 | J49: 969 | K49: 56.5344224 | L49: 2907 | M49: 259 | N49: 8.909528724 | O49: 2907 | P49: 54 | Q49: 1.857585139 | R49: 149 | S49: 5.125558996 | T49: 33 | U49: 1.135190918
B50: AMAZONAS | C50: LUYA | D50: CAMPORREDONDO | E50: 010502 | F50: 516 | G50: 114 | H50: 22.09302326 | I50: 402 | J50: 202 | K50: 50.24875622 | L50: 516 | M50: 30 | N50: 5.813953488 | O50: 516 | P50: 6 | Q50: 1.162790698 | R50: 30 | S50: 5.813953488 | T50: 5 | U50: 0.9689922481
B51: AMAZONAS | C51: LUYA | D51: COCABAMBA | E51: 010503 | F51: 250 | G51: 70 | H51: 28 | I51: 180 | J51: 114 | K51: 63.33333333 | L51: 250 | M51: 8 | N51: 3.2 | O51: 250 | P51: 3 | Q51: 1.2 | R51: 13 | S51: 5.2 | T51: 1 | U51: 0.4
B52: AMAZONAS | C52: LUYA | D52: COLCAMAR | E52: 010504 | F52: 117 | G52: 13 | H52: 11.11111111 | I52: 104 | J52: 60 | K52: 57.69230769 | L52: 117 | M52: 4 | N52: 3.418803419 | O52: 117 | P52: 0 | Q52: 0 | R52: 4 | S52: 3.418803419 | T52: 0 | U52: 0
B53: AMAZONAS | C53: LUYA | D53: CONILA | E53: 010505 | F53: 152 | G53: 34 | H53: 22.36842105 | I53: 118 | J53: 61 | K53: 51.69491525 | L53: 152 | M53: 5 | N53: 3.289473684 | O53: 152 | P53: 0 | Q53: 0 | R53: 4 | S53: 2.631578947 | T53: 0 | U53: 0
B54: AMAZONAS | C54: LUYA | D54: INGUILPATA | E54: 010506 | F54: 13 | G54: 2 | H54: 15.38461538 | I54: 11 | J54: 5 | K54: 45.45454545 | L54: 13 | M54: 1 | N54: 7.692307692 | O54: 13 | P54: 0 | Q54: 0 | R54: 0 | S54: 0 | T54: 0 | U54: 0
B55: AMAZONAS | C55: LUYA | D55: LAMUD | E55: 010501 | F55: 120 | G55: 5 | H55: 4.166666667 | I55: 115 | J55: 43 | K55: 37.39130435 | L55: 120 | M55: 2 | N55: 1.666666667 | O55: 120 | P55: 1 | Q55: 0.8333333333 | R55: 5 | S55: 4.166666667 | T55: 1 | U55: 0.8333333333
B56: AMAZONAS | C56: LUYA | D56: LONGUITA | E56: 010507 | F56: 78 | G56: 25 | H56: 32.05128205 | I56: 53 | J56: 30 | K56: 56.60377358 | L56: 78 | M56: 1 | N56: 1.282051282 | O56: 78 | P56: 0 | Q56: 0 | R56: 9 | S56: 11.53846154 | T56: 1 | U56: 1.282051282
B57: AMAZONAS | C57: LUYA | D57: LONYA CHICO | E57: 010508 | F57: 68 | G57: 19 | H57: 27.94117647 | I57: 49 | J57: 21 | K57: 42.85714286 | L57: 68 | M57: 2 | N57: 2.941176471 | O57: 68 | P57: 1 | Q57: 1.470588235 | R57: 6 | S57: 8.823529412 | T57: 1 | U57: 1.470588235
B58: AMAZONAS | C58: LUYA | D58: LUYA | E58: 010509 | F58: 256 | G58: 42 | H58: 16.40625 | I58: 214 | J58: 94 | K58: 43.92523364 | L58: 256 | M58: 4 | N58: 1.5625 | O58: 256 | P58: 2 | Q58: 0.78125 | R58: 11 | S58: 4.296875 | T58: 2 | U58: 0.78125
B59: AMAZONAS | C59: LUYA | D59: LUYA VIEJO | E59: 010510 | F59: 30 | G59: 8 | H59: 26.66666667 | I59: 22 | J59: 12 | K59: 54.54545455 | L59: 30 | M59: 2 | N59: 6.666666667 | O59: 30 | P59: 1 | Q59: 3.333333333 | R59: 4 | S59: 13.33333333 | T59: 0 | U59: 0
B60: AMAZONAS | C60: LUYA | D60: MARIA | E60: 010511 | F60: 46 | G60: 14 | H60: 30.43478261 | I60: 32 | J60: 14 | K60: 43.75 | L60: 46 | M60: 3 | N60: 6.52173913 | O60: 46 | P60: 0 | Q60: 0 | R60: 0 | S60: 0 | T60: 1 | U60: 2.173913043
B61: AMAZONAS | C61: LUYA | D61: OCALLI | E61: 010512 | F61: 267 | G61: 41 | H61: 15.35580524 | I61: 226 | J61: 104 | K61: 46.01769912 | L61: 267 | M61: 12 | N61: 4.494382022 | O61: 267 | P61: 4 | Q61: 1.498127341 | R61: 15 | S61: 5.617977528 | T61: 4 | U61: 1.498127341
B62: AMAZONAS | C62: LUYA | D62: OCUMAL | E62: 010513 | F62: 306 | G62: 71 | H62: 23.20261438 | I62: 235 | J62: 115 | K62: 48.93617021 | L62: 306 | M62: 11 | N62: 3.594771242 | O62: 306 | P62: 0 | Q62: 0 | R62: 9 | S62: 2.941176471 | T62: 1 | U62: 0.3267973856
B63: AMAZONAS | C63: LUYA | D63: PISUQUIA | E63: 010514 | F63: 485 | G63: 111 | H63: 22.88659794 | I63: 374 | J63: 171 | K63: 45.72192513 | L63: 485 | M63: 30 | N63: 6.18556701 | O63: 485 | P63: 2 | Q63: 0.412371134 | R63: 15 | S63: 3.092783505 | T63: 0 | U63: 0
B64: AMAZONAS | C64: LUYA | D64: PROVIDENCIA | E64: 010515 | F64: 103 | G64: 21 | H64: 20.38834951 | I64: 82 | J64: 37 | K64: 45.12195122 | L64: 103 | M64: 3 | N64: 2.912621359 | O64: 103 | P64: 2 | Q64: 1.941747573 | R64: 9 | S64: 8.737864078 | T64: 0 | U64: 0
B65: AMAZONAS | C65: LUYA | D65: SAN CRISTOBAL | E65: 010516 | F65: 33 | G65: 6 | H65: 18.18181818 | I65: 27 | J65: 12 | K65: 44.44444444 | L65: 33 | M65: 0 | N65: 0 | O65: 33 | P65: 0 | Q65: 0 | R65: 0 | S65: 0 | T65: 0 | U65: 0
B66: AMAZONAS | C66: LUYA | D66: SAN FRANCISCO DE YESO | E66: 010517 | F66: 39 | G66: 8 | H66: 20.51282051 | I66: 31 | J66: 21 | K66: 67.74193548 | L66: 39 | M66: 1 | N66: 2.564102564 | O66: 39 | P66: 0 | Q66: 0 | R66: 0 | S66: 0 | T66: 0 | U66: 0
B67: AMAZONAS | C67: LUYA | D67: SAN JERONIMO | E67: 010518 | F67: 34 | G67: 6 | H67: 17.64705882 | I67: 28 | J67: 17 | K67: 60.71428571 | L67: 34 | M67: 1 | N67: 2.941176471 | O67: 34 | P67: 1 | Q67: 2.941176471 | R67: 4 | S67: 11.76470588 | T67: 0 | U67: 0
B68: AMAZONAS | C68: LUYA | D68: SAN JUAN DE LOPECANCHA | E68: 010519 | F68: 30 | G68: 10 | H68: 33.33333333 | I68: 20 | J68: 13 | K68: 65 | L68: 30 | M68: 1 | N68: 3.333333333 | O68: 30 | P68: 0 | Q68: 0 | R68: 3 | S68: 10 | T68: 1 | U68: 3.333333333
B69: AMAZONAS | C69: LUYA | D69: SANTA CATALINA | E69: 010520 | F69: 228 | G69: 44 | H69: 19.29824561 | I69: 184 | J69: 96 | K69: 52.17391304 | L69: 228 | M69: 2 | N69: 0.8771929825 | O69: 228 | P69: 0 | Q69: 0 | R69: 17 | S69: 7.456140351 | T69: 1 | U69: 0.4385964912
B70: AMAZONAS | C70: LUYA | D70: SANTO TOMAS | E70: 010521 | F70: 258 | G70: 51 | H70: 19.76744186 | I70: 207 | J70: 126 | K70: 60.86956522 | L70: 258 | M70: 8 | N70: 3.100775194 | O70: 258 | P70: 1 | Q70: 0.3875968992 | R70: 13 | S70: 5.03875969 | T70: 3 | U70: 1.162790698
B71: AMAZONAS | C71: LUYA | D71: TINGO | E71: 010522 | F71: 107 | G71: 24 | H71: 22.42990654 | I71: 83 | J71: 34 | K71: 40.96385542 | L71: 107 | M71: 4 | N71: 3.738317757 | O71: 107 | P71: 1 | Q71: 0.9345794393 | R71: 4 | S71: 3.738317757 | T71: 1 | U71: 0.9345794393
B72: AMAZONAS | C72: LUYA | D72: TRITA | E72: 010523 | F72: 96 | G72: 19 | H72: 19.79166667 | I72: 77 | J72: 43 | K72: 55.84415584 | L72: 96 | M72: 3 | N72: 3.125 | O72: 96 | P72: 0 | Q72: 0 | R72: 6 | S72: 6.25 | T72: 0 | U72: 0
B73: AMAZONAS | C73: RODRIGUEZ DE MENDOZA | D73: CHIRIMOTO | E73: 010602 | F73: 225 | G73: 26 | H73: 11.55555556 | I73: 199 | J73: 66 | K73: 33.16582915 | L73: 225 | M73: 3 | N73: 1.333333333 | O73: 225 | P73: 0 | Q73: 0 | R73: 10 | S73: 4.444444444 | T73: 0 | U73: 0
B74: AMAZONAS | C74: RODRIGUEZ DE MENDOZA | D74: COCHAMAL | E74: 010603 | F74: 50 | G74: 0 | H74: 0 | I74: 50 | J74: 12 | K74: 24 | L74: 50 | M74: 0 | N74: 0 | O74: 50 | P74: 0 | Q74: 0 | R74: 4 | S74: 8 | T74: 0 | U74: 0
B75: AMAZONAS | C75: RODRIGUEZ DE MENDOZA | D75: HUAMBO | E75: 010604 | F75: 119 | G75: 19 | H75: 15.96638655 | I75: 100 | J75: 35 | K75: 35 | L75: 119 | M75: 2 | N75: 1.680672269 | O75: 119 | P75: 1 | Q75: 0.8403361345 | R75: 11 | S75: 9.243697479 | T75: 5 | U75: 4.201680672
B76: AMAZONAS | C76: RODRIGUEZ DE MENDOZA | D76: LIMABAMBA | E76: 010605 | F76: 110 | G76: 9 | H76: 8.181818182 | I76: 101 | J76: 43 | K76: 42.57425743 | L76: 110 | M76: 4 | N76: 3.636363636 | O76: 110 | P76: 2 | Q76: 1.818181818 | R76: 1 | S76: 0.9090909091 | T76: 0 | U76: 0
B77: AMAZONAS | C77: RODRIGUEZ DE MENDOZA | D77: LONGAR | E77: 010606 | F77: 90 | G77: 10 | H77: 11.11111111 | I77: 80 | J77: 19 | K77: 23.75 | L77: 90 | M77: 0 | N77: 0 | O77: 90 | P77: 3 | Q77: 3.333333333 | R77: 8 | S77: 8.888888889 | T77: 0 | U77: 0
B78: AMAZONAS | C78: RODRIGUEZ DE MENDOZA | D78: MARISCAL BENAVIDES | E78: 010607 | F78: 91 | G78: 5 | H78: 5.494505495 | I78: 86 | J78: 30 | K78: 34.88372093 | L78: 91 | M78: 1 | N78: 1.098901099 | O78: 91 | P78: 0 | Q78: 0 | R78: 6 | S78: 6.593406593 | T78: 0 | U78: 0
B79: AMAZONAS | C79: RODRIGUEZ DE MENDOZA | D79: MILPUC | E79: 010608 | F79: 26 | G79: 0 | H79: 0 | I79: 26 | J79: 9 | K79: 34.61538462 | L79: 26 | M79: 0 | N79: 0 | O79: 26 | P79: 0 | Q79: 0 | R79: 1 | S79: 3.846153846 | T79: 0 | U79: 0
B80: AMAZONAS | C80: RODRIGUEZ DE MENDOZA | D80: OMIA | E80: 010609 | F80: 871 | G80: 149 | H80: 17.10677382 | I80: 722 | J80: 338 | K80: 46.81440443 | L80: 871 | M80: 25 | N80: 2.870264064 | O80: 871 | P80: 3 | Q80: 0.3444316877 | R80: 70 | S80: 8.03673938 | T80: 13 | U80: 1.492537313
B81: AMAZONAS | C81: RODRIGUEZ DE MENDOZA | D81: SAN NICOLAS | E81: 010601 | F81: 330 | G81: 30 | H81: 9.090909091 | I81: 300 | J81: 77 | K81: 25.66666667 | L81: 330 | M81: 6 | N81: 1.818181818 | O81: 330 | P81: 4 | Q81: 1.212121212 | R81: 25 | S81: 7.575757576 | T81: 4 | U81: 1.212121212
B82: AMAZONAS | C82: RODRIGUEZ DE MENDOZA | D82: SANTA ROSA | E82: 010610 | F82: 31 | G82: 2 | H82: 6.451612903 | I82: 29 | J82: 15 | K82: 51.72413793 | L82: 31 | M82: 1 | N82: 3.225806452 | O82: 31 | P82: 0 | Q82: 0 | R82: 1 | S82: 3.225806452 | T82: 0 | U82: 0
B83: AMAZONAS | C83: RODRIGUEZ DE MENDOZA | D83: TOTORA | E83: 010611 | F83: 18 | G83: 3 | H83: 16.66666667 | I83: 15 | J83: 5 | K83: 33.33333333 | L83: 18 | M83: 0 | N83: 0 | O83: 18 | P83: 0 | Q83: 0 | R83: 0 | S83: 0 | T83: 0 | U83: 0
B84: AMAZONAS | C84: RODRIGUEZ DE MENDOZA | D84: VISTA ALEGRE | E84: 010612 | F84: 206 | G84: 33 | H84: 16.01941748 | I84: 173 | J84: 101 | K84: 58.38150289 | L84: 206 | M84: 6 | N84: 2.912621359 | O84: 206 | P84: 2 | Q84: 0.9708737864 | R84: 6 | S84: 2.912621359 | T84: 4 | U84: 1.941747573
B85: AMAZONAS | C85: UTCUBAMBA | D85: BAGUA GRANDE | E85: 010701 | F85: 3752 | G85: 656 | H85: 17.48400853 | I85: 3096 | J85: 1208 | K85: 39.01808786 | L85: 3752 | M85: 152 | N85: 4.051172708 | O85: 3752 | P85: 45 | Q85: 1.199360341 | R85: 159 | S85: 4.237739872 | T85: 38 | U85: 1.012793177
B86: AMAZONAS | C86: UTCUBAMBA | D86: CAJARURO | E86: 010702 | F86: 1831 | G86: 297 | H86: 16.22064446 | I86: 1534 | J86: 658 | K86: 42.89439374 | L86: 1831 | M86: 52 | N86: 2.839978154 | O86: 1831 | P86: 19 | Q86: 1.037684326 | R86: 81 | S86: 4.423812125 | T86: 14 | U86: 0.764609503
B87: AMAZONAS | C87: UTCUBAMBA | D87: CUMBA | E87: 010703 | F87: 706 | G87: 123 | H87: 17.42209632 | I87: 583 | J87: 277 | K87: 47.51286449 | L87: 706 | M87: 19 | N87: 2.69121813 | O87: 706 | P87: 6 | Q87: 0.8498583569 | R87: 29 | S87: 4.107648725 | T87: 9 | U87: 1.274787535
B88: AMAZONAS | C88: UTCUBAMBA | D88: EL MILAGRO | E88: 010704 | F88: 222 | G88: 35 | H88: 15.76576577 | I88: 187 | J88: 75 | K88: 40.10695187 | L88: 222 | M88: 6 | N88: 2.702702703 | O88: 222 | P88: 3 | Q88: 1.351351351 | R88: 10 | S88: 4.504504505 | T88: 3 | U88: 1.351351351
B89: AMAZONAS | C89: UTCUBAMBA | D89: JAMALCA | E89: 010705 | F89: 540 | G89: 72 | H89: 13.33333333 | I89: 468 | J89: 218 | K89: 46.58119658 | L89: 540 | M89: 9 | N89: 1.666666667 | O89: 540 | P89: 4 | Q89: 0.7407407407 | R89: 20 | S89: 3.703703704 | T89: 4 | U89: 0.7407407407
B90: AMAZONAS | C90: UTCUBAMBA | D90: LONYA GRANDE | E90: 010706 | F90: 618 | G90: 114 | H90: 18.44660194 | I90: 504 | J90: 215 | K90: 42.65873016 | L90: 618 | M90: 13 | N90: 2.103559871 | O90: 618 | P90: 6 | Q90: 0.9708737864 | R90: 35 | S90: 5.663430421 | T90: 6 | U90: 0.9708737864
B91: AMAZONAS | C91: UTCUBAMBA | D91: YAMON | E91: 010707 | F91: 247 | G91: 45 | H91: 18.21862348 | I91: 202 | J91: 105 | K91: 51.98019802 | L91: 247 | M91: 11 | N91: 4.453441296 | O91: 247 | P91: 1 | Q91: 0.4048582996 | R91: 18 | S91: 7.287449393 | T91: 1 | U91: 0.4048582996
B92: ÁNCASH | C92: AIJA | D92: AIJA | E92: 020201 | F92: 125 | G92: 31 | H92: 24.8 | I92: 94 | J92: 49 | K92: 52.12765957 | L92: 125 | M92: 10 | N92: 8 | O92: 125 | P92: 1 | Q92: 0.8 | R92: 5 | S92: 4 | T92: 0 | U92: 0
B93: ÁNCASH | C93: AIJA | D93: CORIS | E93: 020202 | F93: 135 | G93: 20 | H93: 14.81481481 | I93: 115 | J93: 51 | K93: 44.34782609 | L93: 135 | M93: 5 | N93: 3.703703704 | O93: 135 | P93: 1 | Q93: 0.7407407407 | R93: 12 | S93: 8.888888889 | T93: 1 | U93: 0.7407407407
B94: ÁNCASH | C94: AIJA | D94: HUACLLAN | E94: 020203 | F94: 32 | G94: 5 | H94: 15.625 | I94: 27 | J94: 13 | K94: 48.14814815 | L94: 32 | M94: 3 | N94: 9.375 | O94: 32 | P94: 1 | Q94: 3.125 | R94: 2 | S94: 6.25 | T94: 2 | U94: 6.25
B95: ÁNCASH | C95: AIJA | D95: LA MERCED | E95: 020204 | F95: 124 | G95: 33 | H95: 26.61290323 | I95: 91 | J95: 56 | K95: 61.53846154 | L95: 124 | M95: 8 | N95: 6.451612903 | O95: 124 | P95: 0 | Q95: 0 | R95: 7 | S95: 5.64516129 | T95: 0 | U95: 0
B96: ÁNCASH | C96: AIJA | D96: SUCCHA | E96: 020205 | F96: 49 | G96: 13 | H96: 26.53061224 | I96: 36 | J96: 18 | K96: 50 | L96: 49 | M96: 0 | N96: 0 | O96: 49 | P96: 0 | Q96: 0 | R96: 2 | S96: 4.081632653 | T96: 0 | U96: 0
B97: ÁNCASH | C97: ANTONIO RAYMONDI | D97: ACZO | E97: 020302 | F97: 161 | G97: 54 | H97: 33.54037267 | I97: 107 | J97: 54 | K97: 50.46728972 | L97: 161 | M97: 9 | N97: 5.590062112 | O97: 161 | P97: 1 | Q97: 0.6211180124 | R97: 22 | S97: 13.66459627 | T97: 3 | U97: 1.863354037
B98: ÁNCASH | C98: ANTONIO RAYMONDI | D98: CHACCHO | E98: 020303 | F98: 96 | G98: 33 | H98: 34.375 | I98: 63 | J98: 33 | K98: 52.38095238 | L98: 96 | M98: 1 | N98: 1.041666667 | O98: 96 | P98: 1 | Q98: 1.041666667 | R98: 5 | S98: 5.208333333 | T98: 1 | U98: 1.041666667
B99: ÁNCASH | C99: ANTONIO RAYMONDI | D99: CHINGAS | E99: 020304 | F99: 149 | G99: 36 | H99: 24.16107383 | I99: 113 | J99: 55 | K99: 48.67256637 | L99: 149 | M99: 7 | N99: 4.697986577 | O99: 149 | P99: 3 | Q99: 2.013422819 | R99: 11 | S99: 7.382550336 | T99: 0 | U99: 0
B100: ÁNCASH | C100: ANTONIO RAYMONDI | D100: LLAMELLIN | E100: 020301 | F100: 137 | G100: 42 | H100: 30.65693431 | I100: 95 | J100: 49 | K100: 51.57894737 | L100: 137 | M100: 10 | N100: 7.299270073 | O100: 137 | P100: 5 | Q100: 3.649635036 | R100: 10 | S100: 7.299270073 | T100: 1 | U100: 0.7299270073
B101: ÁNCASH | C101: ANTONIO RAYMONDI | D101: MIRGAS | E101: 020305 | F101: 200 | G101: 74 | H101: 37 | I101: 126 | J101: 81 | K101: 64.28571429 | L101: 200 | M101: 8 | N101: 4 | O101: 200 | P101: 0 | Q101: 0 | R101: 10 | S101: 5 | T101: 1 | U101: 0.5
B102: ÁNCASH | C102: ANTONIO RAYMONDI | D102: SAN JUAN DE RONTOY | E102: 020306 | F102: 91 | G102: 40 | H102: 43.95604396 | I102: 51 | J102: 25 | K102: 49.01960784 | L102: 91 | M102: 5 | N102: 5.494505495 | O102: 91 | P102: 0 | Q102: 0 | R102: 11 | S102: 12.08791209 | T102: 1 | U102: 1.098901099
B103: ÁNCASH | C103: ASUNCION | D103: ACOCHACA | E103: 020402 | F103: 200 | G103: 66 | H103: 33 | I103: 134 | J103: 72 | K103: 53.73134328 | L103: 200 | M103: 21 | N103: 10.5 | O103: 200 | P103: 4 | Q103: 2 | R103: 2 | S103: 1 | T103: 0 | U103: 0
B104: ÁNCASH | C104: ASUNCION | D104: CHACAS | E104: 020401 | F104: 391 | G104: 71 | H104: 18.15856777 | I104: 320 | J104: 154 | K104: 48.125 | L104: 391 | M104: 15 | N104: 3.836317136 | O104: 391 | P104: 3 | Q104: 0.7672634271 | R104: 13 | S104: 3.324808184 | T104: 2 | U104: 0.5115089514
B105: ÁNCASH | C105: BOLOGNESI | D105: ABELARDO PARDO LEZAMETA | E105: 020502 | F105: 16 | G105: 2 | H105: 12.5 | I105: 14 | J105: 6 | K105: 42.85714286 | L105: 16 | M105: 1 | N105: 6.25 | O105: 16 | P105: 0 | Q105: 0 | R105: 2 | S105: 12.5 | T105: 0 | U105: 0
B106: ÁNCASH | C106: BOLOGNESI | D106: ANTONIO RAYMONDI | E106: 020503 | F106: 47 | G106: 10 | H106: 21.27659574 | I106: 37 | J106: 22 | K106: 59.45945946 | L106: 47 | M106: 0 | N106: 0 | O106: 47 | P106: 0 | Q106: 0 | R106: 4 | S106: 8.510638298 | T106: 0 | U106: 0
B107: ÁNCASH | C107: BOLOGNESI | D107: AQUIA | E107: 020504 | F107: 134 | G107: 34 | H107: 25.37313433 | I107: 100 | J107: 47 | K107: 47 | L107: 134 | M107: 4 | N107: 2.985074627 | O107: 134 | P107: 3 | Q107: 2.23880597 | R107: 7 | S107: 5.223880597 | T107: 5 | U107: 3.731343284
B108: ÁNCASH | C108: BOLOGNESI | D108: CAJACAY | E108: 020505 | F108: 142 | G108: 44 | H108: 30.98591549 | I108: 98 | J108: 51 | K108: 52.04081633 | L108: 142 | M108: 6 | N108: 4.225352113 | O108: 142 | P108: 2 | Q108: 1.408450704 | R108: 9 | S108: 6.338028169 | T108: 7 | U108: 4.929577465
B109: ÁNCASH | C109: BOLOGNESI | D109: CANIS | E109: 020506 | F109: 11 | G109: 3 | H109: 27.27272727 | I109: 8 | J109: 3 | K109: 37.5 | L109: 11 | M109: 0 | N109: 0 | O109: 11 | P109: 0 | Q109: 0 | R109: 2 | S109: 18.18181818 | T109: 0 | U109: 0
B110: ÁNCASH | C110: BOLOGNESI | D110: CHIQUIAN | E110: 020501 | F110: 220 | G110: 29 | H110: 13.18181818 | I110: 191 | J110: 80 | K110: 41.88481675 | L110: 220 | M110: 5 | N110: 2.272727273 | O110: 220 | P110: 3 | Q110: 1.363636364 | R110: 8 | S110: 3.636363636 | T110: 4 | U110: 1.818181818
B111: ÁNCASH | C111: BOLOGNESI | D111: COLQUIOC | E111: 020507 | F111: 132 | G111: 11 | H111: 8.333333333 | I111: 121 | J111: 37 | K111: 30.5785124 | L111: 132 | M111: 3 | N111: 2.272727273 | O111: 132 | P111: 2 | Q111: 1.515151515 | R111: 10 | S111: 7.575757576 | T111: 7 | U111: 5.303030303
B112: ÁNCASH | C112: BOLOGNESI | D112: HUALLANCA | E112: 020508 | F112: 484 | G112: 134 | H112: 27.68595041 | I112: 350 | J112: 196 | K112: 56 | L112: 484 | M112: 25 | N112: 5.165289256 | O112: 484 | P112: 3 | Q112: 0.6198347107 | R112: 17 | S112: 3.512396694 | T112: 2 | U112: 0.4132231405
B113: ÁNCASH | C113: BOLOGNESI | D113: HUASTA | E113: 020509 | F113: 78 | G113: 31 | H113: 39.74358974 | I113: 47 | J113: 27 | K113: 57.44680851 | L113: 78 | M113: 5 | N113: 6.41025641 | O113: 78 | P113: 2 | Q113: 2.564102564 | R113: 6 | S113: 7.692307692 | T113: 1 | U113: 1.282051282
B114: ÁNCASH | C114: BOLOGNESI | D114: HUAYLLACAYAN | E114: 020510 | F114: 75 | G114: 27 | H114: 36 | I114: 48 | J114: 30 | K114: 62.5 | L114: 75 | M114: 1 | N114: 1.333333333 | O114: 75 | P114: 1 | Q114: 1.333333333 | R114: 3 | S114: 4 | T114: 1 | U114: 1.333333333
B115: ÁNCASH | C115: BOLOGNESI | D115: LA PRIMAVERA | E115: 020511 | F115: 12 | G115: 5 | H115: 41.66666667 | I115: 7 | J115: 3 | K115: 42.85714286 | L115: 12 | M115: 1 | N115: 8.333333333 | O115: 12 | P115: 1 | Q115: 8.333333333 | R115: 0 | S115: 0 | T115: 0 | U115: 0
B116: ÁNCASH | C116: BOLOGNESI | D116: MANGAS | E116: 020512 | F116: 27 | G116: 10 | H116: 37.03703704 | I116: 17 | J116: 10 | K116: 58.82352941 | L116: 27 | M116: 0 | N116: 0 | O116: 27 | P116: 1 | Q116: 3.703703704 | R116: 6 | S116: 22.22222222 | T116: 0 | U116: 0
B117: ÁNCASH | C117: BOLOGNESI | D117: PACLLON | E117: 020513 | F117: 79 | G117: 19 | H117: 24.05063291 | I117: 60 | J117: 34 | K117: 56.66666667 | L117: 79 | M117: 2 | N117: 2.53164557 | O117: 79 | P117: 0 | Q117: 0 | R117: 2 | S117: 2.53164557 | T117: 0 | U117: 0
B118: ÁNCASH | C118: BOLOGNESI | D118: SAN MIGUEL DE CORPANQUI | E118: 020514 | F118: 16 | G118: 5 | H118: 31.25 | I118: 11 | J118: 4 | K118: 36.36363636 | L118: 16 | M118: 1 | N118: 6.25 | O118: 16 | P118: 0 | Q118: 0 | R118: 1 | S118: 6.25 | T118: 1 | U118: 6.25
B119: ÁNCASH | C119: BOLOGNESI | D119: TICLLOS | E119: 020515 | F119: 33 | G119: 17 | H119: 51.51515152 | I119: 16 | J119: 11 | K119: 68.75 | L119: 33 | M119: 2 | N119: 6.060606061 | O119: 33 | P119: 2 | Q119: 6.060606061 | R119: 0 | S119: 0 | T119: 0 | U119: 0
B120: ÁNCASH | C120: CARHUAZ | D120: ACOPAMPA | E120: 020602 | F120: 199 | G120: 52 | H120: 26.13065327 | I120: 147 | J120: 88 | K120: 59.86394558 | L120: 199 | M120: 11 | N120: 5.527638191 | O120: 199 | P120: 2 | Q120: 1.005025126 | R120: 3 | S120: 1.507537688 | T120: 2 | U120: 1.005025126
B121: ÁNCASH | C121: CARHUAZ | D121: AMASHCA | E121: 020603 | F121: 101 | G121: 27 | H121: 26.73267327 | I121: 74 | J121: 42 | K121: 56.75675676 | L121: 101 | M121: 3 | N121: 2.97029703 | O121: 101 | P121: 0 | Q121: 0 | R121: 7 | S121: 6.930693069 | T121: 2 | U121: 1.98019802
B122: ÁNCASH | C122: CARHUAZ | D122: ANTA | E122: 020604 | F122: 214 | G122: 62 | H122: 28.97196262 | I122: 152 | J122: 77 | K122: 50.65789474 | L122: 214 | M122: 18 | N122: 8.411214953 | O122: 214 | P122: 4 | Q122: 1.869158879 | R122: 10 | S122: 4.672897196 | T122: 1 | U122: 0.4672897196
B123: ÁNCASH | C123: CARHUAZ | D123: ATAQUERO | E123: 020605 | F123: 98 | G123: 28 | H123: 28.57142857 | I123: 70 | J123: 45 | K123: 64.28571429 | L123: 98 | M123: 3 | N123: 3.06122449 | O123: 98 | P123: 1 | Q123: 1.020408163 | R123: 2 | S123: 2.040816327 | T123: 0 | U123: 0
B124: ÁNCASH | C124: CARHUAZ | D124: CARHUAZ | E124: 020601 | F124: 1093 | G124: 320 | H124: 29.27721866 | I124: 773 | J124: 399 | K124: 51.61707633 | L124: 1093 | M124: 60 | N124: 5.4894785 | O124: 1093 | P124: 7 | Q124: 0.6404391583 | R124: 55 | S124: 5.032021958 | T124: 13 | U124: 1.189387008
B125: ÁNCASH | C125: CARHUAZ | D125: MARCARA | E125: 020606 | F125: 683 | G125: 187 | H125: 27.37920937 | I125: 496 | J125: 279 | K125: 56.25 | L125: 683 | M125: 36 | N125: 5.270863836 | O125: 683 | P125: 4 | Q125: 0.5856515373 | R125: 24 | S125: 3.513909224 | T125: 5 | U125: 0.7320644217
B126: ÁNCASH | C126: CARHUAZ | D126: PARIAHUANCA | E126: 020607 | F126: 148 | G126: 40 | H126: 27.02702703 | I126: 108 | J126: 63 | K126: 58.33333333 | L126: 148 | M126: 7 | N126: 4.72972973 | O126: 148 | P126: 1 | Q126: 0.6756756757 | R126: 8 | S126: 5.405405405 | T126: 1 | U126: 0.6756756757
B127: ÁNCASH | C127: CARHUAZ | D127: SAN MIGUEL DE ACO | E127: 020608 | F127: 221 | G127: 97 | H127: 43.89140271 | I127: 124 | J127: 97 | K127: 78.22580645 | L127: 221 | M127: 14 | N127: 6.334841629 | O127: 221 | P127: 1 | Q127: 0.4524886878 | R127: 7 | S127: 3.167420814 | T127: 7 | U127: 3.167420814
B128: ÁNCASH | C128: CARHUAZ | D128: SHILLA | E128: 020609 | F128: 186 | G128: 54 | H128: 29.03225806 | I128: 132 | J128: 84 | K128: 63.63636364 | L128: 186 | M128: 4 | N128: 2.150537634 | O128: 186 | P128: 1 | Q128: 0.5376344086 | R128: 7 | S128: 3.76344086 | T128: 1 | U128: 0.5376344086
B129: ÁNCASH | C129: CARHUAZ | D129: TINCO | E129: 020610 | F129: 235 | G129: 51 | H129: 21.70212766 | I129: 184 | J129: 87 | K129: 47.2826087 | L129: 235 | M129: 6 | N129: 2.553191489 | O129: 235 | P129: 2 | Q129: 0.8510638298 | R129: 11 | S129: 4.680851064 | T129: 1 | U129: 0.4255319149
B130: ÁNCASH | C130: CARHUAZ | D130: YUNGAR | E130: 020611 | F130: 295 | G130: 115 | H130: 38.98305085 | I130: 180 | J130: 92 | K130: 51.11111111 | L130: 295 | M130: 11 | N130: 3.728813559 | O130: 295 | P130: 1 | Q130: 0.3389830508 | R130: 13 | S130: 4.406779661 | T130: 1 | U130: 0.3389830508
B131: ÁNCASH | C131: CARLOS FERMIN FITZCARRALD | D131: SAN LUIS | E131: 020701 | F131: 780 | G131: 238 | H131: 30.51282051 | I131: 542 | J131: 286 | K131: 52.76752768 | L131: 780 | M131: 49 | N131: 6.282051282 | O131: 780 | P131: 5 | Q131: 0.641025641 | R131: 28 | S131: 3.58974359 | T131: 5 | U131: 0.641025641
B132: ÁNCASH | C132: CARLOS FERMIN FITZCARRALD | D132: SAN NICOLAS | E132: 020702 | F132: 279 | G132: 114 | H132: 40.86021505 | I132: 165 | J132: 105 | K132: 63.63636364 | L132: 279 | M132: 15 | N132: 5.376344086 | O132: 279 | P132: 5 | Q132: 1.792114695 | R132: 14 | S132: 5.017921147 | T132: 2 | U132: 0.7168458781
B133: ÁNCASH | C133: CARLOS FERMIN FITZCARRALD | D133: YAUYA | E133: 020703 | F133: 401 | G133: 155 | H133: 38.65336658 | I133: 246 | J133: 158 | K133: 64.22764228 | L133: 401 | M133: 24 | N133: 5.985037406 | O133: 401 | P133: 5 | Q133: 1.246882793 | R133: 15 | S133: 3.740648379 | T133: 7 | U133: 1.74563591
B134: ÁNCASH | C134: CASMA | D134: BUENA VISTA ALTA | E134: 020802 | F134: 451 | G134: 70 | H134: 15.5210643 | I134: 381 | J134: 185 | K134: 48.55643045 | L134: 451 | M134: 10 | N134: 2.2172949 | O134: 451 | P134: 1 | Q134: 0.22172949 | R134: 26 | S134: 5.764966741 | T134: 7 | U134: 1.55210643
B135: ÁNCASH | C135: CASMA | D135: CASMA | E135: 020801 | F135: 765 | G135: 29 | H135: 3.790849673 | I135: 736 | J135: 153 | K135: 20.78804348 | L135: 765 | M135: 4 | N135: 0.522875817 | O135: 765 | P135: 5 | Q135: 0.6535947712 | R135: 49 | S135: 6.405228758 | T135: 12 | U135: 1.568627451
B136: ÁNCASH | C136: CASMA | D136: COMANDANTE NOEL | E136: 020803 | F136: 161 | G136: 14 | H136: 8.695652174 | I136: 147 | J136: 49 | K136: 33.33333333 | L136: 161 | M136: 0 | N136: 0 | O136: 161 | P136: 0 | Q136: 0 | R136: 14 | S136: 8.695652174 | T136: 3 | U136: 1.863354037
B137: ÁNCASH | C137: CASMA | D137: YAUTAN | E137: 020804 | F137: 671 | G137: 140 | H137: 20.86438152 | I137: 531 | J137: 194 | K137: 36.53483992 | L137: 671 | M137: 14 | N137: 2.086438152 | O137: 671 | P137: 3 | Q137: 0.4470938897 | R137: 42 | S137: 6.259314456 | T137: 5 | U137: 0.7451564829
B138: ÁNCASH | C138: CORONGO | D138: ACO | E138: 020902 | F138: 29 | G138: 5 | H138: 17.24137931 | I138: 24 | J138: 14 | K138: 58.33333333 | L138: 29 | M138: 0 | N138: 0 | O138: 29 | P138: 0 | Q138: 0 | R138: 4 | S138: 13.79310345 | T138: 1 | U138: 3.448275862
B139: ÁNCASH | C139: CORONGO | D139: BAMBAS | E139: 020903 | F139: 55 | G139: 14 | H139: 25.45454545 | I139: 41 | J139: 26 | K139: 63.41463415 | L139: 55 | M139: 2 | N139: 3.636363636 | O139: 55 | P139: 2 | Q139: 3.636363636 | R139: 4 | S139: 7.272727273 | T139: 2 | U139: 3.636363636
B140: ÁNCASH | C140: CORONGO | D140: CORONGO | E140: 020901 | F140: 110 | G140: 27 | H140: 24.54545455 | I140: 83 | J140: 45 | K140: 54.21686747 | L140: 110 | M140: 6 | N140: 5.454545455 | O140: 110 | P140: 0 | Q140: 0 | R140: 1 | S140: 0.9090909091 | T140: 0 | U140: 0
B141: ÁNCASH | C141: CORONGO | D141: CUSCA | E141: 020904 | F141: 233 | G141: 64 | H141: 27.46781116 | I141: 169 | J141: 106 | K141: 62.72189349 | L141: 233 | M141: 5 | N141: 2.145922747 | O141: 233 | P141: 0 | Q141: 0 | R141: 15 | S141: 6.43776824 | T141: 2 | U141: 0.8583690987
B142: ÁNCASH | C142: CORONGO | D142: LA PAMPA | E142: 020905 | F142: 45 | G142: 8 | H142: 17.77777778 | I142: 37 | J142: 18 | K142: 48.64864865 | L142: 45 | M142: 1 | N142: 2.222222222 | O142: 45 | P142: 1 | Q142: 2.222222222 | R142: 4 | S142: 8.888888889 | T142: 0 | U142: 0
B143: ÁNCASH | C143: CORONGO | D143: YANAC | E143: 020906 | F143: 43 | G143: 7 | H143: 16.27906977 | I143: 36 | J143: 18 | K143: 50 | L143: 43 | M143: 1 | N143: 2.325581395 | O143: 43 | P143: 1 | Q143: 2.325581395 | R143: 5 | S143: 11.62790698 | T143: 1 | U143: 2.325581395
B144: ÁNCASH | C144: CORONGO | D144: YUPAN | E144: 020907 | F144: 19 | G144: 7 | H144: 36.84210526 | I144: 12 | J144: 7 | K144: 58.33333333 | L144: 19 | M144: 1 | N144: 5.263157895 | O144: 19 | P144: 0 | Q144: 0 | R144: 1 | S144: 5.263157895 | T144: 0 | U144: 0
B145: ÁNCASH | C145: HUARAZ | D145: COCHABAMBA | E145: 020102 | F145: 142 | G145: 76 | H145: 53.52112676 | I145: 66 | J145: 42 | K145: 63.63636364 | L145: 142 | M145: 1 | N145: 0.7042253521 | O145: 142 | P145: 0 | Q145: 0 | R145: 1 | S145: 0.7042253521 | T145: 0 | U145: 0
B146: ÁNCASH | C146: HUARAZ | D146: COLCABAMBA | E146: 020103 | F146: 16 | G146: 2 | H146: 12.5 | I146: 14 | J146: 3 | K146: 21.42857143 | L146: 16 | M146: 0 | N146: 0 | O146: 16 | P146: 0 | Q146: 0 | R146: 0 | S146: 0 | T146: 0 | U146: 0
B147: ÁNCASH | C147: HUARAZ | D147: HUANCHAY | E147: 020104 | F147: 79 | G147: 23 | H147: 29.11392405 | I147: 56 | J147: 21 | K147: 37.5 | L147: 79 | M147: 0 | N147: 0 | O147: 79 | P147: 1 | Q147: 1.265822785 | R147: 10 | S147: 12.65822785 | T147: 0 | U147: 0
B148: ÁNCASH | C148: HUARAZ | D148: HUARAZ | E148: 020101 | F148: 2751 | G148: 503 | H148: 18.28426027 | I148: 2248 | J148: 968 | K148: 43.06049822 | L148: 2751 | M148: 123 | N148: 4.471101418 | O148: 2751 | P148: 22 | Q148: 0.7997091967 | R148: 151 | S148: 5.488913123 | T148: 27 | U148: 0.9814612868
B149: ÁNCASH | C149: HUARAZ | D149: INDEPENDENCIA | E149: 020105 | F149: 4173 | G149: 832 | H149: 19.9376947 | I149: 3341 | J149: 1459 | K149: 43.66956001 | L149: 4173 | M149: 179 | N149: 4.28947999 | O149: 4173 | P149: 48 | Q149: 1.150251618 | R149: 196 | S149: 4.696860772 | T149: 39 | U149: 0.9345794393
B150: ÁNCASH | C150: HUARAZ | D150: JANGAS | E150: 020106 | F150: 352 | G150: 81 | H150: 23.01136364 | I150: 271 | J150: 132 | K150: 48.70848708 | L150: 352 | M150: 7 | N150: 1.988636364 | O150: 352 | P150: 1 | Q150: 0.2840909091 | R150: 27 | S150: 7.670454545 | T150: 4 | U150: 1.136363636
B151: ÁNCASH | C151: HUARAZ | D151: LA LIBERTAD | E151: 020107 | F151: 120 | G151: 55 | H151: 45.83333333 | I151: 65 | J151: 38 | K151: 58.46153846 | L151: 120 | M151: 10 | N151: 8.333333333 | O151: 120 | P151: 4 | Q151: 3.333333333 | R151: 5 | S151: 4.166666667 | T151: 0 | U151: 0
B152: ÁNCASH | C152: HUARAZ | D152: OLLEROS | E152: 020108 | F152: 170 | G152: 49 | H152: 28.82352941 | I152: 121 | J152: 72 | K152: 59.50413223 | L152: 170 | M152: 7 | N152: 4.117647059 | O152: 170 | P152: 0 | Q152: 0 | R152: 9 | S152: 5.294117647 | T152: 0 | U152: 0
B153: ÁNCASH | C153: HUARAZ | D153: PARIACOTO | E153: 020110 | F153: 405 | G153: 121 | H153: 29.87654321 | I153: 284 | J153: 139 | K153: 48.94366197 | L153: 405 | M153: 10 | N153: 2.469135802 | O153: 405 | P153: 1 | Q153: 0.2469135802 | R153: 17 | S153: 4.197530864 | T153: 6 | U153: 1.481481481
B154: ÁNCASH | C154: HUARAZ | D154: PIRA | E154: 020111 | F154: 6 | G154: 2 | H154: 33.33333333 | I154: 4 | J154: 3 | K154: 75 | L154: 6 | M154: 0 | N154: 0 | O154: 6 | P154: 0 | Q154: 0 | R154: 2 | S154: 33.33333333 | T154: 0 | U154: 0
B155: ÁNCASH | C155: HUARAZ | D155: TARICA | E155: 020112 | F155: 419 | G155: 119 | H155: 28.40095465 | I155: 300 | J155: 140 | K155: 46.66666667 | L155: 419 | M155: 10 | N155: 2.386634845 | O155: 419 | P155: 5 | Q155: 1.193317422 | R155: 22 | S155: 5.250596659 | T155: 9 | U155: 2.14797136
B156: ÁNCASH | C156: HUARI | D156: CAJAY | E156: 021003 | F156: 176 | G156: 40 | H156: 22.72727273 | I156: 136 | J156: 78 | K156: 57.35294118 | L156: 176 | M156: 8 | N156: 4.545454545 | O156: 176 | P156: 4 | Q156: 2.272727273 | R156: 7 | S156: 3.977272727 | T156: 2 | U156: 1.136363636
B157: ÁNCASH | C157: HUARI | D157: CHAVIN DE HUANTAR | E157: 021004 | F157: 623 | G157: 207 | H157: 33.22632424 | I157: 416 | J157: 218 | K157: 52.40384615 | L157: 623 | M157: 39 | N157: 6.260032103 | O157: 623 | P157: 5 | Q157: 0.8025682183 | R157: 19 | S157: 3.04975923 | T157: 6 | U157: 0.963081862
B158: ÁNCASH | C158: HUARI | D158: HUACACHI | E158: 021005 | F158: 117 | G158: 51 | H158: 43.58974359 | I158: 66 | J158: 45 | K158: 68.18181818 | L158: 117 | M158: 11 | N158: 9.401709402 | O158: 117 | P158: 1 | Q158: 0.8547008547 | R158: 4 | S158: 3.418803419 | T158: 1 | U158: 0.8547008547
B159: ÁNCASH | C159: HUARI | D159: HUACCHIS | E159: 021006 | F159: 37 | G159: 13 | H159: 35.13513514 | I159: 24 | J159: 16 | K159: 66.66666667 | L159: 37 | M159: 0 | N159: 0 | O159: 37 | P159: 0 | Q159: 0 | R159: 7 | S159: 18.91891892 | T159: 1 | U159: 2.702702703
B160: ÁNCASH | C160: HUARI | D160: HUACHIS | E160: 021007 | F160: 232 | G160: 55 | H160: 23.70689655 | I160: 177 | J160: 77 | K160: 43.50282486 | L160: 232 | M160: 12 | N160: 5.172413793 | O160: 232 | P160: 3 | Q160: 1.293103448 | R160: 8 | S160: 3.448275862 | T160: 2 | U160: 0.8620689655
B161: ÁNCASH | C161: HUARI | D161: HUANTAR | E161: 021008 | F161: 201 | G161: 53 | H161: 26.3681592 | I161: 148 | J161: 77 | K161: 52.02702703 | L161: 201 | M161: 3 | N161: 1.492537313 | O161: 201 | P161: 0 | Q161: 0 | R161: 11 | S161: 5.472636816 | T161: 4 | U161: 1.990049751
B162: ÁNCASH | C162: HUARI | D162: HUARI | E162: 021001 | F162: 1026 | G162: 204 | H162: 19.88304094 | I162: 822 | J162: 377 | K162: 45.86374696 | L162: 1026 | M162: 52 | N162: 5.068226121 | O162: 1026 | P162: 8 | Q162: 0.7797270955 | R162: 38 | S162: 3.703703704 | T162: 12 | U162: 1.169590643
B163: ÁNCASH | C163: HUARI | D163: MASIN | E163: 021009 | F163: 125 | G163: 23 | H163: 18.4 | I163: 102 | J163: 44 | K163: 43.1372549 | L163: 125 | M163: 7 | N163: 5.6 | O163: 125 | P163: 2 | Q163: 1.6 | R163: 7 | S163: 5.6 | T163: 1 | U163: 0.8
B164: ÁNCASH | C164: HUARI | D164: PONTO | E164: 021011 | F164: 193 | G164: 60 | H164: 31.0880829 | I164: 133 | J164: 83 | K164: 62.40601504 | L164: 193 | M164: 16 | N164: 8.29015544 | O164: 193 | P164: 4 | Q164: 2.07253886 | R164: 8 | S164: 4.14507772 | T164: 1 | U164: 0.518134715
B165: ÁNCASH | C165: HUARI | D165: RAHUAPAMPA | E165: 021012 | F165: 47 | G165: 7 | H165: 14.89361702 | I165: 40 | J165: 19 | K165: 47.5 | L165: 47 | M165: 0 | N165: 0 | O165: 47 | P165: 0 | Q165: 0 | R165: 1 | S165: 2.127659574 | T165: 0 | U165: 0
B166: ÁNCASH | C166: HUARI | D166: SAN MARCOS | E166: 021014 | F166: 1150 | G166: 250 | H166: 21.73913043 | I166: 900 | J166: 428 | K166: 47.55555556 | L166: 1150 | M166: 42 | N166: 3.652173913 | O166: 1150 | P166: 13 | Q166: 1.130434783 | R166: 56 | S166: 4.869565217 | T166: 11 | U166: 0.9565217391
B167: ÁNCASH | C167: HUARI | D167: SAN PEDRO DE CHANA | E167: 021015 | F167: 330 | G167: 118 | H167: 35.75757576 | I167: 212 | J167: 116 | K167: 54.71698113 | L167: 330 | M167: 17 | N167: 5.151515152 | O167: 330 | P167: 8 | Q167: 2.424242424 | R167: 22 | S167: 6.666666667 | T167: 8 | U167: 2.424242424
B168: ÁNCASH | C168: HUARI | D168: UCO | E168: 021016 | F168: 26 | G168: 5 | H168: 19.23076923 | I168: 21 | J168: 11 | K168: 52.38095238 | L168: 26 | M168: 2 | N168: 7.692307692 | O168: 26 | P168: 1 | Q168: 3.846153846 | R168: 1 | S168: 3.846153846 | T168: 0 | U168: 0
B169: ÁNCASH | C169: HUARMEY | D169: COCHAPETI | E169: 021102 | F169: 41 | G169: 11 | H169: 26.82926829 | I169: 30 | J169: 16 | K169: 53.33333333 | L169: 41 | M169: 3 | N169: 7.317073171 | O169: 41 | P169: 1 | Q169: 2.43902439 | R169: 2 | S169: 4.87804878 | T169: 2 | U169: 4.87804878
B170: ÁNCASH | C170: HUARMEY | D170: CULEBRAS | E170: 021103 | F170: 229 | G170: 23 | H170: 10.04366812 | I170: 206 | J170: 81 | K170: 39.32038835 | L170: 229 | M170: 5 | N170: 2.183406114 | O170: 229 | P170: 0 | Q170: 0 | R170: 22 | S170: 9.6069869 | T170: 4 | U170: 1.746724891
B171: ÁNCASH | C171: HUARMEY | D171: HUARMEY | E171: 021101 | F171: 1154 | G171: 83 | H171: 7.19237435 | I171: 1071 | J171: 329 | K171: 30.71895425 | L171: 1154 | M171: 14 | N171: 1.213171577 | O171: 1154 | P171: 2 | Q171: 0.1733102253 | R171: 104 | S171: 9.012131716 | T171: 23 | U171: 1.993067591
B172: ÁNCASH | C172: HUARMEY | D172: HUAYAN | E172: 021104 | F172: 35 | G172: 9 | H172: 25.71428571 | I172: 26 | J172: 11 | K172: 42.30769231 | L172: 35 | M172: 1 | N172: 2.857142857 | O172: 35 | P172: 1 | Q172: 2.857142857 | R172: 1 | S172: 2.857142857 | T172: 1 | U172: 2.857142857
B173: ÁNCASH | C173: HUARMEY | D173: MALVAS | E173: 021105 | F173: 38 | G173: 6 | H173: 15.78947368 | I173: 32 | J173: 14 | K173: 43.75 | L173: 38 | M173: 1 | N173: 2.631578947 | O173: 38 | P173: 0 | Q173: 0 | R173: 3 | S173: 7.894736842 | T173: 0 | U173: 0
B174: ÁNCASH | C174: HUAYLAS | D174: CARAZ | E174: 021201 | F174: 1904 | G174: 398 | H174: 20.90336134 | I174: 1506 | J174: 700 | K174: 46.48074369 | L174: 1904 | M174: 72 | N174: 3.781512605 | O174: 1904 | P174: 16 | Q174: 0.8403361345 | R174: 76 | S174: 3.991596639 | T174: 21 | U174: 1.102941176
B175: ÁNCASH | C175: HUAYLAS | D175: HUALLANCA | E175: 021202 | F175: 57 | G175: 10 | H175: 17.54385965 | I175: 47 | J175: 17 | K175: 36.17021277 | L175: 57 | M175: 2 | N175: 3.50877193 | O175: 57 | P175: 0 | Q175: 0 | R175: 3 | S175: 5.263157895 | T175: 0 | U175: 0
B176: ÁNCASH | C176: HUAYLAS | D176: HUATA | E176: 021203 | F176: 106 | G176: 33 | H176: 31.13207547 | I176: 73 | J176: 44 | K176: 60.2739726 | L176: 106 | M176: 9 | N176: 8.490566038 | O176: 106 | P176: 3 | Q176: 2.830188679 | R176: 5 | S176: 4.716981132 | T176: 1 | U176: 0.9433962264
B177: ÁNCASH | C177: HUAYLAS | D177: HUAYLAS | E177: 021204 | F177: 97 | G177: 23 | H177: 23.71134021 | I177: 74 | J177: 36 | K177: 48.64864865 | L177: 97 | M177: 3 | N177: 3.092783505 | O177: 97 | P177: 1 | Q177: 1.030927835 | R177: 3 | S177: 3.092783505 | T177: 1 | U177: 1.030927835
B178: ÁNCASH | C178: HUAYLAS | D178: MATO | E178: 021205 | F178: 162 | G178: 38 | H178: 23.45679012 | I178: 124 | J178: 73 | K178: 58.87096774 | L178: 162 | M178: 8 | N178: 4.938271605 | O178: 162 | P178: 1 | Q178: 0.6172839506 | R178: 3 | S178: 1.851851852 | T178: 4 | U178: 2.469135802
B179: ÁNCASH | C179: HUAYLAS | D179: PAMPAROMAS | E179: 021206 | F179: 825 | G179: 319 | H179: 38.66666667 | I179: 506 | J179: 292 | K179: 57.70750988 | L179: 825 | M179: 33 | N179: 4 | O179: 825 | P179: 5 | Q179: 0.6060606061 | R179: 51 | S179: 6.181818182 | T179: 27 | U179: 3.272727273
B180: ÁNCASH | C180: HUAYLAS | D180: PUEBLO LIBRE | E180: 021207 | F180: 511 | G180: 162 | H180: 31.70254403 | I180: 349 | J180: 196 | K180: 56.16045845 | L180: 511 | M180: 32 | N180: 6.26223092 | O180: 511 | P180: 6 | Q180: 1.174168297 | R180: 32 | S180: 6.26223092 | T180: 4 | U180: 0.782778865
B181: ÁNCASH | C181: HUAYLAS | D181: SANTA CRUZ | E181: 021208 | F181: 390 | G181: 136 | H181: 34.87179487 | I181: 254 | J181: 162 | K181: 63.77952756 | L181: 390 | M181: 18 | N181: 4.615384615 | O181: 390 | P181: 4 | Q181: 1.025641026 | R181: 15 | S181: 3.846153846 | T181: 1 | U181: 0.2564102564
B182: ÁNCASH | C182: HUAYLAS | D182: SANTO TORIBIO | E182: 021209 | F182: 96 | G182: 26 | H182: 27.08333333 | I182: 70 | J182: 44 | K182: 62.85714286 | L182: 96 | M182: 2 | N182: 2.083333333 | O182: 96 | P182: 1 | Q182: 1.041666667 | R182: 8 | S182: 8.333333333 | T182: 2 | U182: 2.083333333
B183: ÁNCASH | C183: HUAYLAS | D183: YURACMARCA | E183: 021210 | F183: 235 | G183: 48 | H183: 20.42553191 | I183: 187 | J183: 99 | K183: 52.94117647 | L183: 235 | M183: 11 | N183: 4.680851064 | O183: 235 | P183: 3 | Q183: 1.276595745 | R183: 21 | S183: 8.936170213 | T183: 2 | U183: 0.8510638298
B184: ÁNCASH | C184: MARISCAL LUZURIAGA | D184: CASCA | E184: 021302 | F184: 269 | G184: 52 | H184: 19.33085502 | I184: 217 | J184: 122 | K184: 56.22119816 | L184: 269 | M184: 16 | N184: 5.94795539 | O184: 269 | P184: 4 | Q184: 1.486988848 | R184: 11 | S184: 4.089219331 | T184: 1 | U184: 0.3717472119
B185: ÁNCASH | C185: MARISCAL LUZURIAGA | D185: ELEAZAR GUZMAN BARRON | E185: 021303 | F185: 90 | G185: 30 | H185: 33.33333333 | I185: 60 | J185: 43 | K185: 71.66666667 | L185: 90 | M185: 6 | N185: 6.666666667 | O185: 90 | P185: 1 | Q185: 1.111111111 | R185: 3 | S185: 3.333333333 | T185: 0 | U185: 0
B186: ÁNCASH | C186: MARISCAL LUZURIAGA | D186: FIDEL OLIVAS ESCUDERO | E186: 021304 | F186: 165 | G186: 53 | H186: 32.12121212 | I186: 112 | J186: 75 | K186: 66.96428571 | L186: 165 | M186: 5 | N186: 3.03030303 | O186: 165 | P186: 0 | Q186: 0 | R186: 7 | S186: 4.242424242 | T186: 1 | U186: 0.6060606061
B187: ÁNCASH | C187: MARISCAL LUZURIAGA | D187: LLAMA | E187: 021305 | F187: 65 | G187: 3 | H187: 4.615384615 | I187: 62 | J187: 22 | K187: 35.48387097 | L187: 65 | M187: 1 | N187: 1.538461538 | O187: 65 | P187: 2 | Q187: 3.076923077 | R187: 1 | S187: 1.538461538 | T187: 1 | U187: 1.538461538
B188: ÁNCASH | C188: MARISCAL LUZURIAGA | D188: LLUMPA | E188: 021306 | F188: 488 | G188: 178 | H188: 36.47540984 | I188: 310 | J188: 170 | K188: 54.83870968 | L188: 488 | M188: 21 | N188: 4.303278689 | O188: 488 | P188: 4 | Q188: 0.8196721311 | R188: 28 | S188: 5.737704918 | T188: 2 | U188: 0.4098360656
B189: ÁNCASH | C189: MARISCAL LUZURIAGA | D189: LUCMA | E189: 021307 | F189: 195 | G189: 57 | H189: 29.23076923 | I189: 138 | J189: 86 | K189: 62.31884058 | L189: 195 | M189: 13 | N189: 6.666666667 | O189: 195 | P189: 1 | Q189: 0.5128205128 | R189: 6 | S189: 3.076923077 | T189: 0 | U189: 0
B190: ÁNCASH | C190: MARISCAL LUZURIAGA | D190: MUSGA | E190: 021308 | F190: 33 | G190: 9 | H190: 27.27272727 | I190: 24 | J190: 13 | K190: 54.16666667 | L190: 33 | M190: 0 | N190: 0 | O190: 33 | P190: 0 | Q190: 0 | R190: 4 | S190: 12.12121212 | T190: 0 | U190: 0
B191: ÁNCASH | C191: MARISCAL LUZURIAGA | D191: PISCOBAMBA | E191: 021301 | F191: 188 | G191: 45 | H191: 23.93617021 | I191: 143 | J191: 75 | K191: 52.44755245 | L191: 188 | M191: 3 | N191: 1.595744681 | O191: 188 | P191: 2 | Q191: 1.063829787 | R191: 6 | S191: 3.191489362 | T191: 0 | U191: 0
B192: ÁNCASH | C192: OCROS | D192: ACAS | E192: 021402 | F192: 20 | G192: 3 | H192: 15 | I192: 17 | J192: 7 | K192: 41.17647059 | L192: 20 | M192: 1 | N192: 5 | O192: 20 | P192: 0 | Q192: 0 | R192: 3 | S192: 15 | T192: 1 | U192: 5
B193: ÁNCASH | C193: OCROS | D193: CAJAMARQUILLA | E193: 021403 | F193: 8 | G193: 2 | H193: 25 | I193: 6 | J193: 4 | K193: 66.66666667 | L193: 8 | M193: 1 | N193: 12.5 | O193: 8 | P193: 0 | Q193: 0 | R193: 1 | S193: 12.5 | T193: 0 | U193: 0
B194: ÁNCASH | C194: OCROS | D194: CARHUAPAMPA | E194: 021404 | F194: 10 | G194: 2 | H194: 20 | I194: 8 | J194: 4 | K194: 50 | L194: 10 | M194: 0 | N194: 0 | O194: 10 | P194: 0 | Q194: 0 | R194: 1 | S194: 10 | T194: 0 | U194: 0
B195: ÁNCASH | C195: OCROS | D195: COCHAS | E195: 021405 | F195: 64 | G195: 8 | H195: 12.5 | I195: 56 | J195: 21 | K195: 37.5 | L195: 64 | M195: 3 | N195: 4.6875 | O195: 64 | P195: 1 | Q195: 1.5625 | R195: 8 | S195: 12.5 | T195: 1 | U195: 1.5625
B196: ÁNCASH | C196: OCROS | D196: CONGAS | E196: 021406 | F196: 76 | G196: 14 | H196: 18.42105263 | I196: 62 | J196: 25 | K196: 40.32258065 | L196: 76 | M196: 1 | N196: 1.315789474 | O196: 76 | P196: 0 | Q196: 0 | R196: 2 | S196: 2.631578947 | T196: 0 | U196: 0
B197: ÁNCASH | C197: OCROS | D197: OCROS | E197: 021401 | F197: 64 | G197: 16 | H197: 25 | I197: 48 | J197: 20 | K197: 41.66666667 | L197: 64 | M197: 4 | N197: 6.25 | O197: 64 | P197: 0 | Q197: 0 | R197: 5 | S197: 7.8125 | T197: 0 | U197: 0
B198: ÁNCASH | C198: OCROS | D198: SAN CRISTOBAL DE RAJAN | E198: 021408 | F198: 13 | G198: 8 | H198: 61.53846154 | I198: 5 | J198: 2 | K198: 40 | L198: 13 | M198: 0 | N198: 0 | O198: 13 | P198: 0 | Q198: 0 | R198: 2 | S198: 15.38461538 | T198: 0 | U198: 0
B199: ÁNCASH | C199: OCROS | D199: SAN PEDRO | E199: 021409 | F199: 40 | G199: 10 | H199: 25 | I199: 30 | J199: 6 | K199: 20 | L199: 40 | M199: 1 | N199: 2.5 | O199: 40 | P199: 0 | Q199: 0 | R199: 2 | S199: 5 | T199: 0 | U199: 0
B200: ÁNCASH | C200: OCROS | D200: SANTIAGO DE CHILCAS | E200: 021410 | F200: 16 | G200: 6 | H200: 37.5 | I200: 10 | J200: 7 | K200: 70 | L200: 16 | M200: 0 | N200: 0 | O200: 16 | P200: 0 | Q200: 0 | R200: 4 | S200: 25 | T200: 0 | U200: 0
B201: ÁNCASH | C201: PALLASCA | D201: BOLOGNESI | E201: 021502 | F201: 74 | G201: 17 | H201: 22.97297297 | I201: 57 | J201: 20 | K201: 35.0877193 | L201: 74 | M201: 5 | N201: 6.756756757 | O201: 74 | P201: 1 | Q201: 1.351351351 | R201: 3 | S201: 4.054054054 | T201: 0 | U201: 0
B202: ÁNCASH | C202: PALLASCA | D202: CABANA | E202: 021501 | F202: 194 | G202: 46 | H202: 23.71134021 | I202: 148 | J202: 66 | K202: 44.59459459 | L202: 194 | M202: 9 | N202: 4.639175258 | O202: 194 | P202: 3 | Q202: 1.546391753 | R202: 10 | S202: 5.154639175 | T202: 5 | U202: 2.577319588
... 1604 more rows

Sheet Anemia 6-35mxDEP
B2: CUADRO N°07 PERÚ: ANEMIA EN NIÑOS DE 6 A 35 MESES QUE ACCEDIERON A LOS ESTABLECIMIENTOS DE SALUD POR NIVELES, SEGÚN DEPARTAMENTO DEL ESTABLECIMIENTO DE SALUD
B3: =INICIO!C8 -> PERIODO: ENERO - MARZO 2018
B5: DEPARTAMENTO | C5: N° DE EVALUADOS | D5: ANEMIA TOTAL | F5: ANEMIA LEVE | H5: ANEMIA MODERADA | J5: ANEMIA SEVERA
D6: N° DE CASOS | E6: % | F6: N° DE CASOS | G6: % | H6: N° DE CASOS | I6: % | J6: N° DE CASOS | K6: %
B7: AMAZONAS | C7: 5379 | D7: 1582 | E7: 29.41067113 | F7: 1129 | G7: 20.98903142 | H7: 439 | I7: 8.161368284 | J7: 14 | K7: 0.2602714259
B8: ÁNCASH | C8: 7890 | D8: 3821 | E8: 48.42839037 | F8: 2246 | G8: 28.46641318 | H8: 1547 | I8: 19.60709759 | J8: 28 | K8: 0.3548795944
B9: APURÍMAC | C9: 6267 | D9: 2641 | E9: 42.14137546 | F9: 1736 | G9: 27.70065422 | H9: 900 | I9: 14.36093825 | J9: 5 | K9: 0.07978299027
B10: AREQUIPA | C10: 8796 | D10: 3527 | E10: 40.09777171 | F10: 2401 | G10: 27.29649841 | H10: 1113 | I10: 12.65347885 | J10: 13 | K10: 0.147794452
B11: AYACUCHO | C11: 11779 | D11: 3877 | E11: 32.91450887 | F11: 2567 | G11: 21.79302148 | H11: 1295 | I11: 10.99414212 | J11: 15 | K11: 0.1273452755
B12: CAJAMARCA | C12: 11049 | D12: 4239 | E12: 38.36546294 | F12: 2723 | G12: 24.64476423 | H12: 1491 | I12: 13.49443389 | J12: 25 | K12: 0.2262648203
B13: CALLAO | C13: 869 | D13: 329 | E13: 37.85960875 | F13: 221 | G13: 25.43153049 | H13: 108 | I13: 12.42807825 | J13: 0 | K13: 0
B14: CUSCO | C14: 11281 | D14: 5555 | E14: 49.24208847 | F14: 3127 | G14: 27.71917383 | H14: 2350 | I14: 20.83148657 | J14: 78 | K14: 0.6914280649
B15: HUANCAVELICA | C15: 6905 | D15: 2891 | E15: 41.86821144 | F15: 1692 | G15: 24.50398262 | H15: 1181 | I15: 17.10354815 | J15: 18 | K15: 0.2606806662
B16: HUÁNUCO | C16: 7150 | D16: 2060 | E16: 28.81118881 | F16: 1372 | G16: 19.18881119 | H16: 681 | I16: 9.524475524 | J16: 7 | K16: 0.0979020979
B17: ICA | C17: 3841 | D17: 1144 | E17: 29.78391044 | F17: 796 | G17: 20.72376985 | H17: 348 | I17: 9.060140588 | J17: 0 | K17: 0
B18: JUNÍN | C18: 9929 | D18: 4398 | E18: 44.29449089 | F18: 2553 | G18: 25.71255917 | H18: 1796 | I18: 18.08842784 | J18: 49 | K18: 0.4935038775
B19: LA LIBERTAD | C19: 6927 | D19: 3928 | E19: 56.70564458 | F19: 2194 | G19: 31.67316299 | H19: 1667 | I19: 24.06525191 | J19: 67 | K19: 0.967229681
B20: LAMBAYEQUE | C20: 1720 | D20: 815 | E20: 47.38372093 | F20: 517 | G20: 30.05813953 | H20: 297 | I20: 17.26744186 | J20: 1 | K20: 0.05813953488
B21: LIMA | C21: 14242 | D21: 5563 | E21: 39.06052521 | F21: 3946 | G21: 27.70678276 | H21: 1597 | I21: 11.21331274 | J21: 20 | K21: 0.1404297149
B22: LORETO | C22: 9305 | D22: 4482 | E22: 48.1676518 | F22: 2812 | G22: 30.22031166 | H22: 1653 | I22: 17.76464267 | J22: 17 | K22: 0.1826974745
B23: MADRE DE DIOS | C23: 966 | D23: 502 | E23: 51.96687371 | F23: 310 | G23: 32.09109731 | H23: 190 | I23: 19.66873706 | J23: 2 | K23: 0.2070393375
B24: MOQUEGUA | C24: 1716 | D24: 547 | E24: 31.87645688 | F24: 376 | G24: 21.91142191 | H24: 170 | I24: 9.906759907 | J24: 1 | K24: 0.05827505828
B25: PASCO | C25: 2310 | D25: 962 | E25: 41.64502165 | F25: 487 | G25: 21.08225108 | H25: 463 | I25: 20.04329004 | J25: 12 | K25: 0.5194805195
B26: PIURA | C26: 6805 | D26: 2285 | E26: 33.57825129 | F26: 1732 | G26: 25.45187362 | H26: 549 | I26: 8.067597355 | J26: 4 | K26: 0.0587803086
B27: PUNO | C27: 8171 | D27: 4648 | E27: 56.88410231 | F27: 2263 | G27: 27.69550851 | H27: 2323 | I27: 28.42981275 | J27: 62 | K27: 0.758781055
B28: SAN MARTÍN | C28: 2848 | D28: 1060 | E28: 37.21910112 | F28: 801 | G28: 28.125 | H28: 256 | I28: 8.988764045 | J28: 3 | K28: 0.1053370787
B29: TACNA | C29: 1625 | D29: 472 | E29: 29.04615385 | F29: 302 | G29: 18.58461538 | H29: 167 | I29: 10.27692308 | J29: 3 | K29: 0.1846153846
B30: TUMBES | C30: 918 | D30: 342 | E30: 37.25490196 | F30: 211 | G30: 22.98474946 | H30: 130 | I30: 14.16122004 | J30: 1 | K30: 0.1089324619
B31: UCAYALI | C31: 1885 | D31: 1034 | E31: 54.85411141 | F31: 625 | G31: 33.15649867 | H31: 402 | I31: 21.32625995 | J31: 7 | K31: 0.3713527851
B32: PERÚ | C32: =SUM(C7:C31) -> 150573 | D32: =SUM(D7:D31) -> 62704 | E32: =(D32/$C32)*100 -> 41.64358816 | F32: =SUM(F7:F31) -> 39139 | G32: 25.99337199 | H32: =SUM(H7:H31) -> 23113 | I32: 15.35002955 | J32: =SUM(J7:J31) -> 452 | K32: 0.3001866204
B33: Fuente: Sistema de Información del Estado Nutricional en niños que acceden al establecimiento de salud, 2018.
B34: Instituto Nacional de Salud / Centro Nacional de Alimentación y Nutrición / Dirección Ejecutiva de Vigilancia Alimentaria y Nutricional.

Sheet Anemia 6-35mxDIRESA
B2: CUADRO N°08 PERÚ: ANEMIA EN NIÑOS 6 A 35 MESES QUE ACCEDIERON A LOS ESTABLECIMIENTOS DE SALUD POR NIVELES, SEGÚN DIRESA / GERESA / DISA
B3: =INICIO!C8 -> PERIODO: ENERO - MARZO 2018
B5: DIRESA / GERESA / DISA | C5: N° DE EVALUADOS | D5: ANEMIA TOTAL | F5: ANEMIA LEVE | H5: ANEMIA MODERADA | J5: ANEMIA SEVERA
D6: N° DE CASOS | E6: % | F6: N° DE CASOS | G6: % | H6: N° DE CASOS | I6: % | J6: N° DE CASOS | K6: %
B7: AMAZONAS | C7: 5379 | D7: 1582 | E7: 29.41067113 | F7: 1129 | G7: 20.98903142 | H7: 439 | I7: 8.161368284 | J7: 14 | K7: 0.2602714259
B8: ÁNCASH | C8: 7890 | D8: 3821 | E8: 48.42839037 | F8: 2246 | G8: 28.46641318 | H8: 1547 | I8: 19.60709759 | J8: 28 | K8: 0.3548795944
B9: ANDAHUAYLAS | C9: 2467 | D9: 1261 | E9: 51.11471423 | F9: 821 | G9: 33.27928658 | H9: 437 | I9: 17.71382246 | J9: 3 | K9: 0.1216051885
B10: APURÍMAC | C10: 3800 | D10: 1380 | E10: 36.31578947 | F10: 915 | G10: 24.07894737 | H10: 463 | I10: 12.18421053 | J10: 2 | K10: 0.05263157895
B11: AREQUIPA | C11: 8796 | D11: 3527 | E11: 40.09777171 | F11: 2401 | G11: 27.29649841 | H11: 1113 | I11: 12.65347885 | J11: 13 | K11: 0.147794452
B12: AYACUCHO | C12: 11779 | D12: 3877 | E12: 32.91450887 | F12: 2567 | G12: 21.79302148 | H12: 1295 | I12: 10.99414212 | J12: 15 | K12: 0.1273452755
B13: CAJAMARCA | C13: 4666 | D13: 1885 | E13: 40.39862838 | F13: 1103 | G13: 23.6390913 | H13: 764 | I13: 16.37376768 | J13: 18 | K13: 0.3857693956
B14: CALLAO | C14: 869 | D14: 329 | E14: 37.85960875 | F14: 221 | G14: 25.43153049 | H14: 108 | I14: 12.42807825 | J14: 0 | K14: 0
B15: CHOTA | C15: 2335 | D15: 995 | E15: 42.6124197 | F15: 622 | G15: 26.63811563 | H15: 370 | I15: 15.84582441 | J15: 3 | K15: 0.1284796574
B16: CUSCO | C16: 11281 | D16: 5555 | E16: 49.24208847 | F16: 3127 | G16: 27.71917383 | H16: 2350 | I16: 20.83148657 | J16: 78 | K16: 0.6914280649
B17: CUTERVO | C17: 1081 | D17: 330 | E17: 30.52728955 | F17: 235 | G17: 21.73913043 | H17: 93 | I17: 8.603145236 | J17: 2 | K17: 0.185013876
B18: HUANCAVELICA | C18: 6905 | D18: 2891 | E18: 41.86821144 | F18: 1692 | G18: 24.50398262 | H18: 1181 | I18: 17.10354815 | J18: 18 | K18: 0.2606806662
B19: HUÁNUCO | C19: 7150 | D19: 2060 | E19: 28.81118881 | F19: 1372 | G19: 19.18881119 | H19: 681 | I19: 9.524475524 | J19: 7 | K19: 0.0979020979
B20: ICA | C20: 3841 | D20: 1144 | E20: 29.78391044 | F20: 796 | G20: 20.72376985 | H20: 348 | I20: 9.060140588 | J20: 0 | K20: 0
B21: JAÉN | C21: 2967 | D21: 1029 | E21: 34.68149646 | F21: 763 | G21: 25.71621166 | H21: 264 | I21: 8.897876643 | J21: 2 | K21: 0.06740815639
B22: JUNÍN | C22: 9929 | D22: 4398 | E22: 44.29449089 | F22: 2553 | G22: 25.71255917 | H22: 1796 | I22: 18.08842784 | J22: 49 | K22: 0.4935038775
B23: LA LIBERTAD | C23: 6927 | D23: 3928 | E23: 56.70564458 | F23: 2194 | G23: 31.67316299 | H23: 1667 | I23: 24.06525191 | J23: 67 | K23: 0.967229681
B24: LAMBAYEQUE | C24: 1720 | D24: 815 | E24: 47.38372093 | F24: 517 | G24: 30.05813953 | H24: 297 | I24: 17.26744186 | J24: 1 | K24: 0.05813953488
B25: LIMA | C25: 7315 | D25: 2529 | E25: 34.57279563 | F25: 1742 | G25: 23.81408066 | H25: 774 | I25: 10.58099795 | J25: 13 | K25: 0.1777170198
B26: LIMA CENTRO | C26: 1891 | D26: 786 | E26: 41.56530936 | F26: 651 | G26: 34.42622951 | H26: 135 | I26: 7.139079852 | J26: 0 | K26: 0
B27: LIMA ESTE | C27: 1715 | D27: 794 | E27: 46.29737609 | F27: 552 | G27: 32.18658892 | H27: 239 | I27: 13.93586006 | J27: 3 | K27: 0.1749271137
B28: LIMA SUR | C28: 3321 | D28: 1454 | E28: 43.78199338 | F28: 1001 | G28: 30.14152364 | H28: 449 | I28: 13.52002409 | J28: 4 | K28: 0.1204456489
B29: LORETO | C29: 9305 | D29: 4482 | E29: 48.1676518 | F29: 2812 | G29: 30.22031166 | H29: 1653 | I29: 17.76464267 | J29: 17 | K29: 0.1826974745
B30: MADRE DE DIOS | C30: 966 | D30: 502 | E30: 51.96687371 | F30: 310 | G30: 32.09109731 | H30: 190 | I30: 19.66873706 | J30: 2 | K30: 0.2070393375
B31: MOQUEGUA | C31: 1716 | D31: 547 | E31: 31.87645688 | F31: 376 | G31: 21.91142191 | H31: 170 | I31: 9.906759907 | J31: 1 | K31: 0.05827505828
B32: PASCO | C32: 2310 | D32: 962 | E32: 41.64502165 | F32: 487 | G32: 21.08225108 | H32: 463 | I32: 20.04329004 | J32: 12 | K32: 0.5194805195
B33: PIURA | C33: 2693 | D33: 969 | E33: 35.98217601 | F33: 713 | G33: 26.47604902 | H33: 255 | I33: 9.468993687 | J33: 1 | K33: 0.03713330858
B34: PUNO | C34: 8171 | D34: 4648 | E34: 56.88410231 | F34: 2263 | G34: 27.69550851 | H34: 2323 | I34: 28.42981275 | J34: 62 | K34: 0.758781055
B35: SAN MARTÍN | C35: 2848 | D35: 1060 | E35: 37.21910112 | F35: 801 | G35: 28.125 | H35: 256 | I35: 8.988764045 | J35: 3 | K35: 0.1053370787
B36: SULLANA | C36: 4112 | D36: 1316 | E36: 32.00389105 | F36: 1019 | G36: 24.7811284 | H36: 294 | I36: 7.149805447 | J36: 3 | K36: 0.07295719844
B37: TACNA | C37: 1625 | D37: 472 | E37: 29.04615385 | F37: 302 | G37: 18.58461538 | H37: 167 | I37: 10.27692308 | J37: 3 | K37: 0.1846153846
B38: TUMBES | C38: 918 | D38: 342 | E38: 37.25490196 | F38: 211 | G38: 22.98474946 | H38: 130 | I38: 14.16122004 | J38: 1 | K38: 0.1089324619
B39: UCAYALI | C39: 1885 | D39: 1034 | E39: 54.85411141 | F39: 625 | G39: 33.15649867 | H39: 402 | I39: 21.32625995 | J39: 7 | K39: 0.3713527851
B40: PERÚ | C40: =SUM(C7:C39) -> 150573 | D40: =SUM(D7:D39) -> 62704 | E40: =D40/C40*100 -> 41.64358816 | F40: =SUM(F7:F39) -> 39139 | G40: =F40/C40*100 -> 25.99337199 | H40: =SUM(H7:H39) -> 23113 | I40: =H40/C40*100 -> 15.35002955 | J40: =SUM(J7:J39) -> 452 | K40: =J40/C40*100 -> 0.3001866204
B41: Fuente: Sistema de Información del Estado Nutricional en niños que acceden al establecimiento de salud, 2018.
B42: Instituto Nacional de Salud / Centro Nacional de Alimentación y Nutrición / Dirección Ejecutiva de Vigilancia Alimentaria y Nutricional.

Sheet Anemia 6-35m x DISTRITO
B2: CUADRO N°09 PERÚ: ANEMIA EN NIÑOS DE 6 a 35 MESES QUE ACCEDIERON A LOS ESTABLECIMIENTOS DE SALUD POR NIVELES DE ANEMIA, SEGÚN DEPARTAMENTO, PROVINCIA Y DISTRITO DE ORIGEN
B3: =INICIO!C8 -> PERIODO: ENERO - MARZO 2018
B5: DEPARTAMENTO | C5: PROVINCIA | D5: DISTRITO | E5: UBIGEO | F5: N° DE EVALUADAS | G5: ANEMIA TOTAL | I5: ANEMIA LEVE | K5: ANEMIA MODERADA | M5: ANEMIA SEVERA
G6: N° DE CASOS | H6: % | I6: N° DE CASOS | J6: % | K6: N° DE CASOS | L6: % | M6: N° DE CASOS | N6: %
B7: AMAZONAS | C7: BAGUA | D7: ARAMANGO | E7: 010202 | F7: 157 | G7: 38 | H7: 24.20382166 | I7: 28 | J7: 17.8343949 | K7: 10 | L7: 6.369426752 | M7: 0 | N7: 0
B8: AMAZONAS | C8: BAGUA | D8: BAGUA | E8: 010201 | F8: 356 | G8: 111 | H8: 31.17977528 | I8: 94 | J8: 26.40449438 | K8: 17 | L8: 4.775280899 | M8: 0 | N8: 0
B9: AMAZONAS | C9: BAGUA | D9: COPALLIN | E9: 010203 | F9: 48 | G9: 18 | H9: 37.5 | I9: 14 | J9: 29.16666667 | K9: 4 | L9: 8.333333333 | M9: 0 | N9: 0
B10: AMAZONAS | C10: BAGUA | D10: EL PARCO | E10: 010204 | F10: 8 | G10: 1 | H10: 12.5 | I10: 1 | J10: 12.5 | K10: 0 | L10: 0 | M10: 0 | N10: 0
B11: AMAZONAS | C11: BAGUA | D11: IMAZA | E11: 010205 | F11: 651 | G11: 279 | H11: 42.85714286 | I11: 184 | J11: 28.26420891 | K11: 95 | L11: 14.59293395 | M11: 0 | N11: 0
B12: AMAZONAS | C12: BAGUA | D12: LA PECA | E12: 010206 | F12: 69 | G12: 3 | H12: 4.347826087 | I12: 1 | J12: 1.449275362 | K12: 2 | L12: 2.898550725 | M12: 0 | N12: 0
B13: AMAZONAS | C13: BONGARA | D13: CUISPES | E13: 010305 | F13: 9 | G13: 3 | H13: 33.33333333 | I13: 2 | J13: 22.22222222 | K13: 1 | L13: 11.11111111 | M13: 0 | N13: 0
B14: AMAZONAS | C14: BONGARA | D14: FLORIDA | E14: 010306 | F14: 75 | G14: 18 | H14: 24 | I14: 17 | J14: 22.66666667 | K14: 1 | L14: 1.333333333 | M14: 0 | N14: 0
B15: AMAZONAS | C15: BONGARA | D15: JAZAN | E15: 010307 | F15: 50 | G15: 6 | H15: 12 | I15: 4 | J15: 8 | K15: 2 | L15: 4 | M15: 0 | N15: 0
B16: AMAZONAS | C16: BONGARA | D16: JUMBILLA | E16: 010301 | F16: 10 | G16: 0 | H16: 0 | I16: 0 | J16: 0 | K16: 0 | L16: 0 | M16: 0 | N16: 0
B17: AMAZONAS | C17: BONGARA | D17: SHIPASBAMBA | E17: 010310 | F17: 11 | G17: 1 | H17: 9.090909091 | I17: 1 | J17: 9.090909091 | K17: 0 | L17: 0 | M17: 0 | N17: 0
B18: AMAZONAS | C18: BONGARA | D18: VALERA | E18: 010311 | F18: 7 | G18: 1 | H18: 14.28571429 | I18: 0 | J18: 0 | K18: 1 | L18: 14.28571429 | M18: 0 | N18: 0
B19: AMAZONAS | C19: BONGARA | D19: YAMBRASBAMBA | E19: 010312 | F19: 40 | G19: 14 | H19: 35 | I19: 8 | J19: 20 | K19: 6 | L19: 15 | M19: 0 | N19: 0
B20: AMAZONAS | C20: CHACHAPOYAS | D20: CHACHAPOYAS | E20: 010101 | F20: 109 | G20: 60 | H20: 55.04587156 | I20: 36 | J20: 33.02752294 | K20: 23 | L20: 21.10091743 | M20: 1 | N20: 0.9174311927
B21: AMAZONAS | C21: CHACHAPOYAS | D21: CHUQUIBAMBA | E21: 010106 | F21: 18 | G21: 3 | H21: 16.66666667 | I21: 1 | J21: 5.555555556 | K21: 2 | L21: 11.11111111 | M21: 0 | N21: 0
B22: AMAZONAS | C22: CHACHAPOYAS | D22: LA JALCA | E22: 010109 | F22: 93 | G22: 16 | H22: 17.20430108 | I22: 12 | J22: 12.90322581 | K22: 4 | L22: 4.301075269 | M22: 0 | N22: 0
B23: AMAZONAS | C23: CHACHAPOYAS | D23: LEIMEBAMBA | E23: 010110 | F23: 37 | G23: 13 | H23: 35.13513514 | I23: 8 | J23: 21.62162162 | K23: 5 | L23: 13.51351351 | M23: 0 | N23: 0
B24: AMAZONAS | C24: CHACHAPOYAS | D24: LEVANTO | E24: 010111 | F24: 18 | G24: 15 | H24: 83.33333333 | I24: 4 | J24: 22.22222222 | K24: 11 | L24: 61.11111111 | M24: 0 | N24: 0
B25: AMAZONAS | C25: CHACHAPOYAS | D25: MARISCAL CASTILLA | E25: 010113 | F25: 10 | G25: 0 | H25: 0 | I25: 0 | J25: 0 | K25: 0 | L25: 0 | M25: 0 | N25: 0
B26: AMAZONAS | C26: CHACHAPOYAS | D26: MONTEVIDEO | E26: 010115 | F26: 7 | G26: 1 | H26: 14.28571429 | I26: 1 | J26: 14.28571429 | K26: 0 | L26: 0 | M26: 0 | N26: 0
B27: AMAZONAS | C27: CHACHAPOYAS | D27: SOLOCO | E27: 010120 | F27: 6 | G27: 1 | H27: 16.66666667 | I27: 1 | J27: 16.66666667 | K27: 0 | L27: 0 | M27: 0 | N27: 0
B28: AMAZONAS | C28: CONDORCANQUI | D28: EL CENEPA | E28: 010402 | F28: 366 | G28: 146 | H28: 39.89071038 | I28: 79 | J28: 21.58469945 | K28: 62 | L28: 16.93989071 | M28: 5 | N28: 1.366120219
B29: AMAZONAS | C29: CONDORCANQUI | D29: NIEVA | E29: 010401 | F29: 791 | G29: 287 | H29: 36.28318584 | I29: 213 | J29: 26.92793932 | K29: 74 | L29: 9.355246523 | M29: 0 | N29: 0
B30: AMAZONAS | C30: CONDORCANQUI | D30: RIO SANTIAGO | E30: 010403 | F30: 523 | G30: 150 | H30: 28.68068834 | I30: 107 | J30: 20.45889101 | K30: 42 | L30: 8.030592734 | M30: 1 | N30: 0.1912045889
B31: AMAZONAS | C31: LUYA | D31: CAMPORREDONDO | E31: 010502 | F31: 52 | G31: 10 | H31: 19.23076923 | I31: 9 | J31: 17.30769231 | K31: 1 | L31: 1.923076923 | M31: 0 | N31: 0
B32: AMAZONAS | C32: LUYA | D32: COCABAMBA | E32: 010503 | F32: 17 | G32: 7 | H32: 41.17647059 | I32: 6 | J32: 35.29411765 | K32: 1 | L32: 5.882352941 | M32: 0 | N32: 0
B33: AMAZONAS | C33: LUYA | D33: COLCAMAR | E33: 010504 | F33: 27 | G33: 3 | H33: 11.11111111 | I33: 3 | J33: 11.11111111 | K33: 0 | L33: 0 | M33: 0 | N33: 0
B34: AMAZONAS | C34: LUYA | D34: CONILA | E34: 010505 | F34: 14 | G34: 0 | H34: 0 | I34: 0 | J34: 0 | K34: 0 | L34: 0 | M34: 0 | N34: 0
B35: AMAZONAS | C35: LUYA | D35: LAMUD | E35: 010501 | F35: 16 | G35: 3 | H35: 18.75 | I35: 3 | J35: 18.75 | K35: 0 | L35: 0 | M35: 0 | N35: 0
B36: AMAZONAS | C36: LUYA | D36: LONGUITA | E36: 010507 | F36: 21 | G36: 13 | H36: 61.9047619 | I36: 10 | J36: 47.61904762 | K36: 3 | L36: 14.28571429 | M36: 0 | N36: 0
B37: AMAZONAS | C37: LUYA | D37: LONYA CHICO | E37: 010508 | F37: 6 | G37: 0 | H37: 0 | I37: 0 | J37: 0 | K37: 0 | L37: 0 | M37: 0 | N37: 0
B38: AMAZONAS | C38: LUYA | D38: LUYA | E38: 010509 | F38: 35 | G38: 10 | H38: 28.57142857 | I38: 10 | J38: 28.57142857 | K38: 0 | L38: 0 | M38: 0 | N38: 0
B39: AMAZONAS | C39: LUYA | D39: MARIA | E39: 010511 | F39: 7 | G39: 0 | H39: 0 | I39: 0 | J39: 0 | K39: 0 | L39: 0 | M39: 0 | N39: 0
B40: AMAZONAS | C40: LUYA | D40: OCALLI | E40: 010512 | F40: 36 | G40: 5 | H40: 13.88888889 | I40: 4 | J40: 11.11111111 | K40: 1 | L40: 2.777777778 | M40: 0 | N40: 0
B41: AMAZONAS | C41: LUYA | D41: OCUMAL | E41: 010513 | F41: 89 | G41: 5 | H41: 5.617977528 | I41: 3 | J41: 3.370786517 | K41: 2 | L41: 2.247191011 | M41: 0 | N41: 0
B42: AMAZONAS | C42: LUYA | D42: PISUQUIA | E42: 010514 | F42: 85 | G42: 21 | H42: 24.70588235 | I42: 18 | J42: 21.17647059 | K42: 3 | L42: 3.529411765 | M42: 0 | N42: 0
B43: AMAZONAS | C43: LUYA | D43: PROVIDENCIA | E43: 010515 | F43: 22 | G43: 9 | H43: 40.90909091 | I43: 6 | J43: 27.27272727 | K43: 3 | L43: 13.63636364 | M43: 0 | N43: 0
B44: AMAZONAS | C44: LUYA | D44: SAN CRISTOBAL | E44: 010516 | F44: 7 | G44: 1 | H44: 14.28571429 | I44: 1 | J44: 14.28571429 | K44: 0 | L44: 0 | M44: 0 | N44: 0
B45: AMAZONAS | C45: LUYA | D45: SAN FRANCISCO DE YESO | E45: 010517 | F45: 8 | G45: 3 | H45: 37.5 | I45: 1 | J45: 12.5 | K45: 2 | L45: 25 | M45: 0 | N45: 0
B46: AMAZONAS | C46: LUYA | D46: SAN JERONIMO | E46: 010518 | F46: 5 | G46: 0 | H46: 0 | I46: 0 | J46: 0 | K46: 0 | L46: 0 | M46: 0 | N46: 0
B47: AMAZONAS | C47: LUYA | D47: SAN JUAN DE LOPECANCHA | E47: 010519 | F47: 10 | G47: 0 | H47: 0 | I47: 0 | J47: 0 | K47: 0 | L47: 0 | M47: 0 | N47: 0
B48: AMAZONAS | C48: LUYA | D48: SANTA CATALINA | E48: 010520 | F48: 39 | G48: 8 | H48: 20.51282051 | I48: 6 | J48: 15.38461538 | K48: 2 | L48: 5.128205128 | M48: 0 | N48: 0
B49: AMAZONAS | C49: LUYA | D49: SANTO TOMAS | E49: 010521 | F49: 60 | G49: 8 | H49: 13.33333333 | I49: 7 | J49: 11.66666667 | K49: 1 | L49: 1.666666667 | M49: 0 | N49: 0
B50: AMAZONAS | C50: LUYA | D50: TINGO | E50: 010522 | F50: 19 | G50: 5 | H50: 26.31578947 | I50: 4 | J50: 21.05263158 | K50: 1 | L50: 5.263157895 | M50: 0 | N50: 0
B51: AMAZONAS | C51: LUYA | D51: TRITA | E51: 010523 | F51: 21 | G51: 0 | H51: 0 | I51: 0 | J51: 0 | K51: 0 | L51: 0 | M51: 0 | N51: 0
B52: AMAZONAS | C52: RODRIGUEZ DE MENDOZA | D52: CHIRIMOTO | E52: 010602 | F52: 23 | G52: 3 | H52: 13.04347826 | I52: 2 | J52: 8.695652174 | K52: 1 | L52: 4.347826087 | M52: 0 | N52: 0
B53: AMAZONAS | C53: RODRIGUEZ DE MENDOZA | D53: HUAMBO | E53: 010604 | F53: 24 | G53: 3 | H53: 12.5 | I53: 3 | J53: 12.5 | K53: 0 | L53: 0 | M53: 0 | N53: 0
B54: AMAZONAS | C54: RODRIGUEZ DE MENDOZA | D54: LIMABAMBA | E54: 010605 | F54: 18 | G54: 3 | H54: 16.66666667 | I54: 3 | J54: 16.66666667 | K54: 0 | L54: 0 | M54: 0 | N54: 0
B55: AMAZONAS | C55: RODRIGUEZ DE MENDOZA | D55: LONGAR | E55: 010606 | F55: 22 | G55: 9 | H55: 40.90909091 | I55: 8 | J55: 36.36363636 | K55: 1 | L55: 4.545454545 | M55: 0 | N55: 0
B56: AMAZONAS | C56: RODRIGUEZ DE MENDOZA | D56: MARISCAL BENAVIDES | E56: 010607 | F56: 5 | G56: 2 | H56: 40 | I56: 2 | J56: 40 | K56: 0 | L56: 0 | M56: 0 | N56: 0
B57: AMAZONAS | C57: RODRIGUEZ DE MENDOZA | D57: OMIA | E57: 010609 | F57: 54 | G57: 20 | H57: 37.03703704 | I57: 12 | J57: 22.22222222 | K57: 8 | L57: 14.81481481 | M57: 0 | N57: 0
B58: AMAZONAS | C58: RODRIGUEZ DE MENDOZA | D58: SAN NICOLAS | E58: 010601 | F58: 68 | G58: 19 | H58: 27.94117647 | I58: 16 | J58: 23.52941176 | K58: 3 | L58: 4.411764706 | M58: 0 | N58: 0
B59: AMAZONAS | C59: RODRIGUEZ DE MENDOZA | D59: SANTA ROSA | E59: 010610 | F59: 13 | G59: 1 | H59: 7.692307692 | I59: 1 | J59: 7.692307692 | K59: 0 | L59: 0 | M59: 0 | N59: 0
B60: AMAZONAS | C60: RODRIGUEZ DE MENDOZA | D60: TOTORA | E60: 010611 | F60: 5 | G60: 0 | H60: 0 | I60: 0 | J60: 0 | K60: 0 | L60: 0 | M60: 0 | N60: 0
B61: AMAZONAS | C61: RODRIGUEZ DE MENDOZA | D61: VISTA ALEGRE | E61: 010612 | F61: 9 | G61: 6 | H61: 66.66666667 | I61: 3 | J61: 33.33333333 | K61: 3 | L61: 33.33333333 | M61: 0 | N61: 0
B62: AMAZONAS | C62: UTCUBAMBA | D62: BAGUA GRANDE | E62: 010701 | F62: 567 | G62: 110 | H62: 19.40035273 | I62: 83 | J62: 14.63844797 | K62: 22 | L62: 3.880070547 | M62: 5 | N62: 0.8818342152
B63: AMAZONAS | C63: UTCUBAMBA | D63: CAJARURO | E63: 010702 | F63: 257 | G63: 81 | H63: 31.51750973 | I63: 67 | J63: 26.07003891 | K63: 14 | L63: 5.447470817 | M63: 0 | N63: 0
B64: AMAZONAS | C64: UTCUBAMBA | D64: CUMBA | E64: 010703 | F64: 13 | G64: 4 | H64: 30.76923077 | I64: 4 | J64: 30.76923077 | K64: 0 | L64: 0 | M64: 0 | N64: 0
B65: AMAZONAS | C65: UTCUBAMBA | D65: EL MILAGRO | E65: 010704 | F65: 15 | G65: 4 | H65: 26.66666667 | I65: 1 | J65: 6.666666667 | K65: 1 | L65: 6.666666667 | M65: 2 | N65: 13.33333333
B66: AMAZONAS | C66: UTCUBAMBA | D66: JAMALCA | E66: 010705 | F66: 89 | G66: 4 | H66: 4.494382022 | I66: 4 | J66: 4.494382022 | K66: 0 | L66: 0 | M66: 0 | N66: 0
B67: AMAZONAS | C67: UTCUBAMBA | D67: LONYA GRANDE | E67: 010706 | F67: 74 | G67: 9 | H67: 12.16216216 | I67: 7 | J67: 9.459459459 | K67: 2 | L67: 2.702702703 | M67: 0 | N67: 0
B68: AMAZONAS | C68: UTCUBAMBA | D68: YAMON | E68: 010707 | F68: 11 | G68: 2 | H68: 18.18181818 | I68: 2 | J68: 18.18181818 | K68: 0 | L68: 0 | M68: 0 | N68: 0
B69: ÁNCASH | C69: AIJA | D69: AIJA | E69: 020201 | F69: 24 | G69: 11 | H69: 45.83333333 | I69: 5 | J69: 20.83333333 | K69: 6 | L69: 25 | M69: 0 | N69: 0
B70: ÁNCASH | C70: AIJA | D70: CORIS | E70: 020202 | F70: 20 | G70: 9 | H70: 45 | I70: 8 | J70: 40 | K70: 1 | L70: 5 | M70: 0 | N70: 0
B71: ÁNCASH | C71: AIJA | D71: LA MERCED | E71: 020204 | F71: 26 | G71: 14 | H71: 53.84615385 | I71: 2 | J71: 7.692307692 | K71: 12 | L71: 46.15384615 | M71: 0 | N71: 0
B72: ÁNCASH | C72: AIJA | D72: SUCCHA | E72: 020205 | F72: 21 | G72: 11 | H72: 52.38095238 | I72: 7 | J72: 33.33333333 | K72: 4 | L72: 19.04761905 | M72: 0 | N72: 0
B73: ÁNCASH | C73: ANTONIO RAYMONDI | D73: ACZO | E73: 020302 | F73: 16 | G73: 10 | H73: 62.5 | I73: 8 | J73: 50 | K73: 2 | L73: 12.5 | M73: 0 | N73: 0
B74: ÁNCASH | C74: ANTONIO RAYMONDI | D74: CHACCHO | E74: 020303 | F74: 18 | G74: 8 | H74: 44.44444444 | I74: 6 | J74: 33.33333333 | K74: 2 | L74: 11.11111111 | M74: 0 | N74: 0
B75: ÁNCASH | C75: ANTONIO RAYMONDI | D75: LLAMELLIN | E75: 020301 | F75: 5 | G75: 4 | H75: 80 | I75: 1 | J75: 20 | K75: 3 | L75: 60 | M75: 0 | N75: 0
B76: ÁNCASH | C76: ANTONIO RAYMONDI | D76: MIRGAS | E76: 020305 | F76: 10 | G76: 9 | H76: 90 | I76: 5 | J76: 50 | K76: 4 | L76: 40 | M76: 0 | N76: 0
B77: ÁNCASH | C77: ANTONIO RAYMONDI | D77: SAN JUAN DE RONTOY | E77: 020306 | F77: 16 | G77: 7 | H77: 43.75 | I77: 7 | J77: 43.75 | K77: 0 | L77: 0 | M77: 0 | N77: 0
B78: ÁNCASH | C78: ASUNCION | D78: ACOCHACA | E78: 020402 | F78: 40 | G78: 23 | H78: 57.5 | I78: 13 | J78: 32.5 | K78: 10 | L78: 25 | M78: 0 | N78: 0
B79: ÁNCASH | C79: ASUNCION | D79: CHACAS | E79: 020401 | F79: 66 | G79: 7 | H79: 10.60606061 | I79: 4 | J79: 6.060606061 | K79: 3 | L79: 4.545454545 | M79: 0 | N79: 0
B80: ÁNCASH | C80: BOLOGNESI | D80: ABELARDO PARDO LEZAMETA | E80: 020502 | F80: 5 | G80: 3 | H80: 60 | I80: 2 | J80: 40 | K80: 1 | L80: 20 | M80: 0 | N80: 0
B81: ÁNCASH | C81: BOLOGNESI | D81: ANTONIO RAYMONDI | E81: 020503 | F81: 15 | G81: 1 | H81: 6.666666667 | I81: 1 | J81: 6.666666667 | K81: 0 | L81: 0 | M81: 0 | N81: 0
B82: ÁNCASH | C82: BOLOGNESI | D82: AQUIA | E82: 020504 | F82: 20 | G82: 15 | H82: 75 | I82: 6 | J82: 30 | K82: 7 | L82: 35 | M82: 2 | N82: 10
B83: ÁNCASH | C83: BOLOGNESI | D83: CAJACAY | E83: 020505 | F83: 21 | G83: 7 | H83: 33.33333333 | I83: 3 | J83: 14.28571429 | K83: 4 | L83: 19.04761905 | M83: 0 | N83: 0
B84: ÁNCASH | C84: BOLOGNESI | D84: CHIQUIAN | E84: 020501 | F84: 27 | G84: 27 | H84: 100 | I84: 0 | J84: 0 | K84: 22 | L84: 81.48148148 | M84: 5 | N84: 18.51851852
B85: ÁNCASH | C85: BOLOGNESI | D85: COLQUIOC | E85: 020507 | F85: 13 | G85: 9 | H85: 69.23076923 | I85: 7 | J85: 53.84615385 | K85: 2 | L85: 15.38461538 | M85: 0 | N85: 0
B86: ÁNCASH | C86: BOLOGNESI | D86: HUALLANCA | E86: 020508 | F86: 45 | G86: 24 | H86: 53.33333333 | I86: 15 | J86: 33.33333333 | K86: 9 | L86: 20 | M86: 0 | N86: 0
B87: ÁNCASH | C87: BOLOGNESI | D87: HUASTA | E87: 020509 | F87: 19 | G87: 14 | H87: 73.68421053 | I87: 7 | J87: 36.84210526 | K87: 7 | L87: 36.84210526 | M87: 0 | N87: 0
B88: ÁNCASH | C88: BOLOGNESI | D88: HUAYLLACAYAN | E88: 020510 | F88: 28 | G88: 6 | H88: 21.42857143 | I88: 6 | J88: 21.42857143 | K88: 0 | L88: 0 | M88: 0 | N88: 0
B89: ÁNCASH | C89: BOLOGNESI | D89: MANGAS | E89: 020512 | F89: 7 | G89: 4 | H89: 57.14285714 | I89: 4 | J89: 57.14285714 | K89: 0 | L89: 0 | M89: 0 | N89: 0
B90: ÁNCASH | C90: BOLOGNESI | D90: PACLLON | E90: 020513 | F90: 10 | G90: 7 | H90: 70 | I90: 4 | J90: 40 | K90: 3 | L90: 30 | M90: 0 | N90: 0
B91: ÁNCASH | C91: BOLOGNESI | D91: SAN MIGUEL DE CORPANQUI | E91: 020514 | F91: 6 | G91: 6 | H91: 100 | I91: 1 | J91: 16.66666667 | K91: 5 | L91: 83.33333333 | M91: 0 | N91: 0
B92: ÁNCASH | C92: BOLOGNESI | D92: TICLLOS | E92: 020515 | F92: 7 | G92: 4 | H92: 57.14285714 | I92: 4 | J92: 57.14285714 | K92: 0 | L92: 0 | M92: 0 | N92: 0
B93: ÁNCASH | C93: CARHUAZ | D93: ACOPAMPA | E93: 020602 | F93: 38 | G93: 18 | H93: 47.36842105 | I93: 17 | J93: 44.73684211 | K93: 1 | L93: 2.631578947 | M93: 0 | N93: 0
B94: ÁNCASH | C94: CARHUAZ | D94: AMASHCA | E94: 020603 | F94: 21 | G94: 13 | H94: 61.9047619 | I94: 4 | J94: 19.04761905 | K94: 9 | L94: 42.85714286 | M94: 0 | N94: 0
B95: ÁNCASH | C95: CARHUAZ | D95: ANTA | E95: 020604 | F95: 44 | G95: 33 | H95: 75 | I95: 23 | J95: 52.27272727 | K95: 10 | L95: 22.72727273 | M95: 0 | N95: 0
B96: ÁNCASH | C96: CARHUAZ | D96: ATAQUERO | E96: 020605 | F96: 23 | G96: 13 | H96: 56.52173913 | I96: 9 | J96: 39.13043478 | K96: 4 | L96: 17.39130435 | M96: 0 | N96: 0
B97: ÁNCASH | C97: CARHUAZ | D97: CARHUAZ | E97: 020601 | F97: 190 | G97: 122 | H97: 64.21052632 | I97: 60 | J97: 31.57894737 | K97: 62 | L97: 32.63157895 | M97: 0 | N97: 0
B98: ÁNCASH | C98: CARHUAZ | D98: MARCARA | E98: 020606 | F98: 126 | G98: 37 | H98: 29.36507937 | I98: 29 | J98: 23.01587302 | K98: 8 | L98: 6.349206349 | M98: 0 | N98: 0
B99: ÁNCASH | C99: CARHUAZ | D99: PARIAHUANCA | E99: 020607 | F99: 18 | G99: 4 | H99: 22.22222222 | I99: 3 | J99: 16.66666667 | K99: 1 | L99: 5.555555556 | M99: 0 | N99: 0
B100: ÁNCASH | C100: CARHUAZ | D100: SAN MIGUEL DE ACO | E100: 020608 | F100: 40 | G100: 12 | H100: 30 | I100: 8 | J100: 20 | K100: 4 | L100: 10 | M100: 0 | N100: 0
B101: ÁNCASH | C101: CARHUAZ | D101: SHILLA | E101: 020609 | F101: 23 | G101: 15 | H101: 65.2173913 | I101: 7 | J101: 30.43478261 | K101: 8 | L101: 34.7826087 | M101: 0 | N101: 0
B102: ÁNCASH | C102: CARHUAZ | D102: TINCO | E102: 020610 | F102: 34 | G102: 19 | H102: 55.88235294 | I102: 9 | J102: 26.47058824 | K102: 10 | L102: 29.41176471 | M102: 0 | N102: 0
B103: ÁNCASH | C103: CARHUAZ | D103: YUNGAR | E103: 020611 | F103: 34 | G103: 10 | H103: 29.41176471 | I103: 7 | J103: 20.58823529 | K103: 3 | L103: 8.823529412 | M103: 0 | N103: 0
B104: ÁNCASH | C104: CARLOS FERMIN FITZCARRALD | D104: SAN LUIS | E104: 020701 | F104: 96 | G104: 48 | H104: 50 | I104: 27 | J104: 28.125 | K104: 21 | L104: 21.875 | M104: 0 | N104: 0
B105: ÁNCASH | C105: CARLOS FERMIN FITZCARRALD | D105: SAN NICOLAS | E105: 020702 | F105: 13 | G105: 12 | H105: 92.30769231 | I105: 1 | J105: 7.692307692 | K105: 11 | L105: 84.61538462 | M105: 0 | N105: 0
B106: ÁNCASH | C106: CARLOS FERMIN FITZCARRALD | D106: YAUYA | E106: 020703 | F106: 64 | G106: 33 | H106: 51.5625 | I106: 16 | J106: 25 | K106: 17 | L106: 26.5625 | M106: 0 | N106: 0
B107: ÁNCASH | C107: CASMA | D107: BUENA VISTA ALTA | E107: 020802 | F107: 33 | G107: 15 | H107: 45.45454545 | I107: 9 | J107: 27.27272727 | K107: 6 | L107: 18.18181818 | M107: 0 | N107: 0
B108: ÁNCASH | C108: CASMA | D108: CASMA | E108: 020801 | F108: 66 | G108: 40 | H108: 60.60606061 | I108: 29 | J108: 43.93939394 | K108: 11 | L108: 16.66666667 | M108: 0 | N108: 0
B109: ÁNCASH | C109: CASMA | D109: COMANDANTE NOEL | E109: 020803 | F109: 19 | G109: 9 | H109: 47.36842105 | I109: 6 | J109: 31.57894737 | K109: 3 | L109: 15.78947368 | M109: 0 | N109: 0
B110: ÁNCASH | C110: CASMA | D110: YAUTAN | E110: 020804 | F110: 60 | G110: 32 | H110: 53.33333333 | I110: 23 | J110: 38.33333333 | K110: 9 | L110: 15 | M110: 0 | N110: 0
B111: ÁNCASH | C111: CORONGO | D111: BAMBAS | E111: 020903 | F111: 6 | G111: 0 | H111: 0 | I111: 0 | J111: 0 | K111: 0 | L111: 0 | M111: 0 | N111: 0
B112: ÁNCASH | C112: CORONGO | D112: CORONGO | E112: 020901 | F112: 17 | G112: 5 | H112: 29.41176471 | I112: 4 | J112: 23.52941176 | K112: 1 | L112: 5.882352941 | M112: 0 | N112: 0
B113: ÁNCASH | C113: CORONGO | D113: CUSCA | E113: 020904 | F113: 20 | G113: 9 | H113: 45 | I113: 1 | J113: 5 | K113: 8 | L113: 40 | M113: 0 | N113: 0
B114: ÁNCASH | C114: HUARAZ | D114: COCHABAMBA | E114: 020102 | F114: 32 | G114: 11 | H114: 34.375 | I114: 6 | J114: 18.75 | K114: 5 | L114: 15.625 | M114: 0 | N114: 0
B115: ÁNCASH | C115: HUARAZ | D115: HUANCHAY | E115: 020104 | F115: 10 | G115: 4 | H115: 40 | I115: 2 | J115: 20 | K115: 2 | L115: 20 | M115: 0 | N115: 0
B116: ÁNCASH | C116: HUARAZ | D116: HUARAZ | E116: 020101 | F116: 260 | G116: 171 | H116: 65.76923077 | I116: 87 | J116: 33.46153846 | K116: 83 | L116: 31.92307692 | M116: 1 | N116: 0.3846153846
B117: ÁNCASH | C117: HUARAZ | D117: INDEPENDENCIA | E117: 020105 | F117: 414 | G117: 290 | H117: 70.04830918 | I117: 129 | J117: 31.15942029 | K117: 158 | L117: 38.16425121 | M117: 3 | N117: 0.7246376812
B118: ÁNCASH | C118: HUARAZ | D118: JANGAS | E118: 020106 | F118: 96 | G118: 53 | H118: 55.20833333 | I118: 34 | J118: 35.41666667 | K118: 19 | L118: 19.79166667 | M118: 0 | N118: 0
B119: ÁNCASH | C119: HUARAZ | D119: LA LIBERTAD | E119: 020107 | F119: 9 | G119: 6 | H119: 66.66666667 | I119: 5 | J119: 55.55555556 | K119: 1 | L119: 11.11111111 | M119: 0 | N119: 0
B120: ÁNCASH | C120: HUARAZ | D120: OLLEROS | E120: 020108 | F120: 33 | G120: 4 | H120: 12.12121212 | I120: 3 | J120: 9.090909091 | K120: 1 | L120: 3.03030303 | M120: 0 | N120: 0
B121: ÁNCASH | C121: HUARAZ | D121: PARIACOTO | E121: 020110 | F121: 57 | G121: 38 | H121: 66.66666667 | I121: 14 | J121: 24.56140351 | K121: 24 | L121: 42.10526316 | M121: 0 | N121: 0
B122: ÁNCASH | C122: HUARAZ | D122: TARICA | E122: 020112 | F122: 64 | G122: 38 | H122: 59.375 | I122: 22 | J122: 34.375 | K122: 14 | L122: 21.875 | M122: 2 | N122: 3.125
B123: ÁNCASH | C123: HUARI | D123: CAJAY | E123: 021003 | F123: 35 | G123: 27 | H123: 77.14285714 | I123: 7 | J123: 20 | K123: 19 | L123: 54.28571429 | M123: 1 | N123: 2.857142857
B124: ÁNCASH | C124: HUARI | D124: CHAVIN DE HUANTAR | E124: 021004 | F124: 103 | G124: 50 | H124: 48.54368932 | I124: 34 | J124: 33.00970874 | K124: 16 | L124: 15.53398058 | M124: 0 | N124: 0
B125: ÁNCASH | C125: HUARI | D125: HUACACHI | E125: 021005 | F125: 10 | G125: 4 | H125: 40 | I125: 3 | J125: 30 | K125: 1 | L125: 10 | M125: 0 | N125: 0
B126: ÁNCASH | C126: HUARI | D126: HUACHIS | E126: 021007 | F126: 46 | G126: 32 | H126: 69.56521739 | I126: 19 | J126: 41.30434783 | K126: 13 | L126: 28.26086957 | M126: 0 | N126: 0
B127: ÁNCASH | C127: HUARI | D127: HUANTAR | E127: 021008 | F127: 28 | G127: 4 | H127: 14.28571429 | I127: 4 | J127: 14.28571429 | K127: 0 | L127: 0 | M127: 0 | N127: 0
B128: ÁNCASH | C128: HUARI | D128: HUARI | E128: 021001 | F128: 203 | G128: 105 | H128: 51.72413793 | I128: 64 | J128: 31.5270936 | K128: 41 | L128: 20.19704433 | M128: 0 | N128: 0
B129: ÁNCASH | C129: HUARI | D129: MASIN | E129: 021009 | F129: 21 | G129: 8 | H129: 38.0952381 | I129: 5 | J129: 23.80952381 | K129: 3 | L129: 14.28571429 | M129: 0 | N129: 0
B130: ÁNCASH | C130: HUARI | D130: PONTO | E130: 021011 | F130: 34 | G130: 14 | H130: 41.17647059 | I130: 5 | J130: 14.70588235 | K130: 9 | L130: 26.47058824 | M130: 0 | N130: 0
B131: ÁNCASH | C131: HUARI | D131: RAHUAPAMPA | E131: 021012 | F131: 18 | G131: 7 | H131: 38.88888889 | I131: 7 | J131: 38.88888889 | K131: 0 | L131: 0 | M131: 0 | N131: 0
B132: ÁNCASH | C132: HUARI | D132: SAN MARCOS | E132: 021014 | F132: 209 | G132: 72 | H132: 34.44976077 | I132: 48 | J132: 22.96650718 | K132: 19 | L132: 9.090909091 | M132: 5 | N132: 2.392344498
B133: ÁNCASH | C133: HUARI | D133: SAN PEDRO DE CHANA | E133: 021015 | F133: 51 | G133: 30 | H133: 58.82352941 | I133: 12 | J133: 23.52941176 | K133: 18 | L133: 35.29411765 | M133: 0 | N133: 0
B134: ÁNCASH | C134: HUARI | D134: UCO | E134: 021016 | F134: 10 | G134: 7 | H134: 70 | I134: 4 | J134: 40 | K134: 3 | L134: 30 | M134: 0 | N134: 0
B135: ÁNCASH | C135: HUARMEY | D135: CULEBRAS | E135: 021103 | F135: 38 | G135: 15 | H135: 39.47368421 | I135: 9 | J135: 23.68421053 | K135: 6 | L135: 15.78947368 | M135: 0 | N135: 0
B136: ÁNCASH | C136: HUARMEY | D136: HUARMEY | E136: 021101 | F136: 60 | G136: 11 | H136: 18.33333333 | I136: 9 | J136: 15 | K136: 2 | L136: 3.333333333 | M136: 0 | N136: 0
B137: ÁNCASH | C137: HUARMEY | D137: MALVAS | E137: 021105 | F137: 7 | G137: 6 | H137: 85.71428571 | I137: 1 | J137: 14.28571429 | K137: 4 | L137: 57.14285714 | M137: 1 | N137: 14.28571429
B138: ÁNCASH | C138: HUAYLAS | D138: CARAZ | E138: 021201 | F138: 355 | G138: 194 | H138: 54.64788732 | I138: 105 | J138: 29.57746479 | K138: 89 | L138: 25.07042254 | M138: 0 | N138: 0
B139: ÁNCASH | C139: HUAYLAS | D139: HUALLANCA | E139: 021202 | F139: 5 | G139: 3 | H139: 60 | I139: 2 | J139: 40 | K139: 1 | L139: 20 | M139: 0 | N139: 0
B140: ÁNCASH | C140: HUAYLAS | D140: HUATA | E140: 021203 | F140: 33 | G140: 19 | H140: 57.57575758 | I140: 9 | J140: 27.27272727 | K140: 9 | L140: 27.27272727 | M140: 1 | N140: 3.03030303
B141: ÁNCASH | C141: HUAYLAS | D141: HUAYLAS | E141: 021204 | F141: 32 | G141: 16 | H141: 50 | I141: 7 | J141: 21.875 | K141: 8 | L141: 25 | M141: 1 | N141: 3.125
B142: ÁNCASH | C142: HUAYLAS | D142: MATO | E142: 021205 | F142: 41 | G142: 15 | H142: 36.58536585 | I142: 13 | J142: 31.70731707 | K142: 2 | L142: 4.87804878 | M142: 0 | N142: 0
B143: ÁNCASH | C143: HUAYLAS | D143: PAMPAROMAS | E143: 021206 | F143: 253 | G143: 82 | H143: 32.41106719 | I143: 58 | J143: 22.92490119 | K143: 24 | L143: 9.486166008 | M143: 0 | N143: 0
B144: ÁNCASH | C144: HUAYLAS | D144: PUEBLO LIBRE | E144: 021207 | F144: 51 | G144: 19 | H144: 37.25490196 | I144: 10 | J144: 19.60784314 | K144: 9 | L144: 17.64705882 | M144: 0 | N144: 0
B145: ÁNCASH | C145: HUAYLAS | D145: SANTA CRUZ | E145: 021208 | F145: 37 | G145: 14 | H145: 37.83783784 | I145: 9 | J145: 24.32432432 | K145: 5 | L145: 13.51351351 | M145: 0 | N145: 0
B146: ÁNCASH | C146: HUAYLAS | D146: SANTO TORIBIO | E146: 021209 | F146: 8 | G146: 2 | H146: 25 | I146: 2 | J146: 25 | K146: 0 | L146: 0 | M146: 0 | N146: 0
B147: ÁNCASH | C147: HUAYLAS | D147: YURACMARCA | E147: 021210 | F147: 11 | G147: 1 | H147: 9.090909091 | I147: 1 | J147: 9.090909091 | K147: 0 | L147: 0 | M147: 0 | N147: 0
B148: ÁNCASH | C148: MARISCAL LUZURIAGA | D148: CASCA | E148: 021302 | F148: 55 | G148: 22 | H148: 40 | I148: 10 | J148: 18.18181818 | K148: 12 | L148: 21.81818182 | M148: 0 | N148: 0
B149: ÁNCASH | C149: MARISCAL LUZURIAGA | D149: ELEAZAR GUZMAN BARRON | E149: 021303 | F149: 31 | G149: 12 | H149: 38.70967742 | I149: 7 | J149: 22.58064516 | K149: 5 | L149: 16.12903226 | M149: 0 | N149: 0
B150: ÁNCASH | C150: MARISCAL LUZURIAGA | D150: FIDEL OLIVAS ESCUDERO | E150: 021304 | F150: 40 | G150: 14 | H150: 35 | I150: 6 | J150: 15 | K150: 8 | L150: 20 | M150: 0 | N150: 0
B151: ÁNCASH | C151: MARISCAL LUZURIAGA | D151: LLAMA | E151: 021305 | F151: 21 | G151: 1 | H151: 4.761904762 | I151: 1 | J151: 4.761904762 | K151: 0 | L151: 0 | M151: 0 | N151: 0
B152: ÁNCASH | C152: MARISCAL LUZURIAGA | D152: LLUMPA | E152: 021306 | F152: 89 | G152: 36 | H152: 40.4494382 | I152: 19 | J152: 21.34831461 | K152: 17 | L152: 19.1011236 | M152: 0 | N152: 0
B153: ÁNCASH | C153: MARISCAL LUZURIAGA | D153: LUCMA | E153: 021307 | F153: 40 | G153: 10 | H153: 25 | I153: 7 | J153: 17.5 | K153: 3 | L153: 7.5 | M153: 0 | N153: 0
B154: ÁNCASH | C154: MARISCAL LUZURIAGA | D154: MUSGA | E154: 021308 | F154: 6 | G154: 0 | H154: 0 | I154: 0 | J154: 0 | K154: 0 | L154: 0 | M154: 0 | N154: 0
B155: ÁNCASH | C155: MARISCAL LUZURIAGA | D155: PISCOBAMBA | E155: 021301 | F155: 46 | G155: 26 | H155: 56.52173913 | I155: 12 | J155: 26.08695652 | K155: 14 | L155: 30.43478261 | M155: 0 | N155: 0
B156: ÁNCASH | C156: OCROS | D156: CONGAS | E156: 021406 | F156: 8 | G156: 3 | H156: 37.5 | I156: 2 | J156: 25 | K156: 1 | L156: 12.5 | M156: 0 | N156: 0
B157: ÁNCASH | C157: OCROS | D157: OCROS | E157: 021401 | F157: 11 | G157: 7 | H157: 63.63636364 | I157: 2 | J157: 18.18181818 | K157: 5 | L157: 45.45454545 | M157: 0 | N157: 0
B158: ÁNCASH | C158: PALLASCA | D158: CABANA | E158: 021501 | F158: 30 | G158: 19 | H158: 63.33333333 | I158: 12 | J158: 40 | K158: 7 | L158: 23.33333333 | M158: 0 | N158: 0
B159: ÁNCASH | C159: PALLASCA | D159: CONCHUCOS | E159: 021503 | F159: 93 | G159: 26 | H159: 27.95698925 | I159: 12 | J159: 12.90322581 | K159: 13 | L159: 13.97849462 | M159: 1 | N159: 1.075268817
B160: ÁNCASH | C160: PALLASCA | D160: HUACASCHUQUE | E160: 021504 | F160: 10 | G160: 4 | H160: 40 | I160: 2 | J160: 20 | K160: 2 | L160: 20 | M160: 0 | N160: 0
B161: ÁNCASH | C161: PALLASCA | D161: HUANDOVAL | E161: 021505 | F161: 11 | G161: 8 | H161: 72.72727273 | I161: 4 | J161: 36.36363636 | K161: 4 | L161: 36.36363636 | M161: 0 | N161: 0
B162: ÁNCASH | C162: PALLASCA | D162: LACABAMBA | E162: 021506 | F162: 9 | G162: 5 | H162: 55.55555556 | I162: 2 | J162: 22.22222222 | K162: 3 | L162: 33.33333333 | M162: 0 | N162: 0
B163: ÁNCASH | C163: PALLASCA | D163: LLAPO | E163: 021507 | F163: 10 | G163: 5 | H163: 50 | I163: 2 | J163: 20 | K163: 3 | L163: 30 | M163: 0 | N163: 0
B164: ÁNCASH | C164: PALLASCA | D164: PALLASCA | E164: 021508 | F164: 14 | G164: 12 | H164: 85.71428571 | I164: 1 | J164: 7.142857143 | K164: 9 | L164: 64.28571429 | M164: 2 | N164: 14.28571429
B165: ÁNCASH | C165: PALLASCA | D165: PAMPAS | E165: 021509 | F165: 56 | G165: 43 | H165: 76.78571429 | I165: 19 | J165: 33.92857143 | K165: 24 | L165: 42.85714286 | M165: 0 | N165: 0
B166: ÁNCASH | C166: PALLASCA | D166: SANTA ROSA | E166: 021510 | F166: 13 | G166: 6 | H166: 46.15384615 | I166: 6 | J166: 46.15384615 | K166: 0 | L166: 0 | M166: 0 | N166: 0
B167: ÁNCASH | C167: PALLASCA | D167: TAUCA | E167: 021511 | F167: 52 | G167: 27 | H167: 51.92307692 | I167: 19 | J167: 36.53846154 | K167: 8 | L167: 15.38461538 | M167: 0 | N167: 0
B168: ÁNCASH | C168: POMABAMBA | D168: HUAYLLAN | E168: 021602 | F168: 37 | G168: 6 | H168: 16.21621622 | I168: 3 | J168: 8.108108108 | K168: 3 | L168: 8.108108108 | M168: 0 | N168: 0
B169: ÁNCASH | C169: POMABAMBA | D169: PAROBAMBA | E169: 021603 | F169: 116 | G169: 55 | H169: 47.4137931 | I169: 33 | J169: 28.44827586 | K169: 22 | L169: 18.96551724 | M169: 0 | N169: 0
B170: ÁNCASH | C170: POMABAMBA | D170: POMABAMBA | E170: 021601 | F170: 218 | G170: 65 | H170: 29.81651376 | I170: 45 | J170: 20.64220183 | K170: 20 | L170: 9.174311927 | M170: 0 | N170: 0
B171: ÁNCASH | C171: POMABAMBA | D171: QUINUABAMBA | E171: 021604 | F171: 37 | G171: 4 | H171: 10.81081081 | I171: 2 | J171: 5.405405405 | K171: 2 | L171: 5.405405405 | M171: 0 | N171: 0
B172: ÁNCASH | C172: RECUAY | D172: CATAC | E172: 021702 | F172: 118 | G172: 84 | H172: 71.18644068 | I172: 41 | J172: 34.74576271 | K172: 43 | L172: 36.44067797 | M172: 0 | N172: 0
B173: ÁNCASH | C173: RECUAY | D173: COTAPARACO | E173: 021703 | F173: 6 | G173: 2 | H173: 33.33333333 | I173: 1 | J173: 16.66666667 | K173: 1 | L173: 16.66666667 | M173: 0 | N173: 0
B174: ÁNCASH | C174: RECUAY | D174: LLACLLIN | E174: 021705 | F174: 9 | G174: 4 | H174: 44.44444444 | I174: 4 | J174: 44.44444444 | K174: 0 | L174: 0 | M174: 0 | N174: 0
B175: ÁNCASH | C175: RECUAY | D175: PARARIN | E175: 021708 | F175: 9 | G175: 3 | H175: 33.33333333 | I175: 1 | J175: 11.11111111 | K175: 2 | L175: 22.22222222 | M175: 0 | N175: 0
B176: ÁNCASH | C176: RECUAY | D176: RECUAY | E176: 021701 | F176: 30 | G176: 17 | H176: 56.66666667 | I176: 5 | J176: 16.66666667 | K176: 12 | L176: 40 | M176: 0 | N176: 0
B177: ÁNCASH | C177: RECUAY | D177: TAPACOCHA | E177: 021709 | F177: 11 | G177: 9 | H177: 81.81818182 | I177: 5 | J177: 45.45454545 | K177: 4 | L177: 36.36363636 | M177: 0 | N177: 0
B178: ÁNCASH | C178: RECUAY | D178: TICAPAMPA | E178: 021710 | F178: 19 | G178: 11 | H178: 57.89473684 | I178: 5 | J178: 26.31578947 | K178: 6 | L178: 31.57894737 | M178: 0 | N178: 0
B179: ÁNCASH | C179: SANTA | D179: CACERES DEL PERU | E179: 021802 | F179: 22 | G179: 6 | H179: 27.27272727 | I179: 4 | J179: 18.18181818 | K179: 2 | L179: 9.090909091 | M179: 0 | N179: 0
B180: ÁNCASH | C180: SANTA | D180: CHIMBOTE | E180: 021801 | F180: 781 | G180: 339 | H180: 43.40588988 | I180: 252 | J180: 32.26632522 | K180: 87 | L180: 11.13956466 | M180: 0 | N180: 0
B181: ÁNCASH | C181: SANTA | D181: COISHCO | E181: 021803 | F181: 74 | G181: 27 | H181: 36.48648649 | I181: 20 | J181: 27.02702703 | K181: 7 | L181: 9.459459459 | M181: 0 | N181: 0
B182: ÁNCASH | C182: SANTA | D182: MACATE | E182: 021804 | F182: 34 | G182: 6 | H182: 17.64705882 | I182: 2 | J182: 5.882352941 | K182: 4 | L182: 11.76470588 | M182: 0 | N182: 0
B183: ÁNCASH | C183: SANTA | D183: MORO | E183: 021805 | F183: 22 | G183: 6 | H183: 27.27272727 | I183: 4 | J183: 18.18181818 | K183: 2 | L183: 9.090909091 | M183: 0 | N183: 0
B184: ÁNCASH | C184: SANTA | D184: NEPEÑA | E184: 021806 | F184: 43 | G184: 20 | H184: 46.51162791 | I184: 14 | J184: 32.55813953 | K184: 6 | L184: 13.95348837 | M184: 0 | N184: 0
B185: ÁNCASH | C185: SANTA | D185: NUEVO CHIMBOTE | E185: 021809 | F185: 230 | G185: 142 | H185: 61.73913043 | I185: 109 | J185: 47.39130435 | K185: 33 | L185: 14.34782609 | M185: 0 | N185: 0
B186: ÁNCASH | C186: SANTA | D186: SAMANCO | E186: 021807 | F186: 8 | G186: 3 | H186: 37.5 | I186: 3 | J186: 37.5 | K186: 0 | L186: 0 | M186: 0 | N186: 0
B187: ÁNCASH | C187: SANTA | D187: SANTA | E187: 021808 | F187: 284 | G187: 155 | H187: 54.57746479 | I187: 110 | J187: 38.73239437 | K187: 45 | L187: 15.84507042 | M187: 0 | N187: 0
B188: ÁNCASH | C188: SIHUAS | D188: ACOBAMBA | E188: 021902 | F188: 32 | G188: 15 | H188: 46.875 | I188: 10 | J188: 31.25 | K188: 5 | L188: 15.625 | M188: 0 | N188: 0
B189: ÁNCASH | C189: SIHUAS | D189: ALFONSO UGARTE | E189: 021903 | F189: 5 | G189: 1 | H189: 20 | I189: 1 | J189: 20 | K189: 0 | L189: 0 | M189: 0 | N189: 0
B190: ÁNCASH | C190: SIHUAS | D190: CASHAPAMPA | E190: 021904 | F190: 30 | G190: 6 | H190: 20 | I190: 4 | J190: 13.33333333 | K190: 2 | L190: 6.666666667 | M190: 0 | N190: 0
B191: ÁNCASH | C191: SIHUAS | D191: CHINGALPO | E191: 021905 | F191: 19 | G191: 10 | H191: 52.63157895 | I191: 8 | J191: 42.10526316 | K191: 2 | L191: 10.52631579 | M191: 0 | N191: 0
B192: ÁNCASH | C192: SIHUAS | D192: HUAYLLABAMBA | E192: 021906 | F192: 42 | G192: 17 | H192: 40.47619048 | I192: 13 | J192: 30.95238095 | K192: 4 | L192: 9.523809524 | M192: 0 | N192: 0
B193: ÁNCASH | C193: SIHUAS | D193: QUICHES | E193: 021907 | F193: 49 | G193: 27 | H193: 55.10204082 | I193: 21 | J193: 42.85714286 | K193: 5 | L193: 10.20408163 | M193: 1 | N193: 2.040816327
B194: ÁNCASH | C194: SIHUAS | D194: RAGASH | E194: 021908 | F194: 11 | G194: 2 | H194: 18.18181818 | I194: 2 | J194: 18.18181818 | K194: 0 | L194: 0 | M194: 0 | N194: 0
B195: ÁNCASH | C195: SIHUAS | D195: SAN JUAN | E195: 021909 | F195: 102 | G195: 25 | H195: 24.50980392 | I195: 15 | J195: 14.70588235 | K195: 10 | L195: 9.803921569 | M195: 0 | N195: 0
B196: ÁNCASH | C196: SIHUAS | D196: SICSIBAMBA | E196: 021910 | F196: 8 | G196: 0 | H196: 0 | I196: 0 | J196: 0 | K196: 0 | L196: 0 | M196: 0 | N196: 0
B197: ÁNCASH | C197: SIHUAS | D197: SIHUAS | E197: 021901 | F197: 83 | G197: 51 | H197: 61.44578313 | I197: 31 | J197: 37.34939759 | K197: 20 | L197: 24.09638554 | M197: 0 | N197: 0
B198: ÁNCASH | C198: YUNGAY | D198: CASCAPARA | E198: 022002 | F198: 9 | G198: 6 | H198: 66.66666667 | I198: 2 | J198: 22.22222222 | K198: 4 | L198: 44.44444444 | M198: 0 | N198: 0
B199: ÁNCASH | C199: YUNGAY | D199: MANCOS | E199: 022003 | F199: 93 | G199: 52 | H199: 55.91397849 | I199: 25 | J199: 26.88172043 | K199: 26 | L199: 27.95698925 | M199: 1 | N199: 1.075268817
B200: ÁNCASH | C200: YUNGAY | D200: MATACOTO | E200: 022004 | F200: 9 | G200: 8 | H200: 88.88888889 | I200: 6 | J200: 66.66666667 | K200: 2 | L200: 22.22222222 | M200: 0 | N200: 0
B201: ÁNCASH | C201: YUNGAY | D201: QUILLO | E201: 022005 | F201: 110 | G201: 52 | H201: 47.27272727 | I201: 29 | J201: 26.36363636 | K201: 23 | L201: 20.90909091 | M201: 0 | N201: 0
B202: ÁNCASH | C202: YUNGAY | D202: RANRAHIRCA | E202: 022006 | F202: 40 | G202: 15 | H202: 37.5 | I202: 11 | J202: 27.5 | K202: 4 | L202: 10 | M202: 0 | N202: 0
... 1421 more rows

Sheet Anemia 6-59mxDEP
B2: CUADRO N°10 PERÚ: ANEMIA EN NIÑOS DE 6 A 59 MESES QUE ACCEDIERON A LOS ESTABLECIMIENTOS DE SALUD POR NIVELES, SEGÚN DEPARTAMENTO DEL ESTABLECIMIENTO DE SALUD
B3: =INICIO!C8 -> PERIODO: ENERO - MARZO 2018
B5: DEPARTAMENTO | C5: N° DE EVALUADOS | D5: ANEMIA TOTAL | F5: ANEMIA LEVE | H5: ANEMIA MODERADA | J5: ANEMIA SEVERA
D6: N° DE CASOS | E6: % | F6: N° DE CASOS | G6: % | H6: N° DE CASOS | I6: % | J6: N° DE CASOS | K6: %
B7: AMAZONAS | C7: 8556 | D7: 2078 | E7: 24.28705002 | F7: 1537 | G7: 17.96400187 | H7: 522 | I7: 6.100981767 | J7: 19 | K7: 0.2220663862
B8: ÁNCASH | C8: 12013 | D8: 4895 | E8: 40.74752352 | F8: 2966 | G8: 24.68991925 | H8: 1893 | I8: 15.75792891 | J8: 36 | K8: 0.2996753517
B9: APURÍMAC | C9: 10004 | D9: 3364 | E9: 33.62654938 | F9: 2284 | G9: 22.83086765 | H9: 1074 | I9: 10.73570572 | J9: 6 | K9: 0.0599760096
B10: AREQUIPA | C10: 11610 | D10: 4039 | E10: 34.78897502 | F10: 2773 | G10: 23.88458226 | H10: 1248 | I10: 10.74935401 | J10: 18 | K10: 0.1550387597
B11: AYACUCHO | C11: 17994 | D11: 4784 | E11: 26.58663999 | F11: 3255 | G11: 18.08936312 | H11: 1514 | I11: 8.41391575 | J11: 15 | K11: 0.08336112037
B12: CAJAMARCA | C12: 16787 | D12: 5427 | E12: 32.3285876 | F12: 3563 | G12: 21.22475725 | H12: 1830 | I12: 10.90129267 | J12: 34 | K12: 0.202537678
B13: CALLAO | C13: 988 | D13: 351 | E13: 35.52631579 | F13: 239 | G13: 24.1902834 | H13: 112 | I13: 11.33603239 | J13: 0 | K13: 0
B14: CUSCO | C14: 14682 | D14: 6622 | E14: 45.10284702 | F14: 3801 | G14: 25.88884348 | H14: 2726 | I14: 18.56695273 | J14: 95 | K14: 0.6470508105
B15: HUANCAVELICA | C15: 11500 | D15: 4124 | E15: 35.86086957 | F15: 2545 | G15: 22.13043478 | H15: 1553 | I15: 13.50434783 | J15: 26 | K15: 0.2260869565
B16: HUÁNUCO | C16: 11368 | D16: 2700 | E16: 23.75087966 | F16: 1843 | G16: 16.21217452 | H16: 849 | I16: 7.46833216 | J16: 8 | K16: 0.07037297678
B17: ICA | C17: 4897 | D17: 1275 | E17: 26.03634878 | F17: 901 | G17: 18.39901981 | H17: 373 | I17: 7.616908311 | J17: 1 | K17: 0.02042066571
B18: JUNÍN | C18: 13640 | D18: 5322 | E18: 39.01759531 | F18: 3139 | G18: 23.01319648 | H18: 2132 | I18: 15.63049853 | J18: 51 | K18: 0.3739002933
B19: LA LIBERTAD | C19: 9563 | D19: 5117 | E19: 53.50831329 | F19: 2871 | G19: 30.02195964 | H19: 2164 | I19: 22.62888215 | J19: 82 | K19: 0.8574715048
B20: LAMBAYEQUE | C20: 2342 | D20: 977 | E20: 41.71648164 | F20: 635 | G20: 27.11357814 | H20: 341 | I20: 14.56020495 | J20: 1 | K20: 0.04269854825
B21: LIMA | C21: 16958 | D21: 6037 | E21: 35.59971695 | F21: 4317 | G21: 25.45701144 | H21: 1700 | I21: 10.02476707 | J21: 20 | K21: 0.1179384361
B22: LORETO | C22: 12558 | D22: 5395 | E22: 42.96066253 | F22: 3467 | G22: 27.60789935 | H22: 1900 | I22: 15.12979774 | J22: 28 | K22: 0.2229654404
B23: MADRE DE DIOS | C23: 1259 | D23: 586 | E23: 46.54487689 | F23: 372 | G23: 29.54725973 | H23: 212 | I23: 16.83876092 | J23: 2 | K23: 0.1588562351
B24: MOQUEGUA | C24: 2433 | D24: 648 | E24: 26.63378545 | F24: 456 | G24: 18.74229346 | H24: 191 | I24: 7.850390464 | J24: 1 | K24: 0.04110152076
B25: PASCO | C25: 3317 | D25: 1183 | E25: 35.66475731 | F25: 614 | G25: 18.51070244 | H25: 549 | I25: 16.55110039 | J25: 20 | K25: 0.6029544769
B26: PIURA | C26: 9777 | D26: 2739 | E26: 28.01472844 | F26: 2110 | G26: 21.58126215 | H26: 625 | I26: 6.392553953 | J26: 4 | K26: 0.0409123453
B27: PUNO | C27: 10786 | D27: 5602 | E27: 51.93769701 | F27: 2869 | G27: 26.59929538 | H27: 2666 | I27: 24.71722603 | J27: 67 | K27: 0.621175598
B28: SAN MARTÍN | C28: 3837 | D28: 1221 | E28: 31.82173573 | F28: 941 | G28: 24.524368 | H28: 277 | I28: 7.219181652 | J28: 3 | K28: 0.07818608288
B29: TACNA | C29: 2146 | D29: 537 | E29: 25.02329916 | F29: 350 | G29: 16.30941286 | H29: 184 | I29: 8.574091333 | J29: 3 | K29: 0.1397949674
B30: TUMBES | C30: 1152 | D30: 386 | E30: 33.50694444 | F30: 245 | G30: 21.26736111 | H30: 140 | I30: 12.15277778 | J30: 1 | K30: 0.08680555556
B31: UCAYALI | C31: 2371 | D31: 1175 | E31: 49.55714888 | F31: 736 | G31: 31.04175453 | H31: 432 | I31: 18.22016027 | J31: 7 | K31: 0.2952340784
B32: PERÚ | C32: =SUM(C7:C31) -> 212538 | D32: =SUM(D7:D31) -> 76584 | E32: =D32/C32*100 -> 36.03308585 | F32: =SUM(F7:F31) -> 48829 | G32: =F32/C32*100 -> 22.97424461 | H32: =SUM(H7:H31) -> 27207 | I32: =H32/C32*100 -> 12.801005 | J32: =SUM(J7:J31) -> 548 | K32: =J32/C32*100 -> 0.2578362458
B33: Fuente: Sistema de Información del Estado Nutricional en niños que acceden al establecimiento de salud, 2018.
B34: Instituto Nacional de Salud / Centro Nacional de Alimentación y Nutrición / Dirección Ejecutiva de Vigilancia Alimentaria y Nutricional.

Sheet Anemia 6-59mxDIRESA
B2: CUADRO N°11 PERÚ: ANEMIA EN NIÑOS DE 6 A 59 MESES QUE ACCEDIERON A LOS ESTABLECIMIENTOS DE SALUD POR NIVELES, SEGÚN DIRESA / GERESA / DISA
B3: =INICIO!C8 -> PERIODO: ENERO - MARZO 2018
B5: DIRESA / GERESA / DISA | C5: N° DE EVALUADOS | D5: ANEMIA TOTAL | F5: ANEMIA LEVE | H5: ANEMIA MODERADA | J5: ANEMIA SEVERA
D6: N° DE CASOS | E6: % | F6: N° DE CASOS | G6: % | H6: N° DE CASOS | I6: % | J6: N° DE CASOS | K6: %
B7: AMAZONAS | C7: 8556 | D7: 2078 | E7: 24.28705002 | F7: 1537 | G7: 17.96400187 | H7: 522 | I7: 6.100981767 | J7: 19 | K7: 0.2220663862
B8: ÁNCASH | C8: 12013 | D8: 4895 | E8: 40.74752352 | F8: 2966 | G8: 24.68991925 | H8: 1893 | I8: 15.75792891 | J8: 36 | K8: 0.2996753517
B9: ANDAHUAYLAS | C9: 3927 | D9: 1567 | E9: 39.90323402 | F9: 1063 | G9: 27.06900942 | H9: 501 | I9: 12.7578304 | J9: 3 | K9: 0.07639419404
B10: APURÍMAC | C10: 6077 | D10: 1797 | E10: 29.57051177 | F10: 1221 | G10: 20.09215073 | H10: 573 | I10: 9.42899457 | J10: 3 | K10: 0.04936646372
B11: AREQUIPA | C11: 11610 | D11: 4039 | E11: 34.78897502 | F11: 2773 | G11: 23.88458226 | H11: 1248 | I11: 10.74935401 | J11: 18 | K11: 0.1550387597
B12: AYACUCHO | C12: 17994 | D12: 4784 | E12: 26.58663999 | F12: 3255 | G12: 18.08936312 | H12: 1514 | I12: 8.41391575 | J12: 15 | K12: 0.08336112037
B13: CAJAMARCA | C13: 6922 | D13: 2415 | E13: 34.88876047 | F13: 1466 | G13: 21.17885004 | H13: 926 | I13: 13.37763652 | J13: 23 | K13: 0.3322739093
B14: CALLAO | C14: 988 | D14: 351 | E14: 35.52631579 | F14: 239 | G14: 24.1902834 | H14: 112 | I14: 11.33603239 | J14: 0 | K14: 0
B15: CHOTA | C15: 3598 | D15: 1369 | E15: 38.04891606 | F15: 874 | G15: 24.29127293 | H15: 490 | I15: 13.61867704 | J15: 5 | K15: 0.1389660923
B16: CUSCO | C16: 14682 | D16: 6622 | E16: 45.10284702 | F16: 3801 | G16: 25.88884348 | H16: 2726 | I16: 18.56695273 | J16: 95 | K16: 0.6470508105
B17: CUTERVO | C17: 1841 | D17: 429 | E17: 23.30255296 | F17: 311 | G17: 16.89299294 | H17: 114 | I17: 6.192286801 | J17: 4 | K17: 0.2172732211
B18: HUANCAVELICA | C18: 11500 | D18: 4124 | E18: 35.86086957 | F18: 2545 | G18: 22.13043478 | H18: 1553 | I18: 13.50434783 | J18: 26 | K18: 0.2260869565
B19: HUÁNUCO | C19: 11368 | D19: 2700 | E19: 23.75087966 | F19: 1843 | G19: 16.21217452 | H19: 849 | I19: 7.46833216 | J19: 8 | K19: 0.07037297678
B20: ICA | C20: 4897 | D20: 1275 | E20: 26.03634878 | F20: 901 | G20: 18.39901981 | H20: 373 | I20: 7.616908311 | J20: 1 | K20: 0.02042066571
B21: JAÉN | C21: 4426 | D21: 1214 | E21: 27.42882964 | F21: 912 | G21: 20.60551288 | H21: 300 | I21: 6.778129236 | J21: 2 | K21: 0.04518752824
B22: JUNÍN | C22: 13640 | D22: 5322 | E22: 39.01759531 | F22: 3139 | G22: 23.01319648 | H22: 2132 | I22: 15.63049853 | J22: 51 | K22: 0.3739002933
B23: LA LIBERTAD | C23: 9563 | D23: 5117 | E23: 53.50831329 | F23: 2871 | G23: 30.02195964 | H23: 2164 | I23: 22.62888215 | J23: 82 | K23: 0.8574715048
B24: LAMBAYEQUE | C24: 2342 | D24: 977 | E24: 41.71648164 | F24: 635 | G24: 27.11357814 | H24: 341 | I24: 14.56020495 | J24: 1 | K24: 0.04269854825
B25: LIMA | C25: 9155 | D25: 2830 | E25: 30.91206991 | F25: 1969 | G25: 21.50737302 | H25: 848 | I25: 9.262697979 | J25: 13 | K25: 0.1419989077
B26: LIMA CENTRO | C26: 2131 | D26: 827 | E26: 38.80807133 | F26: 687 | G26: 32.23838573 | H26: 140 | I26: 6.569685594 | J26: 0 | K26: 0
B27: LIMA ESTE | C27: 1915 | D27: 826 | E27: 43.13315927 | F27: 577 | G27: 30.1305483 | H27: 246 | I27: 12.845953 | J27: 3 | K27: 0.1566579634
B28: LIMA SUR | C28: 3757 | D28: 1554 | E28: 41.36278946 | F28: 1084 | G28: 28.85280809 | H28: 466 | I28: 12.40351344 | J28: 4 | K28: 0.1064679265
B29: LORETO | C29: 12558 | D29: 5395 | E29: 42.96066253 | F29: 3467 | G29: 27.60789935 | H29: 1900 | I29: 15.12979774 | J29: 28 | K29: 0.2229654404
B30: MADRE DE DIOS | C30: 1259 | D30: 586 | E30: 46.54487689 | F30: 372 | G30: 29.54725973 | H30: 212 | I30: 16.83876092 | J30: 2 | K30: 0.1588562351
B31: MOQUEGUA | C31: 2433 | D31: 648 | E31: 26.63378545 | F31: 456 | G31: 18.74229346 | H31: 191 | I31: 7.850390464 | J31: 1 | K31: 0.04110152076
B32: PASCO | C32: 3317 | D32: 1183 | E32: 35.66475731 | F32: 614 | G32: 18.51070244 | H32: 549 | I32: 16.55110039 | J32: 20 | K32: 0.6029544769
B33: PIURA | C33: 3916 | D33: 1202 | E33: 30.69458631 | F33: 903 | G33: 23.05924413 | H33: 298 | I33: 7.609805924 | J33: 1 | K33: 0.02553626149
B34: PUNO | C34: 10786 | D34: 5602 | E34: 51.93769701 | F34: 2869 | G34: 26.59929538 | H34: 2666 | I34: 24.71722603 | J34: 67 | K34: 0.621175598
B35: SAN MARTÍN | C35: 3837 | D35: 1221 | E35: 31.82173573 | F35: 941 | G35: 24.524368 | H35: 277 | I35: 7.219181652 | J35: 3 | K35: 0.07818608288
B36: SULLANA | C36: 5861 | D36: 1537 | E36: 26.22419382 | F36: 1207 | G36: 20.59375533 | H36: 327 | I36: 5.579252687 | J36: 3 | K36: 0.05118580447
B37: TACNA | C37: 2146 | D37: 537 | E37: 25.02329916 | F37: 350 | G37: 16.30941286 | H37: 184 | I37: 8.574091333 | J37: 3 | K37: 0.1397949674
B38: TUMBES | C38: 1152 | D38: 386 | E38: 33.50694444 | F38: 245 | G38: 21.26736111 | H38: 140 | I38: 12.15277778 | J38: 1 | K38: 0.08680555556
B39: UCAYALI | C39: 2371 | D39: 1175 | E39: 49.55714888 | F39: 736 | G39: 31.04175453 | H39: 432 | I39: 18.22016027 | J39: 7 | K39: 0.2952340784
B40: PERÚ | C40: =SUM(C7:C39) -> 212538 | D40: =SUM(D7:D39) -> 76584 | E40: =D40/C40*100 -> 36.03308585 | F40: =SUM(F7:F39) -> 48829 | G40: =F40/C40*100 -> 22.97424461 | H40: =SUM(H7:H39) -> 27207 | I40: =H40/C40*100 -> 12.801005 | J40: =SUM(J7:J39) -> 548 | K40: =J40/C40*100 -> 0.2578362458
B41: Fuente: Sistema de Información del Estado Nutricional en niños que acceden al establecimiento de salud, 2018.
B42: Instituto Nacional de Salud / Centro Nacional de Alimentación y Nutrición / Dirección Ejecutiva de Vigilancia Alimentaria y Nutricional.

Sheet Anemia 6-59m x DISTRITO
B2: CUADRO N°12 PERÚ: ANEMIA EN NIÑOS DE 6 A 59 MESES QUE ACCEDIERON A LOS ESTABLECIMIENTOS DE SALUD POR NIVELES DE ANEMIA, SEGÚN DEPARTAMENTO, PROVINCIA Y DISTRITO DE ORIGEN
B3: =INICIO!C8 -> PERIODO: ENERO - MARZO 2018
B5: DEPARTAMENTO | C5: PROVINCIA | D5: DISTRITO | E5: UBIGEO | F5: N° DE EVALUADAS | G5: ANEMIA TOTAL | I5: ANEMIA LEVE | K5: ANEMIA MODERADA | M5: ANEMIA SEVERA
G6: N° DE CASOS | H6: % | I6: N° DE CASOS | J6: % | K6: N° DE CASOS | L6: % | M6: N° DE CASOS | N6: %
B7: AMAZONAS | C7: BAGUA | D7: ARAMANGO | E7: 010202 | F7: 283 | G7: 54 | H7: 19.08127208 | I7: 42 | J7: 14.8409894 | K7: 12 | L7: 4.240282686 | M7: 0 | N7: 0
B8: AMAZONAS | C8: BAGUA | D8: BAGUA | E8: 010201 | F8: 482 | G8: 122 | H8: 25.31120332 | I8: 105 | J8: 21.78423237 | K8: 17 | L8: 3.526970954 | M8: 0 | N8: 0
B9: AMAZONAS | C9: BAGUA | D9: COPALLIN | E9: 010203 | F9: 87 | G9: 21 | H9: 24.13793103 | I9: 17 | J9: 19.54022989 | K9: 4 | L9: 4.597701149 | M9: 0 | N9: 0
B10: AMAZONAS | C10: BAGUA | D10: EL PARCO | E10: 010204 | F10: 12 | G10: 1 | H10: 8.333333333 | I10: 1 | J10: 8.333333333 | K10: 0 | L10: 0 | M10: 0 | N10: 0
B11: AMAZONAS | C11: BAGUA | D11: IMAZA | E11: 010205 | F11: 1125 | G11: 403 | H11: 35.82222222 | I11: 290 | J11: 25.77777778 | K11: 112 | L11: 9.955555556 | M11: 1 | N11: 0.08888888889
B12: AMAZONAS | C12: BAGUA | D12: LA PECA | E12: 010206 | F12: 114 | G12: 4 | H12: 3.50877193 | I12: 2 | J12: 1.754385965 | K12: 2 | L12: 1.754385965 | M12: 0 | N12: 0
B13: AMAZONAS | C13: BONGARA | D13: CHURUJA | E13: 010303 | F13: 7 | G13: 0 | H13: 0 | I13: 0 | J13: 0 | K13: 0 | L13: 0 | M13: 0 | N13: 0
B14: AMAZONAS | C14: BONGARA | D14: COROSHA | E14: 010304 | F14: 13 | G14: 1 | H14: 7.692307692 | I14: 1 | J14: 7.692307692 | K14: 0 | L14: 0 | M14: 0 | N14: 0
B15: AMAZONAS | C15: BONGARA | D15: CUISPES | E15: 010305 | F15: 15 | G15: 3 | H15: 20 | I15: 2 | J15: 13.33333333 | K15: 1 | L15: 6.666666667 | M15: 0 | N15: 0
B16: AMAZONAS | C16: BONGARA | D16: FLORIDA | E16: 010306 | F16: 123 | G16: 19 | H16: 15.44715447 | I16: 18 | J16: 14.63414634 | K16: 1 | L16: 0.8130081301 | M16: 0 | N16: 0
B17: AMAZONAS | C17: BONGARA | D17: JAZAN | E17: 010307 | F17: 74 | G17: 8 | H17: 10.81081081 | I17: 6 | J17: 8.108108108 | K17: 2 | L17: 2.702702703 | M17: 0 | N17: 0
B18: AMAZONAS | C18: BONGARA | D18: JUMBILLA | E18: 010301 | F18: 14 | G18: 0 | H18: 0 | I18: 0 | J18: 0 | K18: 0 | L18: 0 | M18: 0 | N18: 0
B19: AMAZONAS | C19: BONGARA | D19: SHIPASBAMBA | E19: 010310 | F19: 22 | G19: 3 | H19: 13.63636364 | I19: 2 | J19: 9.090909091 | K19: 1 | L19: 4.545454545 | M19: 0 | N19: 0
B20: AMAZONAS | C20: BONGARA | D20: VALERA | E20: 010311 | F20: 15 | G20: 1 | H20: 6.666666667 | I20: 0 | J20: 0 | K20: 1 | L20: 6.666666667 | M20: 0 | N20: 0
B21: AMAZONAS | C21: BONGARA | D21: YAMBRASBAMBA | E21: 010312 | F21: 75 | G21: 22 | H21: 29.33333333 | I21: 15 | J21: 20 | K21: 7 | L21: 9.333333333 | M21: 0 | N21: 0
B22: AMAZONAS | C22: CHACHAPOYAS | D22: ASUNCION | E22: 010102 | F22: 7 | G22: 0 | H22: 0 | I22: 0 | J22: 0 | K22: 0 | L22: 0 | M22: 0 | N22: 0
B23: AMAZONAS | C23: CHACHAPOYAS | D23: BALSAS | E23: 010103 | F23: 8 | G23: 0 | H23: 0 | I23: 0 | J23: 0 | K23: 0 | L23: 0 | M23: 0 | N23: 0
B24: AMAZONAS | C24: CHACHAPOYAS | D24: CHACHAPOYAS | E24: 010101 | F24: 125 | G24: 65 | H24: 52 | I24: 39 | J24: 31.2 | K24: 25 | L24: 20 | M24: 1 | N24: 0.8
B25: AMAZONAS | C25: CHACHAPOYAS | D25: CHILIQUIN | E25: 010105 | F25: 7 | G25: 0 | H25: 0 | I25: 0 | J25: 0 | K25: 0 | L25: 0 | M25: 0 | N25: 0
B26: AMAZONAS | C26: CHACHAPOYAS | D26: CHUQUIBAMBA | E26: 010106 | F26: 32 | G26: 4 | H26: 12.5 | I26: 2 | J26: 6.25 | K26: 2 | L26: 6.25 | M26: 0 | N26: 0
B27: AMAZONAS | C27: CHACHAPOYAS | D27: LA JALCA | E27: 010109 | F27: 174 | G27: 36 | H27: 20.68965517 | I27: 26 | J27: 14.94252874 | K27: 10 | L27: 5.747126437 | M27: 0 | N27: 0
B28: AMAZONAS | C28: CHACHAPOYAS | D28: LEIMEBAMBA | E28: 010110 | F28: 50 | G28: 14 | H28: 28 | I28: 9 | J28: 18 | K28: 5 | L28: 10 | M28: 0 | N28: 0
B29: AMAZONAS | C29: CHACHAPOYAS | D29: LEVANTO | E29: 010111 | F29: 25 | G29: 21 | H29: 84 | I29: 8 | J29: 32 | K29: 13 | L29: 52 | M29: 0 | N29: 0
B30: AMAZONAS | C30: CHACHAPOYAS | D30: MAGDALENA | E30: 010112 | F30: 7 | G30: 1 | H30: 14.28571429 | I30: 1 | J30: 14.28571429 | K30: 0 | L30: 0 | M30: 0 | N30: 0
B31: AMAZONAS | C31: CHACHAPOYAS | D31: MARISCAL CASTILLA | E31: 010113 | F31: 18 | G31: 2 | H31: 11.11111111 | I31: 2 | J31: 11.11111111 | K31: 0 | L31: 0 | M31: 0 | N31: 0
B32: AMAZONAS | C32: CHACHAPOYAS | D32: MOLINOPAMPA | E32: 010114 | F32: 5 | G32: 0 | H32: 0 | I32: 0 | J32: 0 | K32: 0 | L32: 0 | M32: 0 | N32: 0
B33: AMAZONAS | C33: CHACHAPOYAS | D33: MONTEVIDEO | E33: 010115 | F33: 9 | G33: 1 | H33: 11.11111111 | I33: 1 | J33: 11.11111111 | K33: 0 | L33: 0 | M33: 0 | N33: 0
B34: AMAZONAS | C34: CHACHAPOYAS | D34: QUINJALCA | E34: 010117 | F34: 5 | G34: 4 | H34: 80 | I34: 2 | J34: 40 | K34: 2 | L34: 40 | M34: 0 | N34: 0
B35: AMAZONAS | C35: CHACHAPOYAS | D35: SOLOCO | E35: 010120 | F35: 10 | G35: 1 | H35: 10 | I35: 1 | J35: 10 | K35: 0 | L35: 0 | M35: 0 | N35: 0
B36: AMAZONAS | C36: CONDORCANQUI | D36: EL CENEPA | E36: 010402 | F36: 598 | G36: 213 | H36: 35.6187291 | I36: 129 | J36: 21.57190635 | K36: 79 | L36: 13.21070234 | M36: 5 | N36: 0.8361204013
B37: AMAZONAS | C37: CONDORCANQUI | D37: NIEVA | E37: 010401 | F37: 1225 | G37: 379 | H37: 30.93877551 | I37: 289 | J37: 23.59183673 | K37: 90 | L37: 7.346938776 | M37: 0 | N37: 0
B38: AMAZONAS | C38: CONDORCANQUI | D38: RIO SANTIAGO | E38: 010403 | F38: 847 | G38: 189 | H38: 22.31404959 | I38: 138 | J38: 16.29279811 | K38: 49 | L38: 5.785123967 | M38: 2 | N38: 0.2361275089
B39: AMAZONAS | C39: LUYA | D39: CAMPORREDONDO | E39: 010502 | F39: 79 | G39: 14 | H39: 17.72151899 | I39: 13 | J39: 16.4556962 | K39: 1 | L39: 1.265822785 | M39: 0 | N39: 0
B40: AMAZONAS | C40: LUYA | D40: COCABAMBA | E40: 010503 | F40: 23 | G40: 9 | H40: 39.13043478 | I40: 7 | J40: 30.43478261 | K40: 2 | L40: 8.695652174 | M40: 0 | N40: 0
B41: AMAZONAS | C41: LUYA | D41: COLCAMAR | E41: 010504 | F41: 50 | G41: 4 | H41: 8 | I41: 4 | J41: 8 | K41: 0 | L41: 0 | M41: 0 | N41: 0
B42: AMAZONAS | C42: LUYA | D42: CONILA | E42: 010505 | F42: 26 | G42: 0 | H42: 0 | I42: 0 | J42: 0 | K42: 0 | L42: 0 | M42: 0 | N42: 0
B43: AMAZONAS | C43: LUYA | D43: LAMUD | E43: 010501 | F43: 25 | G43: 3 | H43: 12 | I43: 3 | J43: 12 | K43: 0 | L43: 0 | M43: 0 | N43: 0
B44: AMAZONAS | C44: LUYA | D44: LONGUITA | E44: 010507 | F44: 27 | G44: 15 | H44: 55.55555556 | I44: 12 | J44: 44.44444444 | K44: 3 | L44: 11.11111111 | M44: 0 | N44: 0
B45: AMAZONAS | C45: LUYA | D45: LONYA CHICO | E45: 010508 | F45: 16 | G45: 1 | H45: 6.25 | I45: 1 | J45: 6.25 | K45: 0 | L45: 0 | M45: 0 | N45: 0
B46: AMAZONAS | C46: LUYA | D46: LUYA | E46: 010509 | F46: 51 | G46: 10 | H46: 19.60784314 | I46: 10 | J46: 19.60784314 | K46: 0 | L46: 0 | M46: 0 | N46: 0
B47: AMAZONAS | C47: LUYA | D47: MARIA | E47: 010511 | F47: 10 | G47: 0 | H47: 0 | I47: 0 | J47: 0 | K47: 0 | L47: 0 | M47: 0 | N47: 0
B48: AMAZONAS | C48: LUYA | D48: OCALLI | E48: 010512 | F48: 52 | G48: 7 | H48: 13.46153846 | I48: 6 | J48: 11.53846154 | K48: 1 | L48: 1.923076923 | M48: 0 | N48: 0
B49: AMAZONAS | C49: LUYA | D49: OCUMAL | E49: 010513 | F49: 157 | G49: 9 | H49: 5.732484076 | I49: 7 | J49: 4.458598726 | K49: 2 | L49: 1.27388535 | M49: 0 | N49: 0
B50: AMAZONAS | C50: LUYA | D50: PISUQUIA | E50: 010514 | F50: 121 | G50: 22 | H50: 18.18181818 | I50: 19 | J50: 15.70247934 | K50: 3 | L50: 2.479338843 | M50: 0 | N50: 0
B51: AMAZONAS | C51: LUYA | D51: PROVIDENCIA | E51: 010515 | F51: 35 | G51: 10 | H51: 28.57142857 | I51: 7 | J51: 20 | K51: 3 | L51: 8.571428571 | M51: 0 | N51: 0
B52: AMAZONAS | C52: LUYA | D52: SAN CRISTOBAL | E52: 010516 | F52: 10 | G52: 1 | H52: 10 | I52: 1 | J52: 10 | K52: 0 | L52: 0 | M52: 0 | N52: 0
B53: AMAZONAS | C53: LUYA | D53: SAN FRANCISCO DE YESO | E53: 010517 | F53: 8 | G53: 3 | H53: 37.5 | I53: 1 | J53: 12.5 | K53: 2 | L53: 25 | M53: 0 | N53: 0
B54: AMAZONAS | C54: LUYA | D54: SAN JERONIMO | E54: 010518 | F54: 15 | G54: 0 | H54: 0 | I54: 0 | J54: 0 | K54: 0 | L54: 0 | M54: 0 | N54: 0
B55: AMAZONAS | C55: LUYA | D55: SAN JUAN DE LOPECANCHA | E55: 010519 | F55: 16 | G55: 0 | H55: 0 | I55: 0 | J55: 0 | K55: 0 | L55: 0 | M55: 0 | N55: 0
B56: AMAZONAS | C56: LUYA | D56: SANTA CATALINA | E56: 010520 | F56: 60 | G56: 10 | H56: 16.66666667 | I56: 8 | J56: 13.33333333 | K56: 2 | L56: 3.333333333 | M56: 0 | N56: 0
B57: AMAZONAS | C57: LUYA | D57: SANTO TOMAS | E57: 010521 | F57: 85 | G57: 11 | H57: 12.94117647 | I57: 9 | J57: 10.58823529 | K57: 2 | L57: 2.352941176 | M57: 0 | N57: 0
B58: AMAZONAS | C58: LUYA | D58: TINGO | E58: 010522 | F58: 31 | G58: 6 | H58: 19.35483871 | I58: 5 | J58: 16.12903226 | K58: 1 | L58: 3.225806452 | M58: 0 | N58: 0
B59: AMAZONAS | C59: LUYA | D59: TRITA | E59: 010523 | F59: 34 | G59: 0 | H59: 0 | I59: 0 | J59: 0 | K59: 0 | L59: 0 | M59: 0 | N59: 0
B60: AMAZONAS | C60: RODRIGUEZ DE MENDOZA | D60: CHIRIMOTO | E60: 010602 | F60: 43 | G60: 4 | H60: 9.302325581 | I60: 3 | J60: 6.976744186 | K60: 1 | L60: 2.325581395 | M60: 0 | N60: 0
B61: AMAZONAS | C61: RODRIGUEZ DE MENDOZA | D61: HUAMBO | E61: 010604 | F61: 42 | G61: 3 | H61: 7.142857143 | I61: 3 | J61: 7.142857143 | K61: 0 | L61: 0 | M61: 0 | N61: 0
B62: AMAZONAS | C62: RODRIGUEZ DE MENDOZA | D62: LIMABAMBA | E62: 010605 | F62: 37 | G62: 5 | H62: 13.51351351 | I62: 5 | J62: 13.51351351 | K62: 0 | L62: 0 | M62: 0 | N62: 0
B63: AMAZONAS | C63: RODRIGUEZ DE MENDOZA | D63: LONGAR | E63: 010606 | F63: 46 | G63: 11 | H63: 23.91304348 | I63: 10 | J63: 21.73913043 | K63: 1 | L63: 2.173913043 | M63: 0 | N63: 0
B64: AMAZONAS | C64: RODRIGUEZ DE MENDOZA | D64: MARISCAL BENAVIDES | E64: 010607 | F64: 7 | G64: 2 | H64: 28.57142857 | I64: 2 | J64: 28.57142857 | K64: 0 | L64: 0 | M64: 0 | N64: 0
B65: AMAZONAS | C65: RODRIGUEZ DE MENDOZA | D65: MILPUC | E65: 010608 | F65: 15 | G65: 0 | H65: 0 | I65: 0 | J65: 0 | K65: 0 | L65: 0 | M65: 0 | N65: 0
B66: AMAZONAS | C66: RODRIGUEZ DE MENDOZA | D66: OMIA | E66: 010609 | F66: 91 | G66: 23 | H66: 25.27472527 | I66: 15 | J66: 16.48351648 | K66: 8 | L66: 8.791208791 | M66: 0 | N66: 0
B67: AMAZONAS | C67: RODRIGUEZ DE MENDOZA | D67: SAN NICOLAS | E67: 010601 | F67: 99 | G67: 24 | H67: 24.24242424 | I67: 21 | J67: 21.21212121 | K67: 3 | L67: 3.03030303 | M67: 0 | N67: 0
B68: AMAZONAS | C68: RODRIGUEZ DE MENDOZA | D68: SANTA ROSA | E68: 010610 | F68: 24 | G68: 1 | H68: 4.166666667 | I68: 1 | J68: 4.166666667 | K68: 0 | L68: 0 | M68: 0 | N68: 0
B69: AMAZONAS | C69: RODRIGUEZ DE MENDOZA | D69: TOTORA | E69: 010611 | F69: 9 | G69: 0 | H69: 0 | I69: 0 | J69: 0 | K69: 0 | L69: 0 | M69: 0 | N69: 0
B70: AMAZONAS | C70: RODRIGUEZ DE MENDOZA | D70: VISTA ALEGRE | E70: 010612 | F70: 24 | G70: 8 | H70: 33.33333333 | I70: 4 | J70: 16.66666667 | K70: 4 | L70: 16.66666667 | M70: 0 | N70: 0
B71: AMAZONAS | C71: UTCUBAMBA | D71: BAGUA GRANDE | E71: 010701 | F71: 811 | G71: 136 | H71: 16.76942047 | I71: 102 | J71: 12.57706535 | K71: 26 | L71: 3.205918619 | M71: 8 | N71: 0.9864364982
B72: AMAZONAS | C72: UTCUBAMBA | D72: CAJARURO | E72: 010702 | F72: 410 | G72: 98 | H72: 23.90243902 | I72: 81 | J72: 19.75609756 | K72: 17 | L72: 4.146341463 | M72: 0 | N72: 0
B73: AMAZONAS | C73: UTCUBAMBA | D73: CUMBA | E73: 010703 | F73: 20 | G73: 6 | H73: 30 | I73: 5 | J73: 25 | K73: 1 | L73: 5 | M73: 0 | N73: 0
B74: AMAZONAS | C74: UTCUBAMBA | D74: EL MILAGRO | E74: 010704 | F74: 24 | G74: 5 | H74: 20.83333333 | I74: 2 | J74: 8.333333333 | K74: 1 | L74: 4.166666667 | M74: 2 | N74: 8.333333333
B75: AMAZONAS | C75: UTCUBAMBA | D75: JAMALCA | E75: 010705 | F75: 156 | G75: 9 | H75: 5.769230769 | I75: 9 | J75: 5.769230769 | K75: 0 | L75: 0 | M75: 0 | N75: 0
B76: AMAZONAS | C76: UTCUBAMBA | D76: LONYA GRANDE | E76: 010706 | F76: 122 | G76: 13 | H76: 10.6557377 | I76: 10 | J76: 8.196721311 | K76: 3 | L76: 2.459016393 | M76: 0 | N76: 0
B77: AMAZONAS | C77: UTCUBAMBA | D77: YAMON | E77: 010707 | F77: 14 | G77: 2 | H77: 14.28571429 | I77: 2 | J77: 14.28571429 | K77: 0 | L77: 0 | M77: 0 | N77: 0
B78: ÁNCASH | C78: AIJA | D78: AIJA | E78: 020201 | F78: 31 | G78: 12 | H78: 38.70967742 | I78: 6 | J78: 19.35483871 | K78: 6 | L78: 19.35483871 | M78: 0 | N78: 0
B79: ÁNCASH | C79: AIJA | D79: CORIS | E79: 020202 | F79: 28 | G79: 10 | H79: 35.71428571 | I79: 9 | J79: 32.14285714 | K79: 1 | L79: 3.571428571 | M79: 0 | N79: 0
B80: ÁNCASH | C80: AIJA | D80: HUACLLAN | E80: 020203 | F80: 6 | G80: 0 | H80: 0 | I80: 0 | J80: 0 | K80: 0 | L80: 0 | M80: 0 | N80: 0
B81: ÁNCASH | C81: AIJA | D81: LA MERCED | E81: 020204 | F81: 46 | G81: 22 | H81: 47.82608696 | I81: 8 | J81: 17.39130435 | K81: 14 | L81: 30.43478261 | M81: 0 | N81: 0
B82: ÁNCASH | C82: AIJA | D82: SUCCHA | E82: 020205 | F82: 26 | G82: 11 | H82: 42.30769231 | I82: 7 | J82: 26.92307692 | K82: 4 | L82: 15.38461538 | M82: 0 | N82: 0
B83: ÁNCASH | C83: ANTONIO RAYMONDI | D83: ACZO | E83: 020302 | F83: 25 | G83: 13 | H83: 52 | I83: 10 | J83: 40 | K83: 3 | L83: 12 | M83: 0 | N83: 0
B84: ÁNCASH | C84: ANTONIO RAYMONDI | D84: CHACCHO | E84: 020303 | F84: 27 | G84: 8 | H84: 29.62962963 | I84: 6 | J84: 22.22222222 | K84: 2 | L84: 7.407407407 | M84: 0 | N84: 0
B85: ÁNCASH | C85: ANTONIO RAYMONDI | D85: CHINGAS | E85: 020304 | F85: 6 | G85: 0 | H85: 0 | I85: 0 | J85: 0 | K85: 0 | L85: 0 | M85: 0 | N85: 0
B86: ÁNCASH | C86: ANTONIO RAYMONDI | D86: LLAMELLIN | E86: 020301 | F86: 9 | G86: 6 | H86: 66.66666667 | I86: 1 | J86: 11.11111111 | K86: 5 | L86: 55.55555556 | M86: 0 | N86: 0
B87: ÁNCASH | C87: ANTONIO RAYMONDI | D87: MIRGAS | E87: 020305 | F87: 19 | G87: 13 | H87: 68.42105263 | I87: 6 | J87: 31.57894737 | K87: 7 | L87: 36.84210526 | M87: 0 | N87: 0
B88: ÁNCASH | C88: ANTONIO RAYMONDI | D88: SAN JUAN DE RONTOY | E88: 020306 | F88: 30 | G88: 9 | H88: 30 | I88: 9 | J88: 30 | K88: 0 | L88: 0 | M88: 0 | N88: 0
B89: ÁNCASH | C89: ASUNCION | D89: ACOCHACA | E89: 020402 | F89: 73 | G89: 28 | H89: 38.35616438 | I89: 18 | J89: 24.65753425 | K89: 10 | L89: 13.69863014 | M89: 0 | N89: 0
B90: ÁNCASH | C90: ASUNCION | D90: CHACAS | E90: 020401 | F90: 107 | G90: 9 | H90: 8.411214953 | I90: 6 | J90: 5.607476636 | K90: 3 | L90: 2.803738318 | M90: 0 | N90: 0
B91: ÁNCASH | C91: BOLOGNESI | D91: ABELARDO PARDO LEZAMETA | E91: 020502 | F91: 9 | G91: 4 | H91: 44.44444444 | I91: 3 | J91: 33.33333333 | K91: 1 | L91: 11.11111111 | M91: 0 | N91: 0
B92: ÁNCASH | C92: BOLOGNESI | D92: ANTONIO RAYMONDI | E92: 020503 | F92: 24 | G92: 1 | H92: 4.166666667 | I92: 1 | J92: 4.166666667 | K92: 0 | L92: 0 | M92: 0 | N92: 0
B93: ÁNCASH | C93: BOLOGNESI | D93: AQUIA | E93: 020504 | F93: 28 | G93: 19 | H93: 67.85714286 | I93: 9 | J93: 32.14285714 | K93: 7 | L93: 25 | M93: 3 | N93: 10.71428571
B94: ÁNCASH | C94: BOLOGNESI | D94: CAJACAY | E94: 020505 | F94: 38 | G94: 10 | H94: 26.31578947 | I94: 5 | J94: 13.15789474 | K94: 5 | L94: 13.15789474 | M94: 0 | N94: 0
B95: ÁNCASH | C95: BOLOGNESI | D95: CHIQUIAN | E95: 020501 | F95: 36 | G95: 36 | H95: 100 | I95: 1 | J95: 2.777777778 | K95: 30 | L95: 83.33333333 | M95: 5 | N95: 13.88888889
B96: ÁNCASH | C96: BOLOGNESI | D96: COLQUIOC | E96: 020507 | F96: 22 | G96: 12 | H96: 54.54545455 | I96: 10 | J96: 45.45454545 | K96: 2 | L96: 9.090909091 | M96: 0 | N96: 0
B97: ÁNCASH | C97: BOLOGNESI | D97: HUALLANCA | E97: 020508 | F97: 73 | G97: 29 | H97: 39.7260274 | I97: 19 | J97: 26.02739726 | K97: 10 | L97: 13.69863014 | M97: 0 | N97: 0
B98: ÁNCASH | C98: BOLOGNESI | D98: HUASTA | E98: 020509 | F98: 36 | G98: 22 | H98: 61.11111111 | I98: 11 | J98: 30.55555556 | K98: 11 | L98: 30.55555556 | M98: 0 | N98: 0
B99: ÁNCASH | C99: BOLOGNESI | D99: HUAYLLACAYAN | E99: 020510 | F99: 48 | G99: 12 | H99: 25 | I99: 11 | J99: 22.91666667 | K99: 1 | L99: 2.083333333 | M99: 0 | N99: 0
B100: ÁNCASH | C100: BOLOGNESI | D100: MANGAS | E100: 020512 | F100: 9 | G100: 4 | H100: 44.44444444 | I100: 4 | J100: 44.44444444 | K100: 0 | L100: 0 | M100: 0 | N100: 0
B101: ÁNCASH | C101: BOLOGNESI | D101: PACLLON | E101: 020513 | F101: 21 | G101: 11 | H101: 52.38095238 | I101: 5 | J101: 23.80952381 | K101: 6 | L101: 28.57142857 | M101: 0 | N101: 0
B102: ÁNCASH | C102: BOLOGNESI | D102: SAN MIGUEL DE CORPANQUI | E102: 020514 | F102: 9 | G102: 9 | H102: 100 | I102: 2 | J102: 22.22222222 | K102: 7 | L102: 77.77777778 | M102: 0 | N102: 0
B103: ÁNCASH | C103: BOLOGNESI | D103: TICLLOS | E103: 020515 | F103: 14 | G103: 8 | H103: 57.14285714 | I103: 7 | J103: 50 | K103: 1 | L103: 7.142857143 | M103: 0 | N103: 0
B104: ÁNCASH | C104: CARHUAZ | D104: ACOPAMPA | E104: 020602 | F104: 40 | G104: 19 | H104: 47.5 | I104: 17 | J104: 42.5 | K104: 2 | L104: 5 | M104: 0 | N104: 0
B105: ÁNCASH | C105: CARHUAZ | D105: AMASHCA | E105: 020603 | F105: 37 | G105: 17 | H105: 45.94594595 | I105: 5 | J105: 13.51351351 | K105: 12 | L105: 32.43243243 | M105: 0 | N105: 0
B106: ÁNCASH | C106: CARHUAZ | D106: ANTA | E106: 020604 | F106: 62 | G106: 42 | H106: 67.74193548 | I106: 32 | J106: 51.61290323 | K106: 10 | L106: 16.12903226 | M106: 0 | N106: 0
B107: ÁNCASH | C107: CARHUAZ | D107: ATAQUERO | E107: 020605 | F107: 40 | G107: 17 | H107: 42.5 | I107: 11 | J107: 27.5 | K107: 6 | L107: 15 | M107: 0 | N107: 0
B108: ÁNCASH | C108: CARHUAZ | D108: CARHUAZ | E108: 020601 | F108: 265 | G108: 150 | H108: 56.60377358 | I108: 78 | J108: 29.43396226 | K108: 72 | L108: 27.16981132 | M108: 0 | N108: 0
B109: ÁNCASH | C109: CARHUAZ | D109: MARCARA | E109: 020606 | F109: 185 | G109: 41 | H109: 22.16216216 | I109: 33 | J109: 17.83783784 | K109: 8 | L109: 4.324324324 | M109: 0 | N109: 0
B110: ÁNCASH | C110: CARHUAZ | D110: PARIAHUANCA | E110: 020607 | F110: 32 | G110: 7 | H110: 21.875 | I110: 4 | J110: 12.5 | K110: 3 | L110: 9.375 | M110: 0 | N110: 0
B111: ÁNCASH | C111: CARHUAZ | D111: SAN MIGUEL DE ACO | E111: 020608 | F111: 57 | G111: 17 | H111: 29.8245614 | I111: 11 | J111: 19.29824561 | K111: 6 | L111: 10.52631579 | M111: 0 | N111: 0
B112: ÁNCASH | C112: CARHUAZ | D112: SHILLA | E112: 020609 | F112: 43 | G112: 25 | H112: 58.13953488 | I112: 12 | J112: 27.90697674 | K112: 13 | L112: 30.23255814 | M112: 0 | N112: 0
B113: ÁNCASH | C113: CARHUAZ | D113: TINCO | E113: 020610 | F113: 45 | G113: 21 | H113: 46.66666667 | I113: 10 | J113: 22.22222222 | K113: 11 | L113: 24.44444444 | M113: 0 | N113: 0
B114: ÁNCASH | C114: CARHUAZ | D114: YUNGAR | E114: 020611 | F114: 66 | G114: 19 | H114: 28.78787879 | I114: 15 | J114: 22.72727273 | K114: 4 | L114: 6.060606061 | M114: 0 | N114: 0
B115: ÁNCASH | C115: CARLOS FERMIN FITZCARRALD | D115: SAN LUIS | E115: 020701 | F115: 154 | G115: 62 | H115: 40.25974026 | I115: 36 | J115: 23.37662338 | K115: 26 | L115: 16.88311688 | M115: 0 | N115: 0
B116: ÁNCASH | C116: CARLOS FERMIN FITZCARRALD | D116: SAN NICOLAS | E116: 020702 | F116: 15 | G116: 14 | H116: 93.33333333 | I116: 1 | J116: 6.666666667 | K116: 12 | L116: 80 | M116: 1 | N116: 6.666666667
B117: ÁNCASH | C117: CARLOS FERMIN FITZCARRALD | D117: YAUYA | E117: 020703 | F117: 104 | G117: 52 | H117: 50 | I117: 27 | J117: 25.96153846 | K117: 25 | L117: 24.03846154 | M117: 0 | N117: 0
B118: ÁNCASH | C118: CASMA | D118: BUENA VISTA ALTA | E118: 020802 | F118: 65 | G118: 22 | H118: 33.84615385 | I118: 15 | J118: 23.07692308 | K118: 7 | L118: 10.76923077 | M118: 0 | N118: 0
B119: ÁNCASH | C119: CASMA | D119: CASMA | E119: 020801 | F119: 74 | G119: 42 | H119: 56.75675676 | I119: 31 | J119: 41.89189189 | K119: 11 | L119: 14.86486486 | M119: 0 | N119: 0
B120: ÁNCASH | C120: CASMA | D120: COMANDANTE NOEL | E120: 020803 | F120: 26 | G120: 10 | H120: 38.46153846 | I120: 7 | J120: 26.92307692 | K120: 3 | L120: 11.53846154 | M120: 0 | N120: 0
B121: ÁNCASH | C121: CASMA | D121: YAUTAN | E121: 020804 | F121: 64 | G121: 32 | H121: 50 | I121: 23 | J121: 35.9375 | K121: 9 | L121: 14.0625 | M121: 0 | N121: 0
B122: ÁNCASH | C122: CORONGO | D122: ACO | E122: 020902 | F122: 7 | G122: 0 | H122: 0 | I122: 0 | J122: 0 | K122: 0 | L122: 0 | M122: 0 | N122: 0
B123: ÁNCASH | C123: CORONGO | D123: BAMBAS | E123: 020903 | F123: 8 | G123: 0 | H123: 0 | I123: 0 | J123: 0 | K123: 0 | L123: 0 | M123: 0 | N123: 0
B124: ÁNCASH | C124: CORONGO | D124: CORONGO | E124: 020901 | F124: 37 | G124: 9 | H124: 24.32432432 | I124: 5 | J124: 13.51351351 | K124: 4 | L124: 10.81081081 | M124: 0 | N124: 0
B125: ÁNCASH | C125: CORONGO | D125: CUSCA | E125: 020904 | F125: 44 | G125: 18 | H125: 40.90909091 | I125: 3 | J125: 6.818181818 | K125: 15 | L125: 34.09090909 | M125: 0 | N125: 0
B126: ÁNCASH | C126: CORONGO | D126: LA PAMPA | E126: 020905 | F126: 5 | G126: 2 | H126: 40 | I126: 0 | J126: 0 | K126: 2 | L126: 40 | M126: 0 | N126: 0
B127: ÁNCASH | C127: HUARAZ | D127: COCHABAMBA | E127: 020102 | F127: 55 | G127: 15 | H127: 27.27272727 | I127: 7 | J127: 12.72727273 | K127: 8 | L127: 14.54545455 | M127: 0 | N127: 0
B128: ÁNCASH | C128: HUARAZ | D128: HUANCHAY | E128: 020104 | F128: 19 | G128: 5 | H128: 26.31578947 | I128: 3 | J128: 15.78947368 | K128: 2 | L128: 10.52631579 | M128: 0 | N128: 0
B129: ÁNCASH | C129: HUARAZ | D129: HUARAZ | E129: 020101 | F129: 371 | G129: 205 | H129: 55.25606469 | I129: 107 | J129: 28.84097035 | K129: 97 | L129: 26.14555256 | M129: 1 | N129: 0.269541779
B130: ÁNCASH | C130: HUARAZ | D130: INDEPENDENCIA | E130: 020105 | F130: 590 | G130: 370 | H130: 62.71186441 | I130: 178 | J130: 30.16949153 | K130: 188 | L130: 31.86440678 | M130: 4 | N130: 0.6779661017
B131: ÁNCASH | C131: HUARAZ | D131: JANGAS | E131: 020106 | F131: 143 | G131: 71 | H131: 49.65034965 | I131: 50 | J131: 34.96503497 | K131: 21 | L131: 14.68531469 | M131: 0 | N131: 0
B132: ÁNCASH | C132: HUARAZ | D132: LA LIBERTAD | E132: 020107 | F132: 27 | G132: 12 | H132: 44.44444444 | I132: 8 | J132: 29.62962963 | K132: 4 | L132: 14.81481481 | M132: 0 | N132: 0
B133: ÁNCASH | C133: HUARAZ | D133: OLLEROS | E133: 020108 | F133: 49 | G133: 7 | H133: 14.28571429 | I133: 6 | J133: 12.24489796 | K133: 1 | L133: 2.040816327 | M133: 0 | N133: 0
B134: ÁNCASH | C134: HUARAZ | D134: PARIACOTO | E134: 020110 | F134: 93 | G134: 57 | H134: 61.29032258 | I134: 22 | J134: 23.65591398 | K134: 35 | L134: 37.6344086 | M134: 0 | N134: 0
B135: ÁNCASH | C135: HUARAZ | D135: TARICA | E135: 020112 | F135: 82 | G135: 47 | H135: 57.31707317 | I135: 29 | J135: 35.36585366 | K135: 16 | L135: 19.51219512 | M135: 2 | N135: 2.43902439
B136: ÁNCASH | C136: HUARI | D136: CAJAY | E136: 021003 | F136: 68 | G136: 42 | H136: 61.76470588 | I136: 15 | J136: 22.05882353 | K136: 26 | L136: 38.23529412 | M136: 1 | N136: 1.470588235
B137: ÁNCASH | C137: HUARI | D137: CHAVIN DE HUANTAR | E137: 021004 | F137: 167 | G137: 67 | H137: 40.11976048 | I137: 47 | J137: 28.14371257 | K137: 20 | L137: 11.9760479 | M137: 0 | N137: 0
B138: ÁNCASH | C138: HUARI | D138: HUACACHI | E138: 021005 | F138: 36 | G138: 10 | H138: 27.77777778 | I138: 8 | J138: 22.22222222 | K138: 2 | L138: 5.555555556 | M138: 0 | N138: 0
B139: ÁNCASH | C139: HUARI | D139: HUACHIS | E139: 021007 | F139: 80 | G139: 51 | H139: 63.75 | I139: 31 | J139: 38.75 | K139: 20 | L139: 25 | M139: 0 | N139: 0
B140: ÁNCASH | C140: HUARI | D140: HUANTAR | E140: 021008 | F140: 55 | G140: 8 | H140: 14.54545455 | I140: 8 | J140: 14.54545455 | K140: 0 | L140: 0 | M140: 0 | N140: 0
B141: ÁNCASH | C141: HUARI | D141: HUARI | E141: 021001 | F141: 299 | G141: 130 | H141: 43.47826087 | I141: 82 | J141: 27.42474916 | K141: 48 | L141: 16.05351171 | M141: 0 | N141: 0
B142: ÁNCASH | C142: HUARI | D142: MASIN | E142: 021009 | F142: 39 | G142: 15 | H142: 38.46153846 | I142: 10 | J142: 25.64102564 | K142: 5 | L142: 12.82051282 | M142: 0 | N142: 0
B143: ÁNCASH | C143: HUARI | D143: PONTO | E143: 021011 | F143: 63 | G143: 23 | H143: 36.50793651 | I143: 10 | J143: 15.87301587 | K143: 13 | L143: 20.63492063 | M143: 0 | N143: 0
B144: ÁNCASH | C144: HUARI | D144: RAHUAPAMPA | E144: 021012 | F144: 26 | G144: 8 | H144: 30.76923077 | I144: 8 | J144: 30.76923077 | K144: 0 | L144: 0 | M144: 0 | N144: 0
B145: ÁNCASH | C145: HUARI | D145: SAN MARCOS | E145: 021014 | F145: 315 | G145: 86 | H145: 27.3015873 | I145: 57 | J145: 18.0952381 | K145: 21 | L145: 6.666666667 | M145: 8 | N145: 2.53968254
B146: ÁNCASH | C146: HUARI | D146: SAN PEDRO DE CHANA | E146: 021015 | F146: 82 | G146: 46 | H146: 56.09756098 | I146: 21 | J146: 25.6097561 | K146: 25 | L146: 30.48780488 | M146: 0 | N146: 0
B147: ÁNCASH | C147: HUARI | D147: UCO | E147: 021016 | F147: 15 | G147: 9 | H147: 60 | I147: 5 | J147: 33.33333333 | K147: 4 | L147: 26.66666667 | M147: 0 | N147: 0
B148: ÁNCASH | C148: HUARMEY | D148: COCHAPETI | E148: 021102 | F148: 9 | G148: 9 | H148: 100 | I148: 4 | J148: 44.44444444 | K148: 5 | L148: 55.55555556 | M148: 0 | N148: 0
B149: ÁNCASH | C149: HUARMEY | D149: CULEBRAS | E149: 021103 | F149: 62 | G149: 21 | H149: 33.87096774 | I149: 13 | J149: 20.96774194 | K149: 8 | L149: 12.90322581 | M149: 0 | N149: 0
B150: ÁNCASH | C150: HUARMEY | D150: HUARMEY | E150: 021101 | F150: 78 | G150: 14 | H150: 17.94871795 | I150: 12 | J150: 15.38461538 | K150: 2 | L150: 2.564102564 | M150: 0 | N150: 0
B151: ÁNCASH | C151: HUARMEY | D151: MALVAS | E151: 021105 | F151: 8 | G151: 6 | H151: 75 | I151: 1 | J151: 12.5 | K151: 4 | L151: 50 | M151: 1 | N151: 12.5
B152: ÁNCASH | C152: HUAYLAS | D152: CARAZ | E152: 021201 | F152: 511 | G152: 234 | H152: 45.7925636 | I152: 131 | J152: 25.63600783 | K152: 102 | L152: 19.96086106 | M152: 1 | N152: 0.1956947162
B153: ÁNCASH | C153: HUAYLAS | D153: HUALLANCA | E153: 021202 | F153: 8 | G153: 5 | H153: 62.5 | I153: 3 | J153: 37.5 | K153: 2 | L153: 25 | M153: 0 | N153: 0
B154: ÁNCASH | C154: HUAYLAS | D154: HUATA | E154: 021203 | F154: 52 | G154: 25 | H154: 48.07692308 | I154: 15 | J154: 28.84615385 | K154: 9 | L154: 17.30769231 | M154: 1 | N154: 1.923076923
B155: ÁNCASH | C155: HUAYLAS | D155: HUAYLAS | E155: 021204 | F155: 61 | G155: 22 | H155: 36.06557377 | I155: 10 | J155: 16.39344262 | K155: 11 | L155: 18.03278689 | M155: 1 | N155: 1.639344262
B156: ÁNCASH | C156: HUAYLAS | D156: MATO | E156: 021205 | F156: 76 | G156: 25 | H156: 32.89473684 | I156: 22 | J156: 28.94736842 | K156: 3 | L156: 3.947368421 | M156: 0 | N156: 0
B157: ÁNCASH | C157: HUAYLAS | D157: PAMPAROMAS | E157: 021206 | F157: 468 | G157: 124 | H157: 26.4957265 | I157: 89 | J157: 19.01709402 | K157: 35 | L157: 7.478632479 | M157: 0 | N157: 0
B158: ÁNCASH | C158: HUAYLAS | D158: PUEBLO LIBRE | E158: 021207 | F158: 87 | G158: 23 | H158: 26.43678161 | I158: 12 | J158: 13.79310345 | K158: 11 | L158: 12.64367816 | M158: 0 | N158: 0
B159: ÁNCASH | C159: HUAYLAS | D159: SANTA CRUZ | E159: 021208 | F159: 51 | G159: 14 | H159: 27.45098039 | I159: 9 | J159: 17.64705882 | K159: 5 | L159: 9.803921569 | M159: 0 | N159: 0
B160: ÁNCASH | C160: HUAYLAS | D160: SANTO TORIBIO | E160: 021209 | F160: 13 | G160: 3 | H160: 23.07692308 | I160: 3 | J160: 23.07692308 | K160: 0 | L160: 0 | M160: 0 | N160: 0
B161: ÁNCASH | C161: HUAYLAS | D161: YURACMARCA | E161: 021210 | F161: 17 | G161: 1 | H161: 5.882352941 | I161: 1 | J161: 5.882352941 | K161: 0 | L161: 0 | M161: 0 | N161: 0
B162: ÁNCASH | C162: MARISCAL LUZURIAGA | D162: CASCA | E162: 021302 | F162: 76 | G162: 31 | H162: 40.78947368 | I162: 15 | J162: 19.73684211 | K162: 16 | L162: 21.05263158 | M162: 0 | N162: 0
B163: ÁNCASH | C163: MARISCAL LUZURIAGA | D163: ELEAZAR GUZMAN BARRON | E163: 021303 | F163: 52 | G163: 16 | H163: 30.76923077 | I163: 10 | J163: 19.23076923 | K163: 6 | L163: 11.53846154 | M163: 0 | N163: 0
B164: ÁNCASH | C164: MARISCAL LUZURIAGA | D164: FIDEL OLIVAS ESCUDERO | E164: 021304 | F164: 68 | G164: 23 | H164: 33.82352941 | I164: 12 | J164: 17.64705882 | K164: 11 | L164: 16.17647059 | M164: 0 | N164: 0
B165: ÁNCASH | C165: MARISCAL LUZURIAGA | D165: LLAMA | E165: 021305 | F165: 34 | G165: 1 | H165: 2.941176471 | I165: 1 | J165: 2.941176471 | K165: 0 | L165: 0 | M165: 0 | N165: 0
B166: ÁNCASH | C166: MARISCAL LUZURIAGA | D166: LLUMPA | E166: 021306 | F166: 131 | G166: 40 | H166: 30.53435115 | I166: 20 | J166: 15.26717557 | K166: 20 | L166: 15.26717557 | M166: 0 | N166: 0
B167: ÁNCASH | C167: MARISCAL LUZURIAGA | D167: LUCMA | E167: 021307 | F167: 61 | G167: 13 | H167: 21.31147541 | I167: 8 | J167: 13.1147541 | K167: 5 | L167: 8.196721311 | M167: 0 | N167: 0
B168: ÁNCASH | C168: MARISCAL LUZURIAGA | D168: MUSGA | E168: 021308 | F168: 11 | G168: 2 | H168: 18.18181818 | I168: 1 | J168: 9.090909091 | K168: 1 | L168: 9.090909091 | M168: 0 | N168: 0
B169: ÁNCASH | C169: MARISCAL LUZURIAGA | D169: PISCOBAMBA | E169: 021301 | F169: 70 | G169: 30 | H169: 42.85714286 | I169: 14 | J169: 20 | K169: 16 | L169: 22.85714286 | M169: 0 | N169: 0
B170: ÁNCASH | C170: OCROS | D170: ACAS | E170: 021402 | F170: 6 | G170: 1 | H170: 16.66666667 | I170: 0 | J170: 0 | K170: 1 | L170: 16.66666667 | M170: 0 | N170: 0
B171: ÁNCASH | C171: OCROS | D171: COCHAS | E171: 021405 | F171: 5 | G171: 4 | H171: 80 | I171: 2 | J171: 40 | K171: 2 | L171: 40 | M171: 0 | N171: 0
B172: ÁNCASH | C172: OCROS | D172: CONGAS | E172: 021406 | F172: 17 | G172: 4 | H172: 23.52941176 | I172: 2 | J172: 11.76470588 | K172: 2 | L172: 11.76470588 | M172: 0 | N172: 0
B173: ÁNCASH | C173: OCROS | D173: OCROS | E173: 021401 | F173: 12 | G173: 8 | H173: 66.66666667 | I173: 2 | J173: 16.66666667 | K173: 6 | L173: 50 | M173: 0 | N173: 0
B174: ÁNCASH | C174: PALLASCA | D174: CABANA | E174: 021501 | F174: 50 | G174: 27 | H174: 54 | I174: 14 | J174: 28 | K174: 13 | L174: 26 | M174: 0 | N174: 0
B175: ÁNCASH | C175: PALLASCA | D175: CONCHUCOS | E175: 021503 | F175: 179 | G175: 45 | H175: 25.1396648 | I175: 29 | J175: 16.20111732 | K175: 14 | L175: 7.82122905 | M175: 2 | N175: 1.117318436
B176: ÁNCASH | C176: PALLASCA | D176: HUACASCHUQUE | E176: 021504 | F176: 23 | G176: 6 | H176: 26.08695652 | I176: 3 | J176: 13.04347826 | K176: 3 | L176: 13.04347826 | M176: 0 | N176: 0
B177: ÁNCASH | C177: PALLASCA | D177: HUANDOVAL | E177: 021505 | F177: 12 | G177: 9 | H177: 75 | I177: 5 | J177: 41.66666667 | K177: 4 | L177: 33.33333333 | M177: 0 | N177: 0
B178: ÁNCASH | C178: PALLASCA | D178: LACABAMBA | E178: 021506 | F178: 20 | G178: 8 | H178: 40 | I178: 5 | J178: 25 | K178: 3 | L178: 15 | M178: 0 | N178: 0
B179: ÁNCASH | C179: PALLASCA | D179: LLAPO | E179: 021507 | F179: 15 | G179: 6 | H179: 40 | I179: 3 | J179: 20 | K179: 3 | L179: 20 | M179: 0 | N179: 0
B180: ÁNCASH | C180: PALLASCA | D180: PALLASCA | E180: 021508 | F180: 31 | G180: 27 | H180: 87.09677419 | I180: 8 | J180: 25.80645161 | K180: 17 | L180: 54.83870968 | M180: 2 | N180: 6.451612903
B181: ÁNCASH | C181: PALLASCA | D181: PAMPAS | E181: 021509 | F181: 97 | G181: 67 | H181: 69.07216495 | I181: 32 | J181: 32.98969072 | K181: 35 | L181: 36.08247423 | M181: 0 | N181: 0
B182: ÁNCASH | C182: PALLASCA | D182: SANTA ROSA | E182: 021510 | F182: 21 | G182: 8 | H182: 38.0952381 | I182: 8 | J182: 38.0952381 | K182: 0 | L182: 0 | M182: 0 | N182: 0
B183: ÁNCASH | C183: PALLASCA | D183: TAUCA | E183: 021511 | F183: 102 | G183: 34 | H183: 33.33333333 | I183: 23 | J183: 22.54901961 | K183: 11 | L183: 10.78431373 | M183: 0 | N183: 0
B184: ÁNCASH | C184: POMABAMBA | D184: HUAYLLAN | E184: 021602 | F184: 59 | G184: 10 | H184: 16.94915254 | I184: 6 | J184: 10.16949153 | K184: 4 | L184: 6.779661017 | M184: 0 | N184: 0
B185: ÁNCASH | C185: POMABAMBA | D185: PAROBAMBA | E185: 021603 | F185: 187 | G185: 80 | H185: 42.78074866 | I185: 49 | J185: 26.20320856 | K185: 31 | L185: 16.57754011 | M185: 0 | N185: 0
B186: ÁNCASH | C186: POMABAMBA | D186: POMABAMBA | E186: 021601 | F186: 349 | G186: 87 | H186: 24.92836676 | I186: 64 | J186: 18.33810888 | K186: 23 | L186: 6.59025788 | M186: 0 | N186: 0
B187: ÁNCASH | C187: POMABAMBA | D187: QUINUABAMBA | E187: 021604 | F187: 74 | G187: 10 | H187: 13.51351351 | I187: 8 | J187: 10.81081081 | K187: 2 | L187: 2.702702703 | M187: 0 | N187: 0
B188: ÁNCASH | C188: RECUAY | D188: CATAC | E188: 021702 | F188: 168 | G188: 96 | H188: 57.14285714 | I188: 51 | J188: 30.35714286 | K188: 45 | L188: 26.78571429 | M188: 0 | N188: 0
B189: ÁNCASH | C189: RECUAY | D189: COTAPARACO | E189: 021703 | F189: 9 | G189: 3 | H189: 33.33333333 | I189: 1 | J189: 11.11111111 | K189: 2 | L189: 22.22222222 | M189: 0 | N189: 0
B190: ÁNCASH | C190: RECUAY | D190: LLACLLIN | E190: 021705 | F190: 22 | G190: 9 | H190: 40.90909091 | I190: 7 | J190: 31.81818182 | K190: 2 | L190: 9.090909091 | M190: 0 | N190: 0
B191: ÁNCASH | C191: RECUAY | D191: PARARIN | E191: 021708 | F191: 15 | G191: 4 | H191: 26.66666667 | I191: 1 | J191: 6.666666667 | K191: 3 | L191: 20 | M191: 0 | N191: 0
B192: ÁNCASH | C192: RECUAY | D192: RECUAY | E192: 021701 | F192: 46 | G192: 23 | H192: 50 | I192: 7 | J192: 15.2173913 | K192: 16 | L192: 34.7826087 | M192: 0 | N192: 0
B193: ÁNCASH | C193: RECUAY | D193: TAPACOCHA | E193: 021709 | F193: 11 | G193: 9 | H193: 81.81818182 | I193: 5 | J193: 45.45454545 | K193: 4 | L193: 36.36363636 | M193: 0 | N193: 0
B194: ÁNCASH | C194: RECUAY | D194: TICAPAMPA | E194: 021710 | F194: 33 | G194: 14 | H194: 42.42424242 | I194: 8 | J194: 24.24242424 | K194: 6 | L194: 18.18181818 | M194: 0 | N194: 0
B195: ÁNCASH | C195: SANTA | D195: CACERES DEL PERU | E195: 021802 | F195: 41 | G195: 7 | H195: 17.07317073 | I195: 5 | J195: 12.19512195 | K195: 2 | L195: 4.87804878 | M195: 0 | N195: 0
B196: ÁNCASH | C196: SANTA | D196: CHIMBOTE | E196: 021801 | F196: 1042 | G196: 381 | H196: 36.56429942 | I196: 290 | J196: 27.83109405 | K196: 91 | L196: 8.733205374 | M196: 0 | N196: 0
B197: ÁNCASH | C197: SANTA | D197: COISHCO | E197: 021803 | F197: 112 | G197: 28 | H197: 25 | I197: 20 | J197: 17.85714286 | K197: 8 | L197: 7.142857143 | M197: 0 | N197: 0
B198: ÁNCASH | C198: SANTA | D198: MACATE | E198: 021804 | F198: 45 | G198: 9 | H198: 20 | I198: 4 | J198: 8.888888889 | K198: 5 | L198: 11.11111111 | M198: 0 | N198: 0
B199: ÁNCASH | C199: SANTA | D199: MORO | E199: 021805 | F199: 29 | G199: 7 | H199: 24.13793103 | I199: 4 | J199: 13.79310345 | K199: 3 | L199: 10.34482759 | M199: 0 | N199: 0
B200: ÁNCASH | C200: SANTA | D200: NEPEÑA | E200: 021806 | F200: 63 | G200: 22 | H200: 34.92063492 | I200: 15 | J200: 23.80952381 | K200: 7 | L200: 11.11111111 | M200: 0 | N200: 0
B201: ÁNCASH | C201: SANTA | D201: NUEVO CHIMBOTE | E201: 021809 | F201: 264 | G201: 147 | H201: 55.68181818 | I201: 114 | J201: 43.18181818 | K201: 33 | L201: 12.5 | M201: 0 | N201: 0
B202: ÁNCASH | C202: SANTA | D202: SAMANCO | E202: 021807 | F202: 11 | G202: 3 | H202: 27.27272727 | I202: 3 | J202: 27.27272727 | K202: 0 | L202: 0 | M202: 0 | N202: 0
... 1475 more rows

Sheet EN 0-35m x EESS (hidden)
B2: CUADRO N°07 PERÚ: ESTADO NUTRICIONAL EN NIÑOS MENORES DE 3 AÑOS QUE ACCEDIERON A LOS ESTABLECIMIENTOS DE SALUD POR INDICADORES ANTROPOMÉTRICOS, SEGÚN DIRESA, RED, MICRORED Y ESTABLECIMIENTO DE SALUD
B3: =#REF! -> 
B5: DIRESA | C5: RED | D5: MICRORED | E5: ESTABLECIMIENTO DE SALUD | F5: RENIPRESS | G5: INDICADOR TALLA / EDAD1 | M5: INDICADOR PESO / EDAD2 | P5: INDICADOR PESO / TALLA3
G6: DESNUTRICIÓN CRÓNICA | J6: RIESGO DE DESNUTRICIÓN CRÓNICA4 | M6: DESNUTRICIÓN GLOBAL | P6: N° DE EVALUADOS | Q6: DESNUTRICIÓN AGUDA | S6: SOBREPESO | U6: OBESIDAD
G7: N° DE EVALUADOS | H7: N° DE CASOS | I7: % | J7: N° DE EVALUADOS | K7: N° DE CASOS | L7: % | M7: N° DE EVALUADOS | N7: N° DE CASOS | O7: % | Q7: N° DE CASOS | R7: % | S7: N° DE CASOS | T7: % | U7: N° DE CASOS | V7: %
B8: AMAZONAS | C8: BAGUA | D8: ARAMANGO | E8: C.S. ARAMANGO | F8: 5053 | G8: 130 | H8: 19 | I8: 14.61538462 | J8: 109 | K8: 37 | L8: 33.94495413 | M8: 130 | N8: 8 | O8: 6.153846154 | P8: 130 | Q8: 2 | R8: 1.538461538 | S8: 8 | T8: 6.153846154 | U8: 4 | V8: 3.076923077
B9: AMAZONAS | C9: BAGUA | D9: ARAMANGO | E9: P.S. CHINGANZA | F9: 7008 | G9: 43 | H9: 7 | I9: 16.27906977 | J9: 36 | K9: 15 | L9: 41.66666667 | M9: 43 | N9: 2 | O9: 4.651162791 | P9: 42 | Q9: 1 | R9: 2.380952381 | S9: 0 | T9: 0 | U9: 0 | V9: 0
B10: AMAZONAS | C10: BAGUA | D10: ARAMANGO | E10: P.S. EL CEDRON | F10: 7264 | G10: 4 | H10: 1 | I10: 25 | J10: 3 | K10: 2 | L10: 66.66666667 | M10: 4 | N10: 0 | O10: 0 | P10: 4 | Q10: 0 | R10: 0 | S10: 0 | T10: 0 | U10: 1 | V10: 25
B11: AMAZONAS | C11: BAGUA | D11: ARAMANGO | E11: P.S. GUAYAQUIL | F11: 7263 | G11: 5 | H11: 3 | I11: 60 | J11: 2 | K11: 0 | L11: 0 | M11: 5 | N11: 0 | O11: 0 | P11: 5 | Q11: 0 | R11: 0 | S11: 1 | T11: 20 | U11: 0 | V11: 0
B12: AMAZONAS | C12: BAGUA | D12: ARAMANGO | E12: P.S. MIRAFLORES DE ARAMANGO | F12: 5054 | G12: 25 | H12: 5 | I12: 20 | J12: 20 | K12: 7 | L12: 35 | M12: 25 | N12: 1 | O12: 4 | P12: 25 | Q12: 0 | R12: 0 | S12: 0 | T12: 0 | U12: 0 | V12: 0
B13: AMAZONAS | C13: BAGUA | D13: ARAMANGO | E13: P.S. MONTENEGRO | F13: 7009 | G13: 22 | H13: 3 | I13: 13.63636364 | J13: 19 | K13: 4 | L13: 21.05263158 | M13: 22 | N13: 1 | O13: 4.545454545 | P13: 22 | Q13: 0 | R13: 0 | S13: 2 | T13: 9.090909091 | U13: 0 | V13: 0
B14: AMAZONAS | C14: BAGUA | D14: ARAMANGO | E14: P.S. NAJEM | F14: 7228 | G14: 54 | H14: 23 | I14: 42.59259259 | J14: 29 | K14: 24 | L14: 82.75862069 | M14: 54 | N14: 7 | O14: 12.96296296 | P14: 54 | Q14: 0 | R14: 0 | S14: 3 | T14: 5.555555556 | U14: 0 | V14: 0
B15: AMAZONAS | C15: BAGUA | D15: ARAMANGO | E15: P.S. NUMPARKET | F15: 5058 | G15: 34 | H15: 5 | I15: 14.70588235 | J15: 29 | K15: 8 | L15: 27.5862069 | M15: 34 | N15: 0 | O15: 0 | P15: 34 | Q15: 0 | R15: 0 | S15: 2 | T15: 5.882352941 | U15: 0 | V15: 0
B16: AMAZONAS | C16: BAGUA | D16: ARAMANGO | E16: P.S. SELVA VERDE | F16: 7227 | G16: 8 | H16: 2 | I16: 25 | J16: 6 | K16: 3 | L16: 50 | M16: 8 | N16: 1 | O16: 12.5 | P16: 8 | Q16: 0 | R16: 0 | S16: 0 | T16: 0 | U16: 0 | V16: 0
B17: AMAZONAS | C17: BAGUA | D17: ARAMANGO | E17: P.S. SHAIM | F17: 5061 | G17: 46 | H17: 22 | I17: 47.82608696 | J17: 23 | K17: 14 | L17: 60.86956522 | M17: 46 | N17: 6 | O17: 13.04347826 | P17: 46 | Q17: 2 | R17: 4.347826087 | S17: 4 | T17: 8.695652174 | U17: 0 | V17: 0
B18: AMAZONAS | C18: BAGUA | D18: ARAMANGO | E18: P.S. TUTUMBEROS | F18: 5059 | G18: 71 | H18: 12 | I18: 16.90140845 | J18: 57 | K18: 30 | L18: 52.63157895 | M18: 71 | N18: 2 | O18: 2.816901408 | P18: 71 | Q18: 1 | R18: 1.408450704 | S18: 3 | T18: 4.225352113 | U18: 0 | V18: 0
B19: AMAZONAS | C19: BAGUA | D19: BAGUA | E19: C.S. BAGUA | F19: 6998 | G19: 415 | H19: 45 | I19: 10.84337349 | J19: 363 | K19: 116 | L19: 31.95592287 | M19: 421 | N19: 21 | O19: 4.988123515 | P19: 418 | Q19: 4 | R19: 0.956937799 | S19: 24 | T19: 5.741626794 | U19: 3 | V19: 0.7177033493
B20: AMAZONAS | C20: BAGUA | D20: BAGUA | E20: C.S. EL PARCO | F20: 5193 | G20: 47 | H20: 4 | I20: 8.510638298 | J20: 42 | K20: 14 | L20: 33.33333333 | M20: 47 | N20: 2 | O20: 4.255319149 | P20: 46 | Q20: 1 | R20: 2.173913043 | S20: 3 | T20: 6.52173913 | U20: 0 | V20: 0
B21: AMAZONAS | C21: BAGUA | D21: BAGUA | E21: P.S. ACERILLO | F21: 7007 | G21: 44 | H21: 3 | I21: 6.818181818 | J21: 41 | K21: 13 | L21: 31.70731707 | M21: 44 | N21: 1 | O21: 2.272727273 | P21: 43 | Q21: 2 | R21: 4.651162791 | S21: 4 | T21: 9.302325581 | U21: 0 | V21: 0
B22: AMAZONAS | C22: BAGUA | D22: BAGUA | E22: P.S. ALENYA | F22: 7299 | G22: 28 | H22: 3 | I22: 10.71428571 | J22: 24 | K22: 12 | L22: 50 | M22: 28 | N22: 0 | O22: 0 | P22: 28 | Q22: 1 | R22: 3.571428571 | S22: 0 | T22: 0 | U22: 0 | V22: 0
B23: AMAZONAS | C23: BAGUA | D23: BAGUA | E23: P.S. CASUAL | F23: 7759 | G23: 14 | H23: 1 | I23: 7.142857143 | J23: 13 | K23: 4 | L23: 30.76923077 | M23: 14 | N23: 0 | O23: 0 | P23: 14 | Q23: 0 | R23: 0 | S23: 1 | T23: 7.142857143 | U23: 0 | V23: 0
B24: AMAZONAS | C24: BAGUA | D24: BAGUA | E24: P.S. CRUCE ALENYA | F24: 5047 | G24: 36 | H24: 3 | I24: 8.333333333 | J24: 32 | K24: 12 | L24: 37.5 | M24: 36 | N24: 1 | O24: 2.777777778 | P24: 36 | Q24: 0 | R24: 0 | S24: 2 | T24: 5.555555556 | U24: 0 | V24: 0
B25: AMAZONAS | C25: BAGUA | D25: BAGUA | E25: P.S. ESPITAL | F25: 5045 | G25: 22 | H25: 2 | I25: 9.090909091 | J25: 19 | K25: 5 | L25: 26.31578947 | M25: 22 | N25: 1 | O25: 4.545454545 | P25: 22 | Q25: 0 | R25: 0 | S25: 1 | T25: 4.545454545 | U25: 0 | V25: 0
B26: AMAZONAS | C26: BAGUA | D26: BAGUA | E26: P.S. LA PRIMAVERA | F26: 7276 | G26: 98 | H26: 17 | I26: 17.34693878 | J26: 79 | K26: 20 | L26: 25.3164557 | M26: 100 | N26: 6 | O26: 6 | P26: 97 | Q26: 4 | R26: 4.12371134 | S26: 6 | T26: 6.18556701 | U26: 1 | V26: 1.030927835
B27: AMAZONAS | C27: BAGUA | D27: BAGUA | E27: P.S. NARANJOS | F27: 7300 | G27: 20 | H27: 0 | I27: 0 | J27: 20 | K27: 7 | L27: 35 | M27: 20 | N27: 1 | O27: 5 | P27: 20 | Q27: 2 | R27: 10 | S27: 0 | T27: 0 | U27: 0 | V27: 0
B28: AMAZONAS | C28: BAGUA | D28: BAGUA | E28: P.S. SAN ISIDRO | F28: 5046 | G28: 18 | H28: 4 | I28: 22.22222222 | J28: 12 | K28: 3 | L28: 25 | M28: 18 | N28: 0 | O28: 0 | P28: 18 | Q28: 0 | R28: 0 | S28: 1 | T28: 5.555555556 | U28: 0 | V28: 0
B29: AMAZONAS | C29: BAGUA | D29: BAGUA | E29: P.S. TOLOPAMPA | F29: 7262 | G29: 15 | H29: 2 | I29: 13.33333333 | J29: 13 | K29: 3 | L29: 23.07692308 | M29: 15 | N29: 0 | O29: 0 | P29: 15 | Q29: 0 | R29: 0 | S29: 2 | T29: 13.33333333 | U29: 1 | V29: 6.666666667
B30: AMAZONAS | C30: BAGUA | D30: BAGUA | E30: P.S. TOMAQUE | F30: 5048 | G30: 27 | H30: 2 | I30: 7.407407407 | J30: 24 | K30: 9 | L30: 37.5 | M30: 28 | N30: 0 | O30: 0 | P30: 26 | Q30: 0 | R30: 0 | S30: 1 | T30: 3.846153846 | U30: 0 | V30: 0
B31: AMAZONAS | C31: BAGUA | D31: BAGUA | E31: P.S. UNION PROGRESO | F31: 7758 | G31: 21 | H31: 3 | I31: 14.28571429 | J31: 18 | K31: 8 | L31: 44.44444444 | M31: 21 | N31: 1 | O31: 4.761904762 | P31: 21 | Q31: 0 | R31: 0 | S31: 0 | T31: 0 | U31: 2 | V31: 9.523809524
B32: AMAZONAS | C32: BAGUA | D32: CHIPE | E32: C.S. CHIPE | F32: 5071 | G32: 141 | H32: 45 | I32: 31.91489362 | J32: 95 | K32: 44 | L32: 46.31578947 | M32: 140 | N32: 8 | O32: 5.714285714 | P32: 141 | Q32: 5 | R32: 3.546099291 | S32: 6 | T32: 4.255319149 | U32: 1 | V32: 0.7092198582
B33: AMAZONAS | C33: BAGUA | D33: CHIPE | E33: P.S. JEMPEST-CHICAIS | F33: 5074 | G33: 40 | H33: 16 | I33: 40 | J33: 24 | K33: 16 | L33: 66.66666667 | M33: 40 | N33: 2 | O33: 5 | P33: 40 | Q33: 0 | R33: 0 | S33: 1 | T33: 2.5 | U33: 1 | V33: 2.5
B34: AMAZONAS | C34: BAGUA | D34: CHIPE | E34: P.S. KUSU | F34: 5072 | G34: 41 | H34: 13 | I34: 31.70731707 | J34: 26 | K34: 17 | L34: 65.38461538 | M34: 41 | N34: 2 | O34: 4.87804878 | P34: 41 | Q34: 1 | R34: 2.43902439 | S34: 3 | T34: 7.317073171 | U34: 0 | V34: 0
B35: AMAZONAS | C35: BAGUA | D35: CHIPE | E35: P.S. LISTRA | F35: 7234 | G35: 43 | H35: 14 | I35: 32.55813953 | J35: 28 | K35: 14 | L35: 50 | M35: 43 | N35: 1 | O35: 2.325581395 | P35: 43 | Q35: 1 | R35: 2.325581395 | S35: 14 | T35: 32.55813953 | U35: 6 | V35: 13.95348837
B36: AMAZONAS | C36: BAGUA | D36: CHIPE | E36: P.S. NUEVA VIDA | F36: 7232 | G36: 48 | H36: 17 | I36: 35.41666667 | J36: 31 | K36: 16 | L36: 51.61290323 | M36: 48 | N36: 3 | O36: 6.25 | P36: 48 | Q36: 0 | R36: 0 | S36: 1 | T36: 2.083333333 | U36: 1 | V36: 2.083333333
B37: AMAZONAS | C37: BAGUA | D37: CHIPE | E37: P.S. NUMPATKAIM | F37: 5073 | G37: 80 | H37: 18 | I37: 22.5 | J37: 56 | K37: 31 | L37: 55.35714286 | M37: 80 | N37: 0 | O37: 0 | P37: 80 | Q37: 2 | R37: 2.5 | S37: 13 | T37: 16.25 | U37: 6 | V37: 7.5
B38: AMAZONAS | C38: BAGUA | D38: CHIPE | E38: P.S. SAN PABLO | F38: 7233 | G38: 31 | H38: 12 | I38: 38.70967742 | J38: 18 | K38: 5 | L38: 27.77777778 | M38: 31 | N38: 3 | O38: 9.677419355 | P38: 31 | Q38: 0 | R38: 0 | S38: 2 | T38: 6.451612903 | U38: 0 | V38: 0
B39: AMAZONAS | C39: BAGUA | D39: CHIRIACO | E39: C.S. CHIRIACO | F39: 5084 | G39: 297 | H39: 64 | I39: 21.54882155 | J39: 224 | K39: 92 | L39: 41.07142857 | M39: 298 | N39: 17 | O39: 5.704697987 | P39: 296 | Q39: 10 | R39: 3.378378378 | S39: 17 | T39: 5.743243243 | U39: 5 | V39: 1.689189189
B40: AMAZONAS | C40: BAGUA | D40: CHIRIACO | E40: P.S. DURAND | F40: 14208 | G40: 53 | H40: 15 | I40: 28.30188679 | J40: 38 | K40: 20 | L40: 52.63157895 | M40: 53 | N40: 3 | O40: 5.660377358 | P40: 53 | Q40: 1 | R40: 1.886792453 | S40: 3 | T40: 5.660377358 | U40: 1 | V40: 1.886792453
B41: AMAZONAS | C41: BAGUA | D41: CHIRIACO | E41: P.S. NAYUMPIN | F41: 5091 | G41: 42 | H41: 17 | I41: 40.47619048 | J41: 17 | K41: 7 | L41: 41.17647059 | M41: 45 | N41: 6 | O41: 13.33333333 | P41: 45 | Q41: 9 | R41: 20 | S41: 7 | T41: 15.55555556 | U41: 3 | V41: 6.666666667
B42: AMAZONAS | C42: BAGUA | D42: CHIRIACO | E42: P.S. NAZARETH | F42: 7003 | G42: 103 | H42: 33 | I42: 32.03883495 | J42: 70 | K42: 36 | L42: 51.42857143 | M42: 103 | N42: 8 | O42: 7.766990291 | P42: 103 | Q42: 2 | R42: 1.941747573 | S42: 10 | T42: 9.708737864 | U42: 2 | V42: 1.941747573
B43: AMAZONAS | C43: BAGUA | D43: CHIRIACO | E43: P.S. PAKUIT | F43: 5087 | G43: 65 | H43: 23 | I43: 35.38461538 | J43: 41 | K43: 29 | L43: 70.73170732 | M43: 65 | N43: 4 | O43: 6.153846154 | P43: 65 | Q43: 2 | R43: 3.076923077 | S43: 3 | T43: 4.615384615 | U43: 0 | V43: 0
B44: AMAZONAS | C44: BAGUA | D44: CHIRIACO | E44: P.S. SAMAREN-YUPICUSA | F44: 5088 | G44: 143 | H44: 43 | I44: 30.06993007 | J44: 99 | K44: 64 | L44: 64.64646465 | M44: 143 | N44: 14 | O44: 9.79020979 | P44: 143 | Q44: 6 | R44: 4.195804196 | S44: 2 | T44: 1.398601399 | U44: 0 | V44: 0
B45: AMAZONAS | C45: BAGUA | D45: CHIRIACO | E45: P.S. SAN RAFAEL | F45: 7136 | G45: 57 | H45: 8 | I45: 14.03508772 | J45: 49 | K45: 20 | L45: 40.81632653 | M45: 57 | N45: 2 | O45: 3.50877193 | P45: 57 | Q45: 0 | R45: 0 | S45: 2 | T45: 3.50877193 | U45: 1 | V45: 1.754385965
B46: AMAZONAS | C46: BAGUA | D46: CHIRIACO | E46: P.S. SAN RAMON | F46: 12774 | G46: 46 | H46: 21 | I46: 45.65217391 | J46: 24 | K46: 14 | L46: 58.33333333 | M46: 46 | N46: 9 | O46: 19.56521739 | P46: 45 | Q46: 4 | R46: 8.888888889 | S46: 2 | T46: 4.444444444 | U46: 2 | V46: 4.444444444
B47: AMAZONAS | C47: BAGUA | D47: CHIRIACO | E47: P.S. SHIMPUENTS | F47: 5090 | G47: 74 | H47: 5 | I47: 6.756756757 | J47: 68 | K47: 19 | L47: 27.94117647 | M47: 74 | N47: 1 | O47: 1.351351351 | P47: 74 | Q47: 0 | R47: 0 | S47: 1 | T47: 1.351351351 | U47: 0 | V47: 0
B48: AMAZONAS | C48: BAGUA | D48: CHIRIACO | E48: P.S. SHUSHUG | F48: 5085 | G48: 87 | H48: 24 | I48: 27.5862069 | J48: 63 | K48: 41 | L48: 65.07936508 | M48: 87 | N48: 4 | O48: 4.597701149 | P48: 87 | Q48: 1 | R48: 1.149425287 | S48: 5 | T48: 5.747126437 | U48: 0 | V48: 0
B49: AMAZONAS | C49: BAGUA | D49: CHIRIACO | E49: P.S. SUKUTIN | F49: 7001 | G49: 29 | H49: 19 | I49: 65.51724138 | J49: 9 | K49: 5 | L49: 55.55555556 | M49: 29 | N49: 2 | O49: 6.896551724 | P49: 29 | Q49: 0 | R49: 0 | S49: 5 | T49: 17.24137931 | U49: 0 | V49: 0
B50: AMAZONAS | C50: BAGUA | D50: CHIRIACO | E50: P.S. WAWAIN | F50: 5086 | G50: 99 | H50: 26 | I50: 26.26262626 | J50: 73 | K50: 48 | L50: 65.75342466 | M50: 99 | N50: 5 | O50: 5.050505051 | P50: 99 | Q50: 0 | R50: 0 | S50: 6 | T50: 6.060606061 | U50: 2 | V50: 2.02020202
B51: AMAZONAS | C51: BAGUA | D51: CHIRIACO | E51: P.S. WAWAS | F51: 5089 | G51: 80 | H51: 24 | I51: 30 | J51: 55 | K51: 26 | L51: 47.27272727 | M51: 81 | N51: 7 | O51: 8.641975309 | P51: 81 | Q51: 1 | R51: 1.234567901 | S51: 4 | T51: 4.938271605 | U51: 1 | V51: 1.234567901
B52: AMAZONAS | C52: BAGUA | D52: COPALLIN | E52: C.S. COPALLIN | F52: 5063 | G52: 138 | H52: 21 | I52: 15.2173913 | J52: 116 | K52: 46 | L52: 39.65517241 | M52: 140 | N52: 8 | O52: 5.714285714 | P52: 139 | Q52: 1 | R52: 0.7194244604 | S52: 10 | T52: 7.194244604 | U52: 2 | V52: 1.438848921
B53: AMAZONAS | C53: BAGUA | D53: COPALLIN | E53: P.S. CHONZA LAGUNA | F53: 5065 | G53: 15 | H53: 5 | I53: 33.33333333 | J53: 9 | K53: 2 | L53: 22.22222222 | M53: 15 | N53: 0 | O53: 0 | P53: 15 | Q53: 1 | R53: 6.666666667 | S53: 0 | T53: 0 | U53: 0 | V53: 0
B54: AMAZONAS | C54: BAGUA | D54: COPALLIN | E54: P.S. LLUHUANA | F54: 7004 | G54: 30 | H54: 5 | I54: 16.66666667 | J54: 25 | K54: 14 | L54: 56 | M54: 30 | N54: 1 | O54: 3.333333333 | P54: 30 | Q54: 0 | R54: 0 | S54: 1 | T54: 3.333333333 | U54: 1 | V54: 3.333333333
B55: AMAZONAS | C55: BAGUA | D55: COPALLIN | E55: P.S. PAN DE AZUCAR | F55: 5064 | G55: 25 | H55: 3 | I55: 12 | J55: 19 | K55: 10 | L55: 52.63157895 | M55: 25 | N55: 0 | O55: 0 | P55: 25 | Q55: 0 | R55: 0 | S55: 2 | T55: 8 | U55: 1 | V55: 4
B56: AMAZONAS | C56: BAGUA | D56: COPALLIN | E56: P.S. SANTA CRUZ DE MOROCHAL | F56: 7005 | G56: 16 | H56: 4 | I56: 25 | J56: 12 | K56: 4 | L56: 33.33333333 | M56: 16 | N56: 0 | O56: 0 | P56: 16 | Q56: 0 | R56: 0 | S56: 0 | T56: 0 | U56: 0 | V56: 0
B57: AMAZONAS | C57: BAGUA | D57: EL MUYO | E57: C.S. EL MUYO | F57: 5056 | G57: 146 | H57: 15 | I57: 10.2739726 | J57: 131 | K57: 43 | L57: 32.82442748 | M57: 146 | N57: 4 | O57: 2.739726027 | P57: 146 | Q57: 1 | R57: 0.6849315068 | S57: 8 | T57: 5.479452055 | U57: 1 | V57: 0.6849315068
B58: AMAZONAS | C58: BAGUA | D58: EL MUYO | E58: P.S. LA LIBERTAD | F58: 5060 | G58: 16 | H58: 2 | I58: 12.5 | J58: 14 | K58: 4 | L58: 28.57142857 | M58: 16 | N58: 1 | O58: 6.25 | P58: 16 | Q58: 0 | R58: 0 | S58: 1 | T58: 6.25 | U58: 0 | V58: 0
B59: AMAZONAS | C59: BAGUA | D59: EL MUYO | E59: P.S. SAN JUAN DE DIOS | F59: 7727 | G59: 18 | H59: 1 | I59: 5.555555556 | J59: 17 | K59: 6 | L59: 35.29411765 | M59: 18 | N59: 0 | O59: 0 | P59: 18 | Q59: 0 | R59: 0 | S59: 2 | T59: 11.11111111 | U59: 1 | V59: 5.555555556
B60: AMAZONAS | C60: BAGUA | D60: EL MUYO | E60: P.S. ZAPOTAL | F60: 5062 | G60: 17 | H60: 4 | I60: 23.52941176 | J60: 13 | K60: 8 | L60: 61.53846154 | M60: 17 | N60: 1 | O60: 5.882352941 | P60: 17 | Q60: 2 | R60: 11.76470588 | S60: 1 | T60: 5.882352941 | U60: 0 | V60: 0
B61: AMAZONAS | C61: BAGUA | D61: IMAZA | E61: C.S. IMAZA | F61: 5070 | G61: 154 | H61: 31 | I61: 20.12987013 | J61: 118 | K61: 44 | L61: 37.28813559 | M61: 156 | N61: 11 | O61: 7.051282051 | P61: 154 | Q61: 4 | R61: 2.597402597 | S61: 5 | T61: 3.246753247 | U61: 6 | V61: 3.896103896
B62: AMAZONAS | C62: BAGUA | D62: IMAZA | E62: P.S. KUNCHIN | F62: 5194 | G62: 219 | H62: 99 | I62: 45.20547945 | J62: 120 | K62: 73 | L62: 60.83333333 | M62: 220 | N62: 16 | O62: 7.272727273 | P62: 222 | Q62: 0 | R62: 0 | S62: 17 | T62: 7.657657658 | U62: 2 | V62: 0.9009009009
B63: AMAZONAS | C63: BAGUA | D63: IMAZA | E63: P.S. KUSU GRANDE | F63: 14209 | G63: 10 | H63: 1 | I63: 10 | J63: 9 | K63: 7 | L63: 77.77777778 | M63: 10 | N63: 0 | O63: 0 | P63: 10 | Q63: 0 | R63: 0 | S63: 0 | T63: 0 | U63: 0 | V63: 0
B64: AMAZONAS | C64: BAGUA | D64: IMAZA | E64: P.S. MESONES MURO | F64: 7435 | G64: 81 | H64: 33 | I64: 40.74074074 | J64: 48 | K64: 25 | L64: 52.08333333 | M64: 81 | N64: 8 | O64: 9.87654321 | P64: 81 | Q64: 3 | R64: 3.703703704 | S64: 7 | T64: 8.641975309 | U64: 3 | V64: 3.703703704
B65: AMAZONAS | C65: BAGUA | D65: IMAZA | E65: P.S. TENASHNUM | F65: 7231 | G65: 84 | H65: 34 | I65: 40.47619048 | J65: 48 | K65: 29 | L65: 60.41666667 | M65: 84 | N65: 11 | O65: 13.0952381 | P65: 85 | Q65: 3 | R65: 3.529411765 | S65: 4 | T65: 4.705882353 | U65: 0 | V65: 0
B66: AMAZONAS | C66: BAGUA | D66: IMAZA | E66: P.S. UUT | F66: 5079 | G66: 60 | H66: 16 | I66: 26.66666667 | J66: 43 | K66: 22 | L66: 51.1627907 | M66: 61 | N66: 3 | O66: 4.918032787 | P66: 60 | Q66: 3 | R66: 5 | S66: 4 | T66: 6.666666667 | U66: 8 | V66: 13.33333333
B67: AMAZONAS | C67: BAGUA | D67: IMAZA | E67: P.S. WAJUYAT | F67: 5082 | G67: 121 | H67: 63 | I67: 52.0661157 | J67: 58 | K67: 42 | L67: 72.4137931 | M67: 121 | N67: 0 | O67: 0 | P67: 121 | Q67: 0 | R67: 0 | S67: 26 | T67: 21.48760331 | U67: 1 | V67: 0.826446281
B68: AMAZONAS | C68: BAGUA | D68: IMAZA | E68: P.S. WANTSA | F68: 7002 | G68: 57 | H68: 34 | I68: 59.64912281 | J68: 23 | K68: 16 | L68: 69.56521739 | M68: 57 | N68: 6 | O68: 10.52631579 | P68: 57 | Q68: 0 | R68: 0 | S68: 6 | T68: 10.52631579 | U68: 1 | V68: 1.754385965
B69: AMAZONAS | C69: BAGUA | D69: IMAZA | E69: P.S. YAMAYAKAT | F69: 7230 | G69: 52 | H69: 17 | I69: 32.69230769 | J69: 34 | K69: 20 | L69: 58.82352941 | M69: 53 | N69: 3 | O69: 5.660377358 | P69: 52 | Q69: 2 | R69: 3.846153846 | S69: 11 | T69: 21.15384615 | U69: 7 | V69: 13.46153846
B70: AMAZONAS | C70: BAGUA | D70: LA PECA | E70: C.S. LA PECA | F70: 5049 | G70: 180 | H70: 21 | I70: 11.66666667 | J70: 159 | K70: 70 | L70: 44.02515723 | M70: 180 | N70: 1 | O70: 0.5555555556 | P70: 180 | Q70: 0 | R70: 0 | S70: 22 | T70: 12.22222222 | U70: 6 | V70: 3.333333333
B71: AMAZONAS | C71: BAGUA | D71: LA PECA | E71: P.S. ARRAYAN | F71: 5052 | G71: 42 | H71: 1 | I71: 2.380952381 | J71: 40 | K71: 16 | L71: 40 | M71: 42 | N71: 0 | O71: 0 | P71: 42 | Q71: 0 | R71: 0 | S71: 0 | T71: 0 | U71: 0 | V71: 0
B72: AMAZONAS | C72: BAGUA | D72: LA PECA | E72: P.S. CHONZA ALTA | F72: 5050 | G72: 15 | H72: 3 | I72: 20 | J72: 12 | K72: 7 | L72: 58.33333333 | M72: 15 | N72: 1 | O72: 6.666666667 | P72: 15 | Q72: 0 | R72: 0 | S72: 1 | T72: 6.666666667 | U72: 0 | V72: 0
B73: AMAZONAS | C73: BAGUA | D73: LA PECA | E73: P.S. EL TRIUNFO | F73: 5051 | G73: 11 | H73: 2 | I73: 18.18181818 | J73: 9 | K73: 4 | L73: 44.44444444 | M73: 11 | N73: 0 | O73: 0 | P73: 11 | Q73: 0 | R73: 0 | S73: 1 | T73: 9.090909091 | U73: 0 | V73: 0
B74: AMAZONAS | C74: BAGUA | D74: LA PECA | E74: P.S. SAN FRANCISCO | F74: 7006 | G74: 17 | H74: 4 | I74: 23.52941176 | J74: 13 | K74: 9 | L74: 69.23076923 | M74: 17 | N74: 3 | O74: 17.64705882 | P74: 17 | Q74: 0 | R74: 0 | S74: 0 | T74: 0 | U74: 0 | V74: 0
B75: AMAZONAS | C75: BAGUA | D75: PORVENIR DE ARAMANGO | E75: C.S. EL PORVENIR DE ARAMANGO | F75: 5057 | G75: 59 | H75: 6 | I75: 10.16949153 | J75: 53 | K75: 13 | L75: 24.52830189 | M75: 59 | N75: 2 | O75: 3.389830508 | P75: 59 | Q75: 1 | R75: 1.694915254 | S75: 6 | T75: 10.16949153 | U75: 2 | V75: 3.389830508
B76: AMAZONAS | C76: BAGUA | D76: PORVENIR DE ARAMANGO | E76: P.S. CAMPO BONITO | F76: 7010 | G76: 25 | H76: 5 | I76: 20 | J76: 20 | K76: 8 | L76: 40 | M76: 25 | N76: 1 | O76: 4 | P76: 25 | Q76: 0 | R76: 0 | S76: 1 | T76: 4 | U76: 2 | V76: 8
B77: AMAZONAS | C77: BAGUA | D77: PORVENIR DE ARAMANGO | E77: P.S. COPALLIN DE ARAMANGO | F77: 5055 | G77: 28 | H77: 3 | I77: 10.71428571 | J77: 22 | K77: 4 | L77: 18.18181818 | M77: 28 | N77: 0 | O77: 0 | P77: 28 | Q77: 3 | R77: 10.71428571 | S77: 1 | T77: 3.571428571 | U77: 0 | V77: 0
B78: AMAZONAS | C78: BAGUA | D78: PORVENIR DE ARAMANGO | E78: P.S. SANTA CLARA | F78: 7229 | G78: 2 | H78: 1 | I78: 50 | J78: 1 | K78: 1 | L78: 100 | M78: 2 | N78: 0 | O78: 0 | P78: 2 | Q78: 0 | R78: 0 | S78: 0 | T78: 0 | U78: 0 | V78: 0
B79: AMAZONAS | C79: BAGUA | D79: SIN MICRORED | E79: HOSP. APOYO BAGUA GUSTAVO LANATTA | F79: 5044 | G79: 641 | H79: 44 | I79: 6.864274571 | J79: 589 | K79: 147 | L79: 24.95755518 | M79: 640 | N79: 20 | O79: 3.125 | P79: 641 | Q79: 11 | R79: 1.716068643 | S79: 26 | T79: 4.056162246 | U79: 5 | V79: 0.7800312012
B80: AMAZONAS | C80: BAGUA | D80: TUPAC AMARU | E80: C.S. TUPAC AMARU I | F80: 5075 | G80: 112 | H80: 33 | I80: 29.46428571 | J80: 77 | K80: 33 | L80: 42.85714286 | M80: 112 | N80: 10 | O80: 8.928571429 | P80: 112 | Q80: 1 | R80: 0.8928571429 | S80: 4 | T80: 3.571428571 | U80: 1 | V80: 0.8928571429
B81: AMAZONAS | C81: BAGUA | D81: TUPAC AMARU | E81: P.S. BICHANAK | F81: 5083 | G81: 87 | H81: 29 | I81: 33.33333333 | J81: 58 | K81: 45 | L81: 77.5862069 | M81: 87 | N81: 8 | O81: 9.195402299 | P81: 87 | Q81: 1 | R81: 1.149425287 | S81: 4 | T81: 4.597701149 | U81: 2 | V81: 2.298850575
B82: AMAZONAS | C82: BAGUA | D82: TUPAC AMARU | E82: P.S. CENTRO WAWIK | F82: 6719 | G82: 38 | H82: 8 | I82: 21.05263158 | J82: 30 | K82: 19 | L82: 63.33333333 | M82: 38 | N82: 1 | O82: 2.631578947 | P82: 38 | Q82: 1 | R82: 2.631578947 | S82: 1 | T82: 2.631578947 | U82: 0 | V82: 0
B83: AMAZONAS | C83: BAGUA | D83: TUPAC AMARU | E83: P.S. NUEVO BELEN | F83: 14210 | G83: 74 | H83: 52 | I83: 70.27027027 | J83: 22 | K83: 16 | L83: 72.72727273 | M83: 75 | N83: 14 | O83: 18.66666667 | P83: 75 | Q83: 1 | R83: 1.333333333 | S83: 2 | T83: 2.666666667 | U83: 0 | V83: 0
B84: AMAZONAS | C84: BAGUA | D84: TUPAC AMARU | E84: P.S. WAWICO | F84: 6986 | G84: 15 | H84: 0 | I84: 0 | J84: 15 | K84: 7 | L84: 46.66666667 | M84: 15 | N84: 2 | O84: 13.33333333 | P84: 15 | Q84: 1 | R84: 6.666666667 | S84: 2 | T84: 13.33333333 | U84: 0 | V84: 0
B85: AMAZONAS | C85: BAGUA | D85: WAYAMPIAK | E85: C.S. WAYAMPIAK | F85: 5081 | G85: 86 | H85: 42 | I85: 48.8372093 | J85: 44 | K85: 28 | L85: 63.63636364 | M85: 87 | N85: 3 | O85: 3.448275862 | P85: 87 | Q85: 0 | R85: 0 | S85: 13 | T85: 14.94252874 | U85: 6 | V85: 6.896551724
B86: AMAZONAS | C86: BAGUA | D86: WAYAMPIAK | E86: P.S. CHIJA | F86: 5078 | G86: 56 | H86: 26 | I86: 46.42857143 | J86: 30 | K86: 15 | L86: 50 | M86: 56 | N86: 4 | O86: 7.142857143 | P86: 56 | Q86: 3 | R86: 5.357142857 | S86: 15 | T86: 26.78571429 | U86: 4 | V86: 7.142857143
B87: AMAZONAS | C87: BAGUA | D87: WAYAMPIAK | E87: P.S. SIJIAK | F87: 5080 | G87: 119 | H87: 48 | I87: 40.33613445 | J87: 71 | K87: 53 | L87: 74.64788732 | M87: 119 | N87: 5 | O87: 4.201680672 | P87: 119 | Q87: 3 | R87: 2.521008403 | S87: 4 | T87: 3.361344538 | U87: 2 | V87: 1.680672269
B88: AMAZONAS | C88: BAGUA | D88: WAYAMPIAK | E88: P.S. TUNTUS | F88: 5077 | G88: 166 | H88: 123 | I88: 74.09638554 | J88: 42 | K88: 39 | L88: 92.85714286 | M88: 169 | N88: 14 | O88: 8.284023669 | P88: 169 | Q88: 0 | R88: 0 | S88: 4 | T88: 2.366863905 | U88: 1 | V88: 0.5917159763
B89: AMAZONAS | C89: BAGUA | D89: WAYAMPIAK | E89: P.S. YANAT | F89: 5076 | G89: 88 | H89: 34 | I89: 38.63636364 | J89: 54 | K89: 35 | L89: 64.81481481 | M89: 89 | N89: 4 | O89: 4.494382022 | P89: 89 | Q89: 2 | R89: 2.247191011 | S89: 5 | T89: 5.617977528 | U89: 0 | V89: 0
B90: AMAZONAS | C90: CHACHAPOYAS | D90: BALZAS | E90: C.S. BALZAS | F90: 4856 | G90: 57 | H90: 10 | I90: 17.54385965 | J90: 45 | K90: 17 | L90: 37.77777778 | M90: 57 | N90: 2 | O90: 3.50877193 | P90: 57 | Q90: 1 | R90: 1.754385965 | S90: 1 | T90: 1.754385965 | U90: 1 | V90: 1.754385965
B91: AMAZONAS | C91: CHACHAPOYAS | D91: BALZAS | E91: C.S. CHUQUIBAMBA | F91: 4858 | G91: 26 | H91: 2 | I91: 7.692307692 | J91: 24 | K91: 8 | L91: 33.33333333 | M91: 26 | N91: 0 | O91: 0 | P91: 26 | Q91: 0 | R91: 0 | S91: 5 | T91: 19.23076923 | U91: 0 | V91: 0
B92: AMAZONAS | C92: CHACHAPOYAS | D92: BALZAS | E92: P.S. CHUMBOL | F92: 7068 | G92: 25 | H92: 8 | I92: 32 | J92: 17 | K92: 3 | L92: 17.64705882 | M92: 25 | N92: 0 | O92: 0 | P92: 25 | Q92: 0 | R92: 0 | S92: 0 | T92: 0 | U92: 0 | V92: 0
B93: AMAZONAS | C93: CHACHAPOYAS | D93: BALZAS | E93: P.S. COCHABAMBA | F93: 7174 | G93: 9 | H93: 0 | I93: 0 | J93: 9 | K93: 5 | L93: 55.55555556 | M93: 9 | N93: 0 | O93: 0 | P93: 9 | Q93: 0 | R93: 0 | S93: 0 | T93: 0 | U93: 0 | V93: 0
B94: AMAZONAS | C94: CHACHAPOYAS | D94: BALZAS | E94: P.S. SAULLAMUR | F94: 7148 | G94: 10 | H94: 2 | I94: 20 | J94: 8 | K94: 7 | L94: 87.5 | M94: 10 | N94: 1 | O94: 10 | P94: 10 | Q94: 0 | R94: 0 | S94: 0 | T94: 0 | U94: 0 | V94: 0
B95: AMAZONAS | C95: CHACHAPOYAS | D95: CAMPORREDONDO | E95: C.S. CAMPORREDONDO | F95: 4873 | G95: 179 | H95: 35 | I95: 19.55307263 | J95: 142 | K95: 60 | L95: 42.25352113 | M95: 181 | N95: 10 | O95: 5.524861878 | P95: 182 | Q95: 5 | R95: 2.747252747 | S95: 13 | T95: 7.142857143 | U95: 1 | V95: 0.5494505495
B96: AMAZONAS | C96: CHACHAPOYAS | D96: CAMPORREDONDO | E96: P.S. COCOCHO | F96: 4874 | G96: 257 | H96: 58 | I96: 22.56809339 | J96: 196 | K96: 106 | L96: 54.08163265 | M96: 259 | N96: 6 | O96: 2.316602317 | P96: 260 | Q96: 0 | R96: 0 | S96: 19 | T96: 7.307692308 | U96: 2 | V96: 0.7692307692
B97: AMAZONAS | C97: CHACHAPOYAS | D97: CAMPORREDONDO | E97: P.S. EL PALTO | F97: 7181 | G97: 21 | H97: 3 | I97: 14.28571429 | J97: 18 | K97: 11 | L97: 61.11111111 | M97: 21 | N97: 0 | O97: 0 | P97: 21 | Q97: 0 | R97: 0 | S97: 3 | T97: 14.28571429 | U97: 0 | V97: 0
B98: AMAZONAS | C98: CHACHAPOYAS | D98: CAMPORREDONDO | E98: P.S. GUADALUPE | F98: 4875 | G98: 108 | H98: 29 | I98: 26.85185185 | J98: 76 | K98: 38 | L98: 50 | M98: 110 | N98: 7 | O98: 6.363636364 | P98: 112 | Q98: 2 | R98: 1.785714286 | S98: 11 | T98: 9.821428571 | U98: 0 | V98: 0
B99: AMAZONAS | C99: CHACHAPOYAS | D99: CAMPORREDONDO | E99: P.S. LA LIBERTAD | F99: 7333 | G99: 13 | H99: 4 | I99: 30.76923077 | J99: 8 | K99: 5 | L99: 62.5 | M99: 13 | N99: 1 | O99: 7.692307692 | P99: 13 | Q99: 0 | R99: 0 | S99: 1 | T99: 7.692307692 | U99: 0 | V99: 0
B100: AMAZONAS | C100: CHACHAPOYAS | D100: CHACHAPOYAS | E100: C.S. 09 DE ENERO | F100: 6754 | G100: 180 | H100: 24 | I100: 13.33333333 | J100: 154 | K100: 52 | L100: 33.76623377 | M100: 181 | N100: 4 | O100: 2.209944751 | P100: 182 | Q100: 3 | R100: 1.648351648 | S100: 7 | T100: 3.846153846 | U100: 2 | V100: 1.098901099
B101: AMAZONAS | C101: CHACHAPOYAS | D101: CHACHAPOYAS | E101: C.S. COLCAMAR | F101: 4895 | G101: 50 | H101: 15 | I101: 30 | J101: 34 | K101: 21 | L101: 61.76470588 | M101: 50 | N101: 1 | O101: 2 | P101: 51 | Q101: 0 | R101: 0 | S101: 2 | T101: 3.921568627 | U101: 0 | V101: 0
B102: AMAZONAS | C102: CHACHAPOYAS | D102: CHACHAPOYAS | E102: P.S. COCHA | F102: 9670 | G102: 23 | H102: 8 | I102: 34.7826087 | J102: 13 | K102: 8 | L102: 61.53846154 | M102: 23 | N102: 1 | O102: 4.347826087 | P102: 23 | Q102: 1 | R102: 4.347826087 | S102: 2 | T102: 8.695652174 | U102: 0 | V102: 0
B103: AMAZONAS | C103: CHACHAPOYAS | D103: CHACHAPOYAS | E103: P.S. EL MOLINO | F103: 7038 | G103: 41 | H103: 8 | I103: 19.51219512 | J103: 33 | K103: 9 | L103: 27.27272727 | M103: 41 | N103: 3 | O103: 7.317073171 | P103: 41 | Q103: 0 | R103: 0 | S103: 2 | T103: 4.87804878 | U103: 2 | V103: 4.87804878
B104: AMAZONAS | C104: CHACHAPOYAS | D104: CHACHAPOYAS | E104: P.S. HIGOS URCO | F104: 7039 | G104: 43 | H104: 14 | I104: 32.55813953 | J104: 27 | K104: 12 | L104: 44.44444444 | M104: 42 | N104: 3 | O104: 7.142857143 | P104: 43 | Q104: 0 | R104: 0 | S104: 4 | T104: 9.302325581 | U104: 0 | V104: 0
B105: AMAZONAS | C105: CHACHAPOYAS | D105: CHACHAPOYAS | E105: P.S. HUANCAS | F105: 4841 | G105: 14 | H105: 1 | I105: 7.142857143 | J105: 13 | K105: 4 | L105: 30.76923077 | M105: 14 | N105: 1 | O105: 7.142857143 | P105: 15 | Q105: 1 | R105: 6.666666667 | S105: 0 | T105: 0 | U105: 0 | V105: 0
B106: AMAZONAS | C106: CHACHAPOYAS | D106: CHACHAPOYAS | E106: P.S. LEVANTO | F106: 4842 | G106: 43 | H106: 10 | I106: 23.25581395 | J106: 33 | K106: 12 | L106: 36.36363636 | M106: 44 | N106: 3 | O106: 6.818181818 | P106: 44 | Q106: 0 | R106: 0 | S106: 1 | T106: 2.272727273 | U106: 0 | V106: 0
B107: AMAZONAS | C107: CHACHAPOYAS | D107: CHACHAPOYAS | E107: P.S. PEDRO CASTRO ALVA | F107: 7037 | G107: 262 | H107: 43 | I107: 16.41221374 | J107: 217 | K107: 99 | L107: 45.62211982 | M107: 267 | N107: 12 | O107: 4.494382022 | P107: 270 | Q107: 2 | R107: 0.7407407407 | S107: 15 | T107: 5.555555556 | U107: 2 | V107: 0.7407407407
B108: AMAZONAS | C108: CHACHAPOYAS | D108: CHACHAPOYAS | E108: P.S. PONAYA | F108: 4896 | G108: 7 | H108: 1 | I108: 14.28571429 | J108: 5 | K108: 3 | L108: 60 | M108: 7 | N108: 1 | O108: 14.28571429 | P108: 7 | Q108: 0 | R108: 0 | S108: 0 | T108: 0 | U108: 0 | V108: 0
B109: AMAZONAS | C109: CHACHAPOYAS | D109: CHACHAPOYAS | E109: P.S. QUILLILLIC | F109: 6987 | G109: 14 | H109: 6 | I109: 42.85714286 | J109: 8 | K109: 6 | L109: 75 | M109: 14 | N109: 0 | O109: 0 | P109: 14 | Q109: 0 | R109: 0 | S109: 2 | T109: 14.28571429 | U109: 0 | V109: 0
B110: AMAZONAS | C110: CHACHAPOYAS | D110: CHACHAPOYAS | E110: P.S. SAN ISIDRO DE UTCUBAMBA | F110: 4840 | G110: 3 | H110: 0 | I110: 0 | J110: 3 | K110: 1 | L110: 33.33333333 | M110: 3 | N110: 0 | O110: 0 | P110: 3 | Q110: 0 | R110: 0 | S110: 0 | T110: 0 | U110: 0 | V110: 0
B111: AMAZONAS | C111: CHACHAPOYAS | D111: CHACHAPOYAS | E111: P.S. SEÑOR DE LOS MILAGROS | F111: 13131 | G111: 160 | H111: 25 | I111: 15.625 | J111: 133 | K111: 46 | L111: 34.58646617 | M111: 160 | N111: 4 | O111: 2.5 | P111: 163 | Q111: 1 | R111: 0.6134969325 | S111: 11 | T111: 6.748466258 | U111: 2 | V111: 1.226993865
B112: AMAZONAS | C112: CHACHAPOYAS | D112: CHACHAPOYAS | E112: P.S. TAQUIA | F112: 4839 | G112: 26 | H112: 5 | I112: 19.23076923 | J112: 21 | K112: 8 | L112: 38.0952381 | M112: 25 | N112: 0 | O112: 0 | P112: 25 | Q112: 0 | R112: 0 | S112: 0 | T112: 0 | U112: 0 | V112: 0
B113: AMAZONAS | C113: CHACHAPOYAS | D113: CHACHAPOYAS | E113: P.S. VIRGEN DE ASUNTA | F113: 7040 | G113: 82 | H113: 7 | I113: 8.536585366 | J113: 74 | K113: 25 | L113: 33.78378378 | M113: 84 | N113: 3 | O113: 3.571428571 | P113: 84 | Q113: 2 | R113: 2.380952381 | S113: 1 | T113: 1.19047619 | U113: 1 | V113: 1.19047619
B114: AMAZONAS | C114: CHACHAPOYAS | D114: COLLONCE | E114: C.S. COLLONCE | F114: 4843 | G114: 47 | H114: 9 | I114: 19.14893617 | J114: 37 | K114: 11 | L114: 29.72972973 | M114: 47 | N114: 3 | O114: 6.382978723 | P114: 47 | Q114: 2 | R114: 4.255319149 | S114: 2 | T114: 4.255319149 | U114: 0 | V114: 0
B115: AMAZONAS | C115: CHACHAPOYAS | D115: COLLONCE | E115: P.S. CALDERA | F115: 4845 | G115: 23 | H115: 5 | I115: 21.73913043 | J115: 18 | K115: 9 | L115: 50 | M115: 23 | N115: 1 | O115: 4.347826087 | P115: 23 | Q115: 0 | R115: 0 | S115: 1 | T115: 4.347826087 | U115: 0 | V115: 0
B116: AMAZONAS | C116: CHACHAPOYAS | D116: COLLONCE | E116: P.S. HUARANGUILLO | F116: 4848 | G116: 13 | H116: 0 | I116: 0 | J116: 13 | K116: 2 | L116: 15.38461538 | M116: 13 | N116: 0 | O116: 0 | P116: 13 | Q116: 1 | R116: 7.692307692 | S116: 0 | T116: 0 | U116: 0 | V116: 0
B117: AMAZONAS | C117: CHACHAPOYAS | D117: COLLONCE | E117: P.S. NUEVO CHOTA | F117: 7061 | G117: 26 | H117: 4 | I117: 15.38461538 | J117: 22 | K117: 12 | L117: 54.54545455 | M117: 26 | N117: 1 | O117: 3.846153846 | P117: 26 | Q117: 1 | R117: 3.846153846 | S117: 2 | T117: 7.692307692 | U117: 0 | V117: 0
B118: AMAZONAS | C118: CHACHAPOYAS | D118: COLLONCE | E118: P.S. PIRCAPAMPA | F118: 4846 | G118: 60 | H118: 7 | I118: 11.66666667 | J118: 53 | K118: 20 | L118: 37.73584906 | M118: 63 | N118: 7 | O118: 11.11111111 | P118: 64 | Q118: 0 | R118: 0 | S118: 5 | T118: 7.8125 | U118: 2 | V118: 3.125
B119: AMAZONAS | C119: CHACHAPOYAS | D119: COLLONCE | E119: P.S. PROVIDENCIA | F119: 4849 | G119: 43 | H119: 6 | I119: 13.95348837 | J119: 36 | K119: 15 | L119: 41.66666667 | M119: 43 | N119: 2 | O119: 4.651162791 | P119: 43 | Q119: 1 | R119: 2.325581395 | S119: 2 | T119: 4.651162791 | U119: 1 | V119: 2.325581395
B120: AMAZONAS | C120: CHACHAPOYAS | D120: COLLONCE | E120: P.S. SAN JUAN DE OCUMAL | F120: 4844 | G120: 80 | H120: 11 | I120: 13.75 | J120: 69 | K120: 23 | L120: 33.33333333 | M120: 81 | N120: 4 | O120: 4.938271605 | P120: 81 | Q120: 1 | R120: 1.234567901 | S120: 1 | T120: 1.234567901 | U120: 0 | V120: 0
B121: AMAZONAS | C121: CHACHAPOYAS | D121: COLLONCE | E121: P.S. SAN PEDRO Y SAN PABLO | F121: 9674 | G121: 16 | H121: 1 | I121: 6.25 | J121: 15 | K121: 8 | L121: 53.33333333 | M121: 16 | N121: 0 | O121: 0 | P121: 16 | Q121: 0 | R121: 0 | S121: 0 | T121: 0 | U121: 0 | V121: 0
B122: AMAZONAS | C122: CHACHAPOYAS | D122: COLLONCE | E122: P.S. VISTA HERMOSA | F122: 7244 | G122: 9 | H122: 4 | I122: 44.44444444 | J122: 5 | K122: 3 | L122: 60 | M122: 9 | N122: 1 | O122: 11.11111111 | P122: 9 | Q122: 0 | R122: 0 | S122: 0 | T122: 0 | U122: 0 | V122: 0
B123: AMAZONAS | C123: CHACHAPOYAS | D123: COLLONCE | E123: P.S. YAULICACHI | F123: 7060 | G123: 66 | H123: 14 | I123: 21.21212121 | J123: 51 | K123: 21 | L123: 41.17647059 | M123: 66 | N123: 2 | O123: 3.03030303 | P123: 67 | Q123: 0 | R123: 0 | S123: 1 | T123: 1.492537313 | U123: 0 | V123: 0
B124: AMAZONAS | C124: CHACHAPOYAS | D124: HUAMBO | E124: C.S. HUAMBO | F124: 4943 | G124: 64 | H124: 11 | I124: 17.1875 | J124: 52 | K124: 15 | L124: 28.84615385 | M124: 65 | N124: 0 | O124: 0 | P124: 65 | Q124: 1 | R124: 1.538461538 | S124: 5 | T124: 7.692307692 | U124: 2 | V124: 3.076923077
B125: AMAZONAS | C125: CHACHAPOYAS | D125: HUAMBO | E125: P.S. CHONTAPAMPA | F125: 7445 | G125: 6 | H125: 0 | I125: 0 | J125: 5 | K125: 2 | L125: 40 | M125: 6 | N125: 0 | O125: 0 | P125: 6 | Q125: 0 | R125: 0 | S125: 0 | T125: 0 | U125: 0 | V125: 0
B126: AMAZONAS | C126: CHACHAPOYAS | D126: HUAMBO | E126: P.S. NUEVO HORIZONTE | F126: 6989 | G126: 2 | H126: 1 | I126: 50 | J126: 1 | K126: 0 | L126: 0 | M126: 2 | N126: 1 | O126: 50 | P126: 2 | Q126: 0 | R126: 0 | S126: 0 | T126: 0 | U126: 0 | V126: 0
B127: AMAZONAS | C127: CHACHAPOYAS | D127: JUMBILLA | E127: C.S. JUMBILLA | F127: 4917 | G127: 40 | H127: 4 | I127: 10 | J127: 35 | K127: 13 | L127: 37.14285714 | M127: 42 | N127: 1 | O127: 2.380952381 | P127: 41 | Q127: 0 | R127: 0 | S127: 1 | T127: 2.43902439 | U127: 1 | V127: 2.43902439
B128: AMAZONAS | C128: CHACHAPOYAS | D128: JUMBILLA | E128: P.S. ASUNCION GONCHA | F128: 4912 | G128: 9 | H128: 0 | I128: 0 | J128: 9 | K128: 3 | L128: 33.33333333 | M128: 9 | N128: 0 | O128: 0 | P128: 9 | Q128: 0 | R128: 0 | S128: 0 | T128: 0 | U128: 0 | V128: 0
B129: AMAZONAS | C129: CHACHAPOYAS | D129: JUMBILLA | E129: P.S. CHISQUILLA | F129: 4915 | G129: 18 | H129: 4 | I129: 22.22222222 | J129: 12 | K129: 3 | L129: 25 | M129: 18 | N129: 1 | O129: 5.555555556 | P129: 18 | Q129: 0 | R129: 0 | S129: 2 | T129: 11.11111111 | U129: 0 | V129: 0
B130: AMAZONAS | C130: CHACHAPOYAS | D130: JUMBILLA | E130: P.S. COROSHA | F130: 4916 | G130: 56 | H130: 9 | I130: 16.07142857 | J130: 47 | K130: 19 | L130: 40.42553191 | M130: 56 | N130: 2 | O130: 3.571428571 | P130: 56 | Q130: 0 | R130: 0 | S130: 3 | T130: 5.357142857 | U130: 0 | V130: 0
B131: AMAZONAS | C131: CHACHAPOYAS | D131: JUMBILLA | E131: P.S. LAS PALMAS | F131: 9679 | G131: 20 | H131: 4 | I131: 20 | J131: 16 | K131: 10 | L131: 62.5 | M131: 20 | N131: 0 | O131: 0 | P131: 20 | Q131: 0 | R131: 0 | S131: 0 | T131: 0 | U131: 0 | V131: 0
B132: AMAZONAS | C132: CHACHAPOYAS | D132: JUMBILLA | E132: P.S. RECTA | F132: 4926 | G132: 10 | H132: 0 | I132: 0 | J132: 10 | K132: 3 | L132: 30 | M132: 10 | N132: 0 | O132: 0 | P132: 10 | Q132: 0 | R132: 0 | S132: 1 | T132: 10 | U132: 0 | V132: 0
B133: AMAZONAS | C133: CHACHAPOYAS | D133: JUMBILLA | E133: P.S. SAN MIGUEL DE LA REYNA | F133: 4918 | G133: 8 | H133: 2 | I133: 25 | J133: 6 | K133: 3 | L133: 50 | M133: 8 | N133: 0 | O133: 0 | P133: 8 | Q133: 0 | R133: 0 | S133: 3 | T133: 37.5 | U133: 0 | V133: 0
B134: AMAZONAS | C134: CHACHAPOYAS | D134: LAMUD | E134: C.S. LAMUD | F134: 4850 | G134: 87 | H134: 8 | I134: 9.195402299 | J134: 77 | K134: 29 | L134: 37.66233766 | M134: 87 | N134: 3 | O134: 3.448275862 | P134: 87 | Q134: 1 | R134: 1.149425287 | S134: 8 | T134: 9.195402299 | U134: 2 | V134: 2.298850575
B135: AMAZONAS | C135: CHACHAPOYAS | D135: LAMUD | E135: P.S. CRUZPATA | F135: 7062 | G135: 15 | H135: 3 | I135: 20 | J135: 12 | K135: 8 | L135: 66.66666667 | M135: 15 | N135: 1 | O135: 6.666666667 | P135: 15 | Q135: 0 | R135: 0 | S135: 2 | T135: 13.33333333 | U135: 1 | V135: 6.666666667
B136: AMAZONAS | C136: CHACHAPOYAS | D136: LAMUD | E136: P.S. CUEMAL | F136: 7379 | G136: 8 | H136: 1 | I136: 12.5 | J136: 5 | K136: 2 | L136: 40 | M136: 8 | N136: 0 | O136: 0 | P136: 8 | Q136: 0 | R136: 0 | S136: 0 | T136: 0 | U136: 0 | V136: 0
B137: AMAZONAS | C137: CHACHAPOYAS | D137: LAMUD | E137: P.S. LUYA VIEJO | F137: 4851 | G137: 21 | H137: 4 | I137: 19.04761905 | J137: 17 | K137: 9 | L137: 52.94117647 | M137: 21 | N137: 1 | O137: 4.761904762 | P137: 21 | Q137: 0 | R137: 0 | S137: 1 | T137: 4.761904762 | U137: 0 | V137: 0
B138: AMAZONAS | C138: CHACHAPOYAS | D138: LAMUD | E138: P.S. PACLAS | F138: 4853 | G138: 14 | H138: 3 | I138: 21.42857143 | J138: 11 | K138: 6 | L138: 54.54545455 | M138: 14 | N138: 0 | O138: 0 | P138: 14 | Q138: 0 | R138: 0 | S138: 1 | T138: 7.142857143 | U138: 0 | V138: 0
B139: AMAZONAS | C139: CHACHAPOYAS | D139: LAMUD | E139: P.S. SAN CRISTOBAL DE OLTO | F139: 4852 | G139: 23 | H139: 4 | I139: 17.39130435 | J139: 19 | K139: 12 | L139: 63.15789474 | M139: 23 | N139: 0 | O139: 0 | P139: 23 | Q139: 0 | R139: 0 | S139: 0 | T139: 0 | U139: 0 | V139: 0
B140: AMAZONAS | C140: CHACHAPOYAS | D140: LAMUD | E140: P.S. SANTA CATALINA | F140: 4854 | G140: 24 | H140: 3 | I140: 12.5 | J140: 21 | K140: 7 | L140: 33.33333333 | M140: 24 | N140: 1 | O140: 4.166666667 | P140: 24 | Q140: 0 | R140: 0 | S140: 4 | T140: 16.66666667 | U140: 0 | V140: 0
B141: AMAZONAS | C141: CHACHAPOYAS | D141: LAMUD | E141: P.S. TRITA | F141: 4855 | G141: 46 | H141: 12 | I141: 26.08695652 | J141: 34 | K141: 16 | L141: 47.05882353 | M141: 46 | N141: 5 | O141: 10.86956522 | P141: 46 | Q141: 0 | R141: 0 | S141: 2 | T141: 4.347826087 | U141: 1 | V141: 2.173913043
B142: AMAZONAS | C142: CHACHAPOYAS | D142: LEYMEBAMBA | E142: C.S. LEYMEBAMBA | F142: 4859 | G142: 145 | H142: 22 | I142: 15.17241379 | J142: 120 | K142: 52 | L142: 43.33333333 | M142: 146 | N142: 5 | O142: 3.424657534 | P142: 145 | Q142: 3 | R142: 2.068965517 | S142: 2 | T142: 1.379310345 | U142: 1 | V142: 0.6896551724
B143: AMAZONAS | C143: CHACHAPOYAS | D143: LEYMEBAMBA | E143: P.S. ATUEN | F143: 7175 | G143: 9 | H143: 0 | I143: 0 | J143: 9 | K143: 2 | L143: 22.22222222 | M143: 9 | N143: 0 | O143: 0 | P143: 9 | Q143: 0 | R143: 0 | S143: 2 | T143: 22.22222222 | U143: 0 | V143: 0
B144: AMAZONAS | C144: CHACHAPOYAS | D144: LEYMEBAMBA | E144: P.S. CHILCHOS | F144: 4860 | G144: 21 | H144: 5 | I144: 23.80952381 | J144: 16 | K144: 12 | L144: 75 | M144: 21 | N144: 1 | O144: 4.761904762 | P144: 21 | Q144: 0 | R144: 0 | S144: 1 | T144: 4.761904762 | U144: 1 | V144: 4.761904762
B145: AMAZONAS | C145: CHACHAPOYAS | D145: LEYMEBAMBA | E145: P.S. GOLLON | F145: 4857 | G145: 18 | H145: 0 | I145: 0 | J145: 18 | K145: 12 | L145: 66.66666667 | M145: 18 | N145: 0 | O145: 0 | P145: 18 | Q145: 0 | R145: 0 | S145: 0 | T145: 0 | U145: 0 | V145: 0
B146: AMAZONAS | C146: CHACHAPOYAS | D146: LEYMEBAMBA | E146: P.S. LA MORADA | F146: 7067 | G146: 24 | H146: 1 | I146: 4.166666667 | J146: 23 | K146: 8 | L146: 34.7826087 | M146: 24 | N146: 0 | O146: 0 | P146: 24 | Q146: 0 | R146: 0 | S146: 0 | T146: 0 | U146: 0 | V146: 0
B147: AMAZONAS | C147: CHACHAPOYAS | D147: LEYMEBAMBA | E147: P.S. PLAZAPAMPA | F147: 4861 | G147: 6 | H147: 1 | I147: 16.66666667 | J147: 5 | K147: 3 | L147: 60 | M147: 6 | N147: 0 | O147: 0 | P147: 6 | Q147: 0 | R147: 0 | S147: 1 | T147: 16.66666667 | U147: 0 | V147: 0
B148: AMAZONAS | C148: CHACHAPOYAS | D148: LEYMEBAMBA | E148: P.S. SAN FRANCISCO DEL YESO | F148: 4862 | G148: 25 | H148: 8 | I148: 32 | J148: 16 | K148: 5 | L148: 31.25 | M148: 25 | N148: 0 | O148: 0 | P148: 26 | Q148: 1 | R148: 3.846153846 | S148: 0 | T148: 0 | U148: 1 | V148: 3.846153846
B149: AMAZONAS | C149: CHACHAPOYAS | D149: LONGAR | E149: C.S. LONGAR | F149: 4944 | G149: 25 | H149: 1 | I149: 4 | J149: 24 | K149: 4 | L149: 16.66666667 | M149: 25 | N149: 0 | O149: 0 | P149: 25 | Q149: 0 | R149: 0 | S149: 2 | T149: 8 | U149: 0 | V149: 0
B150: AMAZONAS | C150: CHACHAPOYAS | D150: LONGAR | E150: P.S. COCHAMAL | F150: 4942 | G150: 26 | H150: 1 | I150: 3.846153846 | J150: 25 | K150: 6 | L150: 24 | M150: 26 | N150: 0 | O150: 0 | P150: 26 | Q150: 0 | R150: 0 | S150: 0 | T150: 0 | U150: 0 | V150: 0
B151: AMAZONAS | C151: CHACHAPOYAS | D151: LONGAR | E151: P.S. IZCUCHACA | F151: 4941 | G151: 18 | H151: 5 | I151: 27.77777778 | J151: 13 | K151: 5 | L151: 38.46153846 | M151: 18 | N151: 1 | O151: 5.555555556 | P151: 18 | Q151: 0 | R151: 0 | S151: 4 | T151: 22.22222222 | U151: 1 | V151: 5.555555556
B152: AMAZONAS | C152: CHACHAPOYAS | D152: LONGAR | E152: P.S. MARISCAL BENAVIDEZ | F152: 4945 | G152: 36 | H152: 1 | I152: 2.777777778 | J152: 34 | K152: 13 | L152: 38.23529412 | M152: 36 | N152: 0 | O152: 0 | P152: 36 | Q152: 0 | R152: 0 | S152: 3 | T152: 8.333333333 | U152: 0 | V152: 0
B153: AMAZONAS | C153: CHACHAPOYAS | D153: LONGAR | E153: P.S. MICHINA | F153: 7335 | G153: 17 | H153: 2 | I153: 11.76470588 | J153: 14 | K153: 5 | L153: 35.71428571 | M153: 17 | N153: 1 | O153: 5.882352941 | P153: 17 | Q153: 0 | R153: 0 | S153: 0 | T153: 0 | U153: 0 | V153: 0
B154: AMAZONAS | C154: CHACHAPOYAS | D154: LONGAR | E154: P.S. OQUISH | F154: 7282 | G154: 14 | H154: 0 | I154: 0 | J154: 14 | K154: 3 | L154: 21.42857143 | M154: 14 | N154: 0 | O154: 0 | P154: 14 | Q154: 0 | R154: 0 | S154: 1 | T154: 7.142857143 | U154: 0 | V154: 0
B155: AMAZONAS | C155: CHACHAPOYAS | D155: LONGAR | E155: P.S. SHUCUSH | F155: 11727 | G155: 23 | H155: 4 | I155: 17.39130435 | J155: 19 | K155: 5 | L155: 26.31578947 | M155: 23 | N155: 0 | O155: 0 | P155: 23 | Q155: 0 | R155: 0 | S155: 0 | T155: 0 | U155: 0 | V155: 0
B156: AMAZONAS | C156: CHACHAPOYAS | D156: LUYA | E156: C.S. LUYA | F156: 4866 | G156: 105 | H156: 6 | I156: 5.714285714 | J156: 98 | K156: 36 | L156: 36.73469388 | M156: 105 | N156: 0 | O156: 0 | P156: 105 | Q156: 0 | R156: 0 | S156: 11 | T156: 10.47619048 | U156: 0 | V156: 0
B157: AMAZONAS | C157: CHACHAPOYAS | D157: LUYA | E157: P.S. CAMELIN | F157: 13019 | G157: 6 | H157: 2 | I157: 33.33333333 | J157: 4 | K157: 4 | L157: 100 | M157: 6 | N157: 0 | O157: 0 | P157: 6 | Q157: 0 | R157: 0 | S157: 0 | T157: 0 | U157: 0 | V157: 0
B158: AMAZONAS | C158: CHACHAPOYAS | D158: LUYA | E158: P.S. CHOCTA | F158: 4867 | G158: 53 | H158: 9 | I158: 16.98113208 | J158: 44 | K158: 25 | L158: 56.81818182 | M158: 53 | N158: 5 | O158: 9.433962264 | P158: 53 | Q158: 0 | R158: 0 | S158: 2 | T158: 3.773584906 | U158: 0 | V158: 0
B159: AMAZONAS | C159: CHACHAPOYAS | D159: LUYA | E159: P.S. COLMATA | F159: 7332 | G159: 14 | H159: 5 | I159: 35.71428571 | J159: 9 | K159: 4 | L159: 44.44444444 | M159: 14 | N159: 0 | O159: 0 | P159: 14 | Q159: 0 | R159: 0 | S159: 1 | T159: 7.142857143 | U159: 0 | V159: 0
B160: AMAZONAS | C160: CHACHAPOYAS | D160: LUYA | E160: P.S. CONILA COHECHAN | F160: 4863 | G160: 67 | H160: 16 | I160: 23.88059701 | J160: 49 | K160: 20 | L160: 40.81632653 | M160: 67 | N160: 3 | O160: 4.47761194 | P160: 67 | Q160: 0 | R160: 0 | S160: 4 | T160: 5.970149254 | U160: 0 | V160: 0
B161: AMAZONAS | C161: CHACHAPOYAS | D161: LUYA | E161: P.S. COROBAMBA | F161: 7380 | G161: 23 | H161: 7 | I161: 30.43478261 | J161: 16 | K161: 10 | L161: 62.5 | M161: 23 | N161: 0 | O161: 0 | P161: 23 | Q161: 0 | R161: 0 | S161: 0 | T161: 0 | U161: 0 | V161: 0
B162: AMAZONAS | C162: CHACHAPOYAS | D162: LUYA | E162: P.S. INGUILPATA | F162: 4864 | G162: 9 | H162: 1 | I162: 11.11111111 | J162: 8 | K162: 3 | L162: 37.5 | M162: 9 | N162: 0 | O162: 0 | P162: 9 | Q162: 0 | R162: 0 | S162: 0 | T162: 0 | U162: 2 | V162: 22.22222222
B163: AMAZONAS | C163: CHACHAPOYAS | D163: LUYA | E163: P.S. LONYA CHICO | F163: 4865 | G163: 27 | H163: 6 | I163: 22.22222222 | J163: 21 | K163: 8 | L163: 38.0952381 | M163: 27 | N163: 0 | O163: 0 | P163: 27 | Q163: 0 | R163: 0 | S163: 3 | T163: 11.11111111 | U163: 0 | V163: 0
B164: AMAZONAS | C164: CHACHAPOYAS | D164: LUYA | E164: P.S. NUEVO LUYA | F164: 7274 | G164: 16 | H164: 0 | I164: 0 | J164: 16 | K164: 6 | L164: 37.5 | M164: 16 | N164: 1 | O164: 6.25 | P164: 16 | Q164: 1 | R164: 6.25 | S164: 3 | T164: 18.75 | U164: 0 | V164: 0
B165: AMAZONAS | C165: CHACHAPOYAS | D165: LUYA | E165: P.S. SHIPATA | F165: 7063 | G165: 12 | H165: 3 | I165: 25 | J165: 9 | K165: 4 | L165: 44.44444444 | M165: 12 | N165: 0 | O165: 0 | P165: 12 | Q165: 0 | R165: 0 | S165: 2 | T165: 16.66666667 | U165: 0 | V165: 0
B166: AMAZONAS | C166: CHACHAPOYAS | D166: MARIA | E166: C.S. COCABAMBA | F166: 4885 | G166: 22 | H166: 5 | I166: 22.72727273 | J166: 17 | K166: 8 | L166: 47.05882353 | M166: 23 | N166: 0 | O166: 0 | P166: 23 | Q166: 0 | R166: 0 | S166: 0 | T166: 0 | U166: 0 | V166: 0
B167: AMAZONAS | C167: CHACHAPOYAS | D167: MARIA | E167: C.S. MARIA | F167: 4899 | G167: 38 | H167: 9 | I167: 23.68421053 | J167: 29 | K167: 14 | L167: 48.27586207 | M167: 38 | N167: 0 | O167: 0 | P167: 39 | Q167: 0 | R167: 0 | S167: 1 | T167: 2.564102564 | U167: 2 | V167: 5.128205128
B168: AMAZONAS | C168: CHACHAPOYAS | D168: MARIA | E168: P.S. BALERIANA | F168: 7206 | G168: 13 | H168: 4 | I168: 30.76923077 | J168: 9 | K168: 7 | L168: 77.77777778 | M168: 13 | N168: 1 | O168: 7.692307692 | P168: 13 | Q168: 1 | R168: 7.692307692 | S168: 0 | T168: 0 | U168: 0 | V168: 0
B169: AMAZONAS | C169: CHACHAPOYAS | D169: MARIA | E169: P.S. BUENA VISTA | F169: 7334 | G169: 14 | H169: 4 | I169: 28.57142857 | J169: 10 | K169: 6 | L169: 60 | M169: 14 | N169: 1 | O169: 7.142857143 | P169: 13 | Q169: 0 | R169: 0 | S169: 2 | T169: 15.38461538 | U169: 1 | V169: 7.692307692
B170: AMAZONAS | C170: CHACHAPOYAS | D170: MARIA | E170: P.S. CHUILON | F170: 7066 | G170: 12 | H170: 3 | I170: 25 | J170: 9 | K170: 5 | L170: 55.55555556 | M170: 12 | N170: 0 | O170: 0 | P170: 12 | Q170: 0 | R170: 0 | S170: 0 | T170: 0 | U170: 0 | V170: 0
B171: AMAZONAS | C171: CHACHAPOYAS | D171: MARIA | E171: P.S. MENDAN | F171: 4894 | G171: 29 | H171: 6 | I171: 20.68965517 | J171: 22 | K171: 7 | L171: 31.81818182 | M171: 29 | N171: 1 | O171: 3.448275862 | P171: 29 | Q171: 1 | R171: 3.448275862 | S171: 2 | T171: 6.896551724 | U171: 0 | V171: 0
B172: AMAZONAS | C172: CHACHAPOYAS | D172: MARIA | E172: P.S. QUISQUIS | F172: 4893 | G172: 41 | H172: 12 | I172: 29.26829268 | J172: 29 | K172: 22 | L172: 75.86206897 | M172: 41 | N172: 1 | O172: 2.43902439 | P172: 41 | Q172: 0 | R172: 0 | S172: 4 | T172: 9.756097561 | U172: 0 | V172: 0
B173: AMAZONAS | C173: CHACHAPOYAS | D173: MARIA | E173: P.S. YOMBLON DE COCABAMBA | F173: 4886 | G173: 34 | H173: 9 | I173: 26.47058824 | J173: 25 | K173: 16 | L173: 64 | M173: 34 | N173: 3 | O173: 8.823529412 | P173: 33 | Q173: 0 | R173: 0 | S173: 0 | T173: 0 | U173: 0 | V173: 0
B174: AMAZONAS | C174: CHACHAPOYAS | D174: MOLINO PAMPA | E174: C.S. MOLINOPAMPA | F174: 4869 | G174: 66 | H174: 19 | I174: 28.78787879 | J174: 46 | K174: 19 | L174: 41.30434783 | M174: 65 | N174: 3 | O174: 4.615384615 | P174: 66 | Q174: 2 | R174: 3.03030303 | S174: 3 | T174: 4.545454545 | U174: 2 | V174: 3.03030303
B175: AMAZONAS | C175: CHACHAPOYAS | D175: MOLINO PAMPA | E175: P.S. CASMAL | F175: 9667 | G175: 2 | H175: 0 | I175: 0 | J175: 2 | K175: 1 | L175: 50 | M175: 2 | N175: 0 | O175: 0 | P175: 2 | Q175: 0 | R175: 0 | S175: 0 | T175: 0 | U175: 0 | V175: 0
B176: AMAZONAS | C176: CHACHAPOYAS | D176: MOLINO PAMPA | E176: P.S. GRANADA | F176: 4868 | G176: 16 | H176: 2 | I176: 12.5 | J176: 14 | K176: 8 | L176: 57.14285714 | M176: 16 | N176: 0 | O176: 0 | P176: 16 | Q176: 0 | R176: 0 | S176: 0 | T176: 0 | U176: 0 | V176: 0
B177: AMAZONAS | C177: CHACHAPOYAS | D177: MOLINO PAMPA | E177: P.S. OLLEROS | F177: 4871 | G177: 5 | H177: 1 | I177: 20 | J177: 3 | K177: 3 | L177: 100 | M177: 5 | N177: 0 | O177: 0 | P177: 5 | Q177: 0 | R177: 0 | S177: 1 | T177: 20 | U177: 0 | V177: 0
B178: AMAZONAS | C178: CHACHAPOYAS | D178: MOLINO PAMPA | E178: P.S. QUINJALCA | F178: 4872 | G178: 23 | H178: 5 | I178: 21.73913043 | J178: 18 | K178: 7 | L178: 38.88888889 | M178: 23 | N178: 1 | O178: 4.347826087 | P178: 23 | Q178: 0 | R178: 0 | S178: 2 | T178: 8.695652174 | U178: 1 | V178: 4.347826087
B179: AMAZONAS | C179: CHACHAPOYAS | D179: MOLINO PAMPA | E179: P.S. SAN JOSE | F179: 4870 | G179: 37 | H179: 12 | I179: 32.43243243 | J179: 24 | K179: 14 | L179: 58.33333333 | M179: 37 | N179: 0 | O179: 0 | P179: 37 | Q179: 0 | R179: 0 | S179: 8 | T179: 21.62162162 | U179: 1 | V179: 2.702702703
B180: AMAZONAS | C180: CHACHAPOYAS | D180: NUEVO CHIRIMOTO | E180: C.S. NUEVO CHIRIMOTO | F180: 4947 | G180: 120 | H180: 15 | I180: 12.5 | J180: 105 | K180: 30 | L180: 28.57142857 | M180: 121 | N180: 3 | O180: 2.479338843 | P180: 119 | Q180: 3 | R180: 2.521008403 | S180: 9 | T180: 7.56302521 | U180: 1 | V180: 0.8403361345
B181: AMAZONAS | C181: CHACHAPOYAS | D181: NUEVO CHIRIMOTO | E181: P.S. EL LIBANO | F181: 6991 | G181: 33 | H181: 5 | I181: 15.15151515 | J181: 28 | K181: 7 | L181: 25 | M181: 33 | N181: 0 | O181: 0 | P181: 33 | Q181: 0 | R181: 0 | S181: 4 | T181: 12.12121212 | U181: 1 | V181: 3.03030303
B182: AMAZONAS | C182: CHACHAPOYAS | D182: NUEVO CHIRIMOTO | E182: P.S. JAVRULOT | F182: 11725 | G182: 29 | H182: 7 | I182: 24.13793103 | J182: 22 | K182: 10 | L182: 45.45454545 | M182: 29 | N182: 1 | O182: 3.448275862 | P182: 29 | Q182: 1 | R182: 3.448275862 | S182: 2 | T182: 6.896551724 | U182: 0 | V182: 0
B183: AMAZONAS | C183: CHACHAPOYAS | D183: NUEVO CHIRIMOTO | E183: P.S. LA PRIMAVERA | F183: 7073 | G183: 12 | H183: 1 | I183: 8.333333333 | J183: 11 | K183: 6 | L183: 54.54545455 | M183: 12 | N183: 0 | O183: 0 | P183: 12 | Q183: 0 | R183: 0 | S183: 0 | T183: 0 | U183: 1 | V183: 8.333333333
B184: AMAZONAS | C184: CHACHAPOYAS | D184: NUEVO CHIRIMOTO | E184: P.S. MASHUYACU | F184: 11723 | G184: 40 | H184: 4 | I184: 10 | J184: 36 | K184: 10 | L184: 27.77777778 | M184: 41 | N184: 1 | O184: 2.43902439 | P184: 41 | Q184: 0 | R184: 0 | S184: 2 | T184: 4.87804878 | U184: 0 | V184: 0
B185: AMAZONAS | C185: CHACHAPOYAS | D185: NUEVO CHIRIMOTO | E185: P.S. PAUJIL | F185: 14169 | G185: 3 | H185: 0 | I185: 0 | J185: 3 | K185: 0 | L185: 0 | M185: 3 | N185: 0 | O185: 0 | P185: 3 | Q185: 0 | R185: 0 | S185: 0 | T185: 0 | U185: 0 | V185: 0
B186: AMAZONAS | C186: CHACHAPOYAS | D186: OCALLI | E186: C.S. OCALLI | F186: 4876 | G186: 81 | H186: 16 | I186: 19.75308642 | J186: 65 | K186: 28 | L186: 43.07692308 | M186: 81 | N186: 4 | O186: 4.938271605 | P186: 82 | Q186: 0 | R186: 0 | S186: 4 | T186: 4.87804878 | U186: 2 | V186: 2.43902439
B187: AMAZONAS | C187: CHACHAPOYAS | D187: OCALLI | E187: P.S. CELCHO CUZCO | F187: 7153 | G187: 42 | H187: 14 | I187: 33.33333333 | J187: 28 | K187: 19 | L187: 67.85714286 | M187: 41 | N187: 2 | O187: 4.87804878 | P187: 41 | Q187: 0 | R187: 0 | S187: 7 | T187: 17.07317073 | U187: 1 | V187: 2.43902439
B188: AMAZONAS | C188: CHACHAPOYAS | D188: OCALLI | E188: P.S. PLAYA JUMETH | F188: 9130 | G188: 7 | H188: 3 | I188: 42.85714286 | J188: 4 | K188: 1 | L188: 25 | M188: 7 | N188: 0 | O188: 0 | P188: 7 | Q188: 0 | R188: 0 | S188: 1 | T188: 14.28571429 | U188: 0 | V188: 0
B189: AMAZONAS | C189: CHACHAPOYAS | D189: OCALLI | E189: P.S. QUISPE | F189: 4877 | G189: 46 | H189: 3 | I189: 6.52173913 | J189: 42 | K189: 15 | L189: 35.71428571 | M189: 46 | N189: 2 | O189: 4.347826087 | P189: 48 | Q189: 1 | R189: 2.083333333 | S189: 2 | T189: 4.166666667 | U189: 0 | V189: 0
B190: AMAZONAS | C190: CHACHAPOYAS | D190: OCALLI | E190: P.S. TACTAMAL | F190: 7059 | G190: 29 | H190: 6 | I190: 20.68965517 | J190: 22 | K190: 12 | L190: 54.54545455 | M190: 31 | N190: 1 | O190: 3.225806452 | P190: 30 | Q190: 0 | R190: 0 | S190: 1 | T190: 3.333333333 | U190: 1 | V190: 3.333333333
B191: AMAZONAS | C191: CHACHAPOYAS | D191: OMIA | E191: C.S. OMIA | F191: 4946 | G191: 66 | H191: 7 | I191: 10.60606061 | J191: 59 | K191: 21 | L191: 35.59322034 | M191: 66 | N191: 2 | O191: 3.03030303 | P191: 66 | Q191: 0 | R191: 0 | S191: 10 | T191: 15.15151515 | U191: 1 | V191: 1.515151515
B192: AMAZONAS | C192: CHACHAPOYAS | D192: OMIA | E192: P.S. CHONTAPAMPA | F192: 7446 | G192: 9 | H192: 0 | I192: 0 | J192: 9 | K192: 3 | L192: 33.33333333 | M192: 9 | N192: 0 | O192: 0 | P192: 9 | Q192: 0 | R192: 0 | S192: 0 | T192: 0 | U192: 0 | V192: 0
B193: AMAZONAS | C193: CHACHAPOYAS | D193: OMIA | E193: P.S. TOCUYA | F193: 4949 | G193: 49 | H193: 14 | I193: 28.57142857 | J193: 35 | K193: 18 | L193: 51.42857143 | M193: 50 | N193: 1 | O193: 2 | P193: 49 | Q193: 0 | R193: 0 | S193: 6 | T193: 12.24489796 | U193: 0 | V193: 0
B194: AMAZONAS | C194: CHACHAPOYAS | D194: PEDRO RUIZ GALLO | E194: C.S. PEDRO RUIZ GALLO | F194: 4922 | G194: 299 | H194: 20 | I194: 6.688963211 | J194: 277 | K194: 80 | L194: 28.88086643 | M194: 299 | N194: 3 | O194: 1.003344482 | P194: 298 | Q194: 2 | R194: 0.6711409396 | S194: 19 | T194: 6.375838926 | U194: 2 | V194: 0.6711409396
B195: AMAZONAS | C195: CHACHAPOYAS | D195: PEDRO RUIZ GALLO | E195: P.S. CARRERA | F195: 4933 | G195: 9 | H195: 0 | I195: 0 | J195: 9 | K195: 3 | L195: 33.33333333 | M195: 9 | N195: 0 | O195: 0 | P195: 9 | Q195: 0 | R195: 0 | S195: 0 | T195: 0 | U195: 0 | V195: 0
B196: AMAZONAS | C196: CHACHAPOYAS | D196: PEDRO RUIZ GALLO | E196: P.S. CHOSGON | F196: 4923 | G196: 23 | H196: 1 | I196: 4.347826087 | J196: 22 | K196: 10 | L196: 45.45454545 | M196: 23 | N196: 0 | O196: 0 | P196: 23 | Q196: 0 | R196: 0 | S196: 0 | T196: 0 | U196: 0 | V196: 0
B197: AMAZONAS | C197: CHACHAPOYAS | D197: PEDRO RUIZ GALLO | E197: P.S. CHURUJA | F197: 4919 | G197: 16 | H197: 1 | I197: 6.25 | J197: 14 | K197: 3 | L197: 21.42857143 | M197: 16 | N197: 1 | O197: 6.25 | P197: 16 | Q197: 1 | R197: 6.25 | S197: 1 | T197: 6.25 | U197: 0 | V197: 0
B198: AMAZONAS | C198: CHACHAPOYAS | D198: PEDRO RUIZ GALLO | E198: P.S. COCACHIMBA | F198: 4929 | G198: 7 | H198: 2 | I198: 28.57142857 | J198: 5 | K198: 1 | L198: 20 | M198: 7 | N198: 0 | O198: 0 | P198: 7 | Q198: 0 | R198: 0 | S198: 1 | T198: 14.28571429 | U198: 0 | V198: 0
B199: AMAZONAS | C199: CHACHAPOYAS | D199: PEDRO RUIZ GALLO | E199: P.S. COMBOCA | F199: 7260 | G199: 7 | H199: 0 | I199: 0 | J199: 7 | K199: 4 | L199: 57.14285714 | M199: 7 | N199: 0 | O199: 0 | P199: 7 | Q199: 0 | R199: 0 | S199: 0 | T199: 0 | U199: 0 | V199: 0
B200: AMAZONAS | C200: CHACHAPOYAS | D200: PEDRO RUIZ GALLO | E200: P.S. CUISPES | F200: 4920 | G200: 11 | H200: 0 | I200: 0 | J200: 11 | K200: 3 | L200: 27.27272727 | M200: 11 | N200: 0 | O200: 0 | P200: 11 | Q200: 0 | R200: 0 | S200: 0 | T200: 0 | U200: 0 | V200: 0
B201: AMAZONAS | C201: CHACHAPOYAS | D201: PEDRO RUIZ GALLO | E201: P.S. DUNIA CHICO | F201: 7261 | G201: 5 | H201: 1 | I201: 20 | J201: 4 | K201: 2 | L201: 50 | M201: 5 | N201: 0 | O201: 0 | P201: 5 | Q201: 0 | R201: 0 | S201: 0 | T201: 0 | U201: 0 | V201: 0
B202: AMAZONAS | C202: CHACHAPOYAS | D202: PEDRO RUIZ GALLO | E202: P.S. FANRRE | F202: 4921 | G202: 9 | H202: 4 | I202: 44.44444444 | J202: 5 | K202: 0 | L202: 0 | M202: 9 | N202: 2 | O202: 22.22222222 | P202: 9 | Q202: 0 | R202: 0 | S202: 0 | T202: 0 | U202: 0 | V202: 0
... 4298 more rows

Sheet EN 0-59m x EESS (hidden)
B2: CUADRO N°08 PERÚ: ESTADO NUTRICIONAL EN NIÑOS MENORES DE 5 AÑOS QUE ACCEDIERON A LOS ESTABLECIMIENTOS DE SALUD POR INDICADORES ANTROPOMÉTRICOS, SEGÚN DIRESA, RED, MICRORED Y ESTABLECIMIENTO DE SALUD
B3: =#REF! -> 
B5: DIRESA | C5: RED | D5: MICRORED | E5: ESTABLECIMIENTO DE SALUD | F5: RENIPRESS | G5: INDICADOR TALLA / EDAD1 | M5: INDICADOR PESO / EDAD2 | P5: INDICADOR PESO / TALLA3
G6: DESNUTRICIÓN CRÓNICA | J6: RIESGO DE DESNUTRICIÓN CRÓNICA4 | M6: DESNUTRICIÓN GLOBAL | P6: N° DE EVALUADOS | Q6: DESNUTRICIÓN AGUDA | S6: SOBREPESO | U6: OBESIDAD
G7: N° DE EVALUADOS | H7: N° DE CASOS | I7: % | J7: N° DE EVALUADOS | K7: N° DE CASOS | L7: % | M7: N° DE EVALUADOS | N7: N° DE CASOS | O7: % | Q7: N° DE CASOS | R7: % | S7: N° DE CASOS | T7: % | U7: N° DE CASOS | V7: %
B8: AMAZONAS | C8: BAGUA | D8: ARAMANGO | E8: C.S. ARAMANGO | F8: 5053 | G8: 223 | H8: 33 | I8: 14.79820628 | J8: 187 | K8: 73 | L8: 39.03743316 | M8: 223 | N8: 9 | O8: 4.035874439 | P8: 223 | Q8: 4 | R8: 1.793721973 | S8: 11 | T8: 4.932735426 | U8: 5 | V8: 2.242152466
B9: AMAZONAS | C9: BAGUA | D9: ARAMANGO | E9: P.S. CHINGANZA | F9: 7008 | G9: 69 | H9: 14 | I9: 20.28985507 | J9: 55 | K9: 26 | L9: 47.27272727 | M9: 69 | N9: 3 | O9: 4.347826087 | P9: 68 | Q9: 1 | R9: 1.470588235 | S9: 0 | T9: 0 | U9: 1 | V9: 1.470588235
B10: AMAZONAS | C10: BAGUA | D10: ARAMANGO | E10: P.S. EL CEDRON | F10: 7264 | G10: 12 | H10: 3 | I10: 25 | J10: 9 | K10: 7 | L10: 77.77777778 | M10: 12 | N10: 1 | O10: 8.333333333 | P10: 12 | Q10: 0 | R10: 0 | S10: 1 | T10: 8.333333333 | U10: 1 | V10: 8.333333333
B11: AMAZONAS | C11: BAGUA | D11: ARAMANGO | E11: P.S. GUAYAQUIL | F11: 7263 | G11: 10 | H11: 6 | I11: 60 | J11: 4 | K11: 2 | L11: 50 | M11: 10 | N11: 0 | O11: 0 | P11: 10 | Q11: 0 | R11: 0 | S11: 2 | T11: 20 | U11: 0 | V11: 0
B12: AMAZONAS | C12: BAGUA | D12: ARAMANGO | E12: P.S. MIRAFLORES DE ARAMANGO | F12: 5054 | G12: 45 | H12: 8 | I12: 17.77777778 | J12: 37 | K12: 18 | L12: 48.64864865 | M12: 45 | N12: 1 | O12: 2.222222222 | P12: 45 | Q12: 0 | R12: 0 | S12: 0 | T12: 0 | U12: 0 | V12: 0
B13: AMAZONAS | C13: BAGUA | D13: ARAMANGO | E13: P.S. MONTENEGRO | F13: 7009 | G13: 42 | H13: 7 | I13: 16.66666667 | J13: 35 | K13: 17 | L13: 48.57142857 | M13: 42 | N13: 3 | O13: 7.142857143 | P13: 42 | Q13: 2 | R13: 4.761904762 | S13: 2 | T13: 4.761904762 | U13: 0 | V13: 0
B14: AMAZONAS | C14: BAGUA | D14: ARAMANGO | E14: P.S. NAJEM | F14: 7228 | G14: 77 | H14: 39 | I14: 50.64935065 | J14: 36 | K14: 30 | L14: 83.33333333 | M14: 77 | N14: 10 | O14: 12.98701299 | P14: 77 | Q14: 0 | R14: 0 | S14: 3 | T14: 3.896103896 | U14: 0 | V14: 0
B15: AMAZONAS | C15: BAGUA | D15: ARAMANGO | E15: P.S. NUMPARKET | F15: 5058 | G15: 74 | H15: 12 | I15: 16.21621622 | J15: 62 | K15: 30 | L15: 48.38709677 | M15: 74 | N15: 1 | O15: 1.351351351 | P15: 74 | Q15: 0 | R15: 0 | S15: 5 | T15: 6.756756757 | U15: 0 | V15: 0
B16: AMAZONAS | C16: BAGUA | D16: ARAMANGO | E16: P.S. SELVA VERDE | F16: 7227 | G16: 18 | H16: 5 | I16: 27.77777778 | J16: 13 | K16: 9 | L16: 69.23076923 | M16: 18 | N16: 1 | O16: 5.555555556 | P16: 18 | Q16: 0 | R16: 0 | S16: 1 | T16: 5.555555556 | U16: 0 | V16: 0
B17: AMAZONAS | C17: BAGUA | D17: ARAMANGO | E17: P.S. SHAIM | F17: 5061 | G17: 69 | H17: 38 | I17: 55.07246377 | J17: 30 | K17: 20 | L17: 66.66666667 | M17: 69 | N17: 9 | O17: 13.04347826 | P17: 69 | Q17: 2 | R17: 2.898550725 | S17: 8 | T17: 11.5942029 | U17: 0 | V17: 0
B18: AMAZONAS | C18: BAGUA | D18: ARAMANGO | E18: P.S. TUTUMBEROS | F18: 5059 | G18: 117 | H18: 40 | I18: 34.18803419 | J18: 75 | K18: 44 | L18: 58.66666667 | M18: 117 | N18: 4 | O18: 3.418803419 | P18: 117 | Q18: 1 | R18: 0.8547008547 | S18: 6 | T18: 5.128205128 | U18: 0 | V18: 0
B19: AMAZONAS | C19: BAGUA | D19: BAGUA | E19: C.S. BAGUA | F19: 6998 | G19: 579 | H19: 67 | I19: 11.5716753 | J19: 504 | K19: 174 | L19: 34.52380952 | M19: 585 | N19: 29 | O19: 4.957264957 | P19: 581 | Q19: 4 | R19: 0.6884681583 | S19: 30 | T19: 5.163511188 | U19: 4 | V19: 0.6884681583
B20: AMAZONAS | C20: BAGUA | D20: BAGUA | E20: C.S. EL PARCO | F20: 5193 | G20: 91 | H20: 9 | I20: 9.89010989 | J20: 81 | K20: 36 | L20: 44.44444444 | M20: 90 | N20: 4 | O20: 4.444444444 | P20: 89 | Q20: 2 | R20: 2.247191011 | S20: 4 | T20: 4.494382022 | U20: 0 | V20: 0
B21: AMAZONAS | C21: BAGUA | D21: BAGUA | E21: P.S. ACERILLO | F21: 7007 | G21: 61 | H21: 6 | I21: 9.836065574 | J21: 55 | K21: 18 | L21: 32.72727273 | M21: 61 | N21: 1 | O21: 1.639344262 | P21: 60 | Q21: 2 | R21: 3.333333333 | S21: 6 | T21: 10 | U21: 0 | V21: 0
B22: AMAZONAS | C22: BAGUA | D22: BAGUA | E22: P.S. ALENYA | F22: 7299 | G22: 50 | H22: 6 | I22: 12 | J22: 43 | K22: 25 | L22: 58.13953488 | M22: 50 | N22: 0 | O22: 0 | P22: 50 | Q22: 1 | R22: 2 | S22: 1 | T22: 2 | U22: 0 | V22: 0
B23: AMAZONAS | C23: BAGUA | D23: BAGUA | E23: P.S. CASUAL | F23: 7759 | G23: 27 | H23: 2 | I23: 7.407407407 | J23: 25 | K23: 10 | L23: 40 | M23: 27 | N23: 1 | O23: 3.703703704 | P23: 27 | Q23: 1 | R23: 3.703703704 | S23: 2 | T23: 7.407407407 | U23: 0 | V23: 0
B24: AMAZONAS | C24: BAGUA | D24: BAGUA | E24: P.S. CRUCE ALENYA | F24: 5047 | G24: 57 | H24: 5 | I24: 8.771929825 | J24: 51 | K24: 16 | L24: 31.37254902 | M24: 57 | N24: 1 | O24: 1.754385965 | P24: 57 | Q24: 1 | R24: 1.754385965 | S24: 3 | T24: 5.263157895 | U24: 1 | V24: 1.754385965
B25: AMAZONAS | C25: BAGUA | D25: BAGUA | E25: P.S. ESPITAL | F25: 5045 | G25: 37 | H25: 5 | I25: 13.51351351 | J25: 31 | K25: 13 | L25: 41.93548387 | M25: 37 | N25: 1 | O25: 2.702702703 | P25: 37 | Q25: 1 | R25: 2.702702703 | S25: 1 | T25: 2.702702703 | U25: 1 | V25: 2.702702703
B26: AMAZONAS | C26: BAGUA | D26: BAGUA | E26: P.S. LA PRIMAVERA | F26: 7276 | G26: 142 | H26: 25 | I26: 17.6056338 | J26: 115 | K26: 35 | L26: 30.43478261 | M26: 145 | N26: 9 | O26: 6.206896552 | P26: 141 | Q26: 5 | R26: 3.546099291 | S26: 7 | T26: 4.964539007 | U26: 2 | V26: 1.418439716
B27: AMAZONAS | C27: BAGUA | D27: BAGUA | E27: P.S. NARANJOS | F27: 7300 | G27: 27 | H27: 4 | I27: 14.81481481 | J27: 23 | K27: 9 | L27: 39.13043478 | M27: 27 | N27: 2 | O27: 7.407407407 | P27: 27 | Q27: 2 | R27: 7.407407407 | S27: 2 | T27: 7.407407407 | U27: 0 | V27: 0
B28: AMAZONAS | C28: BAGUA | D28: BAGUA | E28: P.S. SAN ISIDRO | F28: 5046 | G28: 38 | H28: 8 | I28: 21.05263158 | J28: 28 | K28: 9 | L28: 32.14285714 | M28: 38 | N28: 0 | O28: 0 | P28: 38 | Q28: 0 | R28: 0 | S28: 1 | T28: 2.631578947 | U28: 0 | V28: 0
B29: AMAZONAS | C29: BAGUA | D29: BAGUA | E29: P.S. TOLOPAMPA | F29: 7262 | G29: 22 | H29: 2 | I29: 9.090909091 | J29: 20 | K29: 8 | L29: 40 | M29: 22 | N29: 0 | O29: 0 | P29: 22 | Q29: 0 | R29: 0 | S29: 4 | T29: 18.18181818 | U29: 1 | V29: 4.545454545
B30: AMAZONAS | C30: BAGUA | D30: BAGUA | E30: P.S. TOMAQUE | F30: 5048 | G30: 50 | H30: 6 | I30: 12 | J30: 43 | K30: 18 | L30: 41.86046512 | M30: 51 | N30: 0 | O30: 0 | P30: 49 | Q30: 0 | R30: 0 | S30: 1 | T30: 2.040816327 | U30: 0 | V30: 0
B31: AMAZONAS | C31: BAGUA | D31: BAGUA | E31: P.S. UNION PROGRESO | F31: 7758 | G31: 29 | H31: 4 | I31: 13.79310345 | J31: 25 | K31: 11 | L31: 44 | M31: 29 | N31: 1 | O31: 3.448275862 | P31: 29 | Q31: 0 | R31: 0 | S31: 0 | T31: 0 | U31: 2 | V31: 6.896551724
B32: AMAZONAS | C32: BAGUA | D32: CHIPE | E32: C.S. CHIPE | F32: 5071 | G32: 205 | H32: 69 | I32: 33.65853659 | J32: 135 | K32: 74 | L32: 54.81481481 | M32: 204 | N32: 12 | O32: 5.882352941 | P32: 205 | Q32: 6 | R32: 2.926829268 | S32: 8 | T32: 3.902439024 | U32: 1 | V32: 0.487804878
B33: AMAZONAS | C33: BAGUA | D33: CHIPE | E33: P.S. JEMPEST-CHICAIS | F33: 5074 | G33: 70 | H33: 35 | I33: 50 | J33: 35 | K33: 26 | L33: 74.28571429 | M33: 70 | N33: 3 | O33: 4.285714286 | P33: 70 | Q33: 0 | R33: 0 | S33: 4 | T33: 5.714285714 | U33: 1 | V33: 1.428571429
B34: AMAZONAS | C34: BAGUA | D34: CHIPE | E34: P.S. KUSU | F34: 5072 | G34: 66 | H34: 29 | I34: 43.93939394 | J34: 35 | K34: 26 | L34: 74.28571429 | M34: 66 | N34: 13 | O34: 19.6969697 | P34: 66 | Q34: 3 | R34: 4.545454545 | S34: 4 | T34: 6.060606061 | U34: 0 | V34: 0
B35: AMAZONAS | C35: BAGUA | D35: CHIPE | E35: P.S. LISTRA | F35: 7234 | G35: 66 | H35: 25 | I35: 37.87878788 | J35: 40 | K35: 25 | L35: 62.5 | M35: 66 | N35: 1 | O35: 1.515151515 | P35: 66 | Q35: 1 | R35: 1.515151515 | S35: 22 | T35: 33.33333333 | U35: 19 | V35: 28.78787879
B36: AMAZONAS | C36: BAGUA | D36: CHIPE | E36: P.S. NUEVA VIDA | F36: 7232 | G36: 67 | H36: 25 | I36: 37.31343284 | J36: 42 | K36: 23 | L36: 54.76190476 | M36: 67 | N36: 3 | O36: 4.47761194 | P36: 67 | Q36: 0 | R36: 0 | S36: 3 | T36: 4.47761194 | U36: 1 | V36: 1.492537313
B37: AMAZONAS | C37: BAGUA | D37: CHIPE | E37: P.S. NUMPATKAIM | F37: 5073 | G37: 120 | H37: 21 | I37: 17.5 | J37: 92 | K37: 50 | L37: 54.34782609 | M37: 120 | N37: 0 | O37: 0 | P37: 120 | Q37: 3 | R37: 2.5 | S37: 14 | T37: 11.66666667 | U37: 6 | V37: 5
B38: AMAZONAS | C38: BAGUA | D38: CHIPE | E38: P.S. SAN PABLO | F38: 7233 | G38: 51 | H38: 17 | I38: 33.33333333 | J38: 33 | K38: 16 | L38: 48.48484848 | M38: 51 | N38: 3 | O38: 5.882352941 | P38: 51 | Q38: 0 | R38: 0 | S38: 3 | T38: 5.882352941 | U38: 0 | V38: 0
B39: AMAZONAS | C39: BAGUA | D39: CHIRIACO | E39: C.S. CHIRIACO | F39: 5084 | G39: 426 | H39: 103 | I39: 24.17840376 | J39: 314 | K39: 147 | L39: 46.81528662 | M39: 427 | N39: 30 | O39: 7.025761124 | P39: 425 | Q39: 13 | R39: 3.058823529 | S39: 24 | T39: 5.647058824 | U39: 5 | V39: 1.176470588
B40: AMAZONAS | C40: BAGUA | D40: CHIRIACO | E40: P.S. DURAND | F40: 14208 | G40: 76 | H40: 25 | I40: 32.89473684 | J40: 51 | K40: 25 | L40: 49.01960784 | M40: 76 | N40: 3 | O40: 3.947368421 | P40: 76 | Q40: 1 | R40: 1.315789474 | S40: 3 | T40: 3.947368421 | U40: 1 | V40: 1.315789474
